Workbook

Sheet LDC Info
AA3: Algoma Power Inc.
AA4: Atikokan Hydro Inc.
AA5: Attawapiskat Power Corporation
AA6: Bluewater Power Distribution Corporation
AA7: Brant County Power Inc.
AA8: Brantford Power Inc.
AA9: Burlington Hydro Inc.
AA10: Cambridge and North Dumfries Hydro Inc.
AA11: Canadian Niagara Power Inc.
AA12: Centre Wellington Hydro Ltd.
AA13: Chapleau Public Utilities Corporation
D14: Utility Name | E14: Canadian Niagara Power Inc. | AA14: COLLUS PowerStream Corp.
AA15: Cooperative Hydro Embrun Inc.
D16: Assigned EB Number | E16: EB-2016-0061 | AA16: E.L.K. Energy Inc.
AA17: Enersource Hydro Mississauga Inc.
D18: Name of Contact and Title | E18: Gregory Beharriell | AA18: Entegrus Powerlines Inc.
AA19: EnWin Utilities Ltd.
D20: Phone Number | E20: 905-871-0330 ext. 3278 | AA20: Erie Thames Powerlines Corporation
AA21: Espanola Regional Hydro Distribution Corporation
D22: Email Address | E22: greg.beharriel@cnpower.com | AA22: Essex Powerlines Corporation
AA23: Festival Hydro Inc.
D24: Test Year | E24: 2017 | AA24: Fort Albany Power Corporation
AA25: Fort Frances Power Corporation
D26: Bridge Year | E26: 2016 | AA26: Greater Sudbury Hydro Inc.
AA27: Grimsby Power Inc.
D28: Last Rebasing Year | E28: 2013 | AA28: Guelph Hydro Electric Systems Inc.
AA29: Haldimand County Hydro Inc.
A30: Identify the accounting standard used for the test year | AA30: Halton Hills Hydro Inc.
E31: MIFRS | AA31: Hearst Power Distribution Company Limited
AA32: Horizon Utilities Corporation
A33: Did you update your depreciation and capitalization policies? | AA33: Hydro 2000 Inc.
E34: No | AA34: Hydro Hawkesbury Inc.
AA35: Hydro One Brampton Networks Inc.
A36: When did you update your depreciation and capitalization policies? | AA36: Hydro One Networks Inc.
E37: 2001-01-01 | AA37: Hydro One Remote Communities Inc.
AA38: Hydro Ottawa Limited
A39: Identify the year that the applicant has adopted or is expected to adopt IFRS for financial reporting purposes | AA39: Innpower Corporation
E40: 2013 | AA40: Kashechewan Power Corporation
AA41: Kenora Hydro Electric Corporation Ltd.
AA42: Kingston Hydro Corporation
A43: Are you applying for cost recovery for the test and/or future year(s) for Green Energy initiatives? | AA43: Kitchener-Wilmot Hydro Inc.
E44: No | AA44: Lakefront Utilities Inc.
AA45: Lakeland Power Distribution Ltd.
A46: ="Is " & E14 & " an embedded distributor?" -> Is Canadian Niagara Power Inc. an embedded distributor? | E46: No | AA46: London Hydro Inc.
AA47: Midland Power Utility Corporation
AA48: Milton Hydro Distribution Inc.
B49: Notes | AA49: Newmarket-Tay Power Distribution Ltd.
AA50: Niagara Peninsula Energy Inc.
C51: Pale green cells represent input cells. | AA51: Niagara-on-the-Lake Hydro Inc.
AA52: Norfolk Power Distribution Inc.
C53: Pale blue cells represent drop-down lists. The applicant should select the appropriate item from the drop-down list. | AA53: North Bay Hydro Distribution Limited
AA54: Northern Ontario Wires Inc.
C55: White cells contain fixed values, automatically generated values or formulae. | AA55: Oakville Hydro Electricity Distribution Inc.
AA56: Orangeville Hydro Limited
AA57: Orillia Power Distribution Corporation
AA58: Oshawa PUC Networks Inc.
AA59: Ottawa River Power Corporation
AA60: Peterborough Distribution Incorporated
AA61: PowerStream Inc.
AA62: PUC Distribution Inc.
AA63: Renfrew Hydro Inc.
AA64: Rideau St. Lawrence Distribution Inc.
AA65: Sioux Lookout Hydro Inc.
AA66: St. Thomas Energy Inc.
AA67: Thunder Bay Hydro Electricity Distribution Inc.
AA68: Tillsonburg Hydro Inc.
AA69: Toronto Hydro-Electric System Limited
AA70: Veridian Connections Inc.
AA71: Wasaga Distribution Inc.
AA72: Waterloo North Hydro Inc.
AA73: Welland Hydro-Electric System Corp.
AA74: Wellington North Power Inc.
AA75: West Coast Huron Energy Inc.
AA76: Westario Power Inc.
AA77: Whitby Hydro Electric Corporation
AA78: Woodstock Hydro Services Inc.

Sheet Index
A15: 1 | B15: LDC Information Sheet | E15: 28 | F15: App.2-G: Service Reliability Indicators
A16: 2 | B16: Index | E16: 29 | F16: App.2-H: Other Operating Revenue
A17: 3 | B17: Cost of Service Application Flowchart | E17: 30 | F17: App.2-I: Load Forecast CDM Adjustment Workform
A18: 4 | B18: List of Key References | E18: 31 | F18: App.2-IA: Actual and Forecast Load and Customer Data
A19: 5 | B19: App.2-AA: Capital Projects Table | E19: 32 | F19: App.2-JA: OM&A Summary Analysis
A20: 6 | B20: App.2-AB: Capital Expenditures | E20: 33 | F20: App.2-JB: Recoverable OM&A Cost Driver Table
A21: 7 | B21: App. 2-AC: Customer Engagement Worksheet | E21: 34 | F21: App.2-JC: OM&A Programs Table
A22: 8 | B22: App.2-B: General Accounting Instructions | E22: 35 | F22: App.2-K: Employee Costs
A23: 9 | B23: App.2-BA: Fixed Asset Continuity Schedule | E23: 36 | F23: App.2-L: Recoverable OM&A Cost per Customer and per FTE
A24: 10 | B24: Appendix 2-BB: Service Life Comparison | E24: 37 | F24: App.2-M: Regulatory Costs Schedule
A25: 11 | B25: App.2-CA: 2012 Depreciation and Amortization Expense (Old CGAAP) | E25: 38 | F25: App.2-N: Shared Servcies and Corporate Cost Allocation
A26: 12 | B26: App.2-CB: 2012 Depreciation and Amortization Expense (New CGAAP) | E26: 39 | F26: App.2-OA: Capital Structure and Cost of Capital
A27: 13 | B27: App.2-CC: 2013 Depreciation and Amortization Expense (New CGAAP) | E27: 40 | F27: App.2-OB: Debt Instruments
A28: 14 | B28: App.2-CD: 2014 Depreciation and Amortization Expense (MIFRS) | E28: 41 | F28: App.2-P: Cost Allocation
A29: 15 | B29: App.2-CE: 2015 Depreciation and Amortization Expense (MIFRS) | E29: 42 | F29: App.2-PA: New Rate Design Policy For Residential Customers
A30: 16 | B30: App.2-CF: 2015 Depreciation and Amortization Expense (MIFRS) | E30: 43 | F30: App.2-Q: Cost of Serving Embedded Distributor(s)
A31: 17 | B31: App.2-CG: 2013 Depreciation and Amortization Expense (Old CGAAP) | E31: 44 | F31: App.2-R: Loss Factors
A32: 18 | B32: App.2-CH: 2013 Depreciation and Amortization Expense (New CGAAP) | E32: 45 | F32: App.2-S: Stranded Meter Treatment
A33: 19 | B33: App.2-CI: 2014 Depreciation and Amortization Expense (MIFRS) | E33: 46 | F33: App.2-TA: Account 1592, PILs and Tax Variances
A34: 20 | B34: App.2-CJ: 2015 Depreciation and Amortization Expense (MIFRS) | E34: 47 | F34: App.2-TB: Account 1592, HST-OVAT Input Tax Credits
A35: 21 | B35: App.2-CK: 2016 Depreciation and Amortization Expense (MIFRS) | E35: 48 | F35: App.2-U: One-Time Incremental IFRS Transition Costs
A36: 22 | B36: App.2-D: Overhead Expenses | E36: 49 | F36: App.2-V: Revenue Reconciliation
A37: 23 | B37: App.2-EA: Account 1575 PP&E Deferral Account (2015 IFRS Adopters) | E37: 50 | F37: App.2-W: Bill Impacts
A38: 24 | B38: App.2-EB: Account 1576 - Accounting Changes Under CGAAP (2012 Changes) | E38: 51 | F38: App.2-Y: Transition to MIFRS Summary Impact
A39: 25 | B39: App.2-EC: Account 1576 - Accounting Changes Under CGAAP (2013 Changes) | E39: 52 | F39: App. 2-Z: Tariff Schedule
A40: 26 | B40: App.2-FA: Renewable Generation Connection Investment Summary
A41: 27 | B41: App.2-FB: Calculation of Renewable Generation Connection Direct Benefits/Provincial Amount: Renewable Enabling Improvement Investments
A42: 28 | B42: App.2-FC: Calculation of Renewable Generation Connection Direct Benefits/Provincial Amount: Renewable Expansion Investments

Sheet COS Flowchart
B4: Cost of Service Rate Application Schematic
B6: The Cost of Service Rate Application Schematic is a flowchart appended to Chapter 2 of the Filing Requirements as a guide for the components of an application and how demand and costs interrelate to derive the revenue requirement and then how the revenue requirement is allocated between classes and through fixed/variable splits to derive rates that will be compensatory for the annual revenue requirement, based on the the forecasted demand. There is no form to be filled out; therefore, this Schedule is not required to be filed.

Sheet List of Key References
B3: List of Key References
A5: A list of key references for understanding the Filing Requirements has been embedded in the document below. To access the list of references and associated hyperlinks double-click the icon below.

Sheet App.2-AA_Capital Projects
G1: File Number: | H1: =EBNUMBER -> EB-2016-0061
G2: Exhibit: | H2: 2
G3: Tab: | H3: 2
G4: Schedule: | H4: 1A
G5: Page:
G7: Date: | H7: 2016-04-29
A9: Appendix 2-AA
A10: Capital Projects Table
A13: Projects | B13: =C13-1 -> 2012 | C13: =D13-1 -> 2013 | D13: =E13-1 -> 2014 | E13: =BridgeYear - 1 -> 2015 | F13: =BridgeYear & " Bridge Year" -> 2016 Bridge Year | G13: =TestYear & " Test Year" -> 2017 Test Year
A14: Reporting Basis | B14: CGAAP | C14: ASPE | D14: ASPE | E14: ASPE | F14: ASPE | G14: ASPE
A15: System Access
A16: Overhead Services SA | B16: 156473.4 | C16: 241748.43 | D16: 298463.96 | E16: 300145.22 | F16: 319182.56 | G16: 212730.6
A17: Underground Services SA | B17: 194341.72 | C17: 137751.58 | D17: 154130.48 | E17: 211345.53 | F17: 153037.44 | G17: 159300.96
A18: Nia. New Meters SA
A19: Dist. Upgrades & Expansions SA | B19: =789724.9025+92029 -> 881753.9025 | C19: =314578+186513 -> 501091 | D19: =938116+118204 -> 1056320 | E19: =908123.016+50336 -> 958459.016 | F19: =1030649+180728 -> 1211377 | G19: 950202
A20: New Dist Transformers & Reg SA | E20: 138084
A21: New Smart Centre Garrison Rd SA | C21: 114004.41
A22: Killaly St. Relocate from Knoll to King SA | C22: 512118.69
A23: Sugarloaf & Lynwood Upgrade - 3rd Party Access SA | D23: 105986.21
A24: Central Avenue Bridge Replacement SA | D24: 140773.65 | E24: 164958.84
A25: Ridgeway by The Lake Subdivision SA | E25: 111398.44
A26: Spears Rd Expansion and Subdivision SA | E26: 181290.88
A27: Gananoque System Conversion to Wye Ground SA
A29: Miscellaneous SA | B29: =25418.4809480808 -> 25418.48095 | C29: 220635.5733 | D29: 235695.2762 | E29: =183161.208972401 -> 183161.209 | F29: 69507.79364 | G29: 136663.4788
A31: Capital Contributions SA | B31: -558486.66 | C31: -1062493.07 | D31: -1658435.32 | E31: -1264311.35 | F31: -1470207 | G31: -550000
A32: Sub-Total | B32: =SUM(B16:B31) -> 699500.8434 | C32: 664856.6133 | D32: 332934.2562 | E32: 984531.785 | F32: 282897.7936 | G32: 908897.0388
A33: System Renewal
A34: Station 19 Projects SR | B34: 121108.75 | G34: 347848.68
A35: M11 Line Rebuild SR | B35: 161690.66 | C35: 218903.5
A36: 18L10 Line Rebuild Albany and Helena SR | C36: 213552.85 | D36: 194171.48
A37: Dodd's Court Rebuild SR | B37: 293383.98
A38: Royal Road Phase 2 SR | B38: 131826.1
A39: Rose, Gaspare Rebuild SR | C39: 100367.51 | D39: 183919.01
A40: Barrick Conversion to 27.6kV and Rebuild SR | D40: 644010.93 | E40: =606649.72+147482 -> 754131.72
A41: Fielden Station Projects SR | C41: 235171.93 | D41: 573400.65 | E41: 645003.91
A42: Gilmore Station Projects SR | E42: 135529.52 | F42: 1604002
A43: Gilmore Egress Project SR | F43: 519944
A44: FE North Rebuilds Supporting Conversion SR | F44: =2875000-F42-F43 -> 751054 | G44: 884802
A45: Port Colborne South New DS SR | G45: =409245 -> 409245
A46: 5/8 Line Rebuild SR | D46: 218192.96 | E46: 275833.25
A47: Forks Road Canal Riser Rebuild SR | E47: 184826.25
A48: Dist. Upgrades & Expansions SR | B48: =1198861.1175+345805 -> 1544666.117 | C48: =1222370.98+419627 -> 1641997.98 | D48: =971142.906+326508 -> 1297650.906 | E48: =1111405.374+646886 -> 1758291.374 | F48: =2309941.63+252413-374663-620000-80000 -> 1487691.63 | G48: =1546286.568+322627+249982-150000-294938+200000+200000 -> 2073957.568
A49: FE Ridgeway Rebuilds Supporting Conversion SR | F49: 620000 | G49: 294938
A50: New Dist. Transformers & Reg SR | B50: 205998.968 | C50: 261400 | D50: 261842 | E50: 278843 | F50: 306000 | G50: 315000
A51: New MIST Meters SR | E51: 234065
A52: New Meters SR | B52: 131194.48 | C52: 164326.232 | D52: 132693.824 | E52: 127324.304 | F52: 180072 | G52: 189419.424
A53: New Smart Meters SR | B53: 355960 | C53: =4809490.1+69554.29 -> 4879044.39
A54: Ontario Street Rebuild SR | C54: 122900.51
A55: Oak Alley Rebuild SR | C55: 186384.45 | D55: 133332.67
A56: Elizabeth Street Pole Replacement SR | E56: 138805.31
A57: Pine Street Pole Replacement SR | E57: 235265.87
A58: Construct Herbert DS to Gananoque DS Intertie SR | F58: 380000
A59: North Line Rebuild SR | G59: 257109.96
A60: Substation TX Replacement (#1, #2, Leaky Creek) SR | C60: 328232.05
A62: Miscellaneous SR | B62: 51282.88888 | C62: 494960.3351 | D62: 393978.8041 | E62: =461140.382044299-74229-234065 -> 152846.382 | F62: 107943.7035 | G62: 218496.4432
A63: Sub-Total | B63: =SUM(B34:B62) -> 2997111.944 | C63: =SUM(C34:C62) -> 8847241.737 | D63: 4033193.234 | E63: 4920765.89 | F63: 5956707.334 | G63: 4990817.075
A64: System Service
A65: Distribution Automation SS | B65: 144333.25 | C65: 180676.09 | F65: 308282.88 | G65: 311432.4
A66: Delta to Wye Conversion Niagara SS | B66: 155910.07 | C66: 156934.05 | E66: 127675.15
A67: Ridgeway Delta to Wye Conversion Niagara SS | F67: 330000 | G67: 450313
A68: Stevensville Upgrades - Stepdown Load Relief SS | B68: 152380.52
A69: Station 18 New Feeder Configuration SS | C69: 102622.51
A70: 18L10 Extension Hwy 3 SS | D70: 507743.82 | E70: 147428.76
A71: Houck Cres. Conversion SS | E71: 268338.11
A72: FE North Conversion SS | G72: 156031
A73: SCADA and Communication Projects SS | D73: 118501.17 | E73: 152677.24
A74: Herbert Street Feeder Reinforcement Ph. 5 SS | B74: 178390.13
A75: EOP Main Substation - Delta to Wye Conversion SS | G75: =801024.6*0.75+150000 -> 750768.45
A77: Miscellaneous SS | B77: 4912.21355 | C77: 114034.0788 | D77: 236902.3429 | E77: 188155.8622 | F77: =15931.5322325619+68274 -> 84205.53223 | G77: =104779.14756315+68354 -> 173133.1476
A78: Sub-Total | B78: =SUM(B65:B77) -> 635926.1836 | C78: 554266.7288 | D78: 863147.3329 | E78: 884275.1222 | F78: 722488.4122 | G78: 1841677.998
A79: General Plant
A80: Transportation GP | B80: =411213.17+312234 -> 723447.17 | C80: 392686.15 | D80: 365132.23 | E80: 116592.81 | F80: 327000 | G80: 175000
A81: S/C Leasehold Improvements GP | C81: 362239
A82: PC Assets GP | B82: 2881511.48 | C82: 188964.57
A83: General Expense Capital GP | B83: =871505.61+268547 -> 1140052.61
A84: Miscellaneous IT GP | B84: =21650+99952+46681 -> 168283 | C84: =77691+198011 -> 275702 | D84: =71612+79645+100547 -> 251804 | E84: =79875+97884 -> 177759 | F84: 323428 | G84: =73071+35000+120000 -> 228071
A85: Server Storage Replacements GP | B85: 417992 | F85: 362339 | G85: 246081
A86: SAP Improvements GP | B86: 252000 | C86: 352945 | D86: 364081 | E86: 248787 | F86: 429195 | G86: 540027
A87: GIS/OMS GP | B87: 186000 | C87: 288181 | D87: 161052 | E87: 287637 | F87: 340000 | G87: 300000
A88: Environment Health & Safety GP | C88: 110386 | D88: 120749 | G88: 100000
A89: Software Licensing GP | C89: 345544 | D89: 177115 | E89: 173000 | F89: 214000 | G89: 214000
A90: Firewall Upgrades GP | D90: 121457
A91: Smart Meter Technology GP | C91: 798570
A93: Miscellaneous GP | B93: =10422 -> 10422 | C93: =133307.080683962 -> 133307.0807 | D93: 93767.2229 | E93: =236097.982758202 -> 236097.9828 | F93: =99169.6906219871+90000 -> 189169.6906 | G93: 212587.1464
A94: Sub-Total | B94: =SUM(B80:B93) -> 5779708.26 | C94: 3248524.801 | D94: 1655157.453 | E94: 1239873.793 | F94: 2185131.691 | G94: 2015766.146
A95: Miscellaneous
A96: Total | B96: =SUMPRODUCT(--($A15:$A95="Sub-Total"), B$15:B$95)+B95 -> 10112247.23 | C96: 13314889.88 | D96: 6884432.276 | E96: 8029446.59 | F96: 9147225.23 | G96: 9757158.258
A97: Less Renewable Generation Facility Assets and Other Non-Rate-Regulated Utility Assets (input as negative)
A98: Total | B98: =B96+B97 -> 10112247.23 | C98: 13314889.88 | D98: 6884432.276 | E98: 8029446.59 | F98: 9147225.23 | G98: 9757158.258
A100: Notes:
A102: 1 Please provide a breakdown of the major components of each capital project undertaken in each year. Please ensure that all projects below the materiality threshold are included in the miscellaneous line. Add more projects as required.
A103: 2 The applicant should group projects appropriately and avoid presentations that result in classification of significant components of the capital budget in the miscellaneous category.

Sheet App.2-AB_Capital Expenditures
Q1: File Number: | S1: =EBNUMBER -> EB-2016-0061
Q2: Exhibit: | S2: 2
Q3: Tab: | S3: 2
Q4: Schedule: | S4: 1B
Q5: Page:
Q7: Date: | S7: 2016-04-29
A9: Appendix 2-AB
A10: Table 2 - Capital Expenditure Summary from Chapter 5 Consolidated Distribution System Plan Filing Requirements
A12: First year of Forecast Period: | B12: =TestYear -> 2017
A13: CATEGORY | B13: Historical Period (previous plan1 & actual) | N13: Bridge Year | O13: Test Year | P13: Forecast Period (planned)
B14: =E14-1 -> 2012 | E14: =H14-1 -> 2013 | H14: =K14-1 -> 2014 | K14: =N14-1 -> 2015 | N14: =O14-1 -> 2016 | O14: =B12 -> 2017 | P14: =O14+1 -> 2018 | Q14: =P14+1 -> 2019 | R14: 2020 | S14: 2021
B15: Plan | C15: Actual | D15: Var | E15: Plan | F15: Actual | G15: Var | H15: Plan | I15: Actual | J15: Var | K15: Plan | L15: Actual | M15: Var
B16: $ '000 | D16: % | E16: $ '000 | G16: % | H16: $ '000 | J16: % | K16: $ '000 | M16: % | N16: $ '000
A17: System Access | C17: 699500.8434 | D17: =IF(ISERROR((C17-B17)/B17),"--",(C17-B17)/B17) -> -- | F17: 664856.6133 | G17: =IF(ISERROR((F17-E17)/E17),"--",(F17-E17)/E17) -> -- | I17: 332934.2562 | J17: =IF(ISERROR((I17-H17)/H17),"--",(I17-H17)/H17) -> -- | L17: 984531.785 | M17: =IF(ISERROR((L17-K17)/K17),"--",(L17-K17)/K17) -> -- | N17: 282897.7936 | O17: 908897.1888 | P17: 536611.208 | Q17: 547343.4322 | R17: 559940.2608 | S17: 571139.066
A18: System Renewal | C18: 2997111.944 | D18: =IF(ISERROR((C18-B18)/B18),"--",(C18-B18)/B18) -> -- | F18: 8847241.737 | G18: =IF(ISERROR((F18-E18)/E18),"--",(F18-E18)/E18) -> -- | I18: 4033193.234 | J18: =IF(ISERROR((I18-H18)/H18),"--",(I18-H18)/H18) -> -- | L18: 4920765.89 | M18: =IF(ISERROR((L18-K18)/K18),"--",(L18-K18)/K18) -> -- | N18: 5956707.334 | O18: 4990817.075 | P18: 5939119.512 | Q18: 5496072 | R18: 5460618 | S18: 7043601.09
A19: System Service | C19: 635926.1836 | D19: -- | F19: 554266.7288 | G19: -- | I19: 863147.3329 | J19: -- | L19: 884275.1222 | M19: -- | N19: 722488.4122 | O19: 1841677.998 | P19: 1064435 | Q19: 1504806.2 | R19: 1179108.352 | S19: 835558.2545
A20: General Plant | C20: 5779708.26 | D20: -- | F20: 3248524.801 | G20: -- | I20: 1655157.453 | J20: -- | L20: 1239873.793 | M20: -- | N20: 2185131.691 | O20: 2015766.146 | P20: 1825260 | Q20: 1621292.7 | R20: 2477611.429 | S20: 2073683.658
A21: TOTAL EXPENDITURE | B21: =SUM(B17:B20) -> 0 | C21: =SUM(C17:C20) -> 10112247.23 | D21: -- | E21: 0 | F21: 13314889.88 | G21: -- | H21: 0 | I21: 6884432.276 | J21: -- | K21: 0 | L21: 8029446.59 | M21: -- | N21: 9147225.23 | O21: 9757158.408 | P21: 9365425.72 | Q21: 9169514.332 | R21: 9677278.041 | S21: =SUM(S17:S20) -> 10523982.07
A22: System O&M | C22: 3341251 | D22: -- | F22: 3472965.59 | G22: -- | I22: 3620493.3 | J22: -- | L22: 3615555.81 | M22: -- | N22: 3861772.92 | O22: 4106945.96 | P22: 4189084.879 | Q22: 4272866.577 | R22: 4358323.908 | S22: 4445490.386
A24: Notes to the Table:
A25: (1) This is Canadian Niagara Power's first Distribution System Plan and as such planned expenditures were not allocated to Chapter 5 Investment Categories.
A28: Explanatory Notes on Variances (complete only if applicable)
A29: Notes on shifts in forecast vs. historical budgets by category
A32: Notes on year over year Plan vs. Actual variances for Total Expenditures
A35: Notes on Plan vs. Actual variance trends for individual expenditure categories

Sheet App. 2-AC_Customer Engagement
B1: File Number: | C1: =EBNUMBER -> EB-2016-0061
B2: Exhibit: | C2: 1
B3: Tab: | C3: 3
B4: Schedule: | C4: 2
B5: Page:
B7: Date: | C7: 2016-04-29
A9: Appendix 2-AC
A10: Customer Engagement Activities Summary
A12: Provide a list of customer engagement activities | B12: Provide a list of customer needs and preferences identified through each engagement activity | C12: Actions taken to respond to identified needs and preferences. If no action was taken, explain why.
A13: 39,804 calls into call centre | B13: Customer calls to inquire about high bills, to make payment arrangements, inquire as to low income assistance programs available, etc. | C13: 1. Expanded training in 2015 for CSRs to deal with payment arrangements (AMP and LAMP)
C14: 2. Website enhancement for low income programs (OESP)
C15: 3. Updated website with current bill information
C16: 4. Increased CDM activities to assist with conservation
C17: 5. Promotion of MyHydroEye to assist customers with consumption management
A18: Community Outreach | B18: Customers appreciate additional dialogue regarding the composition of their invoices | C18: Customer Service staff attend community events (usually in conjunction with CDM staff) to interact and engage customers about their electrical invoices.
A19: Accessibility for all customers | B19: All customers should have the same level of service | C19: CNPI is compliant with all accessibility legislation as outlined in the Company's Multi-year Accessibility Plan which is posted on the company website.
A20: Low Income Customers | B20: Low income customers require readily available information about programs available to them | C20: 1. CSRs received training on OESP program and DSC requirements related to low income (AMP and LAMP)
C21: 2. Website enhancement for low income programs (OESP)
C22: 3. Participation in LEAP and OESP programs
A24: Business Customers | B24: Meeting the individualized needs of business customers | C24: 1. CNPI held sessions for Class A global adjustment customers on site to ensure the needs of these customers are addressed
C25: 2. On-site visits are ongoing to meet with customers on various topics, CDM, and online access to consumption
C26: 3. Customers contacts form part of the Business Continuity Plan to ensure customers are informed during power outage events 4. New key account service during power outages to be added in 2016
A27: Bill Inserts, Newsletters, on bill messaging | B27: Calendar Monthly billing provides opportunity to frequently interact with customers. Many customers indicate information included with their monthly invoices as a preferred communication method | C27: 1. Inserts are sent throughout the year with monthly invoices on various topics such as low income programs, rate changes, safety, new programs (e-Billing and MyHydroEye), and CDM
C28: 2. Semi-annually customer newsletters are sent out to all customers
C29: 3. On bill and envelope messages are updated as required
A30: Social Media | B30: Some customers prefer to interact and receive information via social media | C30: 1. Social media (Twitter and Facebook) were launched in 2014 and the Company's social media following continues to grow
C31: 2. Website updated as required
A33: Automated Phone Calls | B33: Customers indicated automated phone calls to be a preferred method of communication specifically for planned power outages | C33: CNPI began utilizing automated phone calls to assist in communications for planned power outages
A34: Large Customer Engagement | B34: Large customers need to be kept informed of industry updates and initiatives specific to them | C34: 1. CNPI participates in the annual industrial round table to provide information and seek feedback from the community’s large customers
C35: 2. The CDM team meets regularly meets with large customers to identify opportunities to work together to reduce energy consumption
A36: Local Service Provider Information Night | B36: Need for Local Service Providers to understand legislation and CNPI processes and for CNPI to seek feedback from these providers | C36: CNPI hosts an annual information session for local service providers who work for customers and prospective customers in the CNPI service territories. Participants include local builders, electricians, realtors etc.
A38: Contractor Pre-Qualification Session | B38: Need for CNP Contractors to understand legislation and CNPI processes and for CNPI to seek feedback from these contractors | C38: CNPI hosts a bi-annual contractor information session for contractors employed by CNPI. As well, representatives from the local office of the ESA are present.
A40: Emergency Responder Information Night | B40: Need for First Responders to engage and interact with CNPI | C40: CNPI hosts training on a three (3) year rotation for staff of local fire, police and paramedical services. A review of electrical fundamentals and an overview of electrical safety and processes related to emergency situations are reviewed.
A42: Joint Use Partner Interaction | B42: Need to meet with Joint Use customers to stay informed of upcoming projects | C42: CNPI meets regularly with local representatives from Bell and other Joint Use customers to discuss each company's upcoming and ongoing capital and maintenance projects.
A44: Annual Customer Surveys | B44: Residential and General Service customers need to have an opportunity to provide feedback and report how CNPI rates as a service provider | C44: For over ten years CNPI has conducted annual customer surveys. Results of the survey were studied and used in developing the 2017 Cost of Service Application and DSP to ensure both documents are meeting the needs and preferences of customers.
A45: Customer Focus Groups | B45: Residential and General Service customers need to have an opportunity to provide feedback on CNPI’s DSP and DAMP as it relates to the Cost of Service Applications | C45: Results of the focus groups were studied and used in developing the 2017 Cost of Service Application to ensure needs and preferences of customers are addressed.
A46: Electrical Safety – Elementary School Program | B46: Elementary students need to understand electrical safety hazards and how and why to conserve electricity | C46: Electrical safety and energy conservation school presentations offered via a third-party on a four-year rotation to all elementary schools within the service territory. All students from grades 1-8 attend the presentation.
A47: High School Students: Electricity and Careers | B47: High School student need information about electricity and careers. | C47: 1. Annually, CNPI hosts Grade 9 students for the Take Our Kids to WorkTM national program. The students learn about the utility industry, various career opportunities, as well as complete the Passport to Safety Training. The program supports career development by helping students connect school, the world of work, and their own futures.
C48: 2. CNPI participates in career days at local high schools to increase awareness of careers in the electrical industry.
A50: Conservation and Demand Management Activities | B50: All customers need to be aware of CDM program and offerings | C50: 1. saveONEnergy programs were promoted via various channels
C51: 2. CDM staff conducts one on one site visits to a large number of business customers on an annual basis to promote conservation programs
C52: 3. CDM and customer service staff participated in over 30 community outreach events between 2011-2014 to answer customer questions and promote conservation and related programs
A58: Note: Use "ALT-ENTER" to go to the next line within a cell

Sheet App.2-B_Acct Instructions
A1: General Instructions to MIFRS Appendices
A2: Types of Schedules to File
A4: The purpose of this tab is to provide general instructions. The specific instructions to each appendix are listed in footnotes of each appendix.
A6: The typical applicant is expected to have made capitalization and depreciation policy changes under CGAAP as permitted by the Board on January 1, 2012 or mandated by the Board by January 1, 2013, and adopted IFRS for reporting purposes on January 1, 2015 (transition date January 1, 2014). In general, applicants under the two scenarios should provide the following information in the appendices:
E9: Accounting Policy Changes in 2012 and Adopted IFRS in 2015 | F9: Accounting Policy Changes in 2013 and Adopted IFRS in 2015
E10: (Date of Transition to IFRS 2014)
A11: Information to be filed in 2016 CoS Application | B11: 2017 | C11: Test | E11: MIFRS | F11: MIFRS
B12: 2016 | C12: Bridge | E12: MIFRS | F12: MIFRS
B13: 2015 | C13: Historical | E13: MIFRS | F13: MIFRS
B14: 2014 | C14: Historical | E14: MIFRS | F14: MIFRS
B15: 2013 | C15: Historical | E15: MIFRS | F15: MIFRS
B16: 2012 | C16: Historical | E16: CGAAP | F16: CGAAP
A18: 1) For the year that the applicant implemented changes to its capitalization and depreciation policies (2012 or 2013), the applicant must file two appendices, one before and one after the policy changes.
A21: 2) For the transition year (2014), the applicant may file two appendices, one under Revised CGAAP and one under MIFRS, depending on the materiality of impacts. See the specific instructions under each appendix below for further details.
A26: Appendix 2-BA - Fixed Asset Schedule
A28: Applicants are to provide Appendix 2-BA in accordance with the years and corresponding accounting standards noted in the above table to provide a year over year continuity in fixed assets.
A29: *For the transition year (2014), the applicant should file two appendices, one under Revised CGAAP and one under MIFRS if the change between Revised CGAAP and MIFRS is material. If the change from the accounting standards is not material, the applicant may choose to only provide one appendix under MIFRS. However, the applicant must also indicate the fixed asset net book value balance under Revised CGAAP, the total dollar value of the change and explain why it is not material.
A33: Regulatory Gross Assets of Property, Plant and Equipment
A35: For an applicant that adopted IFRS on January 1, 2015 for financial reporting purposes, the applicant must establish the continuity of historic cost by using the December 31, 2013 regulatory gross assets of property, plant and equipment as the opening January 1, 2014 regulatory gross assets. The applicant must provide schedules (including Appendix 2-BA, Fixed Asset Continuity Schedule) which must identify the following details to substantiate the continuity of historic cost for regulatory purposes:
A38: · December 31, 2013 regulatory gross assets of property, plant and equipment, by asset class; and
A39: · January 1, 2014 regulatory gross assets of property, plant and equipment, by asset class.
A41: Accumulated Depreciation
A43: For an applicant that adopted IFRS on January 1, 2015 for financial reporting purposes, the applicant must establish the continuity of historic cost by using the December 31, 2013 regulatory accumulated depreciation as the opening January 1, 2014 regulatory accumulated depreciation. The applicant must provide schedules (including Appendix 2-BA, Fixed Asset Continuity Schedule) which must identify the following details to substantiate the continuity of historic cost for regulatory purposes:
A46: · December 31, 2013 regulatory accumulated depreciation, by asset class; and
A47: · January 1, 2014 regulatory accumulated depreciation, by asset class.
A49: Appendix 2-C - Depreciation and Amortization
A51: Applicants are to provide Appendix 2-C starting in the year capitalization and depreciation policy changes were implemented in accordance with the years and corresponding accounting standards listed in the above table.
A52: If an applicant changed capitalization and depreciation policies effective January 1, 2012 and adopted IFRS for reporting purposes effective January 1, 2015, the applicant must complete Appendix 2-CA to 2-CF (inclusive).
A53: If an applicant changed capitalization and depreciation policies effective January 1, 2013 and adopted IFRS for reporting purposes effective January 1, 2015, the applicant must complete Appendix 2-CG to 2-CK (inclusive).
A54: *Depreciation accounting policy changes were mandated by the Board by January 1, 2013. These accounting changes should be implemented consistent with the Board’s regulatory accounting policies as set out for MIFRS as contained in the Report of the Board, Transition to International Financial Reporting Standards (EB-2008-0408), the Depreciation Study for Use by Electricity Distributors (EB-2010-0178) and the Revised 2012 Accounting Procedures Handbook for Electricity Distributors. In general, no further changes to an applicant's depreciation policy (i.e. assets' service lives) are expected after the Board mandated changes by January 1, 2013. The set of Appendix CA to CK assumes this to be the case. If the applicant has made any changes to its depreciation policy subsequent to the Board mandated changes, applicants must identify the change, explain the nature of the change, the reason for the change, quantify the impact of the change, and quantify the depreciation expense before and after the change.
A57: Appendix 2-E - Account 1575, IFRS-CGAAP Transitional PP&E Amounts (2-EA), Account 1576, Accounting Changes Under CGAAP (2-EB, 2-EC)
A59: If an applicant changed capitalization and depreciation policies effective January 1, 2012 and adopted IFRS for reporting purposes effective January 1, 2015, the applicant must complete Appendix 2-EA and 2-EB. If the applicant did not make any further PP&E accounting policy changes beyond the capitalization and depreciation policy changes as permitted by the Board on January 1, 2012 (i.e. no further changes made on transition to IFRS), the applicant must indicate this and does not need to complete Appendix 2-EA.
A61: If an applicant changed capitalization and depreciation policies effective January 1, 2013 and adopted IFRS for reporting purposes effective January 1, 2015, the applicant must complete Appendix 2-EA and 2-EC. If the applicant did not make any further PP&E accounting policy changes beyond the capitalization and depreciation policy changes as mandated by the Board by January 1, 2013 (i.e. no further changes made on transition to IFRS), the applicant must indicate this and does not need to complete Appendix 2-EA.
A63: Please refer to section 2.12.4 and 2.12.5 of the Filing Requirements for further details.
A65: Appendix 2-YA - Summary of Impacts to Revenue Requirement from Transition to MIFRS
A67: For applicants adopting MIFRS, the applicants must provide a summary of the dollar impacts of MIFRS to each component of the revenue requirement (e.g. rate base, operating costs, etc), including the overall impact on the proposed revenue requirement. Accordingly, the applicants must identify financial differences and resulting revenue requirement impacts arising from the adoption of MIFRS as compared to CGAAP prior to capitalization and depreciation policy changes.

Sheet App.2-BA_Fixed Asset Cont
R1: File Number: | S1: =EBNUMBER -> EB-2016-0061
R2: Exhibit: | S2: 2
R3: Tab: | S3: 1
R4: Schedule: | S4: 2
R5: Page:
R7: Date: | S7: 2016-04-29
A9: Appendix 2-BA
A10: Fixed Asset Continuity Schedule 1
E12: Accounting Standard | F12: MIFRS
E13: Year | F13: 2013
D15: Cost | M15: Accumulated Depreciation
A16: CCA Class 2 | B16: OEB Account 3 | C16: Description 3 | D16: Opening Balance | E16: Additions 4 | F16: Disposals | G16: Adjustments | H16: Cost End of Period | I16: Allocations | J16: Closing Balance | L16: Opening Balance | M16: Additions | N16: Disposals | O16: Adjustments | P16: Cost End of Period | Q16: Allocations | R16: Closing Balance | S16: Net Book Value
A17: ECE | B17: 1608 | C17: Franchises & Consents | D17: 156053 | E17: 0 | F17: 0 | G17: 0 | H17: =D17+E17+F17+G17 -> 156053 | I17: 0 | J17: =H17+I17 -> 156053 | L17: -35111.97 | M17: -3901.33 | N17: 0 | O17: 0 | P17: =L17+M17+N17+O17 -> -39013.3 | Q17: 0 | R17: =P17+Q17 -> -39013.3 | S17: =J17+R17 -> 117039.7
A18: 1 | B18: 1610 | C18: Misc. Intangible Plant | D18: 40575.65 | E18: 0 | F18: 0 | G18: 0 | H18: 40575.65 | I18: 0 | J18: =H18+I18 -> 40575.65 | L18: -3680.6 | M18: -1014.4 | N18: 0 | O18: 0 | P18: =L18+M18+N18+O18 -> -4695 | Q18: 0 | R18: =P18+Q18 -> -4695 | S18: =J18+R18 -> 35880.65
A19: 12 | B19: 1611 | C19: Computer Software (Formally known as Account 1925) | D19: 8351230.62 | E19: 1101559.29 | F19: -49302.74 | G19: -8931174.45 | H19: =D19+E19+F19+G19 -> 472312.72 | I19: 0 | J19: 472312.72 | L19: -5405272.73 | M19: -410331.68 | N19: 16078.53 | O19: 5604363.9 | P19: -195161.98 | Q19: 0 | R19: -195161.98 | S19: 277150.74
A20: 12 | B20: 1611A | C20: Computer Software (Formally known as Account 1925) | D20: 0 | E20: 871757.81 | F20: 0 | G20: 8931174.45 | H20: =D20+E20+F20+G20 -> 9802932.26 | I20: -6048045.126 | J20: 3754887.134 | L20: 0 | M20: -355511.58 | N20: 0 | O20: -5604363.9 | P20: -5959875.48 | Q20: 3532332.547 | R20: -2427542.933 | S20: 1327344.201
A21: CEC | B21: 1612 | C21: Land Rights (Formally known as Account 1906) | D21: 308654.59 | E21: 8934.33 | F21: 0 | G21: 0 | H21: 317588.92 | I21: 0 | J21: 317588.92 | L21: -85541.68 | M21: -6526.89 | N21: 0 | O21: 0 | P21: -92068.57 | Q21: 0 | R21: -92068.57 | S21: 225520.35
A22: N/A | B22: 1805 | C22: Land | D22: 211728.35 | E22: 0 | F22: -3644.54 | G22: 0 | H22: 208083.81 | I22: 0 | J22: 208083.81 | L22: 0 | M22: 0 | N22: 0 | O22: 0 | P22: 0 | Q22: 0 | R22: 0 | S22: 208083.81
A23: 47 | B23: 1808 | C23: Buildings | D23: 4074237.73 | E23: 128.01 | F23: -107629.25 | G23: 0 | H23: 3966736.49 | I23: 0 | J23: 3966736.49 | L23: -980716.65 | M23: -88374.91 | N23: 19776.41 | O23: 0 | P23: -1049315.15 | Q23: 0 | R23: -1049315.15 | S23: 2917421.34
A24: 13 | B24: 1810 | C24: Leasehold Improvements | H24: 0 | J24: 0 | P24: 0 | R24: 0 | S24: 0
A25: 47 | B25: 1815 | C25: Transformer Station Equipment >50 kV | H25: 0 | J25: 0 | P25: 0 | R25: 0 | S25: 0
A26: 47 | B26: 1820 | C26: Distribution Station Equipment <50 kV | D26: 11690309.27 | E26: 373771.5 | F26: 0 | G26: -1602023.08 | H26: 10462057.69 | I26: 0 | J26: 10462057.69 | L26: -2955034.42 | M26: -193775.96 | N26: 0 | O26: 208295.44 | P26: -2940514.94 | Q26: 0 | R26: -2940514.94 | S26: 7521542.75
A27: 47 | B27: 1820A | C27: Distribution Station Equipment <50 kV | D27: 0 | E27: 58085.44 | F27: 0 | G27: 1602023.08 | H27: 1660108.52 | I27: 0 | J27: 1660108.52 | L27: 0 | M27: -39141.31 | N27: 0 | O27: -208295.44 | P27: -247436.75 | Q27: 0 | R27: -247436.75 | S27: 1412671.77
A28: 47 | B28: 1825 | C28: Storage Battery Equipment | H28: 0 | J28: 0 | P28: 0 | R28: 0 | S28: 0
A29: 47 | B29: 1830 | C29: Poles, Towers & Fixtures | D29: 20707224.29 | E29: 1288275.99 | F29: -6778.3 | G29: 0 | H29: 21988721.98 | I29: 0 | J29: 21988721.98 | L29: -8898323.08 | M29: -492070.69 | N29: 5414.03 | O29: 0 | P29: -9384979.74 | Q29: 0 | R29: -9384979.74 | S29: 12603742.24
A30: 47 | B30: 1835 | C30: Overhead Conductors & Devices | D30: 25832962.31 | E30: 2055900.34 | F30: -1029.49 | G30: 0 | H30: 27887833.16 | I30: 0 | J30: 27887833.16 | L30: -7933875.17 | M30: -600219.9 | N30: 1029.47 | O30: -10909.01 | P30: -8543974.61 | Q30: 0 | R30: -8543974.61 | S30: 19343858.55
A31: 47 | B31: 1840 | C31: Underground Conduit | D31: 1059086.33 | E31: 2208.3 | F31: -0.01 | G31: 0 | H31: 1061294.62 | I31: 0 | J31: 1061294.62 | L31: -267543.33 | M31: -66299.28 | N31: 0 | O31: 0 | P31: -333842.61 | Q31: 0 | R31: -333842.61 | S31: 727452.01
A32: 47 | B32: 1845 | C32: Underground Conductors & Devices | D32: 7757025.69 | E32: 227555.55 | F32: -903.52 | G32: 0 | H32: 7983677.72 | I32: 0 | J32: 7983677.72 | L32: -1666162.42 | M32: -200239.05 | N32: 903.51 | O32: 0 | P32: -1865497.96 | Q32: 0 | R32: -1865497.96 | S32: 6118179.76
A33: 47 | B33: 1850 | C33: Line Transformers | D33: 13457781.96 | E33: 708846.21 | F33: -122089.58 | G33: 0 | H33: 14044538.59 | I33: 0 | J33: 14044538.59 | L33: -5044354.37 | M33: -388317.29 | N33: 122089.57 | O33: 0 | P33: -5310582.09 | Q33: 0 | R33: -5310582.09 | S33: 8733956.5
A34: 47 | B34: 1855 | C34: Services (Overhead & Underground) | D34: 9243478.84 | E34: 509441.7 | F34: -0.03 | G34: 0 | H34: 9752920.51 | I34: 0 | J34: 9752920.51 | L34: -2613314.37 | M34: -211241.11 | N34: 0 | O34: 0 | P34: -2824555.48 | Q34: 0 | R34: -2824555.48 | S34: 6928365.03
A35: 47 | B35: 1860 | C35: Meters | D35: 4065255.12 | E35: 4854305.02 | F35: -2959931.28 | G35: -5488008.74 | H35: 471620.12 | I35: 0 | J35: 471620.12 | L35: -2103744.03 | M35: -1004281.11 | N35: 1721470.24 | O35: 1245385.97 | P35: -141168.93 | Q35: 0 | R35: -141168.93 | S35: 330451.19
A36: 47 | B36: 1860A | C36: Meters (Smart Meters) | D36: 0 | E36: 101144.31 | F36: 0 | G36: 4963472.6 | H36: 5064616.91 | I36: 0 | J36: 5064616.91 | L36: 0 | M36: -389045.32 | N36: 0 | O36: -975186.94 | P36: -1364232.26 | Q36: 0 | R36: -1364232.26 | S36: 3700384.65
A37: 47 | B37: 1860B | C37: Meters | D37: 0 | E37: 24756.5 | F37: 0 | G37: 524536.14 | H37: 549292.64 | I37: 0 | J37: 549292.64 | L37: 0 | M37: -21299.49 | N37: 0 | O37: -269447.28 | P37: -290746.77 | Q37: 0 | R37: -290746.77 | S37: 258545.87
A38: 1 | B38: 1865 | C38: D Other Install on Cust Prem | D38: 64217.84 | E38: 69554.29 | F38: 0 | G38: 0 | H38: 133772.13 | I38: 0 | J38: 133772.13 | L38: -13830.27 | M38: -29493.44 | N38: 0 | O38: -751.75 | P38: -44075.46 | Q38: 0 | R38: -44075.46 | S38: 89696.67
B39: 1875 | C39: D St Lites & Signal Systems | D39: 0 | E39: 0 | F39: 0 | G39: 0 | H39: 0 | I39: 0 | J39: 0 | L39: 0 | M39: 0 | N39: 0 | O39: 0 | P39: 0 | Q39: 0 | R39: 0 | S39: 0
A40: N/A | B40: 1905 | C40: Land | H40: 0 | J40: 0 | P40: 0 | R40: 0 | S40: 0
A41: 47 | B41: 1908 | C41: Buildings & Fixtures | D41: 1026043.76 | E41: 193953.62 | F41: -329502.11 | G41: 0 | H41: 890495.27 | I41: 0 | J41: 890495.27 | L41: -193870.13 | M41: -19400.25 | N41: 25103.19 | O41: 0 | P41: -188167.19 | Q41: 0 | R41: -188167.19 | S41: 702328.08
A42: 13 | B42: 1910 | C42: Leasehold Improvements | D42: 418750.04 | E42: 276499.84 | F42: 0 | G42: 0 | H42: 695249.88 | I42: 0 | J42: 695249.88 | L42: -135374.12 | M42: -87505.39 | N42: 0 | O42: 0 | P42: -222879.51 | Q42: 0 | R42: -222879.51 | S42: 472370.37
A43: 8 | B43: 1915 | C43: Office Furniture & Equipment (10 years) | D43: 1366349.97 | E43: -1485.33 | F43: 0 | G43: 0 | H43: 1364864.64 | I43: -266482.518 | J43: 1098382.122 | L43: -1259197.92 | M43: -26001.68 | N43: 0 | O43: 0 | P43: -1285199.6 | Q43: 251055.998 | R43: -1034143.602 | S43: 64238.52
A44: 8 | B44: 1915 | C44: Office Furniture & Equipment (5 years) | H44: 0 | J44: 0 | P44: 0 | R44: 0 | S44: 0
A45: 10 | B45: 1920 | C45: Computer Equipment - Hardware | D45: 3241343.72 | E45: 198011.1 | F45: 0 | G45: 396.26 | H45: 3439751.08 | I45: -2139382.6 | J45: 1300368.48 | L45: -2049420.66 | M45: -421385.96 | N45: 0 | O45: -396.26 | P45: -2471202.88 | Q45: 1534419.612 | R45: -936783.268 | S45: 363585.2117
A46: 45 | B46: 1920 | C46: Computer Equip.-Hardware(Post Mar. 22/04) | H46: 0 | J46: 0 | P46: 0 | R46: 0 | S46: 0
A47: 45.1 | B47: 1920 | C47: Computer Equip.-Hardware(Post Mar. 19/07) | H47: 0 | J47: 0 | P47: 0 | R47: 0 | S47: 0
A48: 10 | B48: 1930 | C48: Transportation Equipment (5 years) | D48: 3505669.69 | E48: 479487.18 | F48: -419550.53 | G48: -2982505.45 | H48: 583100.89 | I48: 0 | J48: 583100.89 | L48: -2050964.76 | M48: -109716.87 | N48: 399965.93 | O48: 1388989 | P48: -371726.7 | Q48: 0 | R48: -371726.7 | S48: 211374.19
A49: 10 | B49: 1930A | C49: Transportation Equipment (10 years) | D49: 0 | E49: 31526.8 | F49: 0 | G49: 3038347.08 | H49: 3069873.88 | I49: -529220.556 | J49: 2540653.324 | L49: 0 | M49: -242440.04 | N49: 0 | O49: -1433921.62 | P49: -1676361.66 | Q49: 324150.316 | R49: -1352211.344 | S49: 1188441.98
A50: 8 | B50: 1935 | C50: Stores Equipment | D50: 166638.13 | E50: 0 | F50: 0 | G50: 0 | H50: 166638.13 | I50: -33327.626 | J50: 133310.504 | L50: -154648.79 | M50: -4627.65 | N50: 0 | O50: 0 | P50: -159276.44 | Q50: 31855.288 | R50: -127421.152 | S50: 5889.352
A51: 8 | B51: 1940 | C51: Tools, Shop & Garage Equipment | D51: 757185.12 | E51: 8551.43 | F51: 0 | G51: 0 | H51: 765736.55 | I51: -145162.896 | J51: 620573.654 | L51: -654528.2 | M51: -16595.72 | N51: 0 | O51: 0 | P51: -671123.92 | Q51: 131359.45 | R51: -539764.47 | S51: 80809.184
A52: 8 | B52: 1945 | C52: Measurement & Testing Equipment | D52: 478243.76 | E52: 0 | F52: 0 | G52: 0 | H52: 478243.76 | I52: -91714.508 | J52: 386529.252 | L52: -419318.33 | M52: -18300.03 | N52: 0 | O52: 0 | P52: -437618.36 | Q52: 84362.782 | R52: -353255.578 | S52: 33273.674
A53: 8 | B53: 1950 | C53: Power Operated Equipment | D53: 109339.4 | E53: 0 | F53: 0 | G53: 0 | H53: 109339.4 | I53: 0 | J53: 109339.4 | L53: -92906.95 | M53: -2413.68 | N53: 0 | O53: 0 | P53: -95320.63 | Q53: 0 | R53: -95320.63 | S53: 14018.77
A54: 8 | B54: 1955 | C54: Communications Equipment | D54: 1065540.97 | E54: -2675.86 | F54: 0 | G54: 0 | H54: 1062865.11 | I54: -183433.26 | J54: 879431.85 | L54: -516539.46 | M54: -95563.06 | N54: 0 | O54: 0 | P54: -612102.52 | Q54: 94196.134 | R54: -517906.386 | S54: 361525.464
A55: 8 | B55: 1955 | C55: Communication Equipment (Smart Meters) | H55: 0 | J55: 0 | P55: 0 | R55: 0 | S55: 0
A56: 8 | B56: 1960 | C56: Miscellaneous Equipment (10 years) | D56: 142549.51 | E56: 0 | F56: 0 | G56: -67512.6 | H56: 75036.91 | I56: -27797.536 | J56: 47239.374 | L56: -99998.04 | M56: -7503.69 | N56: 0 | O56: 54059.27 | P56: -53442.46 | Q56: 22095.276 | R56: -31347.184 | S56: 15892.19
A57: 8 | B57: 1960A | C57: Miscellaneous Equipment (5 years) | D57: 0 | E57: 0 | F57: 0 | G57: 67512.6 | H57: 67512.6 | I57: 0 | J57: 67512.6 | L57: 0 | M57: -5455.37 | N57: 0 | O57: -54059.27 | P57: -59514.64 | Q57: 0 | R57: -59514.64 | S57: 7997.96
A58: 47 | B58: 1975 | C58: Load Management Controls Utility Premises | H58: 0 | J58: 0 | P58: 0 | R58: 0 | S58: 0
A59: 47 | B59: 1980 | C59: System Supervisor Equipment | D59: 776127.45 | E59: 51051.04 | F59: 0 | G59: 0 | H59: 827178.49 | I59: -164997.934 | J59: 662180.556 | L59: -690422.83 | M59: -7801.18 | N59: 0 | O59: 0 | P59: -698224.01 | Q59: 139207.038 | R59: -559016.972 | S59: 103163.584
A60: 47 | B60: 1985 | C60: Miscellaneous Fixed Assets | H60: 0 | J60: 0 | P60: 0 | R60: 0 | S60: 0
A61: 47 | B61: 1990 | C61: Other Tangible Property | H61: 0 | J61: 0 | P61: 0 | R61: 0 | S61: 0
A62: 47 | B62: 1995 | C62: Contributions & Grants | D62: -9791083.3 | E62: -1062493.07 | F62: 185285.2 | G62: -117411.35 | H62: -10785702.52 | I62: 0 | J62: -10785702.52 | L62: 1922691.49 | M62: 225553.89 | N62: -77035.81 | O62: 12857.44 | P62: 2084067.01 | Q62: 0 | R62: 2084067.01 | S62: -8701635.51
A63: 47 | B63: 2440 | C63: Deferred Revenue5 | H63: 0 | J63: 0 | R63: 0 | S63: 0
R64: =L64+M64+N64 -> 0 | S64: =J64+R64 -> 0
C65: Sub-Total | D65: =SUM(D17:D64) -> 110282519.8 | E65: 12428651.34 | F65: -3815076.18 | G65: =SUM(G17:G64) -> -61173.46 | H65: =SUM(H17:H64) -> 118834921.5 | I65: =SUM(I17:I64) -> -9629564.561 | J65: =SUM(J17:J64) -> 109205356.9 | L65: =SUM(L17:L64) -> -44401003.79 | M65: =SUM(M17:M64) -> -5340241.42 | N65: 2234795.07 | O65: -43380.45 | P65: -47549830.59 | Q65: 6145034.442 | R65: -41404796.15 | S65: 67800560.8
B67: 2055 | C67: Asset Under Construction | D67: 2557005.81 | E67: 886238.52 | F67: 0 | G67: 104553.91 | H67: =D67+E67+F67+G67 -> 3547798.24 | J67: =H67+I67 -> 3547798.24 | S67: =J67+R67 -> 3547798.24
C68: Less Socialized Renewable Energy Generation Investments (input as negative) | J68: =D68+E68+F68 -> 0 | R68: =L68+M68+N68 -> 0 | S68: =J68+R68 -> 0
C69: Less Other Non Rate-Regulated Utility Assets (input as negative) | J69: =D69+E69+F69 -> 0 | R69: 0 | S69: 0
C70: Total PP&E | D70: =SUM(D65:D69) -> 112839525.6 | E70: =SUM(E65:E69) -> 13314889.86 | F70: =SUM(F65:F69) -> -3815076.18 | G70: =SUM(G65:G69) -> 43380.45 | H70: 122382719.7 | I70: -9629564.561 | J70: =SUM(J65:J69) -> 112753155.2 | L70: =SUM(L65:L69) -> -44401003.79 | M70: =SUM(M65:M69) -> -5340241.42 | N70: =SUM(N65:N69) -> 2234795.07 | O70: =SUM(O65:O69) -> -43380.45 | P70: -47549830.59 | Q70: 6145034.442 | R70: -41404796.15 | S70: 71348359.04
C71: Depreciation Expense adj. from gain or loss on the retirement of assets (pool of like assets), if applicable6
C72: Total | M72: =M70+M71 -> -5340241.42
L74: Less: Fully Allocated Depreciation
A75: 10 | C75: Transportation | L75: Transportation | N75: =M48+M49 -> -352156.91
A76: 8 | C76: Stores Equipment | L76: Stores Equipment
L77: Net Depreciation | N77: =M72-N75-N76 -> -4988084.51
A79: Notes:
A81: 1 | B81: Tables in the format outlined above covering all fixed asset accounts should be submitted for the Test Year, Bridge Year and all relevant historical years. At a minimum , the applicant must provide data for the earlier of: 1) all historical years back to its last rebasing; or 2) at least three years of historical actuals, in addition to Bridge Year and Test Year forecasts.
A84: 2 | B84: The "CCA Class" for fixed assets should agree with the CCA Class used for tax purposes in Tax Returns. Fixed Assets sub-components may be used where the underlying asset components are classified under multiple CCA Classes for tax purposes. If an applicant uses any different classes from those shown in the table, an explanation should be provided. (also see note 3).
A87: 3 | B87: The table may need to be customized for a utility's asset categories or for any new asset accounts announced or authorized by the Board.
A89: 4 | B89: The additions in column (E) must not include construction work in progress (CWIP).
A91: 5 | B91: Effective on the date of IFRS adoption, customer contributions will no longer be recorded in Account 1995 Contributions & Grants, but will be recorded in Account 2440, Deferred Revenues.
A93: 6 | B93: Where a distributor for general financial reporting purposes under IFRS has accounted for the amount of gain or loss on the retirement of assets in a pool of like assets as a charge or credit to income, for reporting and rate application filings, the distributor shall reclassify such gains and losses as depreciation expense, and disclose the amount separately.
A99: Fixed Asset Continuity Schedule 1
E101: Accounting Standard | F101: MIFRS
E102: Year | F102: 2014
D104: Cost | M104: Accumulated Depreciation
A105: CCA Class 2 | B105: OEB Account 3 | C105: Description 3 | D105: Opening Balance | E105: Additions 4 | F105: Disposals | G105: Adjustments | H105: Cost End of Period | I105: Allocations | J105: Closing Balance | L105: Opening Balance | M105: Additions | N105: Disposals | O105: Adjustments | P105: Cost End of Period | Q105: Allocations | R105: Closing Balance | S105: Net Book Value
A106: ECE | B106: 1608 | C106: Franchises & Consents | D106: 156053 | E106: 0 | F106: 0 | G106: 0 | H106: =D106+E106+F106+G106 -> 156053 | I106: 0 | J106: =H106+I106 -> 156053 | L106: -39013.3 | M106: -3901.33 | N106: 0 | O106: 0 | P106: =L106+M106+N106+O106 -> -42914.63 | Q106: 0 | R106: =P106+Q106 -> -42914.63 | S106: =J106+R106 -> 113138.37
A107: 1 | B107: 1610 | C107: Misc. Intangible Plant | D107: 40575.65 | E107: 0 | F107: 0 | G107: 0 | H107: 40575.65 | I107: 0 | J107: =H107+I107 -> 40575.65 | L107: -4695 | M107: -1014.4 | N107: 0 | O107: 0 | P107: =L107+M107+N107+O107 -> -5709.4 | Q107: 0 | R107: =P107+Q107 -> -5709.4 | S107: 34866.25
A108: 12 | B108: 1611 | C108: Computer Software (Formally known as Account 1925) | D108: 472312.72 | E108: 325866.36 | F108: 0 | G108: 0 | H108: =D108+E108+F108+G108 -> 798179.08 | I108: 0 | J108: 798179.08 | L108: -195161.98 | M108: -87607.35 | N108: 0 | O108: 0 | P108: -282769.33 | Q108: 0 | R108: -282769.33 | S108: 515409.75
A109: 12 | B109: 1611A | C109: Computer Software (Formally known as Account 1925) | D109: 9802932.26 | E109: 597677.7 | F109: 0 | G109: 0 | H109: =D109+E109+F109+G109 -> 10400609.96 | I109: -6816712.952 | J109: 3583897.008 | L109: -5959875.48 | M109: -600946.42 | N109: 0 | O109: 0 | P109: -6560821.9 | Q109: 4064611.545 | R109: -2496210.355 | S109: 1087686.653
A110: CEC | B110: 1612 | C110: Land Rights (Formally known as Account 1906) | D110: 317588.92 | E110: 3463.31 | F110: 0 | G110: 0 | H110: 321052.23 | I110: 0 | J110: 321052.23 | L110: -92068.57 | M110: -6726.1 | N110: 0 | O110: 0 | P110: -98794.67 | Q110: 0 | R110: -98794.67 | S110: 222257.56
A111: N/A | B111: 1805 | C111: Land | D111: 208083.81 | E111: 0 | F111: 0 | G111: 0 | H111: 208083.81 | I111: 0 | J111: 208083.81 | L111: 0 | M111: 0 | N111: 0 | O111: 0 | P111: 0 | Q111: 0 | R111: 0 | S111: 208083.81
A112: 47 | B112: 1808 | C112: Buildings | D112: 3966736.49 | E112: 0 | F112: 0 | G112: 0 | H112: 3966736.49 | I112: 0 | J112: 3966736.49 | L112: -1049315.15 | M112: -79334.74 | N112: 0 | O112: 0 | P112: -1128649.89 | Q112: 0 | R112: -1128649.89 | S112: 2838086.6
A113: 13 | B113: 1810 | C113: Leasehold Improvements | H113: 0 | J113: 0 | P113: 0 | R113: 0 | S113: 0
A114: 47 | B114: 1815 | C114: Transformer Station Equipment >50 kV | H114: 0 | J114: 0 | P114: 0 | R114: 0 | S114: 0
A115: 47 | B115: 1820 | C115: Distribution Station Equipment <50 kV | D115: 10462057.69 | E115: 68089.89 | F115: 0 | G115: 0 | H115: 10530147.58 | I115: 0 | J115: 10530147.58 | L115: -2940514.94 | M115: -200610.62 | N115: 0 | O115: 0 | P115: -3141125.56 | Q115: 0 | R115: -3141125.56 | S115: 7389022.02
A116: 47 | B116: 1820A | C116: Distribution Station Equipment <50 kV | D116: 1660108.52 | E116: 39222.5 | F116: 0 | G116: 0 | H116: 1699331.02 | I116: 0 | J116: 1699331.02 | L116: -247436.75 | M116: -40911.92 | N116: 0 | O116: 0 | P116: -288348.67 | Q116: 0 | R116: -288348.67 | S116: 1410982.35
A117: 47 | B117: 1825 | C117: Storage Battery Equipment | H117: 0 | J117: 0 | P117: 0 | R117: 0 | S117: 0
A118: 47 | B118: 1830 | C118: Poles, Towers & Fixtures | D118: 21988721.98 | E118: 1151612.51 | F118: -22249.55 | G118: 0 | H118: 23118084.94 | I118: 0 | J118: 23118084.94 | L118: -9384979.74 | M118: -521419.6 | N118: 19026.58 | O118: 0 | P118: -9887372.76 | Q118: 0 | R118: -9887372.76 | S118: 13230712.18
A119: 47 | B119: 1835 | C119: Overhead Conductors & Devices | D119: 27887833.16 | E119: 1860391.7 | F119: -2659.95 | G119: 0 | H119: 29745564.91 | I119: 0 | J119: 29745564.91 | L119: -8543974.61 | M119: -644336.75 | N119: 2659.91 | O119: 0 | P119: -9185651.45 | Q119: 0 | R119: -9185651.45 | S119: 20559913.46
A120: 47 | B120: 1840 | C120: Underground Conduit | D120: 1061294.62 | E120: 7390.77 | F120: 0 | G120: 0 | H120: 1068685.39 | I120: 0 | J120: 1068685.39 | L120: -333842.61 | M120: -66351.79 | N120: 0 | O120: 0 | P120: -400194.4 | Q120: 0 | R120: -400194.4 | S120: 668490.99
A121: 47 | B121: 1845 | C121: Underground Conductors & Devices | D121: 7983677.72 | E121: 514084.9 | F121: -352.47 | G121: 0 | H121: 8497410.15 | I121: 0 | J121: 8497410.15 | L121: -1865497.96 | M121: -203563.43 | N121: 352.46 | O121: 0 | P121: -2068708.93 | Q121: 0 | R121: -2068708.93 | S121: 6428701.22
A122: 47 | B122: 1850 | C122: Line Transformers | D122: 14044538.59 | E122: 597714.12 | F122: -0.01 | G122: 0 | H122: 14642252.7 | I122: 0 | J122: 14642252.7 | L122: -5310582.09 | M122: -405854.86 | N122: 0 | O122: 0 | P122: -5716436.95 | Q122: 0 | R122: -5716436.95 | S122: 8925815.75
A123: 47 | B123: 1855 | C123: Services (Overhead & Underground) | D123: 9752920.51 | E123: 555333.67 | F123: 0 | G123: 0 | H123: 10308254.18 | I123: 0 | J123: 10308254.18 | L123: -2824555.48 | M123: -223789.52 | N123: 0 | O123: 0 | P123: -3048345 | Q123: 0 | R123: -3048345 | S123: 7259909.18
A124: 47 | B124: 1860 | C124: Meters | D124: 471620.12 | E124: 47380.15 | F124: 0 | G124: 0 | H124: 519000.27 | I124: 0 | J124: 519000.27 | L124: -141168.93 | M124: -31847.72 | N124: 0 | O124: -48.84 | P124: -173065.49 | Q124: 0 | R124: -173065.49 | S124: 345934.78
A125: 47 | B125: 1860A | C125: Meters (Smart Meters) | D125: 5064616.91 | E125: 115923.85 | F125: 0 | G125: 0 | H125: 5180540.76 | I125: 0 | J125: 5180540.76 | L125: -1364232.26 | M125: -399932.56 | N125: 0 | O125: 0 | P125: -1764164.82 | Q125: 0 | R125: -1764164.82 | S125: 3416375.94
A126: 47 | B126: 1860B | C126: Meters | D126: 549292.64 | E126: 30064.32 | F126: 0 | G126: 0 | H126: 579356.96 | I126: 0 | J126: 579356.96 | L126: -290746.77 | M126: -20050.49 | N126: 0 | O126: 0 | P126: -310797.26 | Q126: 0 | R126: -310797.26 | S126: 268559.7
A127: 1 | B127: 1865 | C127: D Other Install on Cust Prem | D127: 133772.13 | E127: 165.84 | F127: 0 | G127: 0 | H127: 133937.97 | I127: 0 | J127: 133937.97 | L127: -44075.46 | M127: -13432.96 | N127: 0 | O127: 0 | P127: -57508.42 | Q127: 0 | R127: -57508.42 | S127: 76429.55
B128: 1875 | C128: D St Lites & Signal Systems | D128: 0 | E128: 0 | F128: 0 | G128: 0 | H128: 0 | I128: 0 | J128: 0 | L128: 0 | M128: 0 | N128: 0 | O128: 0 | P128: 0 | Q128: 0 | R128: 0 | S128: 0
A129: N/A | B129: 1905 | C129: Land | H129: 0 | J129: 0 | P129: 0 | R129: 0 | S129: 0
A130: 47 | B130: 1908 | C130: Buildings & Fixtures | D130: 890495.27 | E130: 15885 | F130: 0 | G130: 0 | H130: 906380.27 | I130: 0 | J130: 906380.27 | L130: -188167.19 | M130: -18004.2 | N130: 0 | O130: 0 | P130: -206171.39 | Q130: 0 | R130: -206171.39 | S130: 700208.88
A131: 13 | B131: 1910 | C131: Leasehold Improvements | D131: 695249.88 | E131: 144925.24 | F131: 0 | G131: 0 | H131: 840175.12 | I131: 0 | J131: 840175.12 | L131: -222879.51 | M131: -151098.01 | N131: 0 | O131: 0 | P131: -373977.52 | Q131: 0 | R131: -373977.52 | S131: 466197.6
A132: 8 | B132: 1915 | C132: Office Furniture & Equipment (10 years) | D132: 1364864.64 | E132: 66159.6 | F132: 0 | G132: 0 | H132: 1431024.24 | I132: -352440.1919 | J132: 1078584.048 | L132: -1285199.6 | M132: -27878.32 | N132: 0 | O132: 0 | P132: -1313077.92 | Q132: 323073.9061 | R132: -990004.0139 | S132: 88580.03424
A133: 8 | B133: 1915 | C133: Office Furniture & Equipment (5 years) | H133: 0 | J133: 0 | P133: 0 | R133: 0 | S133: 0
A134: 10 | B134: 1920 | C134: Computer Equipment - Hardware | D134: 3439751.08 | E134: 272714.13 | F134: 0 | G134: 0 | H134: 3712465.21 | I134: -2376526.294 | J134: 1335938.916 | L134: -2471202.88 | M134: -379764.07 | N134: 0 | O134: 0 | P134: -2850966.95 | Q134: 1822643.654 | R134: -1028323.296 | S134: 307615.6208
A135: 45 | B135: 1920 | C135: Computer Equip.-Hardware(Post Mar. 22/04) | H135: 0 | J135: 0 | P135: 0 | R135: 0 | S135: 0
A136: 45.1 | B136: 1920 | C136: Computer Equip.-Hardware(Post Mar. 19/07) | H136: 0 | J136: 0 | P136: 0 | R136: 0 | S136: 0
A137: 10 | B137: 1930 | C137: Transportation Equipment (5 years) | D137: 583100.89 | E137: 137343.59 | F137: -126115.75 | G137: 0 | H137: 594328.73 | I137: 0 | J137: 594328.73 | L137: -371726.7 | M137: -94804.24 | N137: 126115.75 | O137: 0 | P137: -340415.19 | Q137: 0 | R137: -340415.19 | S137: 253913.54
A138: 10 | B138: 1930A | C138: Transportation Equipment (10 years) | D138: 3069873.88 | E138: 559753.64 | F138: -231596.1 | G138: 0 | H138: 3398031.42 | I138: -760284.9173 | J138: 2637746.503 | L138: -1676361.66 | M138: -292107.19 | N138: 221486.81 | O138: 0 | P138: -1746982.04 | Q138: 399580.8037 | R138: -1347401.236 | S138: 1290345.266
A139: 8 | B139: 1935 | C139: Stores Equipment | D139: 166638.13 | E139: 0 | F139: 0 | G139: 0 | H139: 166638.13 | I139: -41992.80876 | J139: 124645.3212 | L139: -159276.44 | M139: -4627.65 | N139: 0 | O139: 0 | P139: -163904.09 | Q139: 41303.83068 | R139: -122600.2593 | S139: 2045.06192
A140: 8 | B140: 1940 | C140: Tools, Shop & Garage Equipment | D140: 765736.55 | E140: 60961.25 | F140: 0 | G140: 0 | H140: 826697.8 | I140: -195518.8822 | J140: 631178.9178 | L140: -671123.92 | M140: -18490.84 | N140: 0 | O140: 0 | P140: -689614.76 | Q140: 169163.3815 | R140: -520451.3785 | S140: 110727.5394
A141: 8 | B141: 1945 | C141: Measurement & Testing Equipment | D141: 478243.76 | E141: 30925.59 | F141: 0 | G141: 0 | H141: 509169.35 | I141: -123353.5288 | J141: 385815.8212 | L141: -437618.36 | M141: -17061.27 | N141: 0 | O141: 0 | P141: -454679.63 | Q141: 110102.6833 | R141: -344576.9467 | S141: 41238.87456
A142: 8 | B142: 1950 | C142: Power Operated Equipment | D142: 109339.4 | E142: 0 | F142: 0 | G142: 0 | H142: 109339.4 | I142: 0 | J142: 109339.4 | L142: -95320.63 | M142: -2413.68 | N142: 0 | O142: 0 | P142: -97734.31 | Q142: 0 | R142: -97734.31 | S142: 11605.09
A143: 8 | B143: 1955 | C143: Communications Equipment | D143: 1062865.11 | E143: 43238.53 | F143: 0 | G143: 0 | H143: 1106103.64 | I143: -270242.0834 | J143: 835861.5566 | L143: -612102.52 | M143: -83360.2 | N143: 0 | O143: 0 | P143: -695462.72 | Q143: 166761.7762 | R143: -528700.9438 | S143: 307160.6127
A144: 8 | B144: 1955 | C144: Communication Equipment (Smart Meters) | H144: 0 | J144: 0 | P144: 0 | R144: 0 | S144: 0
A145: 8 | B145: 1960 | C145: Miscellaneous Equipment (10 years) | D145: 75036.91 | E145: 0 | F145: 0 | G145: 0 | H145: 75036.91 | I145: -35024.89536 | J145: 40012.01464 | L145: -53442.46 | M145: -7503.69 | N145: 0 | O145: 0 | P145: -60946.15 | Q145: 30926.21364 | R145: -30019.93636 | S145: 9992.07828
A146: 8 | B146: 1960A | C146: Miscellaneous Equipment (5 years) | D146: 67512.6 | E146: 20900 | F146: 0 | G146: 0 | H146: 88412.6 | I146: 0 | J146: 88412.6 | L146: -59514.64 | M146: -5455.37 | N146: 0 | O146: 0 | P146: -64970.01 | Q146: 0 | R146: -64970.01 | S146: 23442.59
A147: 47 | B147: 1975 | C147: Load Management Controls Utility Premises | H147: 0 | J147: 0 | P147: 0 | R147: 0 | S147: 0
A148: 47 | B148: 1980 | C148: System Supervisor Equipment | D148: 827178.49 | E148: 7683.35 | F148: 0 | G148: 0 | H148: 834861.84 | I148: -209833.601 | J148: 625028.239 | L148: -698224.01 | M148: -10656.19 | N148: 0 | O148: 0 | P148: -708880.2 | Q148: 178086.2278 | R148: -530793.9722 | S148: 94234.26672
A149: 47 | B149: 1985 | C149: Miscellaneous Fixed Assets | H149: 0 | J149: 0 | P149: 0 | R149: 0 | S149: 0
A150: 47 | B150: 1990 | C150: Other Tangible Property | H150: 0 | J150: 0 | P150: 0 | R150: 0 | S150: 0
A151: 47 | B151: 1995 | C151: Contributions & Grants | D151: -10785702.52 | E151: -1658435.32 | F151: 9035.21 | G151: -8369.47 | H151: -12443472.1 | I151: 0 | J151: -12443472.1 | L151: 2084067.01 | M151: 240460.43 | N151: -576.5 | O151: 0 | P151: 2323950.94 | Q151: 0 | R151: 2323950.94 | S151: -10119521.16
A152: 47 | B152: 2440 | C152: Deferred Revenue5 | H152: 0 | J152: 0 | R152: 0 | S152: 0
R153: =L153+M153+N153 -> 0 | S153: 0
C154: Sub-Total | D154: =SUM(D106:D153) -> 118834921.5 | E154: =SUM(E106:E153) -> 5616436.19 | F154: =SUM(F106:F153) -> -373938.62 | G154: =SUM(G106:G153) -> -8369.47 | H154: =SUM(H106:H153) -> 124069049.6 | I154: =SUM(I106:I153) -> -11181930.15 | J154: =SUM(J106:J153) -> 112887119.5 | L154: =SUM(L106:L153) -> -47549830.59 | M154: =SUM(M106:M153) -> -4424397.05 | N154: =SUM(N106:N153) -> 369065.01 | O154: =SUM(O106:O153) -> -48.84 | P154: =SUM(P106:P153) -> -51605211.47 | Q154: =SUM(Q106:Q153) -> 7306254.022 | R154: =SUM(R106:R153) -> -44298957.45 | S154: =SUM(S106:S153) -> 68588162.01
B156: 2055 | C156: Asset Under Construction | D156: 3547798.24 | E156: 1267995.79 | F156: 0 | G156: 0 | H156: =D156+E156+F156+G156 -> 4815794.03 | I156: 0 | J156: =H156+I156 -> 4815794.03 | S156: =J156+R156 -> 4815794.03
C157: Less Socialized Renewable Energy Generation Investments (input as negative) | J157: =D157+E157+F157 -> 0 | R157: =L157+M157+N157 -> 0 | S157: 0
C158: Less Other Non Rate-Regulated Utility Assets (input as negative) | J158: 0 | R158: 0 | S158: 0
C159: Total PP&E | D159: =SUM(D154:D158) -> 122382719.7 | E159: =SUM(E154:E158) -> 6884431.98 | F159: =SUM(F154:F158) -> -373938.62 | G159: =SUM(G154:G158) -> -8369.47 | H159: =SUM(H154:H158) -> 128884843.6 | I159: =SUM(I154:I158) -> -11181930.15 | J159: =SUM(J154:J158) -> 117702913.5 | L159: =SUM(L154:L158) -> -47549830.59 | M159: =SUM(M154:M158) -> -4424397.05 | N159: =SUM(N154:N158) -> 369065.01 | O159: =SUM(O154:O158) -> -48.84 | P159: =SUM(P154:P158) -> -51605211.47 | Q159: =SUM(Q154:Q158) -> 7306254.022 | R159: =SUM(R154:R158) -> -44298957.45 | S159: =SUM(S154:S158) -> 73403956.04
C160: Depreciation Expense adj. from gain or loss on the retirement of assets (pool of like assets), if applicable6
C161: Total | M161: =M159+M160 -> -4424397.05
L163: Less: Fully Allocated Depreciation
A164: 10 | C164: Transportation | L164: Transportation | N164: =M137+M138 -> -386911.43
A165: 8 | C165: Stores Equipment | L165: Stores Equipment
L166: Net Depreciation | N166: =M161-N164-N165 -> -4037485.62
A170: Fixed Asset Continuity Schedule 1
E172: Accounting Standard | F172: MIFRS
E173: Year | F173: 2015
D175: Cost | M175: Accumulated Depreciation
A176: CCA Class 2 | B176: OEB Account 3 | C176: Description 3 | D176: Opening Balance | E176: Additions 4 | F176: Disposals | G176: Adjustments | H176: Cost End of Period | I176: Allocations | J176: Closing Balance | L176: Opening Balance | M176: Additions | N176: Disposals | O176: Adjustments | P176: Cost End of Period | Q176: Allocations | R176: Closing Balance | S176: Net Book Value
A177: ECE | B177: 1608 | C177: Franchises & Consents | D177: 156053 | E177: 0 | F177: 0 | G177: 0 | H177: =D177+E177+F177+G177 -> 156053 | I177: 0 | J177: =H177+I177 -> 156053 | L177: -42914.63 | M177: -3901.33 | N177: 0 | O177: 0 | P177: =L177+M177+N177+O177 -> -46815.96 | Q177: 0 | R177: =P177+Q177 -> -46815.96 | S177: =J177+R177 -> 109237.04
A178: 1 | B178: 1610 | C178: Misc. Intangible Plant | D178: 40575.65 | E178: 0 | F178: 0 | G178: 0 | H178: 40575.65 | I178: 0 | J178: =H178+I178 -> 40575.65 | L178: -5709.4 | M178: -1014.4 | N178: 0 | O178: 0 | P178: =L178+M178+N178+O178 -> -6723.8 | Q178: 0 | R178: =P178+Q178 -> -6723.8 | S178: 33851.85
A179: 12 | B179: 1611 | C179: Computer Software (Formally known as Account 1925) | D179: 798179.08 | E179: 166492.41 | F179: 0 | G179: 0 | H179: =D179+E179+F179+G179 -> 964671.49 | I179: 0 | J179: 964671.49 | L179: -282769.33 | M179: -136486.73 | N179: 0 | O179: 0 | P179: -419256.06 | Q179: 0 | R179: -419256.06 | S179: 545415.43
A180: 12 | B180: 1611A | C180: Computer Software (Formally known as Account 1925) | D180: 10400609.96 | E180: 640815.11 | F180: -900 | G180: 0 | H180: =D180+E180+F180+G180 -> 11040525.07 | I180: -7336039.395 | J180: 3704485.675 | L180: -6560821.9 | M180: -644279.27 | N180: 82.5 | O180: 0 | P180: -7205018.67 | Q180: 4558255.062 | R180: -2646763.608 | S180: 1057722.067
A181: CEC | B181: 1612 | C181: Land Rights (Formally known as Account 1906) | D181: 321052.23 | E181: 4866.72 | F181: 0 | G181: 0 | H181: 325918.95 | I181: 0 | J181: 325918.95 | L181: -98794.67 | M181: -6789.84 | N181: 0 | O181: 0 | P181: -105584.51 | Q181: 0 | R181: -105584.51 | S181: 220334.44
A182: N/A | B182: 1805 | C182: Land | D182: 208083.81 | E182: 0 | F182: -1430.11 | G182: 0 | H182: 206653.7 | I182: 0 | J182: 206653.7 | L182: 0 | M182: 0 | N182: 0 | O182: 0 | P182: 0 | Q182: 0 | R182: 0 | S182: 206653.7
A183: 47 | B183: 1808 | C183: Buildings | D183: 3966736.49 | E183: 0 | F183: -490886.25 | G183: 0 | H183: 3475850.24 | I183: 0 | J183: 3475850.24 | L183: -1128649.89 | M183: -75244.01 | N183: 134265.94 | O183: 0 | P183: -1069627.96 | Q183: 0 | R183: -1069627.96 | S183: 2406222.28
A184: 13 | B184: 1810 | C184: Leasehold Improvements | H184: 0 | J184: 0 | P184: 0 | R184: 0 | S184: 0
A185: 47 | B185: 1815 | C185: Transformer Station Equipment >50 kV | H185: 0 | J185: 0 | P185: 0 | R185: 0 | S185: 0
A186: 47 | B186: 1820 | C186: Distribution Station Equipment <50 kV | D186: 10530147.58 | E186: 1182592 | F186: -34804 | G186: 0 | H186: 11677935.58 | I186: 0 | J186: 11677935.58 | L186: -3141125.56 | M186: -204090.59 | N186: 17531.4 | O186: 0 | P186: -3327684.75 | Q186: 0 | R186: -3327684.75 | S186: 8350250.83
A187: 47 | B187: 1820A | C187: Distribution Station Equipment <50 kV | D187: 1699331.02 | E187: 514318.75 | F187: 0 | G187: 0 | H187: 2213649.77 | I187: 0 | J187: 2213649.77 | L187: -288348.67 | M187: -42988.87 | N187: 0 | O187: 0 | P187: -331337.54 | Q187: 0 | R187: -331337.54 | S187: 1882312.23
A188: 47 | B188: 1825 | C188: Storage Battery Equipment | H188: 0 | J188: 0 | P188: 0 | R188: 0 | S188: 0
A189: 47 | B189: 1830 | C189: Poles, Towers & Fixtures | D189: 23118084.94 | E189: 2578593.34 | F189: -29046.22 | G189: 0 | H189: 25667632.06 | I189: 0 | J189: 25667632.06 | L189: -9887372.76 | M189: -554028.25 | N189: 28109.6 | O189: 0 | P189: -10413291.41 | Q189: 0 | R189: -10413291.41 | S189: 15254340.65
A190: 47 | B190: 1835 | C190: Overhead Conductors & Devices | D190: 29745564.91 | E190: 2777581.21 | F190: -5641.14 | G190: 0 | H190: 32517504.98 | I190: 0 | J190: 32517504.98 | L190: -9185651.45 | M190: -692556.37 | N190: 5564.87 | O190: 0 | P190: -9872642.95 | Q190: 0 | R190: -9872642.95 | S190: 22644862.03
A191: 47 | B191: 1840 | C191: Underground Conduit | D191: 1068685.39 | E191: 104777.59 | F191: 0 | G191: 0 | H191: 1173462.98 | I191: 0 | J191: 1173462.98 | L191: -400194.4 | M191: -66671.55 | N191: 0 | O191: 0 | P191: -466865.95 | Q191: 0 | R191: -466865.95 | S191: 706597.03
A192: 47 | B192: 1845 | C192: Underground Conductors & Devices | D192: 8497410.15 | E192: 765723.7 | F192: -415.24 | G192: 0 | H192: 9262718.61 | I192: 0 | J192: 9262718.61 | L192: -2068708.93 | M192: -222321.13 | N192: 401.93 | O192: 0 | P192: -2290628.13 | Q192: 0 | R192: -2290628.13 | S192: 6972090.48
A193: 47 | B193: 1850 | C193: Line Transformers | D193: 14642252.7 | E193: 590514.45 | F193: 0 | G193: 0 | H193: 15232767.15 | I193: 0 | J193: 15232767.15 | L193: -5716436.95 | M193: -421231.12 | N193: 0 | O193: 0 | P193: -6137668.07 | Q193: 0 | R193: -6137668.07 | S193: 9095099.08
A194: 47 | B194: 1855 | C194: Services (Overhead & Underground) | D194: 10308254.18 | E194: 571681.78 | F194: -0.02 | G194: 0 | H194: 10879935.94 | I194: 0 | J194: 10879935.94 | L194: -3048345 | M194: -239196.82 | N194: 0 | O194: 0 | P194: -3287541.82 | Q194: 0 | R194: -3287541.82 | S194: 7592394.12
A195: 47 | B195: 1860 | C195: Meters | D195: 519000.27 | E195: 105090.82 | F195: 0 | G195: 0 | H195: 624091.09 | I195: 0 | J195: 624091.09 | L195: -173065.49 | M195: -27923.77 | N195: 0 | O195: 0 | P195: -200989.26 | Q195: 0 | R195: -200989.26 | S195: 423101.83
A196: 47 | B196: 1860A | C196: Meters (Smart Meters) | D196: 5180540.76 | E196: 320626.29 | F196: 0 | G196: -234064.71 | H196: 5267102.34 | I196: 0 | J196: 5267102.34 | L196: -1764164.82 | M196: -406153.45 | N196: 0 | O196: 7802 | P196: -2162516.27 | Q196: 0 | R196: -2162516.27 | S196: 3104586.07
A197: 47 | B197: 1860B | C197: Meters | D197: 579356.96 | E197: 13045.86 | F197: 0 | G197: 0 | H197: 592402.82 | I197: 0 | J197: 592402.82 | L197: -310797.26 | M197: -18834.01 | N197: 0 | O197: 0 | P197: -329631.27 | Q197: 0 | R197: -329631.27 | S197: 262771.55
A198: 1 | B198: 1865 | C198: D Other Install on Cust Prem | D198: 133937.97 | E198: 0 | F198: 0 | G198: 0 | H198: 133937.97 | I198: 0 | J198: 133937.97 | L198: -57508.42 | M198: -13438.53 | N198: 0 | O198: 0 | P198: -70946.95 | Q198: 0 | R198: -70946.95 | S198: 62991.02
B199: 1875 | C199: D St Lites & Signal Systems | D199: 0 | E199: 0 | F199: 0 | G199: 0 | H199: 0 | I199: 0 | J199: 0 | L199: 0 | M199: 0 | N199: 0 | O199: 0 | P199: 0 | Q199: 0 | R199: 0 | S199: 0
A200: N/A | B200: 1905 | C200: Land | H200: 0 | J200: 0 | P200: 0 | R200: 0 | S200: 0
A201: 47 | B201: 1908 | C201: Buildings & Fixtures | D201: 906380.27 | E201: 32713.8 | F201: -26574.32 | G201: 0 | H201: 912519.75 | I201: 0 | J201: 912519.75 | L201: -206171.39 | M201: -17906.18 | N201: 5624.74 | O201: 0 | P201: -218452.83 | Q201: 0 | R201: -218452.83 | S201: 694066.92
A202: 13 | B202: 1910 | C202: Leasehold Improvements | D202: 840175.12 | E202: 44967.33 | F202: 0 | G202: 0 | H202: 885142.45 | I202: 0 | J202: 885142.45 | L202: -373977.52 | M202: -172478.05 | N202: 0 | O202: 0 | P202: -546455.57 | Q202: 0 | R202: -546455.57 | S202: 338686.88
A203: 8 | B203: 1915 | C203: Office Furniture & Equipment (10 years) | D203: 1431024.24 | E203: 69642.09 | F203: 0 | G203: 0 | H203: 1500666.33 | I203: -369989.9986 | J203: 1130676.331 | L203: -1313077.92 | M203: -24218.88 | N203: 0 | O203: 0 | P203: -1337296.8 | Q203: 329023.2154 | R203: -1008273.585 | S203: 122402.7468
A204: 8 | B204: 1915 | C204: Office Furniture & Equipment (5 years) | H204: 0 | J204: 0 | P204: 0 | R204: 0 | S204: 0
A205: 10 | B205: 1920 | C205: Computer Equipment - Hardware | D205: 3712465.21 | E205: 79875.58 | F205: 0 | G205: 0 | H205: 3792340.79 | I205: -2427966.167 | J205: 1364374.623 | L205: -2850966.95 | M205: -336959.06 | N205: 0 | O205: 0 | P205: -3187926.01 | Q205: 2039180.579 | R205: -1148745.431 | S205: 215629.1915
A206: 45 | B206: 1920 | C206: Computer Equip.-Hardware(Post Mar. 22/04) | H206: 0 | J206: 0 | P206: 0 | R206: 0 | S206: 0
A207: 45.1 | B207: 1920 | C207: Computer Equip.-Hardware(Post Mar. 19/07) | H207: 0 | J207: 0 | P207: 0 | R207: 0 | S207: 0
A208: 10 | B208: 1930 | C208: Transportation Equipment (5 years) | D208: 594328.73 | E208: 0 | F208: 0 | G208: 0 | H208: 594328.73 | I208: 0 | J208: 594328.73 | L208: -340415.19 | M208: -92790.85 | N208: 0 | O208: 0 | P208: -433206.04 | Q208: 0 | R208: -433206.04 | S208: 161122.69
A209: 10 | B209: 1930A | C209: Transportation Equipment (10 years) | D209: 3398031.42 | E209: 125740.81 | F209: -58856.9 | G209: 0 | H209: 3464915.33 | I209: -774834.3666 | J209: 2690080.963 | L209: -1746982.04 | M209: -302489.88 | N209: 58692.48 | O209: 0 | P209: -1990779.44 | Q209: 457512.6074 | R209: -1533266.833 | S209: 1156814.131
A210: 8 | B210: 1935 | C210: Stores Equipment | D210: 166638.13 | E210: 0 | F210: 0 | G210: 0 | H210: 166638.13 | I210: -41992.80876 | J210: 124645.3212 | L210: -163904.09 | M210: -2734.04 | N210: 0 | O210: 0 | P210: -166638.13 | Q210: 41992.80876 | R210: -124645.3212 | S210: 0
A211: 8 | B211: 1940 | C211: Tools, Shop & Garage Equipment | D211: 826697.8 | E211: 43094.5 | F211: 0 | G211: 0 | H211: 869792.3 | I211: -205518.3001 | J211: 664273.9999 | L211: -689614.76 | M211: -21200.9 | N211: 0 | O211: 0 | P211: -710815.66 | Q211: 173432.7756 | R211: -537382.8844 | S211: 126891.1155
A212: 8 | B212: 1945 | C212: Measurement & Testing Equipment | D212: 509169.35 | E212: 6022 | F212: 0 | G212: 0 | H212: 515191.35 | I212: -124871.0728 | J212: 390320.2772 | L212: -454679.63 | M212: -16985.72 | N212: 0 | O212: 0 | P212: -471665.35 | Q212: 114062.949 | R212: -357602.401 | S212: 32717.87624
A213: 8 | B213: 1950 | C213: Power Operated Equipment | D213: 109339.4 | E213: 0 | F213: 0 | G213: 0 | H213: 109339.4 | I213: 0 | J213: 109339.4 | L213: -97734.31 | M213: -2413.68 | N213: 0 | O213: 0 | P213: -100147.99 | Q213: 0 | R213: -100147.99 | S213: 9191.41
A214: 8 | B214: 1955 | C214: Communications Equipment | D214: 1106103.64 | E214: 7222.88 | F214: 0 | G214: 0 | H214: 1113326.52 | I214: -272062.2492 | J214: 841264.2708 | L214: -695462.72 | M214: -78899.14 | N214: 0 | O214: 0 | P214: -774361.86 | Q214: 186643.1549 | R214: -587718.7051 | S214: 253545.5657
A215: 8 | B215: 1955 | C215: Communication Equipment (Smart Meters) | H215: 0 | J215: 0 | P215: 0 | R215: 0 | S215: 0
A216: 8 | B216: 1960 | C216: Miscellaneous Equipment (10 years) | D216: 75036.91 | E216: 9994.5 | F216: 0 | G216: 0 | H216: 85031.41 | I216: -37908.65736 | J216: 47122.75264 | L216: -60946.15 | M216: -6537.15 | N216: 0 | O216: 0 | P216: -67483.3 | Q216: 33140.14704 | R216: -34343.15296 | S216: 12779.59968
A217: 8 | B217: 1960A | C217: Miscellaneous Equipment (5 years) | D217: 88412.6 | E217: 2974 | F217: 0 | G217: 0 | H217: 91386.6 | I217: 0 | J217: 91386.6 | L217: -64970.01 | M217: -7013.89 | N217: 0 | O217: 0 | P217: -71983.9 | Q217: 0 | R217: -71983.9 | S217: 19402.7
A218: 47 | B218: 1975 | C218: Load Management Controls Utility Premises | H218: 0 | J218: 0 | P218: 0 | R218: 0 | S218: 0
A219: 47 | B219: 1980 | C219: System Supervisor Equipment | D219: 834861.84 | E219: 211954.35 | F219: 0 | G219: 0 | H219: 1046816.19 | I219: -263246.0972 | J219: 783570.0928 | L219: -708880.2 | M219: -10737.89 | N219: 0 | O219: 0 | P219: -719618.09 | Q219: 180792.176 | R219: -538825.914 | S219: 244744.1788
A220: 47 | B220: 1985 | C220: Miscellaneous Fixed Assets | H220: 0 | J220: 0 | P220: 0 | R220: 0 | S220: 0
A221: 47 | B221: 1990 | C221: Other Tangible Property | H221: 0 | J221: 0 | P221: 0 | R221: 0 | S221: 0
A222: 47 | B222: 1995 | C222: Contributions & Grants | D222: -12443472.1 | E222: -1264311.35 | F222: 7158.4 | G222: -7158.4 | H222: -13707783.45 | I222: 0 | J222: -13707783.45 | L222: 2323950.94 | M222: 276450.56 | N222: -78.56 | O222: 0 | P222: 2600322.94 | Q222: 0 | R222: 2600322.94 | S222: -11107460.51
A223: 47 | B223: 2440 | C223: Deferred Revenue5 | H223: 0 | J223: 0 | R223: 0 | S223: 0
R224: =L224+M224+N224 -> 0 | S224: 0
C225: Sub-Total | D225: =SUM(D177:D224) -> 124069049.6 | E225: =SUM(E177:E224) -> 9706610.52 | F225: =SUM(F177:F224) -> -641395.8 | G225: =SUM(G177:G224) -> -241223.11 | H225: =SUM(H177:H224) -> 132893041.2 | I225: =SUM(I177:I224) -> -11854429.11 | J225: =SUM(J177:J224) -> 121038612.1 | L225: =SUM(L177:L224) -> -51605211.47 | M225: =SUM(M177:M224) -> -4594064.79 | N225: =SUM(N177:N224) -> 250194.9 | O225: =SUM(O177:O224) -> 7802 | P225: =SUM(P177:P224) -> -55941279.36 | Q225: =SUM(Q177:Q224) -> 8114035.474 | R225: =SUM(R177:R224) -> -47827243.89 | S225: =SUM(S177:S224) -> 73211368.22
B227: 2055 | C227: Asset Under Construction | D227: 4815794.03 | E227: -1677163.62 | F227: 0 | G227: 234064.71 | H227: =D227+E227+F227+G227 -> 3372695.12 | I227: 0 | J227: =H227+I227 -> 3372695.12 | O227: -7802 | P227: =L227+M227+N227+O227 -> -7802 | R227: =P227+Q227 -> -7802 | S227: =J227+R227 -> 3364893.12
C228: Less Socialized Renewable Energy Generation Investments (input as negative) | J228: =D228+E228+F228 -> 0 | R228: =L228+M228+N228 -> 0 | S228: 0
C229: Less Other Non Rate-Regulated Utility Assets (input as negative) | J229: 0 | R229: 0 | S229: 0
C230: Total PP&E | D230: =SUM(D225:D229) -> 128884843.6 | E230: =SUM(E225:E229) -> 8029446.9 | F230: =SUM(F225:F229) -> -641395.8 | G230: =SUM(G225:G229) -> -7158.4 | H230: =SUM(H225:H229) -> 136265736.3 | I230: =SUM(I225:I229) -> -11854429.11 | J230: =SUM(J225:J229) -> 124411307.2 | L230: =SUM(L225:L229) -> -51605211.47 | M230: =SUM(M225:M229) -> -4594064.79 | N230: =SUM(N225:N229) -> 250194.9 | O230: =SUM(O225:O229) -> 0 | P230: =SUM(P225:P229) -> -55949081.36 | Q230: =SUM(Q225:Q229) -> 8114035.474 | R230: =SUM(R225:R229) -> -47835045.89 | S230: =SUM(S225:S229) -> 76576261.34
... 134 more rows

Sheet Appendix 2-BB Service Life
M1: File Number: | O1: EB-2016-0061
M2: Exhibit: | O2: 4
M3: Tab: | O3: 11
M4: Schedule: | O4: 1
M5: Page:
M7: Date: | O7: 2016-07-07
A9: Appendix 2-BB
A10: Service Life Comparison
A11: Table F-1 from Kinetrics Report1
C15: Asset Details | F15: Useful Life | J15: USoA Account Number | K15: USoA Account Description | L15: Current | N15: Proposed | P15: Outside Range of Min, Max TUL?
A16: Parent* | B16: # | C16: Category| Component | Type | F16: MIN UL | G16: TUL | H16: MAX UL | L16: Years | M16: Rate | N16: Years | O16: Rate | P16: Below Min TUL | Q16: Above Max TUL
A17: OH | B17: 1 | C17: Fully Dressed Wood Poles | D17: Overall | F17: 35 | G17: 45 | H17: 75 | J17: 1830 | K17: Poles, Towers and Fixtures | L17: 45 | M17: =IF(ISERROR(1/L17), "", 1/L17) -> 0.02222222222 | N17: 45 | O17: =IF(ISERROR(1/N17), "", 1/N17) -> 0.02222222222 | P17: =IF(ISBLANK(N17),"",IF(N17<F17,"Yes","No")) -> No | Q17: =IF(ISBLANK(N17),"",IF(N17>H17,"Yes","No")) -> No
D18: Cross Arm | E18: Wood | F18: 20 | G18: 40 | H18: 55 | M18: =IF(ISERROR(1/L18), "", 1/L18) ->  | O18: =IF(ISERROR(1/N18), "", 1/N18) ->  | P18: =IF(ISBLANK(N18),"",IF(N18<F18,"Yes","No")) ->  | Q18: =IF(ISBLANK(N18),"",IF(N18>H18,"Yes","No")) -> 
E19: Steel | F19: 30 | G19: 70 | H19: 95
B20: 2 | C20: Fully Dressed Concrete Poles | D20: Overall | F20: 50 | G20: 60 | H20: 80
D21: Cross Arm | E21: Wood | F21: 20 | G21: 40 | H21: 55
E22: Steel | F22: 30 | G22: 70 | H22: 95
B23: 3 | C23: Fully Dressed Steel Poles | D23: Overall | F23: 60 | G23: 60 | H23: 80
D24: Cross Arm | E24: Wood | F24: 20 | G24: 40 | H24: 55
E25: Steel | F25: 30 | G25: 70 | H25: 95
B26: 4 | C26: OH Line Switch | F26: 30 | G26: 45 | H26: 55 | J26: 1835 | K26: Overhead Conductors and Devices | L26: 45 | M26: 0.02222222222 | N26: 45 | O26: 0.02222222222 | P26: No | Q26: No
B27: 5 | C27: OH Line Switch Motor | F27: 15 | G27: 25 | H27: 25
B28: 6 | C28: OH Line Switch RTU | F28: 15 | G28: 20 | H28: 20
B29: 7 | C29: OH Integral Switches | F29: 35 | G29: 45 | H29: 60 | J29: 1835 | K29: Overhead Conductors and Devices | L29: 45 | M29: 0.02222222222 | N29: 45 | O29: 0.02222222222 | P29: No | Q29: No
B30: 8 | C30: OH Conductors | D30: Primary | F30: 50 | G30: 60 | H30: 75 | J30: 1835 | K30: Overhead Conductors and Devices | L30: 45 | M30: 0.02222222222 | N30: 45 | O30: 0.02222222222 | P30: Yes | Q30: No
D31: Service Wire | F31: N/A | J31: 1855 | K31: Services | L31: 40 | M31: 0.025 | N31: 40 | O31: 0.025 | P31: N/A
B32: 9 | C32: OH Transformers & Voltage Regulators | F32: 30 | G32: 40 | H32: 60 | J32: 1850 | K32: Line Transformers | L32: 40 | M32: 0.025 | N32: 40 | O32: 0.025 | P32: No | Q32: No
B33: 10 | C33: OH Shunt Capacitor Banks | F33: 25 | G33: 30 | H33: 40
B34: 11 | C34: Reclosers | F34: 25 | G34: 40 | H34: 55 | J34: 1835 | K34: Overhead Conductors and Devices | L34: 45 | M34: 0.02222222222 | N34: 45 | O34: 0.02222222222 | P34: No | Q34: No
A35: TS & MS | B35: 12 | C35: Power Transformers | D35: Overall | F35: 30 | G35: 45 | H35: 60 | J35: 1820 | K35: Station Equipment < 50 kV | L35: 50 | M35: 0.02 | N35: 50 | O35: 0.02 | P35: No | Q35: No
D36: Bushing | F36: 10 | G36: 20 | H36: 30
D37: Tap Changer | F37: 20 | G37: 30 | H37: 60
B38: 13 | C38: Station Service Transformer | F38: 30 | G38: 45 | H38: 55
B39: 14 | C39: Station Grounding Transformer | F39: 30 | G39: 40 | H39: 40
B40: 15 | C40: Station DC System | D40: Overall | F40: 10 | G40: 20 | H40: 30
D41: Battery Bank | F41: 10 | G41: 15 | H41: 15
D42: Charger | F42: 20 | G42: 20 | H42: 30
B43: 16 | C43: Station Metal Clad Switchgear | D43: Overall | F43: 30 | G43: 40 | H43: 60 | J43: 1820A | K43: Station Equipment < 50 kV | L43: 40 | M43: 0.025 | N43: 40 | O43: 0.025 | P43: No | Q43: No
D44: Removable Breaker | F44: 25 | G44: 40 | H44: 60
B45: 17 | C45: Station Independent Breakers | F45: 35 | G45: 45 | H45: 65 | J45: 1820A | K45: Station Equipment < 50 kV | L45: 40 | M45: 0.025 | N45: 40 | O45: 0.025 | P45: No | Q45: No
B46: 18 | C46: Station Switch | F46: 30 | G46: 50 | H46: 60 | J46: 1820A | K46: Station Equipment < 50 kV | L46: 40 | M46: 0.025 | N46: 40 | O46: 0.025 | P46: No | Q46: No
B47: 19 | C47: Electromechanical Relays | F47: 25 | G47: 35 | H47: 50
B48: 20 | C48: Solid State Relays | F48: 10 | G48: 30 | H48: 45
B49: 21 | C49: Digital & Numeric Relays | F49: 15 | G49: 20 | H49: 20
B50: 22 | C50: Rigid Busbars | F50: 30 | G50: 55 | H50: 60
B51: 23 | C51: Steel Structure | F51: 35 | G51: 50 | H51: 90
A52: UG | B52: 24 | C52: Primary Paper Insulated Lead Covered (PILC) Cables | F52: 60 | G52: 65 | H52: 75
B53: 25 | C53: Primary Ethylene-Propylene Rubber (EPR) Cables | F53: 20 | G53: 25 | H53: 25
B54: 26 | C54: Primary Non-Tree Retardant (TR) Cross Linked Polyethylene (XLPE) Cables Direct Buried | F54: 20 | G54: 25 | H54: 30 | J54: 1845 | K54: UG Conductor & Devices | L54: 40 | M54: 0.025 | N54: 40 | O54: 0.025 | P54: No | Q54: Yes
B55: 27 | C55: Primary Non-TR XLPE Cables in Duct | F55: 20 | G55: 25 | H55: 30
B56: 30 | C56: Secondary PILC Cables | F56: 70 | G56: 75 | H56: 80
B57: 31 | C57: Secondary Cables Direct Buried | F57: 25 | G57: 35 | H57: 40 | J57: 1855 | K57: Services | L57: 40 | M57: 0.025 | N57: 40 | O57: 0.025 | P57: No | Q57: No
B58: 32 | C58: Secondary Cables in Duct | F58: 35 | G58: 40 | H58: 60
B59: 33 | C59: Network Tranformers | D59: Overall | F59: 20 | G59: 35 | H59: 50
D60: Protector | F60: 20 | G60: 35 | H60: 40
B61: 34 | C61: Pad-Mounted Transformers | F61: 25 | G61: 40 | H61: 45 | J61: 1850 | K61: Line Transformers | L61: 40 | M61: 0.025 | N61: 40 | O61: 0.025 | P61: No | Q61: No
B62: 35 | C62: Submersible/Vault Transformers | F62: 25 | G62: 35 | H62: 45
B63: 36 | C63: UG Foundation | F63: 35 | G63: 55 | H63: 70
B64: 37 | C64: UG Vaults | D64: Overall | F64: 40 | G64: 60 | H64: 80
D65: Roof | F65: 20 | G65: 30 | H65: 45
B66: 38 | C66: UG Vault Switches | F66: 20 | G66: 35 | H66: 50
B67: 39 | C67: Pad-Mounted Switchgear | F67: 20 | G67: 30 | H67: 45
B68: 40 | C68: Ducts | F68: 30 | G68: 50 | H68: 85 | J68: 1840 | K68: UG Conduit and Manholes | L68: 50 | M68: 0.02 | N68: 50 | O68: 0.02 | P68: No | Q68: No
B69: 41 | C69: Concrete Encased Duct Banks | F69: 35 | G69: 55 | H69: 80
B70: 42 | C70: Cable Chambers | F70: 50 | G70: 60 | H70: 80
A71: S | B71: 43 | C71: Remote SCADA | F71: 15 | G71: 20 | H71: 30 | J71: 1980 | K71: System Supervisory Equipment | L71: 20 | M71: 0.05 | N71: 20 | O71: 0.05 | P71: No | Q71: No
A74: Table F-2 from Kinetrics Report1
C76: Asset Details | F76: Useful Life Range | J76: USoA Account Number | K76: USoA Account Description | L76: Current | N76: Proposed | P76: Outside Range of Min, Max TUL?
B77: # | C77: Category| Component | Type | L77: Years | M77: Rate | N77: Years | O77: Rate | P77: Below Min Range | Q77: Above Max Range
B78: 1 | C78: Office Equipment | F78: 5 | G78: 15 | J78: 1915 | K78: Office Furniture & Equipment | L78: 10 | M78: =IF(ISERROR(1/L78), "", 1/L78) -> 0.1 | N78: 10 | O78: =IF(ISERROR(1/N78), "", 1/N78) -> 0.1 | P78: =IF(ISBLANK(N78),"",IF(N78<F78,"Yes","No")) -> No | Q78: =IF(ISBLANK(N78),"",IF(N78>G78,"Yes","No")) -> No
B79: 2 | C79: Vehicles | D79: Trucks & Buckets | F79: 5 | G79: 15 | J79: 1930A | K79: Transportation Equipment | L79: 10 | M79: =IF(ISERROR(1/L79), "", 1/L79) -> 0.1 | N79: 10 | O79: =IF(ISERROR(1/N79), "", 1/N79) -> 0.1 | P79: =IF(ISBLANK(N79),"",IF(N79<F79,"Yes","No")) -> No | Q79: =IF(ISBLANK(N79),"",IF(N79>G79,"Yes","No")) -> No
D80: Trailers | F80: 5 | G80: 20 | J80: 1930A | K80: Transportation Equipment | L80: 10 | M80: 0.1 | N80: 10 | O80: 0.1 | P80: No | Q80: No
D81: Vans | F81: 5 | G81: 10 | J81: 1930 | K81: Transportation Equipment | L81: 5 | M81: 0.2 | N81: 5 | O81: 0.2 | P81: No | Q81: No
B82: 3 | C82: Administrative Buildings | F82: 50 | G82: 75 | J82: 1908 | K82: Buildings & Fixtures | L82: 50 | M82: 0.02 | N82: 50 | O82: 0.02 | P82: No | Q82: No
B83: 4 | C83: Leasehold Improvements | F83: Lease dependent | J83: 1910 | K83: Leasehold Improvements | L83: 5 | M83: 0.2 | N83: 5 | O83: 0.2
B84: 5 | C84: Station Buildings | D84: Station Buildings | F84: 50 | G84: 75 | J84: 1808 | K84: Buildings & Fixtures | L84: 50 | M84: 0.02 | N84: 50 | O84: 0.02 | P84: No | Q84: No
D85: Parking | F85: 25 | G85: 30
D86: Fence | F86: 25 | G86: 60
D87: Roof | F87: 20 | G87: 30
B88: 6 | C88: Computer Equipment | D88: Hardware | F88: 3 | G88: 5 | J88: 1920 | K88: Computer Hardware | L88: 5 | M88: 0.2 | N88: 5 | O88: 0.2 | P88: No | Q88: No
D89: Software - SAP | F89: N/A | J89: 1611A | K89: Computer Software | L89: 10 | M89: =IF(ISERROR(1/L89), "", 1/L89) -> 0.1 | N89: 10 | O89: =IF(ISERROR(1/N89), "", 1/N89) -> 0.1 | P89: N/A
D90: Software - Other | F90: 2 | G90: 5 | J90: 1611 | K90: Computer Software | L90: 5 | M90: 0.2 | N90: 5 | O90: 0.2 | P90: No | Q90: No
B91: 7 | C91: Equipment | D91: Power Operated | F91: 5 | G91: 10 | J91: 1950 | K91: Power Operated Equipment | L91: 10 | M91: 0.1 | N91: 10 | O91: 0.1 | P91: No | Q91: No
D92: Stores | F92: 5 | G92: 10 | J92: 1935 | K92: Stores Equipment | L92: 10 | M92: 0.1 | N92: 10 | O92: 0.1 | P92: No | Q92: No
D93: Tools, Shop, Garage Equipment | F93: 5 | G93: 10 | J93: 1940 | K93: Tools, Shop & Garage Equipment | L93: 10 | M93: 0.1 | N93: 10 | O93: 0.1 | P93: No | Q93: No
D94: Measurement & Testing Equipment | F94: 5 | G94: 10 | J94: 1945 | K94: Measurement & Test Equipment | L94: 10 | M94: 0.1 | N94: 10 | O94: 0.1 | P94: No | Q94: No
B95: 8 | C95: Communication | D95: Towers | F95: 60 | G95: 70
D96: Wireless | F96: 2 | G96: 10 | J96: 1955 | K96: Communication Equipment | L96: 10 | M96: 0.1 | N96: 10 | O96: 0.1 | P96: No | Q96: No
B97: 9 | C97: Residential Energy Meters | F97: 25 | G97: 35 | J97: 1860 | K97: Meters | L97: 30 | M97: 0.03333333333 | N97: 30 | O97: 0.03333333333 | P97: No | Q97: No
B98: 10 | C98: Industrial/Commercial Energy Meters | F98: 25 | G98: 35 | J98: 1860 | K98: Meters | L98: 30 | M98: 0.03333333333 | N98: 30 | O98: 0.03333333333 | P98: No | Q98: No
B99: 11 | C99: Wholesale Energy Meters | F99: 15 | G99: 30 | J99: 1860 | K99: Meters | L99: 30 | M99: 0.03333333333 | N99: 30 | O99: 0.03333333333 | P99: No | Q99: No
B100: 12 | C100: Current & Potential Transformer (CT & PT) | F100: 35 | G100: 50 | J100: 1860B | K100: Meters | L100: 30 | M100: 0.03333333333 | N100: 30 | O100: 0.03333333333 | P100: Yes | Q100: No
B101: 13 | C101: Smart Meters | F101: 5 | G101: 15 | J101: 1860A | K101: Meters | L101: 15 | M101: 0.06666666667 | N101: 15 | O101: 0.06666666667 | P101: No | Q101: No
B102: 14 | C102: Repeaters - Smart Metering | F102: 10 | G102: 15
B103: 15 | C103: Data Collectors - Smart Metering | F103: 15 | G103: 20
A106: * TS & MS = Transformer and Municipal Stations UG = Underground Systems S = Monitoring and Control Systems
A108: Note 1: | B108: Tables F-1 and F-2 above are to be used as a reference in order to complete columns J, K, L and N.
B109: See pages 17-19 of Kinetrics Report

Sheet App.2-CA_OldCGAAP_DepExp_2012
K1: File Number: | L1: =EBNUMBER -> EB-2016-0061
K2: Exhibit:
K3: Tab:
K4: Schedule:
K5: Page:
K7: Date:
A9: Appendix 2-CA
A10: Depreciation and Amortization Expense
B11: Assumes the applicant made capitalization and depreciation expense accounting policy changes under CGAAP effective January 1, 2012 and has adopted IFRS for financial reporting purposes effective January 1, 2015.
C13: Year | D13: 2012 | E13: Former CGAAP
A15: Account | B15: Description | C15: Opening Regulatory Gross PP&E as at Jan 1, 2012 | D15: Less Fully Depreciated | E15: Net for Depreciation | F15: Additions | G15: Total for Depreciation 1 | H15: Years | I15: Depreciation Rate | J15: Depreciation Expense | K15: 2012 Depreciation Expense per Appendix 2-BA Fixed Assets, Column J (l) | L15: Variance 2
C16: (a) | D16: (b) | E16: (c) | F16: (d) | G16: (e) = (c) + ½ x (d) | H16: (f) | I16: (g) = 1 / (f) | J16: (h) = (e) / (f) | L16: (m) = (h) - (l)
A17: 1611 | B17: Computer Software (Formally known as Account 1925) | E17: =C17-D17 -> 0 | G17: =E17+0.5*F17 -> 0 | I17: =IF(H17=0,0,1/H17) -> 0 | J17: =IF(H17=0,0,G17/H17) -> 0 | L17: =IF(ISERROR(+J17-K17), 0, +J17-K17) -> 0
A18: 1612 | B18: Land Rights (Formally known as Account 1906) | E18: =C18-D18 -> 0 | G18: =E18+0.5*F18 -> 0 | I18: 0 | J18: 0 | L18: 0
A19: 1805 | B19: Land | E19: 0 | G19: 0 | I19: 0 | J19: 0 | L19: 0
A20: 1808 | B20: Buildings | E20: 0 | G20: 0 | I20: 0 | J20: 0 | L20: 0
A21: 1810 | B21: Leasehold Improvements | E21: 0 | G21: 0 | I21: 0 | J21: 0 | L21: 0
A22: 1815 | B22: Transformer Station Equipment >50 kV | E22: 0 | G22: 0 | I22: 0 | J22: 0 | L22: 0
A23: 1820 | B23: Distribution Station Equipment <50 kV | E23: 0 | G23: 0 | I23: 0 | J23: 0 | L23: 0
A24: 1825 | B24: Storage Battery Equipment | E24: 0 | G24: 0 | I24: 0 | J24: 0 | L24: 0
A25: 1830 | B25: Poles, Towers & Fixtures | E25: 0 | G25: 0 | I25: 0 | J25: 0 | L25: 0
A26: 1835 | B26: Overhead Conductors & Devices | E26: 0 | G26: 0 | I26: 0 | J26: 0 | L26: 0
A27: 1840 | B27: Underground Conduit | E27: 0 | G27: 0 | I27: 0 | J27: 0 | L27: 0
A28: 1845 | B28: Underground Conductors & Devices | E28: 0 | G28: 0 | I28: 0 | J28: 0 | L28: 0
A29: 1850 | B29: Line Transformers | E29: 0 | G29: 0 | I29: 0 | J29: 0 | L29: 0
A30: 1855 | B30: Services (Overhead & Underground) | E30: 0 | G30: 0 | I30: 0 | J30: 0 | L30: 0
A31: 1860 | B31: Meters | E31: 0 | G31: 0 | I31: 0 | J31: 0 | L31: 0
A32: 1860 | B32: Meters (Smart Meters) | E32: 0 | G32: 0 | I32: 0 | J32: 0 | L32: 0
A33: 1905 | B33: Land | E33: 0 | G33: 0 | I33: 0 | J33: 0 | L33: 0
A34: 1908 | B34: Buildings & Fixtures | E34: 0 | G34: 0 | I34: 0 | J34: 0 | L34: 0
A35: 1910 | B35: Leasehold Improvements | E35: 0 | G35: 0 | I35: 0 | J35: 0 | L35: 0
A36: 1915 | B36: Office Furniture & Equipment (10 years) | E36: 0 | G36: 0 | I36: 0 | J36: 0 | L36: 0
A37: 1915 | B37: Office Furniture & Equipment (5 years) | E37: 0 | G37: 0 | I37: 0 | J37: 0 | L37: 0
A38: 1920 | B38: Computer Equipment - Hardware | E38: 0 | G38: 0 | I38: 0 | J38: 0 | L38: 0
A39: 1920 | B39: Computer Equip.-Hardware(Post Mar. 22/04) | E39: 0 | G39: 0 | I39: 0 | J39: 0 | L39: 0
A40: 1920 | B40: Computer Equip.-Hardware(Post Mar. 19/07) | E40: 0 | G40: 0 | I40: 0 | J40: 0 | L40: 0
A41: 1930 | B41: Transportation Equipment | E41: 0 | G41: 0 | I41: 0 | J41: 0 | L41: 0
A42: 1935 | B42: Stores Equipment | E42: 0 | G42: 0 | I42: 0 | J42: 0 | L42: 0
A43: 1940 | B43: Tools, Shop & Garage Equipment | E43: 0 | G43: 0 | I43: 0 | J43: 0 | L43: 0
A44: 1945 | B44: Measurement & Testing Equipment | E44: 0 | G44: 0 | I44: 0 | J44: 0 | L44: 0
A45: 1950 | B45: Power Operated Equipment | E45: 0 | G45: 0 | I45: 0 | J45: 0 | L45: 0
A46: 1955 | B46: Communications Equipment | E46: 0 | G46: 0 | I46: 0 | J46: 0 | L46: 0
A47: 1955 | B47: Communication Equipment (Smart Meters) | E47: 0 | G47: 0 | I47: 0 | J47: 0 | L47: 0
A48: 1960 | B48: Miscellaneous Equipment | E48: 0 | G48: 0 | I48: 0 | J48: 0 | L48: 0
A49: 1970 | B49: Load Management Controls Customer Premises | E49: 0 | G49: 0 | I49: 0 | J49: 0 | L49: 0
A50: 1975 | B50: Load Management Controls Utility Premises | E50: 0 | G50: 0 | I50: 0 | J50: 0 | L50: 0
A51: 1980 | B51: System Supervisor Equipment | E51: 0 | G51: 0 | I51: 0 | J51: 0 | L51: 0
A52: 1985 | B52: Miscellaneous Fixed Assets | E52: 0 | G52: 0 | I52: 0 | J52: 0 | L52: 0
A53: 1990 | B53: Other Tangible Property | E53: 0 | G53: 0 | I53: 0 | J53: 0 | L53: 0
A54: 1995 | B54: Contributions & Grants | E54: 0 | G54: 0 | I54: 0 | J54: 0 | L54: 0
B55: Total | C55: =SUM(C17:C54) -> 0 | D55: =SUM(D17:D54) -> 0 | E55: =SUM(E17:E54) -> 0 | F55: =SUM(F17:F54) -> 0 | G55: =SUM(G17:G54) -> 0 | J55: =SUM(J17:J54) -> 0 | K55: =SUM(K17:K54) -> 0 | L55: =SUM(L17:L54) -> 0
A57: Notes:
A59: 1 | B59: Board policy of the "half-year" rule - the applicant must ensure that additions in the year attract a half-year depreciation expense in the first year. Deviations from this standard practice must be supported in the application.
A60: 2 | B60: The applicant must provide an explanation of material variances in evidence.
A62: General | B62: Applicants must provide a breakdown of depreciation and amortization expense in the above format for all relevant accounts. Asset Retirement Obligations (AROs), depreciation and accretion expense should be disclosed separately consistent with the Notes of historical Audited Financial Statements.

Sheet App.2-CB_NewCGAAP_DepExp_2012
N1: File Number: | O1: =EBNUMBER -> EB-2016-0061
N2: Exhibit:
N3: Tab:
N4: Schedule:
N5: Page:
N7: Date:
A9: Appendix 2-CB
A10: Depreciation and Amortization Expense
A11: Assumes the applicant made capitalization and depreciation expense accounting policy changes under CGAAP effective January 1, 2012 and has adopted IFRS for financial reporting purposes effective January 1, 2015.
C13: Year | D13: 2012 | E13: Revised CGAAP
A15: Account | B15: Description | C15: Opening NBV as at Jan 1, 2012 5 | D15: Additions | E15: Average Remaining Life of Opening NBV 4 | F15: Years (new additions only) 3 | G15: Depreciation Rate on New Additions | H15: Depreciation Expense on Opening NBV | I15: Depreciation Expense on Additions 1 | J15: 2012 Depreciation Expense | K15: 2012 Depreciation Expense per Appendix 2-BA Fixed Assets, Column J (l) | L15: Variance 2 | M15: Depreciation Expense on 2012 Full Year Additions | N15: Less Depreciation Expense on Assets Fully Depreciated during the year (o) | O15: 2012 Full Year Depreciation 6
C16: (a) | D16: (d) | E16: (i) | F16: (f) | G16: (g) = 1 / (f) | H16: (j) = (a) / (i) | I16: (h)=((d)*0.5)/(f) | J16: (k) = (j) + (h) | L16: (m) = (k) - (l) | M16: (n) = (d)/(f) | O16: (p) = (j) + (n) - (o)
A17: 1611 | B17: Computer Software (Formally known as Account 1925) | G17: =IF(F17=0,0,1/F17) -> 0 | H17: =IF(E17=0,0,+C17/E17) -> 0 | I17: =IF(F17=0,0,+(D17*0.5)/F17) -> 0 | J17: =IF(ISERROR(+H17+I17), 0, +H17+I17) -> 0 | L17: =IF(ISERROR(+J17-K17), 0, +J17-K17) -> 0 | M17: =IF(F17=0,0,+(D17)/F17) -> 0 | O17: =IF(ISERROR(+M17+H17-N17), 0, +M17+H17-N17) -> 0
A18: 1612 | B18: Land Rights (Formally known as Account 1906) | G18: 0 | H18: 0 | I18: 0 | J18: 0 | L18: 0 | M18: 0 | O18: =IF(ISERROR(+M18+H18-N18), 0, +M18+H18-N18) -> 0
A19: 1805 | B19: Land | G19: 0 | H19: 0 | I19: 0 | J19: 0 | L19: 0 | M19: 0 | O19: 0
A20: 1808 | B20: Buildings | G20: 0 | H20: 0 | I20: 0 | J20: 0 | L20: 0 | M20: 0 | O20: 0
A21: 1810 | B21: Leasehold Improvements | G21: 0 | H21: 0 | I21: 0 | J21: 0 | L21: 0 | M21: 0 | O21: 0
A22: 1815 | B22: Transformer Station Equipment >50 kV | G22: 0 | H22: 0 | I22: 0 | J22: 0 | L22: 0 | M22: 0 | O22: 0
A23: 1820 | B23: Distribution Station Equipment <50 kV | G23: 0 | H23: 0 | I23: 0 | J23: 0 | L23: 0 | M23: 0 | O23: 0
A24: 1825 | B24: Storage Battery Equipment | G24: 0 | H24: 0 | I24: 0 | J24: 0 | L24: 0 | M24: 0 | O24: 0
A25: 1830 | B25: Poles, Towers & Fixtures | G25: 0 | H25: 0 | I25: 0 | J25: 0 | L25: 0 | M25: 0 | O25: 0
A26: 1835 | B26: Overhead Conductors & Devices | G26: 0 | H26: 0 | I26: 0 | J26: 0 | L26: 0 | M26: 0 | O26: 0
A27: 1840 | B27: Underground Conduit | G27: 0 | H27: 0 | I27: 0 | J27: 0 | L27: 0 | M27: 0 | O27: 0
A28: 1845 | B28: Underground Conductors & Devices | G28: 0 | H28: 0 | I28: 0 | J28: 0 | L28: 0 | M28: 0 | O28: 0
A29: 1850 | B29: Line Transformers | G29: 0 | H29: 0 | I29: 0 | J29: 0 | L29: 0 | M29: 0 | O29: 0
A30: 1855 | B30: Services (Overhead & Underground) | G30: 0 | H30: 0 | I30: 0 | J30: 0 | L30: 0 | M30: 0 | O30: 0
A31: 1860 | B31: Meters | G31: 0 | H31: 0 | I31: 0 | J31: 0 | L31: 0 | M31: 0 | O31: 0
A32: 1860 | B32: Meters (Smart Meters) | G32: 0 | H32: 0 | I32: 0 | J32: 0 | L32: 0 | M32: 0 | O32: 0
A33: 1905 | B33: Land | G33: 0 | H33: 0 | I33: 0 | J33: 0 | L33: 0 | M33: 0 | O33: 0
A34: 1908 | B34: Buildings & Fixtures | G34: 0 | H34: 0 | I34: 0 | J34: 0 | L34: 0 | M34: 0 | O34: 0
A35: 1910 | B35: Leasehold Improvements | G35: 0 | H35: 0 | I35: 0 | J35: 0 | L35: 0 | M35: 0 | O35: 0
A36: 1915 | B36: Office Furniture & Equipment (10 years) | G36: 0 | H36: 0 | I36: 0 | J36: 0 | L36: 0 | M36: 0 | O36: 0
A37: 1915 | B37: Office Furniture & Equipment (5 years) | G37: 0 | H37: 0 | I37: 0 | J37: 0 | L37: 0 | M37: 0 | O37: 0
A38: 1920 | B38: Computer Equipment - Hardware | G38: 0 | H38: 0 | I38: 0 | J38: 0 | L38: 0 | M38: 0 | O38: 0
A39: 1920 | B39: Computer Equip.-Hardware(Post Mar. 22/04) | G39: 0 | H39: 0 | I39: 0 | J39: 0 | L39: 0 | M39: 0 | O39: 0
A40: 1920 | B40: Computer Equip.-Hardware(Post Mar. 19/07) | G40: 0 | H40: 0 | I40: 0 | J40: 0 | L40: 0 | M40: 0 | O40: 0
A41: 1930 | B41: Transportation Equipment | G41: 0 | H41: 0 | I41: 0 | J41: 0 | L41: 0 | M41: 0 | O41: 0
A42: 1935 | B42: Stores Equipment | G42: 0 | H42: 0 | I42: 0 | J42: 0 | L42: 0 | M42: 0 | O42: 0
A43: 1940 | B43: Tools, Shop & Garage Equipment | G43: 0 | H43: 0 | I43: 0 | J43: 0 | L43: 0 | M43: 0 | O43: 0
A44: 1945 | B44: Measurement & Testing Equipment | G44: 0 | H44: 0 | I44: 0 | J44: 0 | L44: 0 | M44: 0 | O44: 0
A45: 1950 | B45: Power Operated Equipment | G45: 0 | H45: 0 | I45: 0 | J45: 0 | L45: 0 | M45: 0 | O45: 0
A46: 1955 | B46: Communications Equipment | G46: 0 | H46: 0 | I46: 0 | J46: 0 | L46: 0 | M46: 0 | O46: 0
A47: 1955 | B47: Communication Equipment (Smart Meters) | G47: 0 | H47: 0 | I47: 0 | J47: 0 | L47: 0 | M47: 0 | O47: 0
A48: 1960 | B48: Miscellaneous Equipment | G48: 0 | H48: 0 | I48: 0 | J48: 0 | L48: 0 | M48: 0 | O48: 0
A49: 1970 | B49: Load Management Controls Customer Premises | G49: 0 | H49: 0 | I49: 0 | J49: 0 | L49: 0 | M49: 0 | O49: 0
A50: 1975 | B50: Load Management Controls Utility Premises | G50: 0 | H50: 0 | I50: 0 | J50: 0 | L50: 0 | M50: 0 | O50: 0
A51: 1980 | B51: System Supervisor Equipment | G51: 0 | H51: 0 | I51: 0 | J51: 0 | L51: 0 | M51: 0 | O51: 0
A52: 1985 | B52: Miscellaneous Fixed Assets | G52: 0 | H52: 0 | I52: 0 | J52: 0 | L52: 0 | M52: 0 | O52: 0
A53: 1990 | B53: Other Tangible Property | G53: 0 | H53: 0 | I53: 0 | J53: 0 | L53: 0 | M53: 0 | O53: 0
A54: 1995 | B54: Contributions & Grants | G54: 0 | H54: 0 | I54: 0 | J54: 0 | L54: 0 | M54: 0 | O54: 0
B55: Total | C55: =SUM(C17:C54) -> 0 | D55: =SUM(D17:D54) -> 0 | H55: =SUM(H17:H54) -> 0 | I55: 0 | J55: 0 | K55: 0 | L55: 0 | M55: 0 | N55: 0 | O55: 0
A57: Notes:
A59: 1 | B59: Board policy of the "half-year" rule - the applicant must ensure that additions in the year attract a half-year depreciation expense in the first year. Deviations from this standard practice must be supported in the application.
A60: 2 | B60: The applicant must provide an explanation of material variances in evidence.
A61: 3 | B61: The applicant should ensure that the years for new additions of assets are the asset useful lives determined by management in accordance with the Board's regulatory accounting policies. The capitalization and depreciation expense accounting changes should be implemented consistent with the Board’s regulatory accounting policies as set out for modified IFRS as contained in the Report of the Board, Transition to International Financial Reporting Standards, EB-2008-0408, the Kinectrics Report, and the Revised 2012 Accounting Procedures Handbook for Electricity Distributors (“APH”).
A62: 4 | B62: A recalculation should be performed to determine the average remaining life of opening balance of assets (i.e. excluding 2012 additions) under the change in policies under CGAAP. For example, Asset A had a useful life of 20 years under CGAAP without the change in policies. On January 1, 2012, the effective date of the changes in policies, Asset A was 3 years depreciated. As a result, Asset A would have a remaining service life of 17 years (20 years less 3 years) as of January 1, 2012. Due to making the change in policies under CGAAP, management re-assessed the asset useful lives and concluded that the revised useful life of Asset A is now 30 years. Therefore, the average remaining useful life of the opening balance of Asset A is determined to be 27 years (30 years less 3 years) under the revised CGAAP as of January 1, 2012.
A63: 5 | B63: NBV must exclude assets still on the books but which have been fully amortized or depreciated.
A64: 6 | B64: This column refers to the calculated full year depreciation but excludes the depreciation expense on assets fully depreciated during the year. This column is used for the purpose of calculating depreciation expense in the following year on the next worksheet.
A66: General: | B66: Applicants must provide a breakdown of depreciation and amortization expense in the above format for all relevant accounts. Asset Retirement Obligations (AROs), depreciation and accretion expense should be disclosed separately consistent with the Notes of historical Audited Financial Statements.

Sheet App.2-CC_NewCGAAP_DepExp_2013
J1: File Number: | K1: =EBNUMBER -> EB-2016-0061
J2: Exhibit:
J3: Tab:
J4: Schedule:
J5: Page:
J7: Date:
A9: Appendix 2-CC
A10: Depreciation and Amortization Expense
A11: Assumes the applicant made capitalization and depreciation expense accounting policy changes under CGAAP effective January 1, 2012 and has adopted IFRS for financial reporting purposes effective January 1, 2015.
C13: 2013 | D13: Revised CGAAP
A15: Account | B15: Description | C15: Additions | D15: Years (new additions only) | E15: Depreciation Rate on New Additions | F15: 2013 Depreciation Expense 1 | G15: 2013 Depreciation Expense per Apppendix 2-BA Fixed Assets, Column J (l) | H15: Variance 2 | I15: Depreciation Expense on 2013 Full Year Additions | J15: Less Depreciation Expense on Assets Fully Depreciated during the year (o) | K15: 2013 Full Year Depreciation 3
C16: (d) | D16: (f) | E16: (g) = 1 / (f) | F16: (h)=2012 Full Year Deprecation + ((d)*0.5)/(f) | H16: (m) = (h) - (l) | I16: (n)=((d))/(f) | K16: (p) = 2012 Full Year Depreciation + (n) - (o)
A17: 1611 | B17: Computer Software (Formally known as Account 1925) | E17: =IF(D17=0,0,1/D17) -> 0 | F17: =IF(D17=0,+'App.2-CB_NewCGAAP_DepExp_2012'!O17,+'App.2-CB_NewCGAAP_DepExp_2012'!O17+((C17*0.5)/D17)) -> 0 | H17: =IF(ISERROR(+F17-G17), 0, +F17-G17) -> 0 | I17: =IF(D17=0,0,+(C17)/D17) -> 0 | K17: =IF(ISERROR(+I17+'App.2-CB_NewCGAAP_DepExp_2012'!O17-J17), 0, +I17+'App.2-CB_NewCGAAP_DepExp_2012'!O17-J17) -> 0
A18: 1612 | B18: Land Rights (Formally known as Account 1906) | E18: 0 | F18: =IF(D18=0,+'App.2-CB_NewCGAAP_DepExp_2012'!O18,+'App.2-CB_NewCGAAP_DepExp_2012'!O18+((C18*0.5)/D18)) -> 0 | H18: 0 | I18: 0 | K18: =IF(ISERROR(+I18+'App.2-CB_NewCGAAP_DepExp_2012'!O18-J18), 0, +I18+'App.2-CB_NewCGAAP_DepExp_2012'!O18-J18) -> 0
A19: 1805 | B19: Land | E19: 0 | F19: =IF(D19=0,+'App.2-CB_NewCGAAP_DepExp_2012'!O19,+'App.2-CB_NewCGAAP_DepExp_2012'!O19+((C19*0.5)/D19)) -> 0 | H19: 0 | I19: 0 | K19: =IF(ISERROR(+I19+'App.2-CB_NewCGAAP_DepExp_2012'!O19-J19), 0, +I19+'App.2-CB_NewCGAAP_DepExp_2012'!O19-J19) -> 0
A20: 1808 | B20: Buildings | E20: 0 | F20: =IF(D20=0,+'App.2-CB_NewCGAAP_DepExp_2012'!O20,+'App.2-CB_NewCGAAP_DepExp_2012'!O20+((C20*0.5)/D20)) -> 0 | H20: 0 | I20: 0 | K20: =IF(ISERROR(+I20+'App.2-CB_NewCGAAP_DepExp_2012'!O20-J20), 0, +I20+'App.2-CB_NewCGAAP_DepExp_2012'!O20-J20) -> 0
A21: 1810 | B21: Leasehold Improvements | E21: 0 | F21: =IF(D21=0,+'App.2-CB_NewCGAAP_DepExp_2012'!O21,+'App.2-CB_NewCGAAP_DepExp_2012'!O21+((C21*0.5)/D21)) -> 0 | H21: 0 | I21: 0 | K21: =IF(ISERROR(+I21+'App.2-CB_NewCGAAP_DepExp_2012'!O21-J21), 0, +I21+'App.2-CB_NewCGAAP_DepExp_2012'!O21-J21) -> 0
A22: 1815 | B22: Transformer Station Equipment >50 kV | E22: 0 | F22: =IF(D22=0,+'App.2-CB_NewCGAAP_DepExp_2012'!O22,+'App.2-CB_NewCGAAP_DepExp_2012'!O22+((C22*0.5)/D22)) -> 0 | H22: 0 | I22: 0 | K22: =IF(ISERROR(+I22+'App.2-CB_NewCGAAP_DepExp_2012'!O22-J22), 0, +I22+'App.2-CB_NewCGAAP_DepExp_2012'!O22-J22) -> 0
A23: 1820 | B23: Distribution Station Equipment <50 kV | E23: 0 | F23: =IF(D23=0,+'App.2-CB_NewCGAAP_DepExp_2012'!O23,+'App.2-CB_NewCGAAP_DepExp_2012'!O23+((C23*0.5)/D23)) -> 0 | H23: 0 | I23: 0 | K23: =IF(ISERROR(+I23+'App.2-CB_NewCGAAP_DepExp_2012'!O23-J23), 0, +I23+'App.2-CB_NewCGAAP_DepExp_2012'!O23-J23) -> 0
A24: 1825 | B24: Storage Battery Equipment | E24: 0 | F24: =IF(D24=0,+'App.2-CB_NewCGAAP_DepExp_2012'!O24,+'App.2-CB_NewCGAAP_DepExp_2012'!O24+((C24*0.5)/D24)) -> 0 | H24: 0 | I24: 0 | K24: =IF(ISERROR(+I24+'App.2-CB_NewCGAAP_DepExp_2012'!O24-J24), 0, +I24+'App.2-CB_NewCGAAP_DepExp_2012'!O24-J24) -> 0
A25: 1830 | B25: Poles, Towers & Fixtures | E25: 0 | F25: =IF(D25=0,+'App.2-CB_NewCGAAP_DepExp_2012'!O25,+'App.2-CB_NewCGAAP_DepExp_2012'!O25+((C25*0.5)/D25)) -> 0 | H25: 0 | I25: 0 | K25: =IF(ISERROR(+I25+'App.2-CB_NewCGAAP_DepExp_2012'!O25-J25), 0, +I25+'App.2-CB_NewCGAAP_DepExp_2012'!O25-J25) -> 0
A26: 1835 | B26: Overhead Conductors & Devices | E26: 0 | F26: =IF(D26=0,+'App.2-CB_NewCGAAP_DepExp_2012'!O26,+'App.2-CB_NewCGAAP_DepExp_2012'!O26+((C26*0.5)/D26)) -> 0 | H26: 0 | I26: 0 | K26: =IF(ISERROR(+I26+'App.2-CB_NewCGAAP_DepExp_2012'!O26-J26), 0, +I26+'App.2-CB_NewCGAAP_DepExp_2012'!O26-J26) -> 0
A27: 1840 | B27: Underground Conduit | E27: 0 | F27: =IF(D27=0,+'App.2-CB_NewCGAAP_DepExp_2012'!O27,+'App.2-CB_NewCGAAP_DepExp_2012'!O27+((C27*0.5)/D27)) -> 0 | H27: 0 | I27: 0 | K27: =IF(ISERROR(+I27+'App.2-CB_NewCGAAP_DepExp_2012'!O27-J27), 0, +I27+'App.2-CB_NewCGAAP_DepExp_2012'!O27-J27) -> 0
A28: 1845 | B28: Underground Conductors & Devices | E28: 0 | F28: =IF(D28=0,+'App.2-CB_NewCGAAP_DepExp_2012'!O28,+'App.2-CB_NewCGAAP_DepExp_2012'!O28+((C28*0.5)/D28)) -> 0 | H28: 0 | I28: 0 | K28: =IF(ISERROR(+I28+'App.2-CB_NewCGAAP_DepExp_2012'!O28-J28), 0, +I28+'App.2-CB_NewCGAAP_DepExp_2012'!O28-J28) -> 0
A29: 1850 | B29: Line Transformers | E29: 0 | F29: =IF(D29=0,+'App.2-CB_NewCGAAP_DepExp_2012'!O29,+'App.2-CB_NewCGAAP_DepExp_2012'!O29+((C29*0.5)/D29)) -> 0 | H29: 0 | I29: 0 | K29: =IF(ISERROR(+I29+'App.2-CB_NewCGAAP_DepExp_2012'!O29-J29), 0, +I29+'App.2-CB_NewCGAAP_DepExp_2012'!O29-J29) -> 0
A30: 1855 | B30: Services (Overhead & Underground) | E30: 0 | F30: =IF(D30=0,+'App.2-CB_NewCGAAP_DepExp_2012'!O30,+'App.2-CB_NewCGAAP_DepExp_2012'!O30+((C30*0.5)/D30)) -> 0 | H30: 0 | I30: 0 | K30: =IF(ISERROR(+I30+'App.2-CB_NewCGAAP_DepExp_2012'!O30-J30), 0, +I30+'App.2-CB_NewCGAAP_DepExp_2012'!O30-J30) -> 0
A31: 1860 | B31: Meters | E31: 0 | F31: =IF(D31=0,+'App.2-CB_NewCGAAP_DepExp_2012'!O31,+'App.2-CB_NewCGAAP_DepExp_2012'!O31+((C31*0.5)/D31)) -> 0 | H31: 0 | I31: 0 | K31: =IF(ISERROR(+I31+'App.2-CB_NewCGAAP_DepExp_2012'!O31-J31), 0, +I31+'App.2-CB_NewCGAAP_DepExp_2012'!O31-J31) -> 0
A32: 1860 | B32: Meters (Smart Meters) | E32: 0 | F32: =IF(D32=0,+'App.2-CB_NewCGAAP_DepExp_2012'!O32,+'App.2-CB_NewCGAAP_DepExp_2012'!O32+((C32*0.5)/D32)) -> 0 | H32: 0 | I32: 0 | K32: =IF(ISERROR(+I32+'App.2-CB_NewCGAAP_DepExp_2012'!O32-J32), 0, +I32+'App.2-CB_NewCGAAP_DepExp_2012'!O32-J32) -> 0
A33: 1905 | B33: Land | E33: 0 | F33: =IF(D33=0,+'App.2-CB_NewCGAAP_DepExp_2012'!O33,+'App.2-CB_NewCGAAP_DepExp_2012'!O33+((C33*0.5)/D33)) -> 0 | H33: 0 | I33: 0 | K33: =IF(ISERROR(+I33+'App.2-CB_NewCGAAP_DepExp_2012'!O33-J33), 0, +I33+'App.2-CB_NewCGAAP_DepExp_2012'!O33-J33) -> 0
A34: 1908 | B34: Buildings & Fixtures | E34: 0 | F34: =IF(D34=0,+'App.2-CB_NewCGAAP_DepExp_2012'!O34,+'App.2-CB_NewCGAAP_DepExp_2012'!O34+((C34*0.5)/D34)) -> 0 | H34: 0 | I34: 0 | K34: =IF(ISERROR(+I34+'App.2-CB_NewCGAAP_DepExp_2012'!O34-J34), 0, +I34+'App.2-CB_NewCGAAP_DepExp_2012'!O34-J34) -> 0
A35: 1910 | B35: Leasehold Improvements | E35: 0 | F35: =IF(D35=0,+'App.2-CB_NewCGAAP_DepExp_2012'!O35,+'App.2-CB_NewCGAAP_DepExp_2012'!O35+((C35*0.5)/D35)) -> 0 | H35: 0 | I35: 0 | K35: =IF(ISERROR(+I35+'App.2-CB_NewCGAAP_DepExp_2012'!O35-J35), 0, +I35+'App.2-CB_NewCGAAP_DepExp_2012'!O35-J35) -> 0
A36: 1915 | B36: Office Furniture & Equipment (10 years) | E36: 0 | F36: =IF(D36=0,+'App.2-CB_NewCGAAP_DepExp_2012'!O36,+'App.2-CB_NewCGAAP_DepExp_2012'!O36+((C36*0.5)/D36)) -> 0 | H36: 0 | I36: 0 | K36: =IF(ISERROR(+I36+'App.2-CB_NewCGAAP_DepExp_2012'!O36-J36), 0, +I36+'App.2-CB_NewCGAAP_DepExp_2012'!O36-J36) -> 0
A37: 1915 | B37: Office Furniture & Equipment (5 years) | E37: 0 | F37: =IF(D37=0,+'App.2-CB_NewCGAAP_DepExp_2012'!O37,+'App.2-CB_NewCGAAP_DepExp_2012'!O37+((C37*0.5)/D37)) -> 0 | H37: 0 | I37: 0 | K37: =IF(ISERROR(+I37+'App.2-CB_NewCGAAP_DepExp_2012'!O37-J37), 0, +I37+'App.2-CB_NewCGAAP_DepExp_2012'!O37-J37) -> 0
A38: 1920 | B38: Computer Equipment - Hardware | E38: 0 | F38: =IF(D38=0,+'App.2-CB_NewCGAAP_DepExp_2012'!O38,+'App.2-CB_NewCGAAP_DepExp_2012'!O38+((C38*0.5)/D38)) -> 0 | H38: 0 | I38: 0 | K38: =IF(ISERROR(+I38+'App.2-CB_NewCGAAP_DepExp_2012'!O38-J38), 0, +I38+'App.2-CB_NewCGAAP_DepExp_2012'!O38-J38) -> 0
A39: 1920 | B39: Computer Equip.-Hardware(Post Mar. 22/04) | E39: 0 | F39: =IF(D39=0,+'App.2-CB_NewCGAAP_DepExp_2012'!O39,+'App.2-CB_NewCGAAP_DepExp_2012'!O39+((C39*0.5)/D39)) -> 0 | H39: 0 | I39: 0 | K39: =IF(ISERROR(+I39+'App.2-CB_NewCGAAP_DepExp_2012'!O39-J39), 0, +I39+'App.2-CB_NewCGAAP_DepExp_2012'!O39-J39) -> 0
A40: 1920 | B40: Computer Equip.-Hardware(Post Mar. 19/07) | E40: 0 | F40: =IF(D40=0,+'App.2-CB_NewCGAAP_DepExp_2012'!O40,+'App.2-CB_NewCGAAP_DepExp_2012'!O40+((C40*0.5)/D40)) -> 0 | H40: 0 | I40: 0 | K40: =IF(ISERROR(+I40+'App.2-CB_NewCGAAP_DepExp_2012'!O40-J40), 0, +I40+'App.2-CB_NewCGAAP_DepExp_2012'!O40-J40) -> 0
A41: 1930 | B41: Transportation Equipment | E41: 0 | F41: =IF(D41=0,+'App.2-CB_NewCGAAP_DepExp_2012'!O41,+'App.2-CB_NewCGAAP_DepExp_2012'!O41+((C41*0.5)/D41)) -> 0 | H41: 0 | I41: 0 | K41: =IF(ISERROR(+I41+'App.2-CB_NewCGAAP_DepExp_2012'!O41-J41), 0, +I41+'App.2-CB_NewCGAAP_DepExp_2012'!O41-J41) -> 0
A42: 1935 | B42: Stores Equipment | E42: 0 | F42: =IF(D42=0,+'App.2-CB_NewCGAAP_DepExp_2012'!O42,+'App.2-CB_NewCGAAP_DepExp_2012'!O42+((C42*0.5)/D42)) -> 0 | H42: 0 | I42: 0 | K42: =IF(ISERROR(+I42+'App.2-CB_NewCGAAP_DepExp_2012'!O42-J42), 0, +I42+'App.2-CB_NewCGAAP_DepExp_2012'!O42-J42) -> 0
A43: 1940 | B43: Tools, Shop & Garage Equipment | E43: 0 | F43: =IF(D43=0,+'App.2-CB_NewCGAAP_DepExp_2012'!O43,+'App.2-CB_NewCGAAP_DepExp_2012'!O43+((C43*0.5)/D43)) -> 0 | H43: 0 | I43: 0 | K43: =IF(ISERROR(+I43+'App.2-CB_NewCGAAP_DepExp_2012'!O43-J43), 0, +I43+'App.2-CB_NewCGAAP_DepExp_2012'!O43-J43) -> 0
A44: 1945 | B44: Measurement & Testing Equipment | E44: 0 | F44: =IF(D44=0,+'App.2-CB_NewCGAAP_DepExp_2012'!O44,+'App.2-CB_NewCGAAP_DepExp_2012'!O44+((C44*0.5)/D44)) -> 0 | H44: 0 | I44: 0 | K44: =IF(ISERROR(+I44+'App.2-CB_NewCGAAP_DepExp_2012'!O44-J44), 0, +I44+'App.2-CB_NewCGAAP_DepExp_2012'!O44-J44) -> 0
A45: 1950 | B45: Power Operated Equipment | E45: 0 | F45: =IF(D45=0,+'App.2-CB_NewCGAAP_DepExp_2012'!O45,+'App.2-CB_NewCGAAP_DepExp_2012'!O45+((C45*0.5)/D45)) -> 0 | H45: 0 | I45: 0 | K45: =IF(ISERROR(+I45+'App.2-CB_NewCGAAP_DepExp_2012'!O45-J45), 0, +I45+'App.2-CB_NewCGAAP_DepExp_2012'!O45-J45) -> 0
A46: 1955 | B46: Communications Equipment | E46: 0 | F46: =IF(D46=0,+'App.2-CB_NewCGAAP_DepExp_2012'!O46,+'App.2-CB_NewCGAAP_DepExp_2012'!O46+((C46*0.5)/D46)) -> 0 | H46: 0 | I46: 0 | K46: =IF(ISERROR(+I46+'App.2-CB_NewCGAAP_DepExp_2012'!O46-J46), 0, +I46+'App.2-CB_NewCGAAP_DepExp_2012'!O46-J46) -> 0
A47: 1955 | B47: Communication Equipment (Smart Meters) | E47: 0 | F47: =IF(D47=0,+'App.2-CB_NewCGAAP_DepExp_2012'!O47,+'App.2-CB_NewCGAAP_DepExp_2012'!O47+((C47*0.5)/D47)) -> 0 | H47: 0 | I47: 0 | K47: =IF(ISERROR(+I47+'App.2-CB_NewCGAAP_DepExp_2012'!O47-J47), 0, +I47+'App.2-CB_NewCGAAP_DepExp_2012'!O47-J47) -> 0
A48: 1960 | B48: Miscellaneous Equipment | E48: 0 | F48: =IF(D48=0,+'App.2-CB_NewCGAAP_DepExp_2012'!O48,+'App.2-CB_NewCGAAP_DepExp_2012'!O48+((C48*0.5)/D48)) -> 0 | H48: 0 | I48: 0 | K48: =IF(ISERROR(+I48+'App.2-CB_NewCGAAP_DepExp_2012'!O48-J48), 0, +I48+'App.2-CB_NewCGAAP_DepExp_2012'!O48-J48) -> 0
A49: 1970 | B49: Load Management Controls Customer Premises | E49: 0 | F49: =IF(D49=0,+'App.2-CB_NewCGAAP_DepExp_2012'!O49,+'App.2-CB_NewCGAAP_DepExp_2012'!O49+((C49*0.5)/D49)) -> 0 | H49: 0 | I49: 0 | K49: =IF(ISERROR(+I49+'App.2-CB_NewCGAAP_DepExp_2012'!O49-J49), 0, +I49+'App.2-CB_NewCGAAP_DepExp_2012'!O49-J49) -> 0
A50: 1975 | B50: Load Management Controls Utility Premises | E50: 0 | F50: =IF(D50=0,+'App.2-CB_NewCGAAP_DepExp_2012'!O50,+'App.2-CB_NewCGAAP_DepExp_2012'!O50+((C50*0.5)/D50)) -> 0 | H50: 0 | I50: 0 | K50: =IF(ISERROR(+I50+'App.2-CB_NewCGAAP_DepExp_2012'!O50-J50), 0, +I50+'App.2-CB_NewCGAAP_DepExp_2012'!O50-J50) -> 0
A51: 1980 | B51: System Supervisor Equipment | E51: 0 | F51: =IF(D51=0,+'App.2-CB_NewCGAAP_DepExp_2012'!O51,+'App.2-CB_NewCGAAP_DepExp_2012'!O51+((C51*0.5)/D51)) -> 0 | H51: 0 | I51: 0 | K51: =IF(ISERROR(+I51+'App.2-CB_NewCGAAP_DepExp_2012'!O51-J51), 0, +I51+'App.2-CB_NewCGAAP_DepExp_2012'!O51-J51) -> 0
A52: 1985 | B52: Miscellaneous Fixed Assets | E52: 0 | F52: =IF(D52=0,+'App.2-CB_NewCGAAP_DepExp_2012'!O52,+'App.2-CB_NewCGAAP_DepExp_2012'!O52+((C52*0.5)/D52)) -> 0 | H52: 0 | I52: 0 | K52: =IF(ISERROR(+I52+'App.2-CB_NewCGAAP_DepExp_2012'!O52-J52), 0, +I52+'App.2-CB_NewCGAAP_DepExp_2012'!O52-J52) -> 0
A53: 1990 | B53: Other Tangible Property | E53: 0 | F53: =IF(D53=0,+'App.2-CB_NewCGAAP_DepExp_2012'!O53,+'App.2-CB_NewCGAAP_DepExp_2012'!O53+((C53*0.5)/D53)) -> 0 | H53: 0 | I53: 0 | K53: =IF(ISERROR(+I53+'App.2-CB_NewCGAAP_DepExp_2012'!O53-J53), 0, +I53+'App.2-CB_NewCGAAP_DepExp_2012'!O53-J53) -> 0
A54: 1995 | B54: Contributions & Grants | E54: 0 | F54: =IF(D54=0,+'App.2-CB_NewCGAAP_DepExp_2012'!O54,+'App.2-CB_NewCGAAP_DepExp_2012'!O54+((C54*0.5)/D54)) -> 0 | H54: 0 | I54: 0 | K54: =IF(ISERROR(+I54+'App.2-CB_NewCGAAP_DepExp_2012'!O54-J54), 0, +I54+'App.2-CB_NewCGAAP_DepExp_2012'!O54-J54) -> 0
B55: Total | C55: =SUM(C17:C54) -> 0 | F55: =SUM(F17:F54) -> 0 | G55: 0 | H55: 0 | I55: 0 | J55: 0 | K55: 0
A57: Notes:
A58: 1 | B58: Board policy of the "half-year" rule - the applicant must ensure that additions in the year attract a half-year depreciation expense in the first year. Deviations from this standard practice must be supported in the application.
A59: 2 | B59: The applicant must provide an explanation of material variances in evidence.
A60: 3 | B60: This column refers to the calculated full year depreciation but excludes the depreciation expense on assets fully depreciated during the year. This column is used for the purpose of calculating depreciation expense in the following year on the next worksheet.
A62: General: | B62: Applicants must provide a breakdown of depreciation and amortization expense in the above format for all relevant accounts. Asset Retirement Obligations (AROs), depreciation and accretion expense should be disclosed separately consistent with the Notes of historical Audited Financial Statements.

Sheet App.2-CD_MIFRS_DepExp_2014
J1: File Number: | K1: =EBNUMBER -> EB-2016-0061
J2: Exhibit:
J3: Tab:
J4: Schedule:
J5: Page:
J7: Date:
A9: Appendix 2-CD
A10: Depreciation and Amortization Expense
A11: Assumes the applicant made capitalization and depreciation expense accounting policy changes under CGAAP effective January 1, 2012 and has adopted IFRS for financial reporting purposes effective January 1, 2015.
E13: 2014 | F13: MIFRS
A15: Account | B15: Description | C15: Additions | D15: Years (new additions only) | E15: Depreciation Rate on New Additions | F15: 2014 Depreciation Expense 1 | G15: 2014 Depreciation Expense per Apppendix 2-BA Fixed Assets, Column J (l) | H15: Variance 2 | I15: Depreciation Expense on 2014 Full Year Additions | J15: Less Depreciation Expense on Assets Fully Depreciated during the year (o) | K15: 2014 Full Year Depreciation 3
C16: (d) | D16: (f) | E16: (g) = 1 / (f) | F16: (h)=2013 Full Year Deprecation + ((d)*0.5)/(f) | H16: (m) = (h) - (l) | I16: (n)=((d))/(f) | K16: (p) = 2013 Full Year Depreciation + (n) - (o)
A17: 1611 | B17: Computer Software (Formally known as Account 1925) | E17: =IF(D17=0,0,1/D17) -> 0 | F17: =IF(D17=0,+'App.2-CC_NewCGAAP_DepExp_2013'!K17,+'App.2-CC_NewCGAAP_DepExp_2013'!K17+((C17*0.5)/D17)) -> 0 | H17: =IF(ISERROR(+F17-G17), 0, +F17-G17) -> 0 | I17: =IF(D17=0,0,+(C17)/D17) -> 0 | K17: =IF(ISERROR(+I17+'App.2-CC_NewCGAAP_DepExp_2013'!K17-J17), 0, +I17+'App.2-CC_NewCGAAP_DepExp_2013'!K17-J17) -> 0
A18: 1612 | B18: Land Rights (Formally known as Account 1906) | E18: 0 | F18: =IF(D18=0,+'App.2-CC_NewCGAAP_DepExp_2013'!K18,+'App.2-CC_NewCGAAP_DepExp_2013'!K18+((C18*0.5)/D18)) -> 0 | H18: 0 | I18: =IF(D18=0,0,+(C18)/D18) -> 0 | K18: =IF(ISERROR(+I18+'App.2-CC_NewCGAAP_DepExp_2013'!K18-J18), 0, +I18+'App.2-CC_NewCGAAP_DepExp_2013'!K18-J18) -> 0
A19: 1805 | B19: Land | E19: 0 | F19: =IF(D19=0,+'App.2-CC_NewCGAAP_DepExp_2013'!K19,+'App.2-CC_NewCGAAP_DepExp_2013'!K19+((C19*0.5)/D19)) -> 0 | H19: 0 | I19: 0 | K19: =IF(ISERROR(+I19+'App.2-CC_NewCGAAP_DepExp_2013'!K19-J19), 0, +I19+'App.2-CC_NewCGAAP_DepExp_2013'!K19-J19) -> 0
A20: 1808 | B20: Buildings | E20: 0 | F20: =IF(D20=0,+'App.2-CC_NewCGAAP_DepExp_2013'!K20,+'App.2-CC_NewCGAAP_DepExp_2013'!K20+((C20*0.5)/D20)) -> 0 | H20: 0 | I20: 0 | K20: =IF(ISERROR(+I20+'App.2-CC_NewCGAAP_DepExp_2013'!K20-J20), 0, +I20+'App.2-CC_NewCGAAP_DepExp_2013'!K20-J20) -> 0
A21: 1810 | B21: Leasehold Improvements | E21: 0 | F21: =IF(D21=0,+'App.2-CC_NewCGAAP_DepExp_2013'!K21,+'App.2-CC_NewCGAAP_DepExp_2013'!K21+((C21*0.5)/D21)) -> 0 | H21: 0 | I21: 0 | K21: =IF(ISERROR(+I21+'App.2-CC_NewCGAAP_DepExp_2013'!K21-J21), 0, +I21+'App.2-CC_NewCGAAP_DepExp_2013'!K21-J21) -> 0
A22: 1815 | B22: Transformer Station Equipment >50 kV | E22: 0 | F22: =IF(D22=0,+'App.2-CC_NewCGAAP_DepExp_2013'!K22,+'App.2-CC_NewCGAAP_DepExp_2013'!K22+((C22*0.5)/D22)) -> 0 | H22: 0 | I22: 0 | K22: =IF(ISERROR(+I22+'App.2-CC_NewCGAAP_DepExp_2013'!K22-J22), 0, +I22+'App.2-CC_NewCGAAP_DepExp_2013'!K22-J22) -> 0
A23: 1820 | B23: Distribution Station Equipment <50 kV | E23: 0 | F23: =IF(D23=0,+'App.2-CC_NewCGAAP_DepExp_2013'!K23,+'App.2-CC_NewCGAAP_DepExp_2013'!K23+((C23*0.5)/D23)) -> 0 | H23: 0 | I23: 0 | K23: =IF(ISERROR(+I23+'App.2-CC_NewCGAAP_DepExp_2013'!K23-J23), 0, +I23+'App.2-CC_NewCGAAP_DepExp_2013'!K23-J23) -> 0
A24: 1825 | B24: Storage Battery Equipment | E24: 0 | F24: =IF(D24=0,+'App.2-CC_NewCGAAP_DepExp_2013'!K24,+'App.2-CC_NewCGAAP_DepExp_2013'!K24+((C24*0.5)/D24)) -> 0 | H24: 0 | I24: 0 | K24: =IF(ISERROR(+I24+'App.2-CC_NewCGAAP_DepExp_2013'!K24-J24), 0, +I24+'App.2-CC_NewCGAAP_DepExp_2013'!K24-J24) -> 0
A25: 1830 | B25: Poles, Towers & Fixtures | E25: 0 | F25: =IF(D25=0,+'App.2-CC_NewCGAAP_DepExp_2013'!K25,+'App.2-CC_NewCGAAP_DepExp_2013'!K25+((C25*0.5)/D25)) -> 0 | H25: 0 | I25: 0 | K25: =IF(ISERROR(+I25+'App.2-CC_NewCGAAP_DepExp_2013'!K25-J25), 0, +I25+'App.2-CC_NewCGAAP_DepExp_2013'!K25-J25) -> 0
A26: 1835 | B26: Overhead Conductors & Devices | E26: 0 | F26: =IF(D26=0,+'App.2-CC_NewCGAAP_DepExp_2013'!K26,+'App.2-CC_NewCGAAP_DepExp_2013'!K26+((C26*0.5)/D26)) -> 0 | H26: 0 | I26: 0 | K26: =IF(ISERROR(+I26+'App.2-CC_NewCGAAP_DepExp_2013'!K26-J26), 0, +I26+'App.2-CC_NewCGAAP_DepExp_2013'!K26-J26) -> 0
A27: 1840 | B27: Underground Conduit | E27: 0 | F27: =IF(D27=0,+'App.2-CC_NewCGAAP_DepExp_2013'!K27,+'App.2-CC_NewCGAAP_DepExp_2013'!K27+((C27*0.5)/D27)) -> 0 | H27: 0 | I27: 0 | K27: =IF(ISERROR(+I27+'App.2-CC_NewCGAAP_DepExp_2013'!K27-J27), 0, +I27+'App.2-CC_NewCGAAP_DepExp_2013'!K27-J27) -> 0
A28: 1845 | B28: Underground Conductors & Devices | E28: 0 | F28: =IF(D28=0,+'App.2-CC_NewCGAAP_DepExp_2013'!K28,+'App.2-CC_NewCGAAP_DepExp_2013'!K28+((C28*0.5)/D28)) -> 0 | H28: 0 | I28: 0 | K28: =IF(ISERROR(+I28+'App.2-CC_NewCGAAP_DepExp_2013'!K28-J28), 0, +I28+'App.2-CC_NewCGAAP_DepExp_2013'!K28-J28) -> 0
A29: 1850 | B29: Line Transformers | E29: 0 | F29: =IF(D29=0,+'App.2-CC_NewCGAAP_DepExp_2013'!K29,+'App.2-CC_NewCGAAP_DepExp_2013'!K29+((C29*0.5)/D29)) -> 0 | H29: 0 | I29: 0 | K29: =IF(ISERROR(+I29+'App.2-CC_NewCGAAP_DepExp_2013'!K29-J29), 0, +I29+'App.2-CC_NewCGAAP_DepExp_2013'!K29-J29) -> 0
A30: 1855 | B30: Services (Overhead & Underground) | E30: 0 | F30: =IF(D30=0,+'App.2-CC_NewCGAAP_DepExp_2013'!K30,+'App.2-CC_NewCGAAP_DepExp_2013'!K30+((C30*0.5)/D30)) -> 0 | H30: 0 | I30: 0 | K30: =IF(ISERROR(+I30+'App.2-CC_NewCGAAP_DepExp_2013'!K30-J30), 0, +I30+'App.2-CC_NewCGAAP_DepExp_2013'!K30-J30) -> 0
A31: 1860 | B31: Meters | E31: 0 | F31: =IF(D31=0,+'App.2-CC_NewCGAAP_DepExp_2013'!K31,+'App.2-CC_NewCGAAP_DepExp_2013'!K31+((C31*0.5)/D31)) -> 0 | H31: 0 | I31: 0 | K31: =IF(ISERROR(+I31+'App.2-CC_NewCGAAP_DepExp_2013'!K31-J31), 0, +I31+'App.2-CC_NewCGAAP_DepExp_2013'!K31-J31) -> 0
A32: 1860 | B32: Meters (Smart Meters) | E32: 0 | F32: =IF(D32=0,+'App.2-CC_NewCGAAP_DepExp_2013'!K32,+'App.2-CC_NewCGAAP_DepExp_2013'!K32+((C32*0.5)/D32)) -> 0 | H32: 0 | I32: 0 | K32: =IF(ISERROR(+I32+'App.2-CC_NewCGAAP_DepExp_2013'!K32-J32), 0, +I32+'App.2-CC_NewCGAAP_DepExp_2013'!K32-J32) -> 0
A33: 1905 | B33: Land | E33: 0 | F33: =IF(D33=0,+'App.2-CC_NewCGAAP_DepExp_2013'!K33,+'App.2-CC_NewCGAAP_DepExp_2013'!K33+((C33*0.5)/D33)) -> 0 | H33: 0 | I33: 0 | K33: =IF(ISERROR(+I33+'App.2-CC_NewCGAAP_DepExp_2013'!K33-J33), 0, +I33+'App.2-CC_NewCGAAP_DepExp_2013'!K33-J33) -> 0
A34: 1908 | B34: Buildings & Fixtures | E34: 0 | F34: =IF(D34=0,+'App.2-CC_NewCGAAP_DepExp_2013'!K34,+'App.2-CC_NewCGAAP_DepExp_2013'!K34+((C34*0.5)/D34)) -> 0 | H34: 0 | I34: 0 | K34: =IF(ISERROR(+I34+'App.2-CC_NewCGAAP_DepExp_2013'!K34-J34), 0, +I34+'App.2-CC_NewCGAAP_DepExp_2013'!K34-J34) -> 0
A35: 1910 | B35: Leasehold Improvements | E35: 0 | F35: =IF(D35=0,+'App.2-CC_NewCGAAP_DepExp_2013'!K35,+'App.2-CC_NewCGAAP_DepExp_2013'!K35+((C35*0.5)/D35)) -> 0 | H35: 0 | I35: 0 | K35: =IF(ISERROR(+I35+'App.2-CC_NewCGAAP_DepExp_2013'!K35-J35), 0, +I35+'App.2-CC_NewCGAAP_DepExp_2013'!K35-J35) -> 0
A36: 1915 | B36: Office Furniture & Equipment (10 years) | E36: 0 | F36: =IF(D36=0,+'App.2-CC_NewCGAAP_DepExp_2013'!K36,+'App.2-CC_NewCGAAP_DepExp_2013'!K36+((C36*0.5)/D36)) -> 0 | H36: 0 | I36: 0 | K36: =IF(ISERROR(+I36+'App.2-CC_NewCGAAP_DepExp_2013'!K36-J36), 0, +I36+'App.2-CC_NewCGAAP_DepExp_2013'!K36-J36) -> 0
A37: 1915 | B37: Office Furniture & Equipment (5 years) | E37: 0 | F37: =IF(D37=0,+'App.2-CC_NewCGAAP_DepExp_2013'!K37,+'App.2-CC_NewCGAAP_DepExp_2013'!K37+((C37*0.5)/D37)) -> 0 | H37: 0 | I37: 0 | K37: =IF(ISERROR(+I37+'App.2-CC_NewCGAAP_DepExp_2013'!K37-J37), 0, +I37+'App.2-CC_NewCGAAP_DepExp_2013'!K37-J37) -> 0
A38: 1920 | B38: Computer Equipment - Hardware | E38: 0 | F38: =IF(D38=0,+'App.2-CC_NewCGAAP_DepExp_2013'!K38,+'App.2-CC_NewCGAAP_DepExp_2013'!K38+((C38*0.5)/D38)) -> 0 | H38: 0 | I38: 0 | K38: =IF(ISERROR(+I38+'App.2-CC_NewCGAAP_DepExp_2013'!K38-J38), 0, +I38+'App.2-CC_NewCGAAP_DepExp_2013'!K38-J38) -> 0
A39: 1920 | B39: Computer Equip.-Hardware(Post Mar. 22/04) | E39: 0 | F39: =IF(D39=0,+'App.2-CC_NewCGAAP_DepExp_2013'!K39,+'App.2-CC_NewCGAAP_DepExp_2013'!K39+((C39*0.5)/D39)) -> 0 | H39: 0 | I39: 0 | K39: =IF(ISERROR(+I39+'App.2-CC_NewCGAAP_DepExp_2013'!K39-J39), 0, +I39+'App.2-CC_NewCGAAP_DepExp_2013'!K39-J39) -> 0
A40: 1920 | B40: Computer Equip.-Hardware(Post Mar. 19/07) | E40: 0 | F40: =IF(D40=0,+'App.2-CC_NewCGAAP_DepExp_2013'!K40,+'App.2-CC_NewCGAAP_DepExp_2013'!K40+((C40*0.5)/D40)) -> 0 | H40: 0 | I40: 0 | K40: =IF(ISERROR(+I40+'App.2-CC_NewCGAAP_DepExp_2013'!K40-J40), 0, +I40+'App.2-CC_NewCGAAP_DepExp_2013'!K40-J40) -> 0
A41: 1930 | B41: Transportation Equipment | E41: 0 | F41: =IF(D41=0,+'App.2-CC_NewCGAAP_DepExp_2013'!K41,+'App.2-CC_NewCGAAP_DepExp_2013'!K41+((C41*0.5)/D41)) -> 0 | H41: 0 | I41: 0 | K41: =IF(ISERROR(+I41+'App.2-CC_NewCGAAP_DepExp_2013'!K41-J41), 0, +I41+'App.2-CC_NewCGAAP_DepExp_2013'!K41-J41) -> 0
A42: 1935 | B42: Stores Equipment | E42: 0 | F42: =IF(D42=0,+'App.2-CC_NewCGAAP_DepExp_2013'!K42,+'App.2-CC_NewCGAAP_DepExp_2013'!K42+((C42*0.5)/D42)) -> 0 | H42: 0 | I42: 0 | K42: =IF(ISERROR(+I42+'App.2-CC_NewCGAAP_DepExp_2013'!K42-J42), 0, +I42+'App.2-CC_NewCGAAP_DepExp_2013'!K42-J42) -> 0
A43: 1940 | B43: Tools, Shop & Garage Equipment | E43: 0 | F43: =IF(D43=0,+'App.2-CC_NewCGAAP_DepExp_2013'!K43,+'App.2-CC_NewCGAAP_DepExp_2013'!K43+((C43*0.5)/D43)) -> 0 | H43: 0 | I43: 0 | K43: =IF(ISERROR(+I43+'App.2-CC_NewCGAAP_DepExp_2013'!K43-J43), 0, +I43+'App.2-CC_NewCGAAP_DepExp_2013'!K43-J43) -> 0
A44: 1945 | B44: Measurement & Testing Equipment | E44: 0 | F44: =IF(D44=0,+'App.2-CC_NewCGAAP_DepExp_2013'!K44,+'App.2-CC_NewCGAAP_DepExp_2013'!K44+((C44*0.5)/D44)) -> 0 | H44: 0 | I44: 0 | K44: =IF(ISERROR(+I44+'App.2-CC_NewCGAAP_DepExp_2013'!K44-J44), 0, +I44+'App.2-CC_NewCGAAP_DepExp_2013'!K44-J44) -> 0
A45: 1950 | B45: Power Operated Equipment | E45: 0 | F45: =IF(D45=0,+'App.2-CC_NewCGAAP_DepExp_2013'!K45,+'App.2-CC_NewCGAAP_DepExp_2013'!K45+((C45*0.5)/D45)) -> 0 | H45: 0 | I45: 0 | K45: =IF(ISERROR(+I45+'App.2-CC_NewCGAAP_DepExp_2013'!K45-J45), 0, +I45+'App.2-CC_NewCGAAP_DepExp_2013'!K45-J45) -> 0
A46: 1955 | B46: Communications Equipment | E46: 0 | F46: =IF(D46=0,+'App.2-CC_NewCGAAP_DepExp_2013'!K46,+'App.2-CC_NewCGAAP_DepExp_2013'!K46+((C46*0.5)/D46)) -> 0 | H46: 0 | I46: 0 | K46: =IF(ISERROR(+I46+'App.2-CC_NewCGAAP_DepExp_2013'!K46-J46), 0, +I46+'App.2-CC_NewCGAAP_DepExp_2013'!K46-J46) -> 0
A47: 1955 | B47: Communication Equipment (Smart Meters) | E47: 0 | F47: =IF(D47=0,+'App.2-CC_NewCGAAP_DepExp_2013'!K47,+'App.2-CC_NewCGAAP_DepExp_2013'!K47+((C47*0.5)/D47)) -> 0 | H47: 0 | I47: 0 | K47: =IF(ISERROR(+I47+'App.2-CC_NewCGAAP_DepExp_2013'!K47-J47), 0, +I47+'App.2-CC_NewCGAAP_DepExp_2013'!K47-J47) -> 0
A48: 1960 | B48: Miscellaneous Equipment | E48: 0 | F48: =IF(D48=0,+'App.2-CC_NewCGAAP_DepExp_2013'!K48,+'App.2-CC_NewCGAAP_DepExp_2013'!K48+((C48*0.5)/D48)) -> 0 | H48: 0 | I48: 0 | K48: =IF(ISERROR(+I48+'App.2-CC_NewCGAAP_DepExp_2013'!K48-J48), 0, +I48+'App.2-CC_NewCGAAP_DepExp_2013'!K48-J48) -> 0
A49: 1970 | B49: Load Management Controls Customer Premises | E49: 0 | F49: =IF(D49=0,+'App.2-CC_NewCGAAP_DepExp_2013'!K49,+'App.2-CC_NewCGAAP_DepExp_2013'!K49+((C49*0.5)/D49)) -> 0 | H49: 0 | I49: 0 | K49: =IF(ISERROR(+I49+'App.2-CC_NewCGAAP_DepExp_2013'!K49-J49), 0, +I49+'App.2-CC_NewCGAAP_DepExp_2013'!K49-J49) -> 0
A50: 1975 | B50: Load Management Controls Utility Premises | E50: 0 | F50: =IF(D50=0,+'App.2-CC_NewCGAAP_DepExp_2013'!K50,+'App.2-CC_NewCGAAP_DepExp_2013'!K50+((C50*0.5)/D50)) -> 0 | H50: 0 | I50: 0 | K50: =IF(ISERROR(+I50+'App.2-CC_NewCGAAP_DepExp_2013'!K50-J50), 0, +I50+'App.2-CC_NewCGAAP_DepExp_2013'!K50-J50) -> 0
A51: 1980 | B51: System Supervisor Equipment | E51: 0 | F51: =IF(D51=0,+'App.2-CC_NewCGAAP_DepExp_2013'!K51,+'App.2-CC_NewCGAAP_DepExp_2013'!K51+((C51*0.5)/D51)) -> 0 | H51: 0 | I51: 0 | K51: =IF(ISERROR(+I51+'App.2-CC_NewCGAAP_DepExp_2013'!K51-J51), 0, +I51+'App.2-CC_NewCGAAP_DepExp_2013'!K51-J51) -> 0
A52: 1985 | B52: Miscellaneous Fixed Assets | E52: 0 | F52: =IF(D52=0,+'App.2-CC_NewCGAAP_DepExp_2013'!K52,+'App.2-CC_NewCGAAP_DepExp_2013'!K52+((C52*0.5)/D52)) -> 0 | H52: 0 | I52: 0 | K52: =IF(ISERROR(+I52+'App.2-CC_NewCGAAP_DepExp_2013'!K52-J52), 0, +I52+'App.2-CC_NewCGAAP_DepExp_2013'!K52-J52) -> 0
A53: 1990 | B53: Other Tangible Property | E53: 0 | F53: =IF(D53=0,+'App.2-CC_NewCGAAP_DepExp_2013'!K53,+'App.2-CC_NewCGAAP_DepExp_2013'!K53+((C53*0.5)/D53)) -> 0 | H53: 0 | I53: 0 | K53: =IF(ISERROR(+I53+'App.2-CC_NewCGAAP_DepExp_2013'!K53-J53), 0, +I53+'App.2-CC_NewCGAAP_DepExp_2013'!K53-J53) -> 0
A54: 1995 | B54: Contributions & Grants | E54: =IF(D54=0,0,1/D54) -> 0 | F54: =IF(D54=0,+'App.2-CC_NewCGAAP_DepExp_2013'!K54,+'App.2-CC_NewCGAAP_DepExp_2013'!K54+((C54*0.5)/D54)) -> 0 | H54: 0 | I54: 0 | K54: =IF(ISERROR(+I54+'App.2-CC_NewCGAAP_DepExp_2013'!K54-J54), 0, +I54+'App.2-CC_NewCGAAP_DepExp_2013'!K54-J54) -> 0
B55: Total | C55: =SUM(C17:C54) -> 0 | F55: =SUM(F17:F54) -> 0 | G55: 0 | H55: 0 | I55: 0 | J55: 0 | K55: 0
B56: Depreciation exp. adj. from gain or loss on the retirement of assets (pool of like assets)
B57: Total Depreciation Expense | F57: =+F56+F55 -> 0
A59: Notes:
A60: 1 | B60: Board policy of the "half-year" rule - the applicant must ensure that additions in the year attract a half-year depreciation expense in the first year. Deviations from this standard practice must be supported in the application.
A61: 2 | B61: The applicant must provide an explanation of material variances in evidence.
A62: 3 | B62: This column refers to the calculated full year depreciation but excludes the depreciation expense on assets fully depreciated during the year. This column is used for the purpose of calculating depreciation expense in the following year on the next worksheet.
A64: General: | B64: Applicants must provide a breakdown of depreciation and amortization expense in the above format for all relevant accounts. Asset Retirement Obligations (AROs), depreciation and accretion expense should be disclosed separately consistent with the Notes of historical Audited Financial Statements.

Sheet App.2-CE_MIFRS_DepExp_2015
G1: File Number: | H1: =EBNUMBER -> EB-2016-0061
G2: Exhibit:
G3: Tab:
G4: Schedule:
G5: Page:
G7: Date:
A9: Appendix 2-CE
A10: Depreciation and Amortization Expense
A11: Assumes the applicant made capitalization and depreciation expense accounting policy changes under CGAAP effective January 1, 2012 and has adopted IFRS for financial reporting purposes effective January 1, 2015.
C13: 2015 | D13: MIFRS
A15: Account | B15: Description | C15: Additions | D15: Years (new additions only) | E15: Depreciation Rate on New Additions | F15: 2015 Depreciation Expense 1 | G15: 2015 Depreciation Expense per Appendix 2-BA Fixed Assets, Column J (l) | H15: Variance 2 | I15: Depreciation Expense on 2015 Full Year Additions | J15: Less Depreciation Expense on Assets Fully Depreciated during the year (o) | K15: 2015 Full Year Depreciation 3
C16: (d) | D16: (f) | E16: (g) = 1 / (f) | F16: (h)=2014 Full Year Depreciation + ((d)*0.5)/(f) | H16: (m) = (h) - (l) | I16: (n)=((d))/(f) | K16: (p) = 2014 Full Year Depreciation + (n) - (o)
A17: 1611 | B17: Computer Software (Formally known as Account 1925) | E17: =IF(D17=0,0,1/D17) -> 0 | F17: =IF(D17=0,'App.2-CD_MIFRS_DepExp_2014'!K17,+'App.2-CD_MIFRS_DepExp_2014'!K17+((C17*0.5)/D17)) -> 0 | H17: =IF(ISERROR(+F17-G17), 0, +F17-G17) -> 0 | I17: =IF(D17=0,0,+(C17)/D17) -> 0 | K17: =IF(ISERROR(+I17+'App.2-CD_MIFRS_DepExp_2014'!K17-J17), 0, +I17+'App.2-CD_MIFRS_DepExp_2014'!K17-J17) -> 0
A18: 1612 | B18: Land Rights (Formally known as Account 1906) | E18: 0 | F18: =IF(D18=0,'App.2-CD_MIFRS_DepExp_2014'!K18,+'App.2-CD_MIFRS_DepExp_2014'!K18+((C18*0.5)/D18)) -> 0 | H18: 0 | I18: =IF(D18=0,0,+(C18)/D18) -> 0 | K18: =IF(ISERROR(+I18+'App.2-CD_MIFRS_DepExp_2014'!K18-J18), 0, +I18+'App.2-CD_MIFRS_DepExp_2014'!K18-J18) -> 0
A19: 1805 | B19: Land | E19: 0 | F19: =IF(D19=0,'App.2-CD_MIFRS_DepExp_2014'!K19,+'App.2-CD_MIFRS_DepExp_2014'!K19+((C19*0.5)/D19)) -> 0 | H19: 0 | I19: 0 | K19: =IF(ISERROR(+I19+'App.2-CD_MIFRS_DepExp_2014'!K19-J19), 0, +I19+'App.2-CD_MIFRS_DepExp_2014'!K19-J19) -> 0
A20: 1808 | B20: Buildings | E20: 0 | F20: =IF(D20=0,'App.2-CD_MIFRS_DepExp_2014'!K20,+'App.2-CD_MIFRS_DepExp_2014'!K20+((C20*0.5)/D20)) -> 0 | H20: 0 | I20: 0 | K20: =IF(ISERROR(+I20+'App.2-CD_MIFRS_DepExp_2014'!K20-J20), 0, +I20+'App.2-CD_MIFRS_DepExp_2014'!K20-J20) -> 0
A21: 1810 | B21: Leasehold Improvements | E21: 0 | F21: =IF(D21=0,'App.2-CD_MIFRS_DepExp_2014'!K21,+'App.2-CD_MIFRS_DepExp_2014'!K21+((C21*0.5)/D21)) -> 0 | H21: 0 | I21: 0 | K21: =IF(ISERROR(+I21+'App.2-CD_MIFRS_DepExp_2014'!K21-J21), 0, +I21+'App.2-CD_MIFRS_DepExp_2014'!K21-J21) -> 0
A22: 1815 | B22: Transformer Station Equipment >50 kV | E22: 0 | F22: =IF(D22=0,'App.2-CD_MIFRS_DepExp_2014'!K22,+'App.2-CD_MIFRS_DepExp_2014'!K22+((C22*0.5)/D22)) -> 0 | H22: 0 | I22: 0 | K22: =IF(ISERROR(+I22+'App.2-CD_MIFRS_DepExp_2014'!K22-J22), 0, +I22+'App.2-CD_MIFRS_DepExp_2014'!K22-J22) -> 0
A23: 1820 | B23: Distribution Station Equipment <50 kV | E23: 0 | F23: =IF(D23=0,'App.2-CD_MIFRS_DepExp_2014'!K23,+'App.2-CD_MIFRS_DepExp_2014'!K23+((C23*0.5)/D23)) -> 0 | H23: 0 | I23: 0 | K23: =IF(ISERROR(+I23+'App.2-CD_MIFRS_DepExp_2014'!K23-J23), 0, +I23+'App.2-CD_MIFRS_DepExp_2014'!K23-J23) -> 0
A24: 1825 | B24: Storage Battery Equipment | E24: 0 | F24: =IF(D24=0,'App.2-CD_MIFRS_DepExp_2014'!K24,+'App.2-CD_MIFRS_DepExp_2014'!K24+((C24*0.5)/D24)) -> 0 | H24: 0 | I24: 0 | K24: =IF(ISERROR(+I24+'App.2-CD_MIFRS_DepExp_2014'!K24-J24), 0, +I24+'App.2-CD_MIFRS_DepExp_2014'!K24-J24) -> 0
A25: 1830 | B25: Poles, Towers & Fixtures | E25: 0 | F25: =IF(D25=0,'App.2-CD_MIFRS_DepExp_2014'!K25,+'App.2-CD_MIFRS_DepExp_2014'!K25+((C25*0.5)/D25)) -> 0 | H25: 0 | I25: 0 | K25: =IF(ISERROR(+I25+'App.2-CD_MIFRS_DepExp_2014'!K25-J25), 0, +I25+'App.2-CD_MIFRS_DepExp_2014'!K25-J25) -> 0
A26: 1835 | B26: Overhead Conductors & Devices | E26: 0 | F26: =IF(D26=0,'App.2-CD_MIFRS_DepExp_2014'!K26,+'App.2-CD_MIFRS_DepExp_2014'!K26+((C26*0.5)/D26)) -> 0 | H26: 0 | I26: 0 | K26: =IF(ISERROR(+I26+'App.2-CD_MIFRS_DepExp_2014'!K26-J26), 0, +I26+'App.2-CD_MIFRS_DepExp_2014'!K26-J26) -> 0
A27: 1840 | B27: Underground Conduit | E27: 0 | F27: =IF(D27=0,'App.2-CD_MIFRS_DepExp_2014'!K27,+'App.2-CD_MIFRS_DepExp_2014'!K27+((C27*0.5)/D27)) -> 0 | H27: 0 | I27: 0 | K27: =IF(ISERROR(+I27+'App.2-CD_MIFRS_DepExp_2014'!K27-J27), 0, +I27+'App.2-CD_MIFRS_DepExp_2014'!K27-J27) -> 0
A28: 1845 | B28: Underground Conductors & Devices | E28: 0 | F28: =IF(D28=0,'App.2-CD_MIFRS_DepExp_2014'!K28,+'App.2-CD_MIFRS_DepExp_2014'!K28+((C28*0.5)/D28)) -> 0 | H28: 0 | I28: 0 | K28: =IF(ISERROR(+I28+'App.2-CD_MIFRS_DepExp_2014'!K28-J28), 0, +I28+'App.2-CD_MIFRS_DepExp_2014'!K28-J28) -> 0
A29: 1850 | B29: Line Transformers | E29: 0 | F29: =IF(D29=0,'App.2-CD_MIFRS_DepExp_2014'!K29,+'App.2-CD_MIFRS_DepExp_2014'!K29+((C29*0.5)/D29)) -> 0 | H29: 0 | I29: 0 | K29: =IF(ISERROR(+I29+'App.2-CD_MIFRS_DepExp_2014'!K29-J29), 0, +I29+'App.2-CD_MIFRS_DepExp_2014'!K29-J29) -> 0
A30: 1855 | B30: Services (Overhead & Underground) | E30: 0 | F30: =IF(D30=0,'App.2-CD_MIFRS_DepExp_2014'!K30,+'App.2-CD_MIFRS_DepExp_2014'!K30+((C30*0.5)/D30)) -> 0 | H30: 0 | I30: 0 | K30: =IF(ISERROR(+I30+'App.2-CD_MIFRS_DepExp_2014'!K30-J30), 0, +I30+'App.2-CD_MIFRS_DepExp_2014'!K30-J30) -> 0
A31: 1860 | B31: Meters | E31: 0 | F31: =IF(D31=0,'App.2-CD_MIFRS_DepExp_2014'!K31,+'App.2-CD_MIFRS_DepExp_2014'!K31+((C31*0.5)/D31)) -> 0 | H31: 0 | I31: 0 | K31: =IF(ISERROR(+I31+'App.2-CD_MIFRS_DepExp_2014'!K31-J31), 0, +I31+'App.2-CD_MIFRS_DepExp_2014'!K31-J31) -> 0
A32: 1860 | B32: Meters (Smart Meters) | E32: 0 | F32: =IF(D32=0,'App.2-CD_MIFRS_DepExp_2014'!K32,+'App.2-CD_MIFRS_DepExp_2014'!K32+((C32*0.5)/D32)) -> 0 | H32: 0 | I32: 0 | K32: =IF(ISERROR(+I32+'App.2-CD_MIFRS_DepExp_2014'!K32-J32), 0, +I32+'App.2-CD_MIFRS_DepExp_2014'!K32-J32) -> 0
A33: 1905 | B33: Land | E33: 0 | F33: =IF(D33=0,'App.2-CD_MIFRS_DepExp_2014'!K33,+'App.2-CD_MIFRS_DepExp_2014'!K33+((C33*0.5)/D33)) -> 0 | H33: 0 | I33: 0 | K33: =IF(ISERROR(+I33+'App.2-CD_MIFRS_DepExp_2014'!K33-J33), 0, +I33+'App.2-CD_MIFRS_DepExp_2014'!K33-J33) -> 0
A34: 1908 | B34: Buildings & Fixtures | E34: 0 | F34: =IF(D34=0,'App.2-CD_MIFRS_DepExp_2014'!K34,+'App.2-CD_MIFRS_DepExp_2014'!K34+((C34*0.5)/D34)) -> 0 | H34: 0 | I34: 0 | K34: =IF(ISERROR(+I34+'App.2-CD_MIFRS_DepExp_2014'!K34-J34), 0, +I34+'App.2-CD_MIFRS_DepExp_2014'!K34-J34) -> 0
A35: 1910 | B35: Leasehold Improvements | E35: 0 | F35: =IF(D35=0,'App.2-CD_MIFRS_DepExp_2014'!K35,+'App.2-CD_MIFRS_DepExp_2014'!K35+((C35*0.5)/D35)) -> 0 | H35: 0 | I35: 0 | K35: =IF(ISERROR(+I35+'App.2-CD_MIFRS_DepExp_2014'!K35-J35), 0, +I35+'App.2-CD_MIFRS_DepExp_2014'!K35-J35) -> 0
A36: 1915 | B36: Office Furniture & Equipment (10 years) | E36: 0 | F36: =IF(D36=0,'App.2-CD_MIFRS_DepExp_2014'!K36,+'App.2-CD_MIFRS_DepExp_2014'!K36+((C36*0.5)/D36)) -> 0 | H36: 0 | I36: 0 | K36: =IF(ISERROR(+I36+'App.2-CD_MIFRS_DepExp_2014'!K36-J36), 0, +I36+'App.2-CD_MIFRS_DepExp_2014'!K36-J36) -> 0
A37: 1915 | B37: Office Furniture & Equipment (5 years) | E37: 0 | F37: =IF(D37=0,'App.2-CD_MIFRS_DepExp_2014'!K37,+'App.2-CD_MIFRS_DepExp_2014'!K37+((C37*0.5)/D37)) -> 0 | H37: 0 | I37: 0 | K37: =IF(ISERROR(+I37+'App.2-CD_MIFRS_DepExp_2014'!K37-J37), 0, +I37+'App.2-CD_MIFRS_DepExp_2014'!K37-J37) -> 0
A38: 1920 | B38: Computer Equipment - Hardware | E38: 0 | F38: =IF(D38=0,'App.2-CD_MIFRS_DepExp_2014'!K38,+'App.2-CD_MIFRS_DepExp_2014'!K38+((C38*0.5)/D38)) -> 0 | H38: 0 | I38: 0 | K38: =IF(ISERROR(+I38+'App.2-CD_MIFRS_DepExp_2014'!K38-J38), 0, +I38+'App.2-CD_MIFRS_DepExp_2014'!K38-J38) -> 0
A39: 1920 | B39: Computer Equip.-Hardware(Post Mar. 22/04) | E39: 0 | F39: =IF(D39=0,'App.2-CD_MIFRS_DepExp_2014'!K39,+'App.2-CD_MIFRS_DepExp_2014'!K39+((C39*0.5)/D39)) -> 0 | H39: 0 | I39: 0 | K39: =IF(ISERROR(+I39+'App.2-CD_MIFRS_DepExp_2014'!K39-J39), 0, +I39+'App.2-CD_MIFRS_DepExp_2014'!K39-J39) -> 0
A40: 1920 | B40: Computer Equip.-Hardware(Post Mar. 19/07) | E40: 0 | F40: =IF(D40=0,'App.2-CD_MIFRS_DepExp_2014'!K40,+'App.2-CD_MIFRS_DepExp_2014'!K40+((C40*0.5)/D40)) -> 0 | H40: 0 | I40: 0 | K40: =IF(ISERROR(+I40+'App.2-CD_MIFRS_DepExp_2014'!K40-J40), 0, +I40+'App.2-CD_MIFRS_DepExp_2014'!K40-J40) -> 0
A41: 1930 | B41: Transportation Equipment | E41: 0 | F41: =IF(D41=0,'App.2-CD_MIFRS_DepExp_2014'!K41,+'App.2-CD_MIFRS_DepExp_2014'!K41+((C41*0.5)/D41)) -> 0 | H41: 0 | I41: 0 | K41: =IF(ISERROR(+I41+'App.2-CD_MIFRS_DepExp_2014'!K41-J41), 0, +I41+'App.2-CD_MIFRS_DepExp_2014'!K41-J41) -> 0
A42: 1935 | B42: Stores Equipment | E42: 0 | F42: =IF(D42=0,'App.2-CD_MIFRS_DepExp_2014'!K42,+'App.2-CD_MIFRS_DepExp_2014'!K42+((C42*0.5)/D42)) -> 0 | H42: 0 | I42: 0 | K42: =IF(ISERROR(+I42+'App.2-CD_MIFRS_DepExp_2014'!K42-J42), 0, +I42+'App.2-CD_MIFRS_DepExp_2014'!K42-J42) -> 0
A43: 1940 | B43: Tools, Shop & Garage Equipment | E43: 0 | F43: =IF(D43=0,'App.2-CD_MIFRS_DepExp_2014'!K43,+'App.2-CD_MIFRS_DepExp_2014'!K43+((C43*0.5)/D43)) -> 0 | H43: 0 | I43: 0 | K43: =IF(ISERROR(+I43+'App.2-CD_MIFRS_DepExp_2014'!K43-J43), 0, +I43+'App.2-CD_MIFRS_DepExp_2014'!K43-J43) -> 0
A44: 1945 | B44: Measurement & Testing Equipment | E44: 0 | F44: =IF(D44=0,'App.2-CD_MIFRS_DepExp_2014'!K44,+'App.2-CD_MIFRS_DepExp_2014'!K44+((C44*0.5)/D44)) -> 0 | H44: 0 | I44: 0 | K44: =IF(ISERROR(+I44+'App.2-CD_MIFRS_DepExp_2014'!K44-J44), 0, +I44+'App.2-CD_MIFRS_DepExp_2014'!K44-J44) -> 0
A45: 1950 | B45: Power Operated Equipment | E45: 0 | F45: =IF(D45=0,'App.2-CD_MIFRS_DepExp_2014'!K45,+'App.2-CD_MIFRS_DepExp_2014'!K45+((C45*0.5)/D45)) -> 0 | H45: 0 | I45: 0 | K45: =IF(ISERROR(+I45+'App.2-CD_MIFRS_DepExp_2014'!K45-J45), 0, +I45+'App.2-CD_MIFRS_DepExp_2014'!K45-J45) -> 0
A46: 1955 | B46: Communications Equipment | E46: 0 | F46: =IF(D46=0,'App.2-CD_MIFRS_DepExp_2014'!K46,+'App.2-CD_MIFRS_DepExp_2014'!K46+((C46*0.5)/D46)) -> 0 | H46: 0 | I46: 0 | K46: =IF(ISERROR(+I46+'App.2-CD_MIFRS_DepExp_2014'!K46-J46), 0, +I46+'App.2-CD_MIFRS_DepExp_2014'!K46-J46) -> 0
A47: 1955 | B47: Communication Equipment (Smart Meters) | E47: 0 | F47: =IF(D47=0,'App.2-CD_MIFRS_DepExp_2014'!K47,+'App.2-CD_MIFRS_DepExp_2014'!K47+((C47*0.5)/D47)) -> 0 | H47: 0 | I47: 0 | K47: =IF(ISERROR(+I47+'App.2-CD_MIFRS_DepExp_2014'!K47-J47), 0, +I47+'App.2-CD_MIFRS_DepExp_2014'!K47-J47) -> 0
A48: 1960 | B48: Miscellaneous Equipment | E48: 0 | F48: =IF(D48=0,'App.2-CD_MIFRS_DepExp_2014'!K48,+'App.2-CD_MIFRS_DepExp_2014'!K48+((C48*0.5)/D48)) -> 0 | H48: 0 | I48: 0 | K48: =IF(ISERROR(+I48+'App.2-CD_MIFRS_DepExp_2014'!K48-J48), 0, +I48+'App.2-CD_MIFRS_DepExp_2014'!K48-J48) -> 0
A49: 1970 | B49: Load Management Controls Customer Premises | E49: 0 | F49: =IF(D49=0,'App.2-CD_MIFRS_DepExp_2014'!K49,+'App.2-CD_MIFRS_DepExp_2014'!K49+((C49*0.5)/D49)) -> 0 | H49: 0 | I49: 0 | K49: =IF(ISERROR(+I49+'App.2-CD_MIFRS_DepExp_2014'!K49-J49), 0, +I49+'App.2-CD_MIFRS_DepExp_2014'!K49-J49) -> 0
A50: 1975 | B50: Load Management Controls Utility Premises | E50: 0 | F50: =IF(D50=0,'App.2-CD_MIFRS_DepExp_2014'!K50,+'App.2-CD_MIFRS_DepExp_2014'!K50+((C50*0.5)/D50)) -> 0 | H50: 0 | I50: 0 | K50: =IF(ISERROR(+I50+'App.2-CD_MIFRS_DepExp_2014'!K50-J50), 0, +I50+'App.2-CD_MIFRS_DepExp_2014'!K50-J50) -> 0
A51: 1980 | B51: System Supervisor Equipment | E51: 0 | F51: =IF(D51=0,'App.2-CD_MIFRS_DepExp_2014'!K51,+'App.2-CD_MIFRS_DepExp_2014'!K51+((C51*0.5)/D51)) -> 0 | H51: 0 | I51: 0 | K51: =IF(ISERROR(+I51+'App.2-CD_MIFRS_DepExp_2014'!K51-J51), 0, +I51+'App.2-CD_MIFRS_DepExp_2014'!K51-J51) -> 0
A52: 1985 | B52: Miscellaneous Fixed Assets | E52: 0 | F52: =IF(D52=0,'App.2-CD_MIFRS_DepExp_2014'!K52,+'App.2-CD_MIFRS_DepExp_2014'!K52+((C52*0.5)/D52)) -> 0 | H52: 0 | I52: 0 | K52: =IF(ISERROR(+I52+'App.2-CD_MIFRS_DepExp_2014'!K52-J52), 0, +I52+'App.2-CD_MIFRS_DepExp_2014'!K52-J52) -> 0
A53: 1990 | B53: Other Tangible Property | E53: 0 | F53: =IF(D53=0,'App.2-CD_MIFRS_DepExp_2014'!K53,+'App.2-CD_MIFRS_DepExp_2014'!K53+((C53*0.5)/D53)) -> 0 | H53: 0 | I53: 0 | K53: =IF(ISERROR(+I53+'App.2-CD_MIFRS_DepExp_2014'!K53-J53), 0, +I53+'App.2-CD_MIFRS_DepExp_2014'!K53-J53) -> 0
A54: 1995 | B54: Contributions & Grants | E54: 0 | F54: =IF(D54=0,'App.2-CD_MIFRS_DepExp_2014'!K54,+'App.2-CD_MIFRS_DepExp_2014'!K54+((C54*0.5)/D54)) -> 0 | H54: 0 | I54: 0 | K54: =IF(ISERROR(+I54+'App.2-CD_MIFRS_DepExp_2014'!K54-J54), 0, +I54+'App.2-CD_MIFRS_DepExp_2014'!K54-J54) -> 0
B55: Total | C55: =SUM(C17:C54) -> 0 | F55: =SUM(F17:F54) -> 0 | G55: =SUM(G17:G54) -> 0 | H55: =SUM(H17:H54) -> 0 | I55: =SUM(I17:I54) -> 0 | J55: 0 | K55: =SUM(K17:K54) -> 0
B56: Depreciation exp. adj. from gain or loss on the retirement of assets (pool of like assets)
B57: Total Depreciation expense to be included in the test year revenue requirement | F57: =SUM(F55:F56) -> 0
A58: Notes:
A59: 1 | B59: Board policy of the "half-year" rule - the applicant must ensure that additions in the year attract a half-year depreciation expense in the first year. Deviations from this standard practice must be supported in the application.
A60: 2 | B60: The applicant must provide an explanation of material variances in evidence.
A61: 3 | B61: This column refers to the calculated full year depreciation but excludes the depreciation expense on assets fully depreciated during the year. This column is used for the purpose of calculating depreciation expense in the following year on the next worksheet.
A63: General: | B63: Applicants must provide a breakdown of depreciation and amortization expense in the above format for all relevant accounts. Asset Retirement Obligations (AROs), depreciation and accretion expense should be disclosed separately consistent with the Notes of historical Audited Financial Statements.

Sheet App.2-CF_MIFRS_DepExp_2016
G1: File Number: | H1: =EBNUMBER -> EB-2016-0061
G2: Exhibit:
G3: Tab:
G4: Schedule:
G5: Page:
G7: Date:
A9: Appendix 2-CF
A10: Depreciation and Amortization Expense
A11: Assumes the applicant made capitalization and depreciation expense accounting policy changes under CGAAP effective January 1, 2012 and has adopted IFRS for financial reporting purposes effective January 1, 2015.
C13: 2016 | D13: MIFRS
A15: Account | B15: Description | C15: Additions | D15: Years (new additions only) | E15: Depreciation Rate on New Additions | F15: 2016 Depreciation Expense 1 | G15: 2016 Depreciation Expense per Appendix 2-BA Fixed Assets, Column J (l) | H15: Variance 2
C16: (d) | D16: (f) | E16: (g) = 1 / (f) | F16: (h)=2015 Full Year Depreciation + ((d)*0.5)/(f) | H16: (m) = (h) - (l)
A17: 1611 | B17: Computer Software (Formally known as Account 1925) | E17: =IF(D17=0,0,1/D17) -> 0 | F17: =IF(D17=0,'App.2-CE_MIFRS_DepExp_2015'!K17,+'App.2-CE_MIFRS_DepExp_2015'!K17+((C17*0.5)/D17)) -> 0 | H17: =IF(ISERROR(+F17-G17), 0, +F17-G17) -> 0
A18: 1612 | B18: Land Rights (Formally known as Account 1906) | E18: 0 | F18: =IF(D18=0,'App.2-CE_MIFRS_DepExp_2015'!K18,+'App.2-CE_MIFRS_DepExp_2015'!K18+((C18*0.5)/D18)) -> 0 | H18: 0
A19: 1805 | B19: Land | E19: 0 | F19: =IF(D19=0,'App.2-CE_MIFRS_DepExp_2015'!K19,+'App.2-CE_MIFRS_DepExp_2015'!K19+((C19*0.5)/D19)) -> 0 | H19: 0
A20: 1808 | B20: Buildings | E20: 0 | F20: =IF(D20=0,'App.2-CE_MIFRS_DepExp_2015'!K20,+'App.2-CE_MIFRS_DepExp_2015'!K20+((C20*0.5)/D20)) -> 0 | H20: 0
A21: 1810 | B21: Leasehold Improvements | E21: 0 | F21: =IF(D21=0,'App.2-CE_MIFRS_DepExp_2015'!K21,+'App.2-CE_MIFRS_DepExp_2015'!K21+((C21*0.5)/D21)) -> 0 | H21: 0
A22: 1815 | B22: Transformer Station Equipment >50 kV | E22: 0 | F22: =IF(D22=0,'App.2-CE_MIFRS_DepExp_2015'!K22,+'App.2-CE_MIFRS_DepExp_2015'!K22+((C22*0.5)/D22)) -> 0 | H22: 0
A23: 1820 | B23: Distribution Station Equipment <50 kV | E23: 0 | F23: =IF(D23=0,'App.2-CE_MIFRS_DepExp_2015'!K23,+'App.2-CE_MIFRS_DepExp_2015'!K23+((C23*0.5)/D23)) -> 0 | H23: 0
A24: 1825 | B24: Storage Battery Equipment | E24: 0 | F24: =IF(D24=0,'App.2-CE_MIFRS_DepExp_2015'!K24,+'App.2-CE_MIFRS_DepExp_2015'!K24+((C24*0.5)/D24)) -> 0 | H24: 0
A25: 1830 | B25: Poles, Towers & Fixtures | E25: 0 | F25: =IF(D25=0,'App.2-CE_MIFRS_DepExp_2015'!K25,+'App.2-CE_MIFRS_DepExp_2015'!K25+((C25*0.5)/D25)) -> 0 | H25: 0
A26: 1835 | B26: Overhead Conductors & Devices | E26: 0 | F26: =IF(D26=0,'App.2-CE_MIFRS_DepExp_2015'!K26,+'App.2-CE_MIFRS_DepExp_2015'!K26+((C26*0.5)/D26)) -> 0 | H26: 0
A27: 1840 | B27: Underground Conduit | E27: 0 | F27: =IF(D27=0,'App.2-CE_MIFRS_DepExp_2015'!K27,+'App.2-CE_MIFRS_DepExp_2015'!K27+((C27*0.5)/D27)) -> 0 | H27: 0
A28: 1845 | B28: Underground Conductors & Devices | E28: 0 | F28: =IF(D28=0,'App.2-CE_MIFRS_DepExp_2015'!K28,+'App.2-CE_MIFRS_DepExp_2015'!K28+((C28*0.5)/D28)) -> 0 | H28: 0
A29: 1850 | B29: Line Transformers | E29: 0 | F29: =IF(D29=0,'App.2-CE_MIFRS_DepExp_2015'!K29,+'App.2-CE_MIFRS_DepExp_2015'!K29+((C29*0.5)/D29)) -> 0 | H29: 0
A30: 1855 | B30: Services (Overhead & Underground) | E30: 0 | F30: =IF(D30=0,'App.2-CE_MIFRS_DepExp_2015'!K30,+'App.2-CE_MIFRS_DepExp_2015'!K30+((C30*0.5)/D30)) -> 0 | H30: 0
A31: 1860 | B31: Meters | E31: 0 | F31: =IF(D31=0,'App.2-CE_MIFRS_DepExp_2015'!K31,+'App.2-CE_MIFRS_DepExp_2015'!K31+((C31*0.5)/D31)) -> 0 | H31: 0
A32: 1860 | B32: Meters (Smart Meters) | E32: 0 | F32: =IF(D32=0,'App.2-CE_MIFRS_DepExp_2015'!K32,+'App.2-CE_MIFRS_DepExp_2015'!K32+((C32*0.5)/D32)) -> 0 | H32: 0
A33: 1905 | B33: Land | E33: 0 | F33: =IF(D33=0,'App.2-CE_MIFRS_DepExp_2015'!K33,+'App.2-CE_MIFRS_DepExp_2015'!K33+((C33*0.5)/D33)) -> 0 | H33: 0
A34: 1908 | B34: Buildings & Fixtures | E34: 0 | F34: =IF(D34=0,'App.2-CE_MIFRS_DepExp_2015'!K34,+'App.2-CE_MIFRS_DepExp_2015'!K34+((C34*0.5)/D34)) -> 0 | H34: 0
A35: 1910 | B35: Leasehold Improvements | E35: 0 | F35: =IF(D35=0,'App.2-CE_MIFRS_DepExp_2015'!K35,+'App.2-CE_MIFRS_DepExp_2015'!K35+((C35*0.5)/D35)) -> 0 | H35: 0
A36: 1915 | B36: Office Furniture & Equipment (10 years) | E36: 0 | F36: =IF(D36=0,'App.2-CE_MIFRS_DepExp_2015'!K36,+'App.2-CE_MIFRS_DepExp_2015'!K36+((C36*0.5)/D36)) -> 0 | H36: 0
A37: 1915 | B37: Office Furniture & Equipment (5 years) | E37: 0 | F37: =IF(D37=0,'App.2-CE_MIFRS_DepExp_2015'!K37,+'App.2-CE_MIFRS_DepExp_2015'!K37+((C37*0.5)/D37)) -> 0 | H37: 0
A38: 1920 | B38: Computer Equipment - Hardware | E38: 0 | F38: =IF(D38=0,'App.2-CE_MIFRS_DepExp_2015'!K38,+'App.2-CE_MIFRS_DepExp_2015'!K38+((C38*0.5)/D38)) -> 0 | H38: 0
A39: 1920 | B39: Computer Equip.-Hardware(Post Mar. 22/04) | E39: 0 | F39: =IF(D39=0,'App.2-CE_MIFRS_DepExp_2015'!K39,+'App.2-CE_MIFRS_DepExp_2015'!K39+((C39*0.5)/D39)) -> 0 | H39: 0
A40: 1920 | B40: Computer Equip.-Hardware(Post Mar. 19/07) | E40: 0 | F40: =IF(D40=0,'App.2-CE_MIFRS_DepExp_2015'!K40,+'App.2-CE_MIFRS_DepExp_2015'!K40+((C40*0.5)/D40)) -> 0 | H40: 0
A41: 1930 | B41: Transportation Equipment | E41: 0 | F41: =IF(D41=0,'App.2-CE_MIFRS_DepExp_2015'!K41,+'App.2-CE_MIFRS_DepExp_2015'!K41+((C41*0.5)/D41)) -> 0 | H41: 0
A42: 1935 | B42: Stores Equipment | E42: 0 | F42: =IF(D42=0,'App.2-CE_MIFRS_DepExp_2015'!K42,+'App.2-CE_MIFRS_DepExp_2015'!K42+((C42*0.5)/D42)) -> 0 | H42: 0
A43: 1940 | B43: Tools, Shop & Garage Equipment | E43: 0 | F43: =IF(D43=0,'App.2-CE_MIFRS_DepExp_2015'!K43,+'App.2-CE_MIFRS_DepExp_2015'!K43+((C43*0.5)/D43)) -> 0 | H43: 0
A44: 1945 | B44: Measurement & Testing Equipment | E44: 0 | F44: =IF(D44=0,'App.2-CE_MIFRS_DepExp_2015'!K44,+'App.2-CE_MIFRS_DepExp_2015'!K44+((C44*0.5)/D44)) -> 0 | H44: 0
A45: 1950 | B45: Power Operated Equipment | E45: 0 | F45: =IF(D45=0,'App.2-CE_MIFRS_DepExp_2015'!K45,+'App.2-CE_MIFRS_DepExp_2015'!K45+((C45*0.5)/D45)) -> 0 | H45: 0
A46: 1955 | B46: Communications Equipment | E46: 0 | F46: =IF(D46=0,'App.2-CE_MIFRS_DepExp_2015'!K46,+'App.2-CE_MIFRS_DepExp_2015'!K46+((C46*0.5)/D46)) -> 0 | H46: 0
A47: 1955 | B47: Communication Equipment (Smart Meters) | E47: 0 | F47: =IF(D47=0,'App.2-CE_MIFRS_DepExp_2015'!K47,+'App.2-CE_MIFRS_DepExp_2015'!K47+((C47*0.5)/D47)) -> 0 | H47: 0
A48: 1960 | B48: Miscellaneous Equipment | E48: 0 | F48: =IF(D48=0,'App.2-CE_MIFRS_DepExp_2015'!K48,+'App.2-CE_MIFRS_DepExp_2015'!K48+((C48*0.5)/D48)) -> 0 | H48: 0
A49: 1970 | B49: Load Management Controls Customer Premises | E49: 0 | F49: =IF(D49=0,'App.2-CE_MIFRS_DepExp_2015'!K49,+'App.2-CE_MIFRS_DepExp_2015'!K49+((C49*0.5)/D49)) -> 0 | H49: 0
A50: 1975 | B50: Load Management Controls Utility Premises | E50: 0 | F50: =IF(D50=0,'App.2-CE_MIFRS_DepExp_2015'!K50,+'App.2-CE_MIFRS_DepExp_2015'!K50+((C50*0.5)/D50)) -> 0 | H50: 0
A51: 1980 | B51: System Supervisor Equipment | E51: 0 | F51: =IF(D51=0,'App.2-CE_MIFRS_DepExp_2015'!K51,+'App.2-CE_MIFRS_DepExp_2015'!K51+((C51*0.5)/D51)) -> 0 | H51: 0
A52: 1985 | B52: Miscellaneous Fixed Assets | E52: 0 | F52: =IF(D52=0,'App.2-CE_MIFRS_DepExp_2015'!K52,+'App.2-CE_MIFRS_DepExp_2015'!K52+((C52*0.5)/D52)) -> 0 | H52: 0
A53: 1990 | B53: Other Tangible Property | E53: 0 | F53: =IF(D53=0,'App.2-CE_MIFRS_DepExp_2015'!K53,+'App.2-CE_MIFRS_DepExp_2015'!K53+((C53*0.5)/D53)) -> 0 | H53: 0
A54: 1995 | B54: Contributions & Grants | E54: 0 | F54: =IF(D54=0,'App.2-CE_MIFRS_DepExp_2015'!K54,+'App.2-CE_MIFRS_DepExp_2015'!K54+((C54*0.5)/D54)) -> 0 | H54: 0
B55: Total | C55: =SUM(C17:C54) -> 0 | F55: =SUM(F17:F54) -> 0 | G55: =SUM(G17:G54) -> 0 | H55: =SUM(H17:H54) -> 0
B56: Depreciation exp. adj. from gain or loss on the retirement of assets (pool of like assets)
B57: Total Depreciation expense to be included in the test year revenue requirement | F57: =SUM(F55:F56) -> 0
A58: Notes:
A59: 1 | B59: Board policy of the "half-year" rule - the applicant must ensure that additions in the year attract a half-year depreciation expense in the first year. Deviations from this standard practice must be supported in the application.
A60: 2 | B60: The applicant must provide an explanation of material variances in evidence.
A63: General: | B63: Applicants must provide a breakdown of depreciation and amortization expense in the above format for all relevant accounts. Asset Retirement Obligations (AROs), depreciation and accretion expense should be disclosed separately consistent with the Notes of historical Audited Financial Statements.

Sheet App.2-CG_OldCGAAP_DepExp_2013
K1: File Number: | L1: =EBNUMBER -> EB-2016-0061
K2: Exhibit:
K3: Tab:
K4: Schedule:
K5: Page:
K7: Date:
A9: Appendix 2-CG
A10: Depreciation and Amortization Expense
B11: Assumes the applicant made capitalization and depreciation expense accounting policy changes under CGAAP effective January 1, 2013 and has adopted IFRS for financial reporting purposes effective January 1, 2015.
C13: Year | D13: 2013 | E13: Former CGAAP
A15: Account | B15: Description | C15: Opening Regulatory Gross PP&E as at Jan 1, 2013 | D15: Less Fully Depreciated | E15: Net for Depreciation | F15: Additions | G15: Total for Depreciation 1 | H15: Years | I15: Depreciation Rate | J15: Depreciation Expense | K15: 2013 Depreciation Expense per Appendix 2-BA Fixed Assets, Column J (l) | L15: Variance 2
C16: (a) | D16: (b) | E16: (c) | F16: (d) | G16: (e) = (c) + ½ x (d) | H16: (f) | I16: (g) = 1 / (f) | J16: (h) = (e) / (f) | L16: (m) = (h) - (l)
A17: 1611 | B17: Computer Software (Formally known as Account 1925) | E17: =C17-D17 -> 0 | G17: =E17+0.5*F17 -> 0 | I17: =IF(H17=0,0,1/H17) -> 0 | J17: =IF(H17=0,0,G17/H17) -> 0 | L17: =IF(ISERROR(+J17-K17), 0, +J17-K17) -> 0
A18: 1612 | B18: Land Rights (Formally known as Account 1906) | E18: =C18-D18 -> 0 | G18: =E18+0.5*F18 -> 0 | I18: 0 | J18: 0 | L18: 0
A19: 1805 | B19: Land | E19: 0 | G19: 0 | I19: 0 | J19: 0 | L19: 0
A20: 1808 | B20: Buildings | E20: 0 | G20: 0 | I20: 0 | J20: 0 | L20: 0
A21: 1810 | B21: Leasehold Improvements | E21: 0 | G21: 0 | I21: 0 | J21: 0 | L21: 0
A22: 1815 | B22: Transformer Station Equipment >50 kV | E22: 0 | G22: 0 | I22: 0 | J22: 0 | L22: 0
A23: 1820 | B23: Distribution Station Equipment <50 kV | E23: 0 | G23: 0 | I23: 0 | J23: 0 | L23: 0
A24: 1825 | B24: Storage Battery Equipment | E24: 0 | G24: 0 | I24: 0 | J24: 0 | L24: 0
A25: 1830 | B25: Poles, Towers & Fixtures | E25: 0 | G25: 0 | I25: 0 | J25: 0 | L25: 0
A26: 1835 | B26: Overhead Conductors & Devices | E26: 0 | G26: 0 | I26: 0 | J26: 0 | L26: 0
A27: 1840 | B27: Underground Conduit | E27: 0 | G27: 0 | I27: 0 | J27: 0 | L27: 0
A28: 1845 | B28: Underground Conductors & Devices | E28: 0 | G28: 0 | I28: 0 | J28: 0 | L28: 0
A29: 1850 | B29: Line Transformers | E29: 0 | G29: 0 | I29: 0 | J29: 0 | L29: 0
A30: 1855 | B30: Services (Overhead & Underground) | E30: 0 | G30: 0 | I30: 0 | J30: 0 | L30: 0
A31: 1860 | B31: Meters | E31: 0 | G31: 0 | I31: 0 | J31: 0 | L31: 0
A32: 1860 | B32: Meters (Smart Meters) | E32: 0 | G32: 0 | I32: 0 | J32: 0 | L32: 0
A33: 1905 | B33: Land | E33: 0 | G33: 0 | I33: 0 | J33: 0 | L33: 0
A34: 1908 | B34: Buildings & Fixtures | E34: 0 | G34: 0 | I34: 0 | J34: 0 | L34: 0
A35: 1910 | B35: Leasehold Improvements | E35: 0 | G35: 0 | I35: 0 | J35: 0 | L35: 0
A36: 1915 | B36: Office Furniture & Equipment (10 years) | E36: 0 | G36: 0 | I36: 0 | J36: 0 | L36: 0
A37: 1915 | B37: Office Furniture & Equipment (5 years) | E37: 0 | G37: 0 | I37: 0 | J37: 0 | L37: 0
A38: 1920 | B38: Computer Equipment - Hardware | E38: 0 | G38: 0 | I38: 0 | J38: 0 | L38: 0
A39: 1920 | B39: Computer Equip.-Hardware(Post Mar. 22/04) | E39: 0 | G39: 0 | I39: 0 | J39: 0 | L39: 0
A40: 1920 | B40: Computer Equip.-Hardware(Post Mar. 19/07) | E40: 0 | G40: 0 | I40: 0 | J40: 0 | L40: 0
A41: 1930 | B41: Transportation Equipment | E41: 0 | G41: 0 | I41: 0 | J41: 0 | L41: 0
A42: 1935 | B42: Stores Equipment | E42: 0 | G42: 0 | I42: 0 | J42: 0 | L42: 0
A43: 1940 | B43: Tools, Shop & Garage Equipment | E43: 0 | G43: 0 | I43: 0 | J43: 0 | L43: 0
A44: 1945 | B44: Measurement & Testing Equipment | E44: 0 | G44: 0 | I44: 0 | J44: 0 | L44: 0
A45: 1950 | B45: Power Operated Equipment | E45: 0 | G45: 0 | I45: 0 | J45: 0 | L45: 0
A46: 1955 | B46: Communications Equipment | E46: 0 | G46: 0 | I46: 0 | J46: 0 | L46: 0
A47: 1955 | B47: Communication Equipment (Smart Meters) | E47: 0 | G47: 0 | I47: 0 | J47: 0 | L47: 0
A48: 1960 | B48: Miscellaneous Equipment | E48: 0 | G48: 0 | I48: 0 | J48: 0 | L48: 0
A49: 1970 | B49: Load Management Controls - Customer Premises | E49: 0 | G49: 0 | I49: 0 | J49: 0 | L49: 0
A50: 1975 | B50: Load Management Controls Utility Premises | E50: 0 | G50: 0 | I50: 0 | J50: 0 | L50: 0
A51: 1980 | B51: System Supervisor Equipment | E51: 0 | G51: 0 | I51: 0 | J51: 0 | L51: 0
A52: 1985 | B52: Miscellaneous Fixed Assets | E52: 0 | G52: 0 | I52: 0 | J52: 0 | L52: 0
A53: 1990 | B53: Other Tangible Property | E53: 0 | G53: 0 | I53: 0 | J53: 0 | L53: 0
A54: 1995 | B54: Contributions & Grants | E54: 0 | G54: 0 | I54: 0 | J54: 0 | L54: 0
B55: Total | C55: =SUM(C17:C54) -> 0 | D55: =SUM(D17:D54) -> 0 | E55: =SUM(E17:E54) -> 0 | F55: =SUM(F17:F54) -> 0 | G55: =SUM(G17:G54) -> 0 | J55: =SUM(J17:J54) -> 0 | K55: =SUM(K17:K54) -> 0 | L55: =SUM(L17:L54) -> 0
A57: Notes:
A59: 1 | B59: Board policy of the "half-year" rule - the applicant must ensure that additions in the year attract a half-year depreciation expense in the first year. Deviations from this standard practice must be supported in the application.
A60: 2 | B60: The applicant must provide an explanation of material variances in evidence.
A62: General | B62: Applicants must provide a breakdown of depreciation and amortization expense in the above format for all relevant accounts. Asset Retirement Obligations (AROs), depreciation and accretion expense should be disclosed separately consistent with the Notes of historical Audited Financial Statements.

Sheet App.2-CH_NewCGAAP_DepExp_2013
N1: File Number: | O1: =EBNUMBER -> EB-2016-0061
N2: Exhibit:
N3: Tab:
N4: Schedule:
N5: Page:
N7: Date:
A9: Appendix 2-CH
A10: Depreciation and Amortization Expense
A11: Assumes the applicant made capitalization and depreciation expense accounting policy changes under CGAAP effective January 1, 2013 and has adopted IFRS for financial reporting purposes effective January 1, 2015.
C13: Year | D13: 2013 | E13: Revised CGAAP
A15: Account | B15: Description | C15: Opening NBV as at Jan 1, 2013 5 | D15: Additions | E15: Average Remaining Life of Opening NBV 4 | F15: Years (new additions only) 3 | G15: Depreciation Rate on New Additions | H15: Depreciation Expense on Opening NBV | I15: Depreciation Expense on Additions 1 | J15: 2013 Depreciation Expense | K15: 2013 Depreciation Expense per Appendix 2-BA Fixed Assets, Column J (l) | L15: Variance 2 | M15: Depreciation Expense on 2013 Full Year Additions | N15: Less Depreciation Expense on Assets Fully Depreciated during the year (o) | O15: 2013 Full Year Depreciation 6
C16: (a) | D16: (d) | E16: (i) | F16: (f) | G16: (g) = 1 / (f) | H16: (j) = (a) / (i) | I16: (h)=((d)*0.5)/(f) | J16: (k) = (j) + (h) | L16: (m) = (k) - (l) | M16: (n) = (d)/(f) | O16: (p) = (j) + (n) - (o)
A17: 1611 | B17: Computer Software (Formally known as Account 1925) | G17: =IF(F17=0,0,1/F17) -> 0 | H17: =IF(E17=0,0,+C17/E17) -> 0 | I17: =IF(F17=0,0,+(D17*0.5)/F17) -> 0 | J17: =IF(ISERROR(+H17+I17), 0, +H17+I17) -> 0 | L17: =IF(ISERROR(+J17-K17), 0, +J17-K17) -> 0 | M17: =IF(F17=0,0,+(D17)/F17) -> 0 | O17: =IF(ISERROR(+M17+H17-N17), 0, +M17+H17-N17) -> 0
A18: 1612 | B18: Land Rights (Formally known as Account 1906) | G18: 0 | H18: 0 | I18: 0 | J18: 0 | L18: 0 | M18: 0 | O18: =IF(ISERROR(+M18+H18-N18), 0, +M18+H18-N18) -> 0
A19: 1805 | B19: Land | G19: 0 | H19: 0 | I19: 0 | J19: 0 | L19: 0 | M19: 0 | O19: 0
A20: 1808 | B20: Buildings | G20: 0 | H20: 0 | I20: 0 | J20: 0 | L20: 0 | M20: 0 | O20: 0
A21: 1810 | B21: Leasehold Improvements | G21: 0 | H21: 0 | I21: 0 | J21: 0 | L21: 0 | M21: 0 | O21: 0
A22: 1815 | B22: Transformer Station Equipment >50 kV | G22: 0 | H22: 0 | I22: 0 | J22: 0 | L22: 0 | M22: 0 | O22: 0
A23: 1820 | B23: Distribution Station Equipment <50 kV | G23: 0 | H23: 0 | I23: 0 | J23: 0 | L23: 0 | M23: 0 | O23: 0
A24: 1825 | B24: Storage Battery Equipment | G24: 0 | H24: 0 | I24: 0 | J24: 0 | L24: 0 | M24: 0 | O24: 0
A25: 1830 | B25: Poles, Towers & Fixtures | G25: 0 | H25: 0 | I25: 0 | J25: 0 | L25: 0 | M25: 0 | O25: 0
A26: 1835 | B26: Overhead Conductors & Devices | G26: 0 | H26: 0 | I26: 0 | J26: 0 | L26: 0 | M26: 0 | O26: 0
A27: 1840 | B27: Underground Conduit | G27: 0 | H27: 0 | I27: 0 | J27: 0 | L27: 0 | M27: 0 | O27: 0
A28: 1845 | B28: Underground Conductors & Devices | G28: 0 | H28: 0 | I28: 0 | J28: 0 | L28: 0 | M28: 0 | O28: 0
A29: 1850 | B29: Line Transformers | G29: 0 | H29: 0 | I29: 0 | J29: 0 | L29: 0 | M29: 0 | O29: 0
A30: 1855 | B30: Services (Overhead & Underground) | G30: 0 | H30: 0 | I30: 0 | J30: 0 | L30: 0 | M30: 0 | O30: 0
A31: 1860 | B31: Meters | G31: 0 | H31: 0 | I31: 0 | J31: 0 | L31: 0 | M31: 0 | O31: 0
A32: 1860 | B32: Meters (Smart Meters) | G32: 0 | H32: 0 | I32: 0 | J32: 0 | L32: 0 | M32: 0 | O32: 0
A33: 1905 | B33: Land | G33: 0 | H33: 0 | I33: 0 | J33: 0 | L33: 0 | M33: 0 | O33: 0
A34: 1908 | B34: Buildings & Fixtures | G34: 0 | H34: 0 | I34: 0 | J34: 0 | L34: 0 | M34: 0 | O34: 0
A35: 1910 | B35: Leasehold Improvements | G35: 0 | H35: 0 | I35: 0 | J35: 0 | L35: 0 | M35: 0 | O35: 0
A36: 1915 | B36: Office Furniture & Equipment (10 years) | G36: 0 | H36: 0 | I36: 0 | J36: 0 | L36: 0 | M36: 0 | O36: 0
A37: 1915 | B37: Office Furniture & Equipment (5 years) | G37: 0 | H37: 0 | I37: 0 | J37: 0 | L37: 0 | M37: 0 | O37: 0
A38: 1920 | B38: Computer Equipment - Hardware | G38: 0 | H38: 0 | I38: 0 | J38: 0 | L38: 0 | M38: 0 | O38: 0
A39: 1920 | B39: Computer Equip.-Hardware(Post Mar. 22/04) | G39: 0 | H39: 0 | I39: 0 | J39: 0 | L39: 0 | M39: 0 | O39: 0
A40: 1920 | B40: Computer Equip.-Hardware(Post Mar. 19/07) | G40: 0 | H40: 0 | I40: 0 | J40: 0 | L40: 0 | M40: 0 | O40: 0
A41: 1930 | B41: Transportation Equipment | G41: 0 | H41: 0 | I41: 0 | J41: 0 | L41: 0 | M41: 0 | O41: 0
A42: 1935 | B42: Stores Equipment | G42: 0 | H42: 0 | I42: 0 | J42: 0 | L42: 0 | M42: 0 | O42: 0
A43: 1940 | B43: Tools, Shop & Garage Equipment | G43: 0 | H43: 0 | I43: 0 | J43: 0 | L43: 0 | M43: 0 | O43: 0
A44: 1945 | B44: Measurement & Testing Equipment | G44: 0 | H44: 0 | I44: 0 | J44: 0 | L44: 0 | M44: 0 | O44: 0
A45: 1950 | B45: Power Operated Equipment | G45: 0 | H45: 0 | I45: 0 | J45: 0 | L45: 0 | M45: 0 | O45: 0
A46: 1955 | B46: Communications Equipment | G46: 0 | H46: 0 | I46: 0 | J46: 0 | L46: 0 | M46: 0 | O46: 0
A47: 1955 | B47: Communication Equipment (Smart Meters) | G47: 0 | H47: 0 | I47: 0 | J47: 0 | L47: 0 | M47: 0 | O47: 0
A48: 1960 | B48: Miscellaneous Equipment | G48: 0 | H48: 0 | I48: 0 | J48: 0 | L48: 0 | M48: 0 | O48: 0
A49: 1970 | B49: Load Management Controls - Customer Premises | G49: 0 | H49: 0 | I49: 0 | J49: 0 | L49: 0 | M49: 0 | O49: 0
A50: 1975 | B50: Load Management Controls Utility Premises | G50: 0 | H50: 0 | I50: 0 | J50: 0 | L50: 0 | M50: 0 | O50: 0
A51: 1980 | B51: System Supervisor Equipment | G51: 0 | H51: 0 | I51: 0 | J51: 0 | L51: 0 | M51: 0 | O51: 0
A52: 1985 | B52: Miscellaneous Fixed Assets | G52: 0 | H52: 0 | I52: 0 | J52: 0 | L52: 0 | M52: 0 | O52: 0
A53: 1990 | B53: Other Tangible Property | G53: 0 | H53: 0 | I53: 0 | J53: 0 | L53: 0 | M53: 0 | O53: 0
A54: 1995 | B54: Contributions & Grants | G54: 0 | H54: 0 | I54: 0 | J54: 0 | L54: 0 | M54: 0 | O54: 0
B55: Total | C55: =SUM(C17:C54) -> 0 | D55: =SUM(D17:D54) -> 0 | H55: =SUM(H17:H54) -> 0 | I55: 0 | J55: 0 | K55: 0 | L55: 0 | M55: 0 | N55: 0 | O55: 0
A57: Notes:
A59: 1 | B59: Board policy of the "half-year" rule - the applicant must ensure that additions in the year attract a half-year depreciation expense in the first year. Deviations from this standard practice must be supported in the application.
A60: 2 | B60: The applicant must provide an explanation of material variances in evidence.
A61: 3 | B61: The applicant should ensure that the years for new additions of assets are the asset useful lives determined by management in accordance with the Board's regulatory accounting policies. The capitalization and depreciation expense accounting changes should be implemented consistent with the Board’s regulatory accounting policies as set out for MIFRS as contained in the Report of the Board, Transition to International Financial Reporting Standards, EB-2008-0408, the Kinectrics Report, and the Revised 2012 Accounting Procedures Handbook for Electricity Distributors.
A62: 4 | B62: A recalculation should be performed to determine the average remaining life of opening balance of assets (i.e. excluding 2013 additions) under the change in policies under CGAAP. For example, Asset A had a useful life of 20 years under CGAAP without the change in policies. On January 1, 2013, the effective date of the changes in policies, Asset A was 3 years depreciated. As a result, Asset A would have a remaining service life of 17 years (20 years less 3 years) as of January 1, 2013. Due to making the change in policies under CGAAP, management re-assessed the asset useful lives and concluded that the revised useful life of Asset A is now 30 years. Therefore, the average remaining useful life of the opening balance of Asset A is determined to be 27 years (30 years less 3 years) under the revised CGAAP as of January 1, 2013.
A63: 5 | B63: NBV must exclude assets still on the books but which have been fully amortized or depreciated.
A64: 6 | B64: This column refers to the calculated full year depreciation but excludes the depreciation expense on assets fully depreciated during the year. This column is used for the purpose of calculating depreciation expense in the following year on the next worksheet.
A66: General: | B66: Applicants must provide a breakdown of depreciation and amortization expense in the above format for all relevant accounts. Asset Retirement Obligations (AROs), depreciation and accretion expense should be disclosed separately consistent with the Notes of historical Audited Financial Statements.

Sheet App.2-CI_MIFRS_DepExp_2014
J1: File Number: | K1: =EBNUMBER -> EB-2016-0061
J2: Exhibit:
J3: Tab:
J4: Schedule:
J5: Page:
J7: Date:
A9: Appendix 2-CI
A10: Depreciation and Amortization Expense
A11: Assumes the applicant made capitalization and depreciation expense accounting policy changes under CGAAP effective January 1, 2013 and has adopted IFRS for financial reporting purposes effective January 1, 2015.
E13: 2014 | F13: MIFRS
A15: Account | B15: Description | C15: Additions | D15: Years (new additions only) | E15: Depreciation Rate on New Additions | F15: 2014 Depreciation Expense 1 | G15: 2014 Depreciation Expense per Apppendix 2-BA Fixed Assets, Column J (l) | H15: Variance 2 | I15: Depreciation Expense on 2014 Full Year Additions | J15: Less Depreciation Expense on Assets Fully Depreciated during the year (o) | K15: 2014 Full Year Depreciation 3
C16: (d) | D16: (f) | E16: (g) = 1 / (f) | F16: (h)=2013 Full Year Deprecation + ((d)*0.5)/(f) | H16: (m) = (h) - (l) | I16: (n)=((d))/(f) | K16: (p) = 2013 Full Year Depreciation + (n) - (o)
A17: 1611 | B17: Computer Software (Formally known as Account 1925) | E17: =IF(D17=0,0,1/D17) -> 0 | F17: =IF(D17=0,+'App.2-CH_NewCGAAP_DepExp_2013'!O17,+'App.2-CH_NewCGAAP_DepExp_2013'!O17+((C17*0.5)/D17)) -> 0 | H17: =IF(ISERROR(+F17-G17), 0, +F17-G17) -> 0 | I17: =IF(D17=0,0,+(C17)/D17) -> 0 | K17: =IF(ISERROR(+I17+'App.2-CH_NewCGAAP_DepExp_2013'!O17-J17), 0, +I17+'App.2-CH_NewCGAAP_DepExp_2013'!O17-J17) -> 0
A18: 1612 | B18: Land Rights (Formally known as Account 1906) | E18: 0 | F18: =IF(D18=0,+'App.2-CH_NewCGAAP_DepExp_2013'!O18,+'App.2-CH_NewCGAAP_DepExp_2013'!O18+((C18*0.5)/D18)) -> 0 | H18: 0 | I18: 0 | K18: =IF(ISERROR(+I18+'App.2-CH_NewCGAAP_DepExp_2013'!O18-J18), 0, +I18+'App.2-CH_NewCGAAP_DepExp_2013'!O18-J18) -> 0
A19: 1805 | B19: Land | E19: 0 | F19: =IF(D19=0,+'App.2-CH_NewCGAAP_DepExp_2013'!O19,+'App.2-CH_NewCGAAP_DepExp_2013'!O19+((C19*0.5)/D19)) -> 0 | H19: 0 | I19: 0 | K19: =IF(ISERROR(+I19+'App.2-CH_NewCGAAP_DepExp_2013'!O19-J19), 0, +I19+'App.2-CH_NewCGAAP_DepExp_2013'!O19-J19) -> 0
A20: 1808 | B20: Buildings | E20: 0 | F20: =IF(D20=0,+'App.2-CH_NewCGAAP_DepExp_2013'!O20,+'App.2-CH_NewCGAAP_DepExp_2013'!O20+((C20*0.5)/D20)) -> 0 | H20: 0 | I20: 0 | K20: =IF(ISERROR(+I20+'App.2-CH_NewCGAAP_DepExp_2013'!O20-J20), 0, +I20+'App.2-CH_NewCGAAP_DepExp_2013'!O20-J20) -> 0
A21: 1810 | B21: Leasehold Improvements | E21: 0 | F21: =IF(D21=0,+'App.2-CH_NewCGAAP_DepExp_2013'!O21,+'App.2-CH_NewCGAAP_DepExp_2013'!O21+((C21*0.5)/D21)) -> 0 | H21: 0 | I21: 0 | K21: =IF(ISERROR(+I21+'App.2-CH_NewCGAAP_DepExp_2013'!O21-J21), 0, +I21+'App.2-CH_NewCGAAP_DepExp_2013'!O21-J21) -> 0
A22: 1815 | B22: Transformer Station Equipment >50 kV | E22: 0 | F22: =IF(D22=0,+'App.2-CH_NewCGAAP_DepExp_2013'!O22,+'App.2-CH_NewCGAAP_DepExp_2013'!O22+((C22*0.5)/D22)) -> 0 | H22: 0 | I22: 0 | K22: =IF(ISERROR(+I22+'App.2-CH_NewCGAAP_DepExp_2013'!O22-J22), 0, +I22+'App.2-CH_NewCGAAP_DepExp_2013'!O22-J22) -> 0
A23: 1820 | B23: Distribution Station Equipment <50 kV | E23: 0 | F23: =IF(D23=0,+'App.2-CH_NewCGAAP_DepExp_2013'!O23,+'App.2-CH_NewCGAAP_DepExp_2013'!O23+((C23*0.5)/D23)) -> 0 | H23: 0 | I23: 0 | K23: =IF(ISERROR(+I23+'App.2-CH_NewCGAAP_DepExp_2013'!O23-J23), 0, +I23+'App.2-CH_NewCGAAP_DepExp_2013'!O23-J23) -> 0
A24: 1825 | B24: Storage Battery Equipment | E24: 0 | F24: =IF(D24=0,+'App.2-CH_NewCGAAP_DepExp_2013'!O24,+'App.2-CH_NewCGAAP_DepExp_2013'!O24+((C24*0.5)/D24)) -> 0 | H24: 0 | I24: 0 | K24: =IF(ISERROR(+I24+'App.2-CH_NewCGAAP_DepExp_2013'!O24-J24), 0, +I24+'App.2-CH_NewCGAAP_DepExp_2013'!O24-J24) -> 0
A25: 1830 | B25: Poles, Towers & Fixtures | E25: 0 | F25: =IF(D25=0,+'App.2-CH_NewCGAAP_DepExp_2013'!O25,+'App.2-CH_NewCGAAP_DepExp_2013'!O25+((C25*0.5)/D25)) -> 0 | H25: 0 | I25: 0 | K25: =IF(ISERROR(+I25+'App.2-CH_NewCGAAP_DepExp_2013'!O25-J25), 0, +I25+'App.2-CH_NewCGAAP_DepExp_2013'!O25-J25) -> 0
A26: 1835 | B26: Overhead Conductors & Devices | E26: 0 | F26: =IF(D26=0,+'App.2-CH_NewCGAAP_DepExp_2013'!O26,+'App.2-CH_NewCGAAP_DepExp_2013'!O26+((C26*0.5)/D26)) -> 0 | H26: 0 | I26: 0 | K26: =IF(ISERROR(+I26+'App.2-CH_NewCGAAP_DepExp_2013'!O26-J26), 0, +I26+'App.2-CH_NewCGAAP_DepExp_2013'!O26-J26) -> 0
A27: 1840 | B27: Underground Conduit | E27: 0 | F27: =IF(D27=0,+'App.2-CH_NewCGAAP_DepExp_2013'!O27,+'App.2-CH_NewCGAAP_DepExp_2013'!O27+((C27*0.5)/D27)) -> 0 | H27: 0 | I27: 0 | K27: =IF(ISERROR(+I27+'App.2-CH_NewCGAAP_DepExp_2013'!O27-J27), 0, +I27+'App.2-CH_NewCGAAP_DepExp_2013'!O27-J27) -> 0
A28: 1845 | B28: Underground Conductors & Devices | E28: 0 | F28: =IF(D28=0,+'App.2-CH_NewCGAAP_DepExp_2013'!O28,+'App.2-CH_NewCGAAP_DepExp_2013'!O28+((C28*0.5)/D28)) -> 0 | H28: 0 | I28: 0 | K28: =IF(ISERROR(+I28+'App.2-CH_NewCGAAP_DepExp_2013'!O28-J28), 0, +I28+'App.2-CH_NewCGAAP_DepExp_2013'!O28-J28) -> 0
A29: 1850 | B29: Line Transformers | E29: 0 | F29: =IF(D29=0,+'App.2-CH_NewCGAAP_DepExp_2013'!O29,+'App.2-CH_NewCGAAP_DepExp_2013'!O29+((C29*0.5)/D29)) -> 0 | H29: 0 | I29: 0 | K29: =IF(ISERROR(+I29+'App.2-CH_NewCGAAP_DepExp_2013'!O29-J29), 0, +I29+'App.2-CH_NewCGAAP_DepExp_2013'!O29-J29) -> 0
A30: 1855 | B30: Services (Overhead & Underground) | E30: 0 | F30: =IF(D30=0,+'App.2-CH_NewCGAAP_DepExp_2013'!O30,+'App.2-CH_NewCGAAP_DepExp_2013'!O30+((C30*0.5)/D30)) -> 0 | H30: 0 | I30: 0 | K30: =IF(ISERROR(+I30+'App.2-CH_NewCGAAP_DepExp_2013'!O30-J30), 0, +I30+'App.2-CH_NewCGAAP_DepExp_2013'!O30-J30) -> 0
A31: 1860 | B31: Meters | E31: 0 | F31: =IF(D31=0,+'App.2-CH_NewCGAAP_DepExp_2013'!O31,+'App.2-CH_NewCGAAP_DepExp_2013'!O31+((C31*0.5)/D31)) -> 0 | H31: 0 | I31: 0 | K31: =IF(ISERROR(+I31+'App.2-CH_NewCGAAP_DepExp_2013'!O31-J31), 0, +I31+'App.2-CH_NewCGAAP_DepExp_2013'!O31-J31) -> 0
A32: 1860 | B32: Meters (Smart Meters) | E32: 0 | F32: =IF(D32=0,+'App.2-CH_NewCGAAP_DepExp_2013'!O32,+'App.2-CH_NewCGAAP_DepExp_2013'!O32+((C32*0.5)/D32)) -> 0 | H32: 0 | I32: 0 | K32: =IF(ISERROR(+I32+'App.2-CH_NewCGAAP_DepExp_2013'!O32-J32), 0, +I32+'App.2-CH_NewCGAAP_DepExp_2013'!O32-J32) -> 0
A33: 1905 | B33: Land | E33: 0 | F33: =IF(D33=0,+'App.2-CH_NewCGAAP_DepExp_2013'!O33,+'App.2-CH_NewCGAAP_DepExp_2013'!O33+((C33*0.5)/D33)) -> 0 | H33: 0 | I33: 0 | K33: =IF(ISERROR(+I33+'App.2-CH_NewCGAAP_DepExp_2013'!O33-J33), 0, +I33+'App.2-CH_NewCGAAP_DepExp_2013'!O33-J33) -> 0
A34: 1908 | B34: Buildings & Fixtures | E34: 0 | F34: =IF(D34=0,+'App.2-CH_NewCGAAP_DepExp_2013'!O34,+'App.2-CH_NewCGAAP_DepExp_2013'!O34+((C34*0.5)/D34)) -> 0 | H34: 0 | I34: 0 | K34: =IF(ISERROR(+I34+'App.2-CH_NewCGAAP_DepExp_2013'!O34-J34), 0, +I34+'App.2-CH_NewCGAAP_DepExp_2013'!O34-J34) -> 0
A35: 1910 | B35: Leasehold Improvements | E35: 0 | F35: =IF(D35=0,+'App.2-CH_NewCGAAP_DepExp_2013'!O35,+'App.2-CH_NewCGAAP_DepExp_2013'!O35+((C35*0.5)/D35)) -> 0 | H35: 0 | I35: 0 | K35: =IF(ISERROR(+I35+'App.2-CH_NewCGAAP_DepExp_2013'!O35-J35), 0, +I35+'App.2-CH_NewCGAAP_DepExp_2013'!O35-J35) -> 0
A36: 1915 | B36: Office Furniture & Equipment (10 years) | E36: 0 | F36: =IF(D36=0,+'App.2-CH_NewCGAAP_DepExp_2013'!O36,+'App.2-CH_NewCGAAP_DepExp_2013'!O36+((C36*0.5)/D36)) -> 0 | H36: 0 | I36: 0 | K36: =IF(ISERROR(+I36+'App.2-CH_NewCGAAP_DepExp_2013'!O36-J36), 0, +I36+'App.2-CH_NewCGAAP_DepExp_2013'!O36-J36) -> 0
A37: 1915 | B37: Office Furniture & Equipment (5 years) | E37: 0 | F37: =IF(D37=0,+'App.2-CH_NewCGAAP_DepExp_2013'!O37,+'App.2-CH_NewCGAAP_DepExp_2013'!O37+((C37*0.5)/D37)) -> 0 | H37: 0 | I37: 0 | K37: =IF(ISERROR(+I37+'App.2-CH_NewCGAAP_DepExp_2013'!O37-J37), 0, +I37+'App.2-CH_NewCGAAP_DepExp_2013'!O37-J37) -> 0
A38: 1920 | B38: Computer Equipment - Hardware | E38: 0 | F38: =IF(D38=0,+'App.2-CH_NewCGAAP_DepExp_2013'!O38,+'App.2-CH_NewCGAAP_DepExp_2013'!O38+((C38*0.5)/D38)) -> 0 | H38: 0 | I38: 0 | K38: =IF(ISERROR(+I38+'App.2-CH_NewCGAAP_DepExp_2013'!O38-J38), 0, +I38+'App.2-CH_NewCGAAP_DepExp_2013'!O38-J38) -> 0
A39: 1920 | B39: Computer Equip.-Hardware(Post Mar. 22/04) | E39: 0 | F39: =IF(D39=0,+'App.2-CH_NewCGAAP_DepExp_2013'!O39,+'App.2-CH_NewCGAAP_DepExp_2013'!O39+((C39*0.5)/D39)) -> 0 | H39: 0 | I39: 0 | K39: =IF(ISERROR(+I39+'App.2-CH_NewCGAAP_DepExp_2013'!O39-J39), 0, +I39+'App.2-CH_NewCGAAP_DepExp_2013'!O39-J39) -> 0
A40: 1920 | B40: Computer Equip.-Hardware(Post Mar. 19/07) | E40: 0 | F40: =IF(D40=0,+'App.2-CH_NewCGAAP_DepExp_2013'!O40,+'App.2-CH_NewCGAAP_DepExp_2013'!O40+((C40*0.5)/D40)) -> 0 | H40: 0 | I40: 0 | K40: =IF(ISERROR(+I40+'App.2-CH_NewCGAAP_DepExp_2013'!O40-J40), 0, +I40+'App.2-CH_NewCGAAP_DepExp_2013'!O40-J40) -> 0
A41: 1930 | B41: Transportation Equipment | E41: 0 | F41: =IF(D41=0,+'App.2-CH_NewCGAAP_DepExp_2013'!O41,+'App.2-CH_NewCGAAP_DepExp_2013'!O41+((C41*0.5)/D41)) -> 0 | H41: 0 | I41: 0 | K41: =IF(ISERROR(+I41+'App.2-CH_NewCGAAP_DepExp_2013'!O41-J41), 0, +I41+'App.2-CH_NewCGAAP_DepExp_2013'!O41-J41) -> 0
A42: 1935 | B42: Stores Equipment | E42: 0 | F42: =IF(D42=0,+'App.2-CH_NewCGAAP_DepExp_2013'!O42,+'App.2-CH_NewCGAAP_DepExp_2013'!O42+((C42*0.5)/D42)) -> 0 | H42: 0 | I42: 0 | K42: =IF(ISERROR(+I42+'App.2-CH_NewCGAAP_DepExp_2013'!O42-J42), 0, +I42+'App.2-CH_NewCGAAP_DepExp_2013'!O42-J42) -> 0
A43: 1940 | B43: Tools, Shop & Garage Equipment | E43: 0 | F43: =IF(D43=0,+'App.2-CH_NewCGAAP_DepExp_2013'!O43,+'App.2-CH_NewCGAAP_DepExp_2013'!O43+((C43*0.5)/D43)) -> 0 | H43: 0 | I43: 0 | K43: =IF(ISERROR(+I43+'App.2-CH_NewCGAAP_DepExp_2013'!O43-J43), 0, +I43+'App.2-CH_NewCGAAP_DepExp_2013'!O43-J43) -> 0
A44: 1945 | B44: Measurement & Testing Equipment | E44: 0 | F44: =IF(D44=0,+'App.2-CH_NewCGAAP_DepExp_2013'!O44,+'App.2-CH_NewCGAAP_DepExp_2013'!O44+((C44*0.5)/D44)) -> 0 | H44: 0 | I44: 0 | K44: =IF(ISERROR(+I44+'App.2-CH_NewCGAAP_DepExp_2013'!O44-J44), 0, +I44+'App.2-CH_NewCGAAP_DepExp_2013'!O44-J44) -> 0
A45: 1950 | B45: Power Operated Equipment | E45: 0 | F45: =IF(D45=0,+'App.2-CH_NewCGAAP_DepExp_2013'!O45,+'App.2-CH_NewCGAAP_DepExp_2013'!O45+((C45*0.5)/D45)) -> 0 | H45: 0 | I45: 0 | K45: =IF(ISERROR(+I45+'App.2-CH_NewCGAAP_DepExp_2013'!O45-J45), 0, +I45+'App.2-CH_NewCGAAP_DepExp_2013'!O45-J45) -> 0
A46: 1955 | B46: Communications Equipment | E46: 0 | F46: =IF(D46=0,+'App.2-CH_NewCGAAP_DepExp_2013'!O46,+'App.2-CH_NewCGAAP_DepExp_2013'!O46+((C46*0.5)/D46)) -> 0 | H46: 0 | I46: 0 | K46: =IF(ISERROR(+I46+'App.2-CH_NewCGAAP_DepExp_2013'!O46-J46), 0, +I46+'App.2-CH_NewCGAAP_DepExp_2013'!O46-J46) -> 0
A47: 1955 | B47: Communication Equipment (Smart Meters) | E47: 0 | F47: =IF(D47=0,+'App.2-CH_NewCGAAP_DepExp_2013'!O47,+'App.2-CH_NewCGAAP_DepExp_2013'!O47+((C47*0.5)/D47)) -> 0 | H47: 0 | I47: 0 | K47: =IF(ISERROR(+I47+'App.2-CH_NewCGAAP_DepExp_2013'!O47-J47), 0, +I47+'App.2-CH_NewCGAAP_DepExp_2013'!O47-J47) -> 0
A48: 1960 | B48: Miscellaneous Equipment | E48: 0 | F48: =IF(D48=0,+'App.2-CH_NewCGAAP_DepExp_2013'!O48,+'App.2-CH_NewCGAAP_DepExp_2013'!O48+((C48*0.5)/D48)) -> 0 | H48: 0 | I48: 0 | K48: =IF(ISERROR(+I48+'App.2-CH_NewCGAAP_DepExp_2013'!O48-J48), 0, +I48+'App.2-CH_NewCGAAP_DepExp_2013'!O48-J48) -> 0
A49: 1970 | B49: Load Management Controls - Customer Premises | E49: 0 | F49: =IF(D49=0,+'App.2-CH_NewCGAAP_DepExp_2013'!O49,+'App.2-CH_NewCGAAP_DepExp_2013'!O49+((C49*0.5)/D49)) -> 0 | H49: 0 | I49: 0 | K49: =IF(ISERROR(+I49+'App.2-CH_NewCGAAP_DepExp_2013'!O49-J49), 0, +I49+'App.2-CH_NewCGAAP_DepExp_2013'!O49-J49) -> 0
A50: 1975 | B50: Load Management Controls Utility Premises | E50: 0 | F50: =IF(D50=0,+'App.2-CH_NewCGAAP_DepExp_2013'!O50,+'App.2-CH_NewCGAAP_DepExp_2013'!O50+((C50*0.5)/D50)) -> 0 | H50: 0 | I50: 0 | K50: =IF(ISERROR(+I50+'App.2-CH_NewCGAAP_DepExp_2013'!O50-J50), 0, +I50+'App.2-CH_NewCGAAP_DepExp_2013'!O50-J50) -> 0
A51: 1980 | B51: System Supervisor Equipment | E51: 0 | F51: =IF(D51=0,+'App.2-CH_NewCGAAP_DepExp_2013'!O51,+'App.2-CH_NewCGAAP_DepExp_2013'!O51+((C51*0.5)/D51)) -> 0 | H51: 0 | I51: 0 | K51: =IF(ISERROR(+I51+'App.2-CH_NewCGAAP_DepExp_2013'!O51-J51), 0, +I51+'App.2-CH_NewCGAAP_DepExp_2013'!O51-J51) -> 0
A52: 1985 | B52: Miscellaneous Fixed Assets | E52: 0 | F52: =IF(D52=0,+'App.2-CH_NewCGAAP_DepExp_2013'!O52,+'App.2-CH_NewCGAAP_DepExp_2013'!O52+((C52*0.5)/D52)) -> 0 | H52: 0 | I52: 0 | K52: =IF(ISERROR(+I52+'App.2-CH_NewCGAAP_DepExp_2013'!O52-J52), 0, +I52+'App.2-CH_NewCGAAP_DepExp_2013'!O52-J52) -> 0
A53: 1990 | B53: Other Tangible Property | E53: 0 | F53: =IF(D53=0,+'App.2-CH_NewCGAAP_DepExp_2013'!O53,+'App.2-CH_NewCGAAP_DepExp_2013'!O53+((C53*0.5)/D53)) -> 0 | H53: 0 | I53: 0 | K53: =IF(ISERROR(+I53+'App.2-CH_NewCGAAP_DepExp_2013'!O53-J53), 0, +I53+'App.2-CH_NewCGAAP_DepExp_2013'!O53-J53) -> 0
A54: 1995 | B54: Contributions & Grants | E54: =IF(D54=0,0,1/D54) -> 0 | F54: =IF(D54=0,+'App.2-CH_NewCGAAP_DepExp_2013'!O54,+'App.2-CH_NewCGAAP_DepExp_2013'!O54+((C54*0.5)/D54)) -> 0 | H54: 0 | I54: 0 | K54: =IF(ISERROR(+I54+'App.2-CH_NewCGAAP_DepExp_2013'!O54-J54), 0, +I54+'App.2-CH_NewCGAAP_DepExp_2013'!O54-J54) -> 0
B55: Total | C55: =SUM(C17:C54) -> 0 | F55: =SUM(F17:F54) -> 0 | G55: 0 | H55: 0 | I55: 0 | J55: 0 | K55: 0
B56: Depreciation exp. adj. from gain or loss on the retirement of assets (pool of like assets)
B57: Total Depreciation Expense | F57: =SUM(F55:F56) -> 0
A59: Notes:
A60: 1 | B60: Board policy of the "half-year" rule - the applicant must ensure that additions in the year attract a half-year depreciation expense in the first year. Deviations from this standard practice must be supported in the application.
A61: 2 | B61: The applicant must provide an explanation of material variances in evidence.
A62: 3 | B62: This column refers to the calculated full year depreciation but excludes the depreciation expense on assets fully depreciated during the year. This column is used for the purpose of calculating depreciation expense in the following year on the next worksheet.
A64: General: | B64: Applicants must provide a breakdown of depreciation and amortization expense in the above format for all relevant accounts. Asset Retirement Obligations (AROs), depreciation and accretion expense should be disclosed separately consistent with the Notes of historical Audited Financial Statements.

Sheet App.2-CJ MIFRS_DepExp_2015
G1: File Number: | H1: =EBNUMBER -> EB-2016-0061
G2: Exhibit:
G3: Tab:
G4: Schedule:
G5: Page:
G7: Date:
A9: Appendix 2-CJ
A10: Depreciation and Amortization Expense
A11: Assumes the applicant made capitalization and depreciation expense accounting policy changes under CGAAP effective January 1, 2013 and has adopted IFRS for financial reporting purposes effective January 1, 2015.
D13: 2015 | E13: MIFRS
A15: Account | B15: Description | C15: Additions | D15: Years (new additions only) | E15: Depreciation Rate on New Additions | F15: 2015 Depreciation Expense 1 | G15: 2015 Depreciation Expense per Appendix 2-BA Fixed Assets, Column J (l) | H15: Variance 2 | I15: Depreciation Expense on 2015 Full Year Additions | J15: Less Depreciation Expense on Assets Fully Depreciated during the year (o) | K15: 2015 Full Year Depreciation 3
C16: (d) | D16: (f) | E16: (g) = 1 / (f) | F16: (h)=2014 Full Year Depreciation + ((d)*0.5)/(f) | H16: (m) = (h) - (l) | I16: (n)=((d))/(f) | K16: (p) = 2014 Full Year Depreciation + (n) - (o)
A17: 1611 | B17: Computer Software (Formally known as Account 1925) | E17: =IF(D17=0,0,1/D17) -> 0 | F17: =IF(D17=0,'App.2-CI_MIFRS_DepExp_2014'!K17,+'App.2-CI_MIFRS_DepExp_2014'!K17+((C17*0.5)/D17)) -> 0 | H17: =IF(ISERROR(+F17-G17), 0, +F17-G17) -> 0 | I17: =IF(D17=0,0,+(C17)/D17) -> 0 | K17: =IF(ISERROR(+I17+'App.2-CI_MIFRS_DepExp_2014'!K17-J17), 0, +I17+'App.2-CI_MIFRS_DepExp_2014'!K17-J17) -> 0
A18: 1612 | B18: Land Rights (Formally known as Account 1906) | E18: 0 | F18: =IF(D18=0,'App.2-CI_MIFRS_DepExp_2014'!K18,+'App.2-CI_MIFRS_DepExp_2014'!K18+((C18*0.5)/D18)) -> 0 | H18: 0 | I18: =IF(D18=0,0,+(C18)/D18) -> 0 | K18: =IF(ISERROR(+I18+'App.2-CI_MIFRS_DepExp_2014'!K18-J18), 0, +I18+'App.2-CI_MIFRS_DepExp_2014'!K18-J18) -> 0
A19: 1805 | B19: Land | E19: 0 | F19: =IF(D19=0,'App.2-CI_MIFRS_DepExp_2014'!K19,+'App.2-CI_MIFRS_DepExp_2014'!K19+((C19*0.5)/D19)) -> 0 | H19: 0 | I19: 0 | K19: =IF(ISERROR(+I19+'App.2-CI_MIFRS_DepExp_2014'!K19-J19), 0, +I19+'App.2-CI_MIFRS_DepExp_2014'!K19-J19) -> 0
A20: 1808 | B20: Buildings | E20: 0 | F20: =IF(D20=0,'App.2-CI_MIFRS_DepExp_2014'!K20,+'App.2-CI_MIFRS_DepExp_2014'!K20+((C20*0.5)/D20)) -> 0 | H20: 0 | I20: 0 | K20: =IF(ISERROR(+I20+'App.2-CI_MIFRS_DepExp_2014'!K20-J20), 0, +I20+'App.2-CI_MIFRS_DepExp_2014'!K20-J20) -> 0
A21: 1810 | B21: Leasehold Improvements | E21: 0 | F21: =IF(D21=0,'App.2-CI_MIFRS_DepExp_2014'!K21,+'App.2-CI_MIFRS_DepExp_2014'!K21+((C21*0.5)/D21)) -> 0 | H21: 0 | I21: 0 | K21: =IF(ISERROR(+I21+'App.2-CI_MIFRS_DepExp_2014'!K21-J21), 0, +I21+'App.2-CI_MIFRS_DepExp_2014'!K21-J21) -> 0
A22: 1815 | B22: Transformer Station Equipment >50 kV | E22: 0 | F22: =IF(D22=0,'App.2-CI_MIFRS_DepExp_2014'!K22,+'App.2-CI_MIFRS_DepExp_2014'!K22+((C22*0.5)/D22)) -> 0 | H22: 0 | I22: 0 | K22: =IF(ISERROR(+I22+'App.2-CI_MIFRS_DepExp_2014'!K22-J22), 0, +I22+'App.2-CI_MIFRS_DepExp_2014'!K22-J22) -> 0
A23: 1820 | B23: Distribution Station Equipment <50 kV | E23: 0 | F23: =IF(D23=0,'App.2-CI_MIFRS_DepExp_2014'!K23,+'App.2-CI_MIFRS_DepExp_2014'!K23+((C23*0.5)/D23)) -> 0 | H23: 0 | I23: 0 | K23: =IF(ISERROR(+I23+'App.2-CI_MIFRS_DepExp_2014'!K23-J23), 0, +I23+'App.2-CI_MIFRS_DepExp_2014'!K23-J23) -> 0
A24: 1825 | B24: Storage Battery Equipment | E24: 0 | F24: =IF(D24=0,'App.2-CI_MIFRS_DepExp_2014'!K24,+'App.2-CI_MIFRS_DepExp_2014'!K24+((C24*0.5)/D24)) -> 0 | H24: 0 | I24: 0 | K24: =IF(ISERROR(+I24+'App.2-CI_MIFRS_DepExp_2014'!K24-J24), 0, +I24+'App.2-CI_MIFRS_DepExp_2014'!K24-J24) -> 0
A25: 1830 | B25: Poles, Towers & Fixtures | E25: 0 | F25: =IF(D25=0,'App.2-CI_MIFRS_DepExp_2014'!K25,+'App.2-CI_MIFRS_DepExp_2014'!K25+((C25*0.5)/D25)) -> 0 | H25: 0 | I25: 0 | K25: =IF(ISERROR(+I25+'App.2-CI_MIFRS_DepExp_2014'!K25-J25), 0, +I25+'App.2-CI_MIFRS_DepExp_2014'!K25-J25) -> 0
A26: 1835 | B26: Overhead Conductors & Devices | E26: 0 | F26: =IF(D26=0,'App.2-CI_MIFRS_DepExp_2014'!K26,+'App.2-CI_MIFRS_DepExp_2014'!K26+((C26*0.5)/D26)) -> 0 | H26: 0 | I26: 0 | K26: =IF(ISERROR(+I26+'App.2-CI_MIFRS_DepExp_2014'!K26-J26), 0, +I26+'App.2-CI_MIFRS_DepExp_2014'!K26-J26) -> 0
A27: 1840 | B27: Underground Conduit | E27: 0 | F27: =IF(D27=0,'App.2-CI_MIFRS_DepExp_2014'!K27,+'App.2-CI_MIFRS_DepExp_2014'!K27+((C27*0.5)/D27)) -> 0 | H27: 0 | I27: 0 | K27: =IF(ISERROR(+I27+'App.2-CI_MIFRS_DepExp_2014'!K27-J27), 0, +I27+'App.2-CI_MIFRS_DepExp_2014'!K27-J27) -> 0
A28: 1845 | B28: Underground Conductors & Devices | E28: 0 | F28: =IF(D28=0,'App.2-CI_MIFRS_DepExp_2014'!K28,+'App.2-CI_MIFRS_DepExp_2014'!K28+((C28*0.5)/D28)) -> 0 | H28: 0 | I28: 0 | K28: =IF(ISERROR(+I28+'App.2-CI_MIFRS_DepExp_2014'!K28-J28), 0, +I28+'App.2-CI_MIFRS_DepExp_2014'!K28-J28) -> 0
A29: 1850 | B29: Line Transformers | E29: 0 | F29: =IF(D29=0,'App.2-CI_MIFRS_DepExp_2014'!K29,+'App.2-CI_MIFRS_DepExp_2014'!K29+((C29*0.5)/D29)) -> 0 | H29: 0 | I29: 0 | K29: =IF(ISERROR(+I29+'App.2-CI_MIFRS_DepExp_2014'!K29-J29), 0, +I29+'App.2-CI_MIFRS_DepExp_2014'!K29-J29) -> 0
A30: 1855 | B30: Services (Overhead & Underground) | E30: 0 | F30: =IF(D30=0,'App.2-CI_MIFRS_DepExp_2014'!K30,+'App.2-CI_MIFRS_DepExp_2014'!K30+((C30*0.5)/D30)) -> 0 | H30: 0 | I30: 0 | K30: =IF(ISERROR(+I30+'App.2-CI_MIFRS_DepExp_2014'!K30-J30), 0, +I30+'App.2-CI_MIFRS_DepExp_2014'!K30-J30) -> 0
A31: 1860 | B31: Meters | E31: 0 | F31: =IF(D31=0,'App.2-CI_MIFRS_DepExp_2014'!K31,+'App.2-CI_MIFRS_DepExp_2014'!K31+((C31*0.5)/D31)) -> 0 | H31: 0 | I31: 0 | K31: =IF(ISERROR(+I31+'App.2-CI_MIFRS_DepExp_2014'!K31-J31), 0, +I31+'App.2-CI_MIFRS_DepExp_2014'!K31-J31) -> 0
A32: 1860 | B32: Meters (Smart Meters) | E32: 0 | F32: =IF(D32=0,'App.2-CI_MIFRS_DepExp_2014'!K32,+'App.2-CI_MIFRS_DepExp_2014'!K32+((C32*0.5)/D32)) -> 0 | H32: 0 | I32: 0 | K32: =IF(ISERROR(+I32+'App.2-CI_MIFRS_DepExp_2014'!K32-J32), 0, +I32+'App.2-CI_MIFRS_DepExp_2014'!K32-J32) -> 0
A33: 1905 | B33: Land | E33: 0 | F33: =IF(D33=0,'App.2-CI_MIFRS_DepExp_2014'!K33,+'App.2-CI_MIFRS_DepExp_2014'!K33+((C33*0.5)/D33)) -> 0 | H33: 0 | I33: 0 | K33: =IF(ISERROR(+I33+'App.2-CI_MIFRS_DepExp_2014'!K33-J33), 0, +I33+'App.2-CI_MIFRS_DepExp_2014'!K33-J33) -> 0
A34: 1908 | B34: Buildings & Fixtures | E34: 0 | F34: =IF(D34=0,'App.2-CI_MIFRS_DepExp_2014'!K34,+'App.2-CI_MIFRS_DepExp_2014'!K34+((C34*0.5)/D34)) -> 0 | H34: 0 | I34: 0 | K34: =IF(ISERROR(+I34+'App.2-CI_MIFRS_DepExp_2014'!K34-J34), 0, +I34+'App.2-CI_MIFRS_DepExp_2014'!K34-J34) -> 0
A35: 1910 | B35: Leasehold Improvements | E35: 0 | F35: =IF(D35=0,'App.2-CI_MIFRS_DepExp_2014'!K35,+'App.2-CI_MIFRS_DepExp_2014'!K35+((C35*0.5)/D35)) -> 0 | H35: 0 | I35: 0 | K35: =IF(ISERROR(+I35+'App.2-CI_MIFRS_DepExp_2014'!K35-J35), 0, +I35+'App.2-CI_MIFRS_DepExp_2014'!K35-J35) -> 0
A36: 1915 | B36: Office Furniture & Equipment (10 years) | E36: 0 | F36: =IF(D36=0,'App.2-CI_MIFRS_DepExp_2014'!K36,+'App.2-CI_MIFRS_DepExp_2014'!K36+((C36*0.5)/D36)) -> 0 | H36: 0 | I36: 0 | K36: =IF(ISERROR(+I36+'App.2-CI_MIFRS_DepExp_2014'!K36-J36), 0, +I36+'App.2-CI_MIFRS_DepExp_2014'!K36-J36) -> 0
A37: 1915 | B37: Office Furniture & Equipment (5 years) | E37: 0 | F37: =IF(D37=0,'App.2-CI_MIFRS_DepExp_2014'!K37,+'App.2-CI_MIFRS_DepExp_2014'!K37+((C37*0.5)/D37)) -> 0 | H37: 0 | I37: 0 | K37: =IF(ISERROR(+I37+'App.2-CI_MIFRS_DepExp_2014'!K37-J37), 0, +I37+'App.2-CI_MIFRS_DepExp_2014'!K37-J37) -> 0
A38: 1920 | B38: Computer Equipment - Hardware | E38: 0 | F38: =IF(D38=0,'App.2-CI_MIFRS_DepExp_2014'!K38,+'App.2-CI_MIFRS_DepExp_2014'!K38+((C38*0.5)/D38)) -> 0 | H38: 0 | I38: 0 | K38: =IF(ISERROR(+I38+'App.2-CI_MIFRS_DepExp_2014'!K38-J38), 0, +I38+'App.2-CI_MIFRS_DepExp_2014'!K38-J38) -> 0
A39: 1920 | B39: Computer Equip.-Hardware(Post Mar. 22/04) | E39: 0 | F39: =IF(D39=0,'App.2-CI_MIFRS_DepExp_2014'!K39,+'App.2-CI_MIFRS_DepExp_2014'!K39+((C39*0.5)/D39)) -> 0 | H39: 0 | I39: 0 | K39: =IF(ISERROR(+I39+'App.2-CI_MIFRS_DepExp_2014'!K39-J39), 0, +I39+'App.2-CI_MIFRS_DepExp_2014'!K39-J39) -> 0
A40: 1920 | B40: Computer Equip.-Hardware(Post Mar. 19/07) | E40: 0 | F40: =IF(D40=0,'App.2-CI_MIFRS_DepExp_2014'!K40,+'App.2-CI_MIFRS_DepExp_2014'!K40+((C40*0.5)/D40)) -> 0 | H40: 0 | I40: 0 | K40: =IF(ISERROR(+I40+'App.2-CI_MIFRS_DepExp_2014'!K40-J40), 0, +I40+'App.2-CI_MIFRS_DepExp_2014'!K40-J40) -> 0
A41: 1930 | B41: Transportation Equipment | E41: 0 | F41: =IF(D41=0,'App.2-CI_MIFRS_DepExp_2014'!K41,+'App.2-CI_MIFRS_DepExp_2014'!K41+((C41*0.5)/D41)) -> 0 | H41: 0 | I41: 0 | K41: =IF(ISERROR(+I41+'App.2-CI_MIFRS_DepExp_2014'!K41-J41), 0, +I41+'App.2-CI_MIFRS_DepExp_2014'!K41-J41) -> 0
A42: 1935 | B42: Stores Equipment | E42: 0 | F42: =IF(D42=0,'App.2-CI_MIFRS_DepExp_2014'!K42,+'App.2-CI_MIFRS_DepExp_2014'!K42+((C42*0.5)/D42)) -> 0 | H42: 0 | I42: 0 | K42: =IF(ISERROR(+I42+'App.2-CI_MIFRS_DepExp_2014'!K42-J42), 0, +I42+'App.2-CI_MIFRS_DepExp_2014'!K42-J42) -> 0
A43: 1940 | B43: Tools, Shop & Garage Equipment | E43: 0 | F43: =IF(D43=0,'App.2-CI_MIFRS_DepExp_2014'!K43,+'App.2-CI_MIFRS_DepExp_2014'!K43+((C43*0.5)/D43)) -> 0 | H43: 0 | I43: 0 | K43: =IF(ISERROR(+I43+'App.2-CI_MIFRS_DepExp_2014'!K43-J43), 0, +I43+'App.2-CI_MIFRS_DepExp_2014'!K43-J43) -> 0
A44: 1945 | B44: Measurement & Testing Equipment | E44: 0 | F44: =IF(D44=0,'App.2-CI_MIFRS_DepExp_2014'!K44,+'App.2-CI_MIFRS_DepExp_2014'!K44+((C44*0.5)/D44)) -> 0 | H44: 0 | I44: 0 | K44: =IF(ISERROR(+I44+'App.2-CI_MIFRS_DepExp_2014'!K44-J44), 0, +I44+'App.2-CI_MIFRS_DepExp_2014'!K44-J44) -> 0
A45: 1950 | B45: Power Operated Equipment | E45: 0 | F45: =IF(D45=0,'App.2-CI_MIFRS_DepExp_2014'!K45,+'App.2-CI_MIFRS_DepExp_2014'!K45+((C45*0.5)/D45)) -> 0 | H45: 0 | I45: 0 | K45: =IF(ISERROR(+I45+'App.2-CI_MIFRS_DepExp_2014'!K45-J45), 0, +I45+'App.2-CI_MIFRS_DepExp_2014'!K45-J45) -> 0
A46: 1955 | B46: Communications Equipment | E46: 0 | F46: =IF(D46=0,'App.2-CI_MIFRS_DepExp_2014'!K46,+'App.2-CI_MIFRS_DepExp_2014'!K46+((C46*0.5)/D46)) -> 0 | H46: 0 | I46: 0 | K46: =IF(ISERROR(+I46+'App.2-CI_MIFRS_DepExp_2014'!K46-J46), 0, +I46+'App.2-CI_MIFRS_DepExp_2014'!K46-J46) -> 0
A47: 1955 | B47: Communication Equipment (Smart Meters) | E47: 0 | F47: =IF(D47=0,'App.2-CI_MIFRS_DepExp_2014'!K47,+'App.2-CI_MIFRS_DepExp_2014'!K47+((C47*0.5)/D47)) -> 0 | H47: 0 | I47: 0 | K47: =IF(ISERROR(+I47+'App.2-CI_MIFRS_DepExp_2014'!K47-J47), 0, +I47+'App.2-CI_MIFRS_DepExp_2014'!K47-J47) -> 0
A48: 1960 | B48: Miscellaneous Equipment | E48: 0 | F48: =IF(D48=0,'App.2-CI_MIFRS_DepExp_2014'!K48,+'App.2-CI_MIFRS_DepExp_2014'!K48+((C48*0.5)/D48)) -> 0 | H48: 0 | I48: 0 | K48: =IF(ISERROR(+I48+'App.2-CI_MIFRS_DepExp_2014'!K48-J48), 0, +I48+'App.2-CI_MIFRS_DepExp_2014'!K48-J48) -> 0
A49: 1970 | B49: Load Management Controls - Customer Premises | E49: 0 | F49: =IF(D49=0,'App.2-CI_MIFRS_DepExp_2014'!K49,+'App.2-CI_MIFRS_DepExp_2014'!K49+((C49*0.5)/D49)) -> 0 | H49: 0 | I49: 0 | K49: =IF(ISERROR(+I49+'App.2-CI_MIFRS_DepExp_2014'!K49-J49), 0, +I49+'App.2-CI_MIFRS_DepExp_2014'!K49-J49) -> 0
A50: 1975 | B50: Load Management Controls Utility Premises | E50: 0 | F50: =IF(D50=0,'App.2-CI_MIFRS_DepExp_2014'!K50,+'App.2-CI_MIFRS_DepExp_2014'!K50+((C50*0.5)/D50)) -> 0 | H50: 0 | I50: 0 | K50: =IF(ISERROR(+I50+'App.2-CI_MIFRS_DepExp_2014'!K50-J50), 0, +I50+'App.2-CI_MIFRS_DepExp_2014'!K50-J50) -> 0
A51: 1980 | B51: System Supervisor Equipment | E51: 0 | F51: =IF(D51=0,'App.2-CI_MIFRS_DepExp_2014'!K51,+'App.2-CI_MIFRS_DepExp_2014'!K51+((C51*0.5)/D51)) -> 0 | H51: 0 | I51: 0 | K51: =IF(ISERROR(+I51+'App.2-CI_MIFRS_DepExp_2014'!K51-J51), 0, +I51+'App.2-CI_MIFRS_DepExp_2014'!K51-J51) -> 0
A52: 1985 | B52: Miscellaneous Fixed Assets | E52: 0 | F52: =IF(D52=0,'App.2-CI_MIFRS_DepExp_2014'!K52,+'App.2-CI_MIFRS_DepExp_2014'!K52+((C52*0.5)/D52)) -> 0 | H52: 0 | I52: 0 | K52: =IF(ISERROR(+I52+'App.2-CI_MIFRS_DepExp_2014'!K52-J52), 0, +I52+'App.2-CI_MIFRS_DepExp_2014'!K52-J52) -> 0
A53: 1990 | B53: Other Tangible Property | E53: 0 | F53: =IF(D53=0,'App.2-CI_MIFRS_DepExp_2014'!K53,+'App.2-CI_MIFRS_DepExp_2014'!K53+((C53*0.5)/D53)) -> 0 | H53: 0 | I53: 0 | K53: =IF(ISERROR(+I53+'App.2-CI_MIFRS_DepExp_2014'!K53-J53), 0, +I53+'App.2-CI_MIFRS_DepExp_2014'!K53-J53) -> 0
A54: 1995 | B54: Contributions & Grants | E54: 0 | F54: =IF(D54=0,'App.2-CI_MIFRS_DepExp_2014'!K54,+'App.2-CI_MIFRS_DepExp_2014'!K54+((C54*0.5)/D54)) -> 0 | H54: 0 | I54: 0 | K54: =IF(ISERROR(+I54+'App.2-CI_MIFRS_DepExp_2014'!K54-J54), 0, +I54+'App.2-CI_MIFRS_DepExp_2014'!K54-J54) -> 0
B55: Total | C55: =SUM(C17:C54) -> 0 | F55: =SUM(F17:F54) -> 0 | G55: =SUM(G17:G54) -> 0 | H55: =SUM(H17:H54) -> 0 | I55: =SUM(I17:I54) -> 0 | J55: 0 | K55: =SUM(K17:K54) -> 0
B56: Depreciation exp. adj. from gain or loss on the retirement of assets (pool of like assets)
B57: Total Depreciation expense to be included in the test year revenue requirement | F57: =SUM(F55:F56) -> 0
A58: Notes:
A59: 1 | B59: Board policy of the "half-year" rule - the applicant must ensure that additions in the year attract a half-year depreciation expense in the first year. Deviations from this standard practice must be supported in the application.
A60: 2 | B60: The applicant must provide an explanation of material variances in evidence.
A61: 3 | B61: This column refers to the calculated full year depreciation but excludes the depreciation expense on assets fully depreciated during the year. This column is used for the purpose of calculating depreciation expense in the following year on the next worksheet.
A64: General: | B64: Applicants must provide a breakdown of depreciation and amortization expense in the above format for all relevant accounts. Asset Retirement Obligations (AROs), depreciation and accretion expense should be disclosed separately consistent with the Notes of historical Audited Financial Statements.

Sheet App.2-CK MIFRS_DepExp_2016
G1: File Number: | H1: =EBNUMBER -> EB-2016-0061
G2: Exhibit:
G3: Tab:
G4: Schedule:
G5: Page:
G7: Date:
A9: Appendix 2-CK
A10: Depreciation and Amortization Expense
A11: Assumes the applicant made capitalization and depreciation expense accounting policy changes under CGAAP effective January 1, 2013 and has adopted IFRS for financial reporting purposes effective January 1, 2015.
D13: 2016 | E13: MIFRS
A15: Account | B15: Description | C15: Additions | D15: Years (new additions only) | E15: Depreciation Rate on New Additions | F15: 2016 Depreciation Expense 1 | G15: 2016 Depreciation Expense per Appendix 2-BA Fixed Assets, Column J (l) | H15: Variance 2
C16: (d) | D16: (f) | E16: (g) = 1 / (f) | F16: (h)=2015 Full Year Depreciation + ((d)*0.5)/(f) | H16: (m) = (h) - (l)
A17: 1611 | B17: Computer Software (Formally known as Account 1925) | E17: =IF(D17=0,0,1/D17) -> 0 | F17: =IF(D17=0,'App.2-CJ MIFRS_DepExp_2015'!K17,+'App.2-CJ MIFRS_DepExp_2015'!K17+((C17*0.5)/D17)) -> 0 | H17: =IF(ISERROR(+F17-G17), 0, +F17-G17) -> 0
A18: 1612 | B18: Land Rights (Formally known as Account 1906) | E18: 0 | F18: =IF(D18=0,'App.2-CJ MIFRS_DepExp_2015'!K18,+'App.2-CJ MIFRS_DepExp_2015'!K18+((C18*0.5)/D18)) -> 0 | H18: 0
A19: 1805 | B19: Land | E19: 0 | F19: =IF(D19=0,'App.2-CJ MIFRS_DepExp_2015'!K19,+'App.2-CJ MIFRS_DepExp_2015'!K19+((C19*0.5)/D19)) -> 0 | H19: 0
A20: 1808 | B20: Buildings | E20: 0 | F20: =IF(D20=0,'App.2-CJ MIFRS_DepExp_2015'!K20,+'App.2-CJ MIFRS_DepExp_2015'!K20+((C20*0.5)/D20)) -> 0 | H20: 0
A21: 1810 | B21: Leasehold Improvements | E21: 0 | F21: =IF(D21=0,'App.2-CJ MIFRS_DepExp_2015'!K21,+'App.2-CJ MIFRS_DepExp_2015'!K21+((C21*0.5)/D21)) -> 0 | H21: 0
A22: 1815 | B22: Transformer Station Equipment >50 kV | E22: 0 | F22: =IF(D22=0,'App.2-CJ MIFRS_DepExp_2015'!K22,+'App.2-CJ MIFRS_DepExp_2015'!K22+((C22*0.5)/D22)) -> 0 | H22: 0
A23: 1820 | B23: Distribution Station Equipment <50 kV | E23: 0 | F23: =IF(D23=0,'App.2-CJ MIFRS_DepExp_2015'!K23,+'App.2-CJ MIFRS_DepExp_2015'!K23+((C23*0.5)/D23)) -> 0 | H23: 0
A24: 1825 | B24: Storage Battery Equipment | E24: 0 | F24: =IF(D24=0,'App.2-CJ MIFRS_DepExp_2015'!K24,+'App.2-CJ MIFRS_DepExp_2015'!K24+((C24*0.5)/D24)) -> 0 | H24: 0
A25: 1830 | B25: Poles, Towers & Fixtures | E25: 0 | F25: =IF(D25=0,'App.2-CJ MIFRS_DepExp_2015'!K25,+'App.2-CJ MIFRS_DepExp_2015'!K25+((C25*0.5)/D25)) -> 0 | H25: 0
A26: 1835 | B26: Overhead Conductors & Devices | E26: 0 | F26: =IF(D26=0,'App.2-CJ MIFRS_DepExp_2015'!K26,+'App.2-CJ MIFRS_DepExp_2015'!K26+((C26*0.5)/D26)) -> 0 | H26: 0
A27: 1840 | B27: Underground Conduit | E27: 0 | F27: =IF(D27=0,'App.2-CJ MIFRS_DepExp_2015'!K27,+'App.2-CJ MIFRS_DepExp_2015'!K27+((C27*0.5)/D27)) -> 0 | H27: 0
A28: 1845 | B28: Underground Conductors & Devices | E28: 0 | F28: =IF(D28=0,'App.2-CJ MIFRS_DepExp_2015'!K28,+'App.2-CJ MIFRS_DepExp_2015'!K28+((C28*0.5)/D28)) -> 0 | H28: 0
A29: 1850 | B29: Line Transformers | E29: 0 | F29: =IF(D29=0,'App.2-CJ MIFRS_DepExp_2015'!K29,+'App.2-CJ MIFRS_DepExp_2015'!K29+((C29*0.5)/D29)) -> 0 | H29: 0
A30: 1855 | B30: Services (Overhead & Underground) | E30: 0 | F30: =IF(D30=0,'App.2-CJ MIFRS_DepExp_2015'!K30,+'App.2-CJ MIFRS_DepExp_2015'!K30+((C30*0.5)/D30)) -> 0 | H30: 0
A31: 1860 | B31: Meters | E31: 0 | F31: =IF(D31=0,'App.2-CJ MIFRS_DepExp_2015'!K31,+'App.2-CJ MIFRS_DepExp_2015'!K31+((C31*0.5)/D31)) -> 0 | H31: 0
A32: 1860 | B32: Meters (Smart Meters) | E32: 0 | F32: =IF(D32=0,'App.2-CJ MIFRS_DepExp_2015'!K32,+'App.2-CJ MIFRS_DepExp_2015'!K32+((C32*0.5)/D32)) -> 0 | H32: 0
A33: 1905 | B33: Land | E33: 0 | F33: =IF(D33=0,'App.2-CJ MIFRS_DepExp_2015'!K33,+'App.2-CJ MIFRS_DepExp_2015'!K33+((C33*0.5)/D33)) -> 0 | H33: 0
A34: 1908 | B34: Buildings & Fixtures | E34: 0 | F34: =IF(D34=0,'App.2-CJ MIFRS_DepExp_2015'!K34,+'App.2-CJ MIFRS_DepExp_2015'!K34+((C34*0.5)/D34)) -> 0 | H34: 0
A35: 1910 | B35: Leasehold Improvements | E35: 0 | F35: =IF(D35=0,'App.2-CJ MIFRS_DepExp_2015'!K35,+'App.2-CJ MIFRS_DepExp_2015'!K35+((C35*0.5)/D35)) -> 0 | H35: 0
A36: 1915 | B36: Office Furniture & Equipment (10 years) | E36: 0 | F36: =IF(D36=0,'App.2-CJ MIFRS_DepExp_2015'!K36,+'App.2-CJ MIFRS_DepExp_2015'!K36+((C36*0.5)/D36)) -> 0 | H36: 0
A37: 1915 | B37: Office Furniture & Equipment (5 years) | E37: 0 | F37: =IF(D37=0,'App.2-CJ MIFRS_DepExp_2015'!K37,+'App.2-CJ MIFRS_DepExp_2015'!K37+((C37*0.5)/D37)) -> 0 | H37: 0
A38: 1920 | B38: Computer Equipment - Hardware | E38: 0 | F38: =IF(D38=0,'App.2-CJ MIFRS_DepExp_2015'!K38,+'App.2-CJ MIFRS_DepExp_2015'!K38+((C38*0.5)/D38)) -> 0 | H38: 0
A39: 1920 | B39: Computer Equip.-Hardware(Post Mar. 22/04) | E39: 0 | F39: =IF(D39=0,'App.2-CJ MIFRS_DepExp_2015'!K39,+'App.2-CJ MIFRS_DepExp_2015'!K39+((C39*0.5)/D39)) -> 0 | H39: 0
A40: 1920 | B40: Computer Equip.-Hardware(Post Mar. 19/07) | E40: 0 | F40: =IF(D40=0,'App.2-CJ MIFRS_DepExp_2015'!K40,+'App.2-CJ MIFRS_DepExp_2015'!K40+((C40*0.5)/D40)) -> 0 | H40: 0
A41: 1930 | B41: Transportation Equipment | E41: 0 | F41: =IF(D41=0,'App.2-CJ MIFRS_DepExp_2015'!K41,+'App.2-CJ MIFRS_DepExp_2015'!K41+((C41*0.5)/D41)) -> 0 | H41: 0
A42: 1935 | B42: Stores Equipment | E42: 0 | F42: =IF(D42=0,'App.2-CJ MIFRS_DepExp_2015'!K42,+'App.2-CJ MIFRS_DepExp_2015'!K42+((C42*0.5)/D42)) -> 0 | H42: 0
A43: 1940 | B43: Tools, Shop & Garage Equipment | E43: 0 | F43: =IF(D43=0,'App.2-CJ MIFRS_DepExp_2015'!K43,+'App.2-CJ MIFRS_DepExp_2015'!K43+((C43*0.5)/D43)) -> 0 | H43: 0
A44: 1945 | B44: Measurement & Testing Equipment | E44: 0 | F44: =IF(D44=0,'App.2-CJ MIFRS_DepExp_2015'!K44,+'App.2-CJ MIFRS_DepExp_2015'!K44+((C44*0.5)/D44)) -> 0 | H44: 0
A45: 1950 | B45: Power Operated Equipment | E45: 0 | F45: =IF(D45=0,'App.2-CJ MIFRS_DepExp_2015'!K45,+'App.2-CJ MIFRS_DepExp_2015'!K45+((C45*0.5)/D45)) -> 0 | H45: 0
A46: 1955 | B46: Communications Equipment | E46: 0 | F46: =IF(D46=0,'App.2-CJ MIFRS_DepExp_2015'!K46,+'App.2-CJ MIFRS_DepExp_2015'!K46+((C46*0.5)/D46)) -> 0 | H46: 0
A47: 1955 | B47: Communication Equipment (Smart Meters) | E47: 0 | F47: =IF(D47=0,'App.2-CJ MIFRS_DepExp_2015'!K47,+'App.2-CJ MIFRS_DepExp_2015'!K47+((C47*0.5)/D47)) -> 0 | H47: 0
A48: 1960 | B48: Miscellaneous Equipment | E48: 0 | F48: =IF(D48=0,'App.2-CJ MIFRS_DepExp_2015'!K48,+'App.2-CJ MIFRS_DepExp_2015'!K48+((C48*0.5)/D48)) -> 0 | H48: 0
A49: 1970 | B49: Load Management Controls - Customer Premises | E49: 0 | F49: =IF(D49=0,'App.2-CJ MIFRS_DepExp_2015'!K49,+'App.2-CJ MIFRS_DepExp_2015'!K49+((C49*0.5)/D49)) -> 0 | H49: 0
A50: 1975 | B50: Load Management Controls Utility Premises | E50: 0 | F50: =IF(D50=0,'App.2-CJ MIFRS_DepExp_2015'!K50,+'App.2-CJ MIFRS_DepExp_2015'!K50+((C50*0.5)/D50)) -> 0 | H50: 0
A51: 1980 | B51: System Supervisor Equipment | E51: 0 | F51: =IF(D51=0,'App.2-CJ MIFRS_DepExp_2015'!K51,+'App.2-CJ MIFRS_DepExp_2015'!K51+((C51*0.5)/D51)) -> 0 | H51: 0
A52: 1985 | B52: Miscellaneous Fixed Assets | E52: 0 | F52: =IF(D52=0,'App.2-CJ MIFRS_DepExp_2015'!K52,+'App.2-CJ MIFRS_DepExp_2015'!K52+((C52*0.5)/D52)) -> 0 | H52: 0
A53: 1990 | B53: Other Tangible Property | E53: 0 | F53: =IF(D53=0,'App.2-CJ MIFRS_DepExp_2015'!K53,+'App.2-CJ MIFRS_DepExp_2015'!K53+((C53*0.5)/D53)) -> 0 | H53: 0
A54: 1995 | B54: Contributions & Grants | E54: 0 | F54: =IF(D54=0,'App.2-CJ MIFRS_DepExp_2015'!K54,+'App.2-CJ MIFRS_DepExp_2015'!K54+((C54*0.5)/D54)) -> 0 | H54: 0
B55: Total | C55: =SUM(C17:C54) -> 0 | F55: =SUM(F17:F54) -> 0 | G55: =SUM(G17:G54) -> 0 | H55: =SUM(H17:H54) -> 0
B56: Depreciation exp. adj. from gain or loss on the retirement of assets (pool of like assets)
B57: Total Depreciation expense to be included in the test year revenue requirement | F57: =SUM(F55:F56) -> 0
A58: Notes:
A59: 1 | B59: Board policy of the "half-year" rule - the applicant must ensure that additions in the year attract a half-year depreciation expense in the first year. Deviations from this standard practice must be supported in the application.
A60: 2 | B60: The applicant must provide an explanation of material variances in evidence.
A62: General: | B62: Applicants must provide a breakdown of depreciation and amortization expense in the above format for all relevant accounts. Asset Retirement Obligations (AROs), depreciation and accretion expense should be disclosed separately consistent with the Notes of historical Audited Financial Statements.

Sheet App.2-D_Overhead
F1: File Number: | G1: =EBNUMBER -> EB-2016-0061
F2: Exhibit: | G2: 2
F3: Tab: | G3: 4
F4: Schedule: | G4: 1
F5: Page:
F7: Date: | G7: 2016-04-29
A9: Appendix 2-D
A10: Overhead Expense
A12: Applicants are to provide a breakdown of OM&A before capitalization in the below table. OM&A before capitalization may be broken down by cost center, program, drivers or another format best suited to focus on capitalized vs. uncapitalized OM&A.
A14: OM&A Before Capitalization
B15: 2013 | C15: 2014 | D15: 2015 | E15: 2016 | F15: 2017
B16: Historical Year | C16: Historical Year | D16: Historical Year | E16: Bridge Year | F16: Test Year
A17: Operations and Maintenance | B17: 4487625.454 | C17: 4645140.284 | D17: 4798379.318 | E17: 4979115.055 | F17: 5273058.924
A18: Billing and Collecting | B18: 1888565.764 | C18: 1777437.48 | D18: 1771187.532 | E18: 1888325.02 | F18: 1974575.189
A19: Community Relations | B19: 22684.63 | C19: 14502.81 | D19: 22126.22 | E19: 25300 | F19: 40149.88
A20: Administrative and General | B20: 3623360.93 | C20: 4126783.126 | D20: 4215170.311 | E20: 4465819.16 | F20: =4545562.07763597-557723 -> 3987839.078
A27: Total OM&A Before Capitalization (B) | B27: =SUM(B17:B26) -> 10022236.78 | C27: =SUM(C17:C26) -> 10563863.7 | D27: 10806863.38 | E27: 11358559.23 | F27: 11275623.07
A29: Applicants are to provide a breakdown of capitalized OM&A in the below table. Capitalized OM&A may be broken down using the categories listed in the table below if possible. Otherwise, applicants are to provide its own break down of capitalized OM&A.
A31: Capitalized OM&A | G31: Directly | H31: Explanation for Change in Overhead Capitalized
B32: 2013 | C32: 2014 | D32: 2015 | E32: 2016 | F32: 2017 | G32: Attributable?
B33: Historical Year | C33: Historical Year | D33: Historical Year | E33: Bridge Year | F33: Test Year | G33: (Y/N)
A34: employee benefits
A35: costs of site preparation
A36: initial delivery and handling costs
A37: costs of testing whether the asset is functioning properly
A38: professional fees
A40: costs of opening a new facility
A41: costs of introducing a new product or service (including costs of advertising and promotional activities)
A42: costs of conducting business in a new location or with a new class of customer (including costs of staff training)
A43: administration and other general overhead costs
A45: Operational Departments | B45: 1014659.864 | C45: 1024646.984 | D45: 1182823.508 | E45: 1117342.135 | F45: 1166112.964 | G45: Y | H45: No change since last CoS, costs are directly attributable to labour costs charged to capital and are included in burden rate
A46: Customer Service Department | B46: 13787.0236 | C46: 9074.300403 | D46: 16582.00171 | E46: 14065.69985 | F46: 14548.98869 | G46: Y | H46: No change since last CoS, costs are directly attributable to labour costs charged to capital and are included in burden rate
A47: Administrative and General Departments | B47: 129726.9601 | C47: 95329.02551 | D47: 88524.46136 | E47: 96335.0599 | F47: 107961.3776 | G47: Y | H47: No change since last CoS, costs are directly attributable to labour costs charged to capital and are included in burden rate
A51: Total Capitalized OM&A (A) | B51: =SUM(B34:B50) -> 1158173.848 | C51: =SUM(C34:C50) -> 1129050.31 | D51: =SUM(D34:D50) -> 1287929.971 | E51: =SUM(E34:E50) -> 1227742.895 | F51: =SUM(F34:F50) -> 1288623.331
A53: % of Capitalized OM&A (=A/B) | B53: =IF(ISERROR(B51/B27),"0%",B51/B27) -> 0.1155604156 | C53: =IF(ISERROR(C51/C27),"0%",C51/C27) -> 0.1068785382 | D53: =IF(ISERROR(D51/D27),"0%",D51/D27) -> 0.1191770383 | E53: =IF(ISERROR(E51/E27),"0%",E51/E27) -> 0.1080896678 | F53: =IF(ISERROR(F51/F27),"0%",F51/F27) -> 0.1142840021

Sheet App.2-EA_Account 1575 (2015)
I1: File Number: | J1: =EBNUMBER -> EB-2016-0061
I2: Exhibit:
I3: Tab:
I4: Schedule:
I5: Page:
I7: Date:
A9: Appendix 2-EA
A10: Account 1575 - IFRS-CGAAP Transitional PP&E Amounts
A11: 2015 Adopters of IFRS for Financial Reporting Purposes
A13: For applicants that adopted IFRS on January 1, 2015 for financial reporting purposes
B17: =RebaseYear &" Rebasing Year" -> 2013 Rebasing Year | C17: 2012 | D17: 2013 | E17: 2014 | F17: 2015 | G17: 2016 Rebasing Year
A18: Reporting Basis | B18: CGAAP | C18: CGAAP | D18: CGAAP | E18: CGAAP | F18: MIFRS | G18: MIFRS
B19: Forecast | C19: Actual | D19: Actual | E19: Actual | F19: Forecast | G19: Forecast
E20: $ | F20: $
A21: PP&E Values under CGAAP
A22: Opening net PP&E - Note 1 | F22: =+E25 -> 0
A23: Net Additions - Note 4
A24: Net Depreciation (amounts should be negative) - Note 4
A25: Closing net PP&E (1) | E25: =E22+E23+E24 -> 0 | F25: =SUM(F22:F24) -> 0
A27: PP&E Values under MIFRS (Starts from 2014, the transition year)
A28: Opening net PP&E - Note 1 | F28: =+E31 -> 0
A29: Net Additions - Note 4
A30: Net Depreciation (amounts should be negative) - Note 4
A31: Closing net PP&E (2) | E31: =SUM(E28:E30) -> 0 | F31: =SUM(F28:F30) -> 0
A33: Difference in Closing net PP&E, former CGAAP vs. revised CGAAP | E33: =E25-E31 -> 0 | F33: =F25-F31 -> 0
A36: Effect on Deferral and Variance Account Rate Riders
A37: Closing balance in Account 1576 | G37: =IF(ISERROR(F33), 0, F33) -> 0 | I37: WACC
A38: Return on Rate Base Associated with Account 1576 balance at WACC - Note 2 | G38: =F33*J37*J38 -> 0 | H38: # of years of rate rider disposition period
A39: Amount included in Deferral and Variance Account Rate Rider Calculation | G39: =G37+G38 -> 0
A41: Notes:
A42: 1 For an applicant that adopted IFRS on January 1, 2015, the PP&E values as of January 1, 2014 under both CGAAP and MIFRS should be the same.
A43: 2 Return on rate base associated with deferred balance is calculated as:
A44: the deferral account closing balance as of 2015 rebasing year x WACC X # of years of rate rider disposition period
A45: * Please note that the calculation should be adjusted once WACC is updated and finalized in the rate application.
A46: 3 The PP&E deferral account is cleared by including the total balance in the deferral and variance account rate rider calculation.
A47: 4 Net additions are additions net of disposals; Net depreciation is additions to depreciation net of disposals.

Sheet App.2-EB_Account 1576 (2012)
I1: File Number: | J1: =EBNUMBER -> EB-2016-0061
I2: Exhibit:
I3: Tab:
I4: Schedule:
I5: Page:
I7: Date:
A9: Appendix 2-EB
A10: Account 1576 - Accounting Changes under CGAAP
A11: 2012 Changes in Accounting Policies under CGAAP
A13: For applicants that made capitalization and depreciation expense accounting policy changes under CGAAP effective January 1, 2012
B17: =RebaseYear &" Rebasing Year" -> 2013 Rebasing Year | C17: 2012 | D17: 2013 | E17: 2014 | F17: 2015 | G17: 2016 Rebasing Year
A18: Reporting Basis | B18: CGAAP | C18: CGAAP | D18: CGAAP | E18: CGAAP | F18: MIFRS | G18: MIFRS
B19: Forecast | C19: Actual | D19: Actual | E19: Actual | F19: Forecast | G19: Forecast
C20: $ | D20: $ | E20: $ | F20: $
A21: PP&E Values under former CGAAP
A22: Opening net PP&E - Note 1 | D22: =+C25 -> 0 | E22: =+D25 -> 0 | F22: =+E25 -> 0
A23: Net Additions - Note 4
A24: Net Depreciation (amounts should be negative) - Note 4
A25: Closing net PP&E (1) | C25: =C22+C23+C24 -> 0 | D25: =D22+D23+D24 -> 0 | E25: =E22+E23+E24 -> 0 | F25: =F22+F23+F24 -> 0
A27: PP&E Values under revised CGAAP (Starts from 2012)
A28: Opening net PP&E - Note 1 | D28: =+C31 -> 0 | E28: =+D31 -> 0 | F28: =+E31 -> 0
A29: Net Additions - Note 4
A30: Net Depreciation (amounts should be negative) - Note 4
A31: Closing net PP&E (2) | C31: =SUM(C28:C30) -> 0 | D31: =SUM(D28:D30) -> 0 | E31: =SUM(E28:E30) -> 0 | F31: =SUM(F28:F30) -> 0
A33: Difference in Closing net PP&E, former CGAAP vs. revised CGAAP | C33: =C25-C31 -> 0 | D33: =D25-D31 -> 0 | E33: =E25-E31 -> 0 | F33: =F25-F31 -> 0
A36: Effect on Deferral and Variance Account Rate Riders
A37: Closing balance in Account 1576 | G37: =IF(ISERROR(F33), 0, F33) -> 0 | I37: WACC
A38: Return on Rate Base Associated with Account 1576 balance at WACC - Note 2 | G38: =F33*J37*J38 -> 0 | H38: # of years of rate rider disposition period
A39: Amount included in Deferral and Variance Account Rate Rider Calculation | G39: =G37+G38 -> 0
A41: Notes:
A42: 1 For an applicant that made the capitalization and depreciation expense accounting policy changes on January 1, 2012, the PP&E values as of January 1, 2012 under both former CGAAP and revised CGAAP should be the same.
A43: 2 Return on rate base associated with Account 1576 balance is calculated as:
A44: the variance account ending balance as of 2015 rebasing year x WACC X # of years of rate rider disposition period
A45: * Please note that the calculation should be adjusted once WACC is updated and finalized in the rate application.
A46: 3 Account 1576 is cleared by including the total balance in the deferral and variance account rate rider calculation.
A47: 4 Net additions are additions net of disposals; Net depreciation is additions to depreciation net of disposals.

Sheet App.2-EC_Account 1576 (2013)
I1: File Number: | J1: =EBNUMBER -> EB-2016-0061
I2: Exhibit:
I3: Tab:
I4: Schedule:
I5: Page:
I7: Date:
A9: Appendix 2-EC
A10: Account 1576 - Accounting Changes under CGAAP
A11: 2013 Changes in Accounting Policies under CGAAP
A13: For applicants that made capitalization and depreciation expense accounting policy changes under CGAAP effective January 1, 2013
B17: =RebaseYear &" Rebasing Year" -> 2013 Rebasing Year | C17: 2012 | D17: 2013 | E17: 2014 | F17: 2015 | G17: 2016 Rebasing Year
A18: Reporting Basis | B18: CGAAP | C18: CGAAP | D18: CGAAP | E18: CGAAP | F18: MIFRS | G18: MIFRS
B19: Forecast | C19: Actual | D19: Actual | E19: Actual | F19: Forecast | G19: Forecast
D20: $ | E20: $ | F20: $
A21: PP&E Values under former CGAAP
A22: Opening net PP&E - Note 1 | E22: =+D25 -> 0 | F22: =+E25 -> 0
A23: Net Additions - Note 4
A24: Net Depreciation (amounts should be negative) - Note 4
A25: Closing net PP&E (1) | D25: =D22+D23+D24 -> 0 | E25: =E22+E23+E24 -> 0 | F25: =F22+F23+F24 -> 0
A27: PP&E Values under revised CGAAP (Starts from 2012)
A28: Opening net PP&E - Note 1 | E28: =+D31 -> 0 | F28: =+E31 -> 0
A29: Net Additions - Note 4
A30: Net Depreciation (amounts should be negative) - Note 4
A31: Closing net PP&E (2) | D31: =SUM(D28:D30) -> 0 | E31: =SUM(E28:E30) -> 0 | F31: =SUM(F28:F30) -> 0
A33: Difference in Closing net PP&E, former CGAAP vs. revised CGAAP | D33: =D25-D31 -> 0 | E33: =E25-E31 -> 0 | F33: =F25-F31 -> 0
A36: Effect on Deferral and Variance Account Rate Riders
A37: Closing balance in Account 1576 | G37: =IF(ISERROR(F33), 0, F33) -> 0 | I37: WACC
A38: Return on Rate Base Associated with Account 1576 balance at WACC - Note 2 | G38: =F33*J37*J38 -> 0 | H38: # of years of rate rider disposition period
A39: Amount included in Deferral and Variance Account Rate Rider Calculation | G39: =G37+G38 -> 0
A41: Notes:
A42: 1 For an applicant that made the capitalization and depreciation expense accounting policy changes on January 1, 2013, the PP&E values as of January 1, 2013 under both former CGAAP and revised CGAAP should be the same.
A43: 2 Return on rate base associated with Account 1576 balance is calculated as:
A44: the variance account ending balance as of 2015 rebasing year x WACC X # of years of rate rider disposition period
A45: * Please note that the calculation should be adjusted once WACC is updated and finalized in the rate application.
A46: 3 Account 1576 is cleared by including the total balance in the deferral and variance account rate rider calculation.
A47: 4 Net additions are additions net of disposals; Net depreciation is additions to depreciation net of disposals.

Sheet App.2-FA Proposed REG Invest.
J1: File Number: | K1: =EBNUMBER -> EB-2016-0061
J2: Exhibit: | K2: 2
J3: Tab: | K3: 5
J4: Schedule: | K4: 1
J5: Page:
J7: Date: | K7: 2016-04-29
A9: Appendix 2-FA
A10: Renewable Generation Connection Investment Summary (past investments or over the future rate setting period)
A12: Enter the details of the Renewable Generation Connection projects as described in the appropriate section of the Filing Requirements.
A13: All costs entered on this page will be transferred to the appropriate cells in the appendices that follow.
A14: For Part A, Renewable Enabling Improvements (REI), these amounts will be transferred to Appendix 2 - FB
A15: For Part B, Expansions, these amounts will be transferred to Appendix 2 - FC
A17: If there are more than five projects proposed to be in-service in a certain year, please amend the tables below and ensure that the formulae for the Total Amounts in any given rate year are updated.
A18: Based on the current methodology and allocation, amounts allocated represent 6% for REI Connection Investments and 17% for Expansion Investments. (EB-2009-0349, 6-10-2010, p. 15, note 9)
A20: There are two scenarios described below. Separate sets of spreadsheets (2-FA, 2-FB, 2-FC) should be submited for each scenario as required.
A21: Scenario 1: Past Investments with No Recovery. The distributor has made investments in the past (during the IRM Years), but has not received approval for these projects and therefore did not receive
A22: revenue from the IESO under Regulation 330/09 and did not receive ratepayer revenue for the direct benefit portion of the investment.
A23: The WCA percentage, debt percentages, interest rates, kWh, tax rates, amortization period, CCA Class and percentage should correspond to the distributor's last Cost of Service approval.
A24: The Direct Benefit portion of the calculated Revenue Requirement for each year should be summed and can be applied for recovery from the distributor's ratepayers through a rate rider.
A25: The Provincial Recovery portion of the calculated Revenue Requirement for each year should be summed and can be applied for recovery from the IESO through a separate order.
A27: Scenario 2: Investments in the Test Year and Beyond. Distributor plans to make investments in 2016 and/or beyond. These investments should be added to 2-FA in the appropriate year.
A28: The WCA percentage, debt percentages, interest rates, kWh, tax rates, amortization period, CCA Class and percentage should correspond to the distributor's current application.
A30: Part A | G30: Test Year
A31: REI Investments (Direct Benefit at 6%) | C31: 2012 | D31: 2013 | E31: 2014 | F31: 2015 | G31: 2016 | H31: =G31+1 -> 2017 | I31: =H31+1 -> 2018 | J31: 2019 | K31: 2020
A32: Project 1
A33: Name: REI Connection Project
A34: Capital Costs | C34: 0 | D34: 0 | E34: 0 | F34: 0 | G34: 0 | H34: 0 | I34: 0 | J34: 0 | K34: 0
A35: OM&A (Start-Up) | C35: 0 | D35: 0 | E35: 0 | F35: 0 | G35: 0 | H35: 0 | I35: 0 | J35: 0 | K35: 0
A36: OM&A (Ongoing) | C36: 0 | D36: 0 | E36: 0 | F36: 0 | G36: 0 | H36: 0 | I36: 0 | J36: 0 | K36: 0
A38: Project 2
A39: Name: REI Connection Project
A40: Capital Costs | C40: 0 | D40: 0 | E40: 0 | F40: 0 | G40: 0 | H40: 0 | I40: 0 | J40: 0 | K40: 0
A41: OM&A (Start-Up) | C41: 0 | D41: 0 | E41: 0 | F41: 0 | G41: 0 | H41: 0 | I41: 0 | J41: 0 | K41: 0
A42: OM&A (Ongoing) | C42: 0 | D42: 0 | E42: 0 | F42: 0 | G42: 0 | H42: 0 | I42: 0 | J42: 0 | K42: 0
A44: Project 3
A45: Name: REI Connection Project
A46: Capital Costs | C46: 0 | D46: 0 | E46: 0 | F46: 0 | G46: 0 | H46: 0 | I46: 0 | J46: 0 | K46: 0
A47: OM&A (Start-Up) | C47: 0 | D47: 0 | E47: 0 | F47: 0 | G47: 0 | H47: 0 | I47: 0 | J47: 0 | K47: 0
A48: OM&A (Ongoing) | C48: 0 | D48: 0 | E48: 0 | F48: 0 | G48: 0 | H48: 0 | I48: 0 | J48: 0 | K48: 0
A50: Project 4
A51: Name: REI Connection Project
A52: Capital Costs | C52: 0 | D52: 0 | E52: 0 | F52: 0 | G52: 0 | H52: 0 | I52: 0 | J52: 0 | K52: 0
A53: OM&A (Start-Up) | C53: 0 | D53: 0 | E53: 0 | F53: 0 | G53: 0 | H53: 0 | I53: 0 | J53: 0 | K53: 0
A54: OM&A (Ongoing) | C54: 0 | D54: 0 | E54: 0 | F54: 0 | G54: 0 | H54: 0 | I54: 0 | J54: 0 | K54: 0
A56: Project 5
A57: Name: REI Connection Project
A58: Capital Costs | C58: 0 | D58: 0 | E58: 0 | F58: 0 | G58: 0 | H58: 0 | I58: 0 | J58: 0 | K58: 0
A59: OM&A (Start-Up) | C59: 0 | D59: 0 | E59: 0 | F59: 0 | G59: 0 | H59: 0 | I59: 0 | J59: 0 | K59: 0
A60: OM&A (Ongoing) | C60: 0 | D60: 0 | E60: 0 | F60: 0 | G60: 0 | H60: 0 | I60: 0 | J60: 0 | K60: 0
A62: Total Capital Costs | C62: =SUM(C58,C52,C46,C40,C34) -> 0 | D62: 0 | E62: 0 | F62: 0 | G62: =SUM(G58,G52,G46,G40,G34) -> 0 | H62: =SUM(H58,H52,H46,H40,H34) -> 0 | I62: 0 | J62: 0 | K62: 0
A63: Total OM&A (Start-Up) | C63: 0 | D63: 0 | E63: 0 | F63: 0 | G63: =SUM(G59,G53,G47,G41,G35) -> 0 | H63: 0 | I63: 0 | J63: 0 | K63: 0
A64: Total OM&A (Ongoing) | C64: 0 | D64: 0 | E64: 0 | F64: 0 | G64: =SUM(G60,G54,G48,G42,G36) -> 0 | H64: 0 | I64: 0 | J64: 0 | K64: 0
A67: Part B | G67: Test Year
A68: Expansion Investments (Direct Benefit at 17%) | C68: 2012 | D68: 2013 | E68: 2014 | F68: 2015 | G68: 2016 | H68: =G68+1 -> 2017 | I68: =H68+1 -> 2018 | J68: 2019 | K68: 2020
A69: Project 1
A70: Name: Expansion Connection Project
A71: Capital Costs | C71: 0 | D71: 0 | E71: 0 | F71: 0 | G71: 0 | H71: 0 | I71: 0 | J71: 0 | K71: 0
A72: OM&A (Start-Up) | C72: 0 | D72: 0 | E72: 0 | F72: 0 | G72: 0 | H72: 0 | I72: 0 | J72: 0 | K72: 0
A73: OM&A (Ongoing) | C73: 0 | D73: 0 | E73: 0 | F73: 0 | G73: 0 | H73: 0 | I73: 0 | J73: 0 | K73: 0
A75: Project 2
A76: Name: Expansion Connection Project
A77: Capital Costs | C77: 0 | D77: 0 | E77: 0 | F77: 0 | G77: 0 | H77: 0 | I77: 0 | J77: 0 | K77: 0
A78: OM&A (Start-Up) | C78: 0 | D78: 0 | E78: 0 | F78: 0 | G78: 0 | H78: 0 | I78: 0 | J78: 0 | K78: 0
A79: OM&A (Ongoing) | C79: 0 | D79: 0 | E79: 0 | F79: 0 | G79: 0 | H79: 0 | I79: 0 | J79: 0 | K79: 0
A81: Project 3
A82: Name: Expansion Connection Project
A83: Capital Costs | C83: 0 | D83: 0 | E83: 0 | F83: 0 | G83: 0 | H83: 0 | I83: 0 | J83: 0 | K83: 0
A84: OM&A (Start-Up) | C84: 0 | D84: 0 | E84: 0 | F84: 0 | G84: 0 | H84: 0 | I84: 0 | J84: 0 | K84: 0
A85: OM&A (Ongoing) | C85: 0 | D85: 0 | E85: 0 | F85: 0 | G85: 0 | H85: 0 | I85: 0 | J85: 0 | K85: 0
A87: Project 4
A88: Name: Expansion Connection Project
A89: Capital Costs | C89: 0 | D89: 0 | E89: 0 | F89: 0 | G89: 0 | H89: 0 | I89: 0 | J89: 0 | K89: 0
A90: OM&A (Start-Up) | C90: 0 | D90: 0 | E90: 0 | F90: 0 | G90: 0 | H90: 0 | I90: 0 | J90: 0 | K90: 0
A91: OM&A (Ongoing) | C91: 0 | D91: 0 | E91: 0 | F91: 0 | G91: 0 | H91: 0 | I91: 0 | J91: 0 | K91: 0
A93: Project 5
A94: Name: Expansion Connection Project
A95: Capital Costs | C95: 0 | D95: 0 | E95: 0 | F95: 0 | G95: 0 | H95: 0 | I95: 0 | J95: 0 | K95: 0
A96: OM&A (Start-Up) | C96: 0 | D96: 0 | E96: 0 | F96: 0 | G96: 0 | H96: 0 | I96: 0 | J96: 0 | K96: 0
A97: OM&A (Ongoing) | C97: 0 | D97: 0 | E97: 0 | F97: 0 | G97: 0 | H97: 0 | I97: 0 | J97: 0 | K97: 0
A99: Total Capital Costs | C99: =SUM(C95,C89,C83,C77,C71) -> 0 | D99: 0 | E99: 0 | F99: 0 | G99: =SUM(G95,G89,G83,G77,G71) -> 0 | H99: =SUM(H95,H89,H83,H77,H71) -> 0 | I99: 0 | J99: 0 | K99: 0
A100: Total OM&A (Start-Up) | C100: 0 | D100: 0 | E100: 0 | F100: 0 | G100: =SUM(G96,G90,G84,G78,G72) -> 0 | H100: 0 | I100: 0 | J100: 0 | K100: 0
A101: Total OM&A (Ongoing) | C101: 0 | D101: 0 | E101: 0 | F101: 0 | G101: =SUM(G97,G91,G85,G79,G73) -> 0 | H101: 0 | I101: 0 | J101: 0 | K101: 0

Sheet App.2-FB Calc of REG Improvemnt
N1: File Number: | O1: =EBNUMBER -> EB-2016-0061
N2: Exhibit: | O2: 2
N3: Tab: | O3: 5
N4: Schedule: | O4: 1
N5: Page:
N7: Date: | O7: 2016-04-29
A9: Appendix 2-FB
A10: Calculation of Renewable Generation Connection Direct Benefits/Provincial Amount: Renewable Enabling Improvement Investments
A12: This table will calculate the distributor/provincial shares of the investments entered in Part A of Appendix 2-FA.
A13: Enter values in green shaded cells: WCA percentage, debt percentages, interest rates, kWh, tax rates, amortization period, CCA Class and percentage.
A14: For historical investments, enter these variables for your last cost of service test year. For 2016 and beyond, enter variables as in the application.
A15: Rate Riders are not calculated for Test Year as these assets and costs are already in the distributor's rate base/revenue requirement.
C17: 2012 | F17: 2013 | I17: 2014 | L17: 2015 | O17: 2016 Test Year | R17: 2017 | U17: 2018 | V17: 2016 | X17: 2019 | AA17: 2020
D18: Direct Benefit | E18: Provincial | G18: Direct Benefit | H18: Provincial | J18: Direct Benefit | K18: Provincial | M18: Direct Benefit | N18: Provincial | P18: Direct Benefit | Q18: Provincial | S18: Direct Benefit | T18: Provincial | V18: Direct Benefit | W18: Provincial | Y18: Direct Benefit | Z18: Provincial | AB18: Direct Benefit | AC18: Provincial
C19: Total | D19: 0.06 | E19: 0.94 | F19: Total | G19: 0.06 | H19: 0.94 | I19: Total | J19: 0.06 | K19: 0.94 | L19: Total | M19: 0.06 | N19: 0.94 | O19: Total | P19: 0.06 | Q19: 0.94 | R19: Total | S19: 0.06 | T19: 0.94 | U19: Total | V19: 0.06 | W19: 0.94 | X19: Total | Y19: 0.06 | Z19: 0.94 | AA19: Total | AB19: 0.06 | AC19: 0.94
A20: Net Fixed Assets (average) | C20: =D82 -> 0 | D20: =C20*D19 -> 0 | E20: =C20*E19 -> 0 | F20: =E82 -> 0 | G20: =F20*G19 -> 0 | H20: =F20*H19 -> 0 | I20: =F82 -> 0 | J20: =I20*J19 -> 0 | K20: =I20*K19 -> 0 | L20: =G82 -> 0 | M20: =L20*M19 -> 0 | N20: =L20*N19 -> 0 | O20: =H82 -> 0 | P20: =O20*P19 -> 0 | Q20: =O20*Q19 -> 0 | R20: =I82 -> 0 | S20: =R20*S19 -> 0 | T20: =R20*T19 -> 0 | U20: =J82 -> 0 | V20: =U20*V19 -> 0 | W20: =U20*W19 -> 0 | X20: =K82 -> 0 | Y20: =X20*Y19 -> 0 | Z20: =X20*Z19 -> 0 | AA20: =L82 -> 0 | AB20: =AA20*AB19 -> 0 | AC20: =AA20*AC19 -> 0
A21: Incremental OM&A (on-going, N/A for Provincial Recovery) | C21: ='App.2-FA Proposed REG Invest.'!C64 -> 0 | D21: =C21 -> 0 | F21: ='App.2-FA Proposed REG Invest.'!D64 -> 0 | G21: =F21 -> 0 | I21: ='App.2-FA Proposed REG Invest.'!E64 -> 0 | J21: =I21 -> 0 | L21: ='App.2-FA Proposed REG Invest.'!F64 -> 0 | M21: =L21 -> 0 | O21: ='App.2-FA Proposed REG Invest.'!G64 -> 0 | P21: =O21 -> 0 | R21: ='App.2-FA Proposed REG Invest.'!H64 -> 0 | S21: =R21 -> 0 | U21: ='App.2-FA Proposed REG Invest.'!I64 -> 0 | V21: =U21 -> 0 | X21: ='App.2-FA Proposed REG Invest.'!J64 -> 0 | Y21: =X21 -> 0 | AA21: ='App.2-FA Proposed REG Invest.'!K64 -> 0 | AB21: =AA21 -> 0
A22: Incremental OM&A (start-up, applicable for Provincial Recovery) | C22: ='App.2-FA Proposed REG Invest.'!C63 -> 0 | D22: =C22*D19 -> 0 | E22: =C22*E19 -> 0 | F22: ='App.2-FA Proposed REG Invest.'!D63 -> 0 | G22: =F22*G19 -> 0 | H22: =F22*H19 -> 0 | I22: ='App.2-FA Proposed REG Invest.'!E63 -> 0 | J22: =I22*J19 -> 0 | K22: =I22*K19 -> 0 | L22: ='App.2-FA Proposed REG Invest.'!F63 -> 0 | M22: =L22*M19 -> 0 | N22: =L22*N19 -> 0 | O22: ='App.2-FA Proposed REG Invest.'!G63 -> 0 | P22: =O22*P19 -> 0 | Q22: =O22*Q19 -> 0 | R22: ='App.2-FA Proposed REG Invest.'!H63 -> 0 | S22: =R22*S19 -> 0 | T22: =R22*T19 -> 0 | U22: ='App.2-FA Proposed REG Invest.'!I63 -> 0 | V22: =U22*V19 -> 0 | W22: =U22*W19 -> 0 | X22: ='App.2-FA Proposed REG Invest.'!J63 -> 0 | Y22: =X22*Y19 -> 0 | Z22: =X22*Z19 -> 0 | AA22: ='App.2-FA Proposed REG Invest.'!K63 -> 0 | AB22: =AA22*AB19 -> 0 | AC22: =AA22*AC19 -> 0
A23: WCA | B23: 0.075 | D23: =(D21+D22)*$B$23 -> 0 | E23: =E22*$B$23 -> 0 | G23: =(G21+G22)*$B$23 -> 0 | H23: =H22*$B$23 -> 0 | J23: =(J21+J22)*$B$23 -> 0 | K23: =K22*$B$23 -> 0 | M23: =(M21+M22)*$B$23 -> 0 | N23: =N22*$B$23 -> 0 | P23: =(P21+P22)*$B$23 -> 0 | Q23: =Q22*$B$23 -> 0 | S23: =(S21+S22)*$B$23 -> 0 | T23: =T22*$B$23 -> 0 | V23: =(V21+V22)*$B$23 -> 0 | W23: =W22*$B$23 -> 0 | Y23: =(Y21+Y22)*$B$23 -> 0 | Z23: =Z22*$B$23 -> 0 | AB23: =(AB21+AB22)*$B$23 -> 0 | AC23: =AC22*$B$23 -> 0
A24: Rate Base | D24: =SUM(D20+D23) -> 0 | E24: =SUM(E20+E23) -> 0 | G24: =SUM(G20+G23) -> 0 | H24: =SUM(H20+H23) -> 0 | J24: =SUM(J20+J23) -> 0 | K24: =SUM(K20+K23) -> 0 | M24: =SUM(M20+M23) -> 0 | N24: =SUM(N20+N23) -> 0 | P24: =SUM(P20+P23) -> 0 | Q24: =SUM(Q20+Q23) -> 0 | S24: =SUM(S20+S23) -> 0 | T24: =SUM(T20+T23) -> 0 | V24: =SUM(V20+V23) -> 0 | W24: =SUM(W20+W23) -> 0 | Y24: =SUM(Y20+Y23) -> 0 | Z24: =SUM(Z20+Z23) -> 0 | AB24: =SUM(AB20+AB23) -> 0 | AC24: =SUM(AC20+AC23) -> 0
A27: Deemed ST Debt | B27: 0.04 | D27: =D24*$B$27 -> 0 | E27: =E24*$B$27 -> 0 | G27: =G24*$B$27 -> 0 | H27: =H24*$B$27 -> 0 | J27: =J24*$B$27 -> 0 | K27: =K24*$B$27 -> 0 | M27: =M24*$B$27 -> 0 | N27: =N24*$B$27 -> 0 | P27: =P24*$B$27 -> 0 | Q27: =Q24*$B$27 -> 0 | S27: =S24*$B$27 -> 0 | T27: =T24*$B$27 -> 0 | V27: =V24*$B$27 -> 0 | W27: =W24*$B$27 -> 0 | Y27: =Y24*$B$27 -> 0 | Z27: =Z24*$B$27 -> 0 | AB27: =AB24*$B$27 -> 0 | AC27: =AC24*$B$27 -> 0
A28: Deemed LT Debt | B28: 0.56 | D28: =D24*$B$28 -> 0 | E28: =E24*$B$28 -> 0 | G28: =G24*$B$28 -> 0 | H28: =H24*$B$28 -> 0 | J28: =J24*$B$28 -> 0 | K28: =K24*$B$28 -> 0 | M28: =M24*$B$28 -> 0 | N28: =N24*$B$28 -> 0 | P28: =P24*$B$28 -> 0 | Q28: =Q24*$B$28 -> 0 | S28: =S24*$B$28 -> 0 | T28: =T24*$B$28 -> 0 | V28: =V24*$B$28 -> 0 | W28: =W24*$B$28 -> 0 | Y28: =Y24*$B$28 -> 0 | Z28: =Z24*$B$28 -> 0 | AB28: =AB24*$B$28 -> 0 | AC28: =AC24*$B$28 -> 0
A29: Deemed Equity | B29: 0.4 | D29: =D24*$B$29 -> 0 | E29: =E24*$B$29 -> 0 | G29: =G24*$B$29 -> 0 | H29: =H24*$B$29 -> 0 | J29: =J24*$B$29 -> 0 | K29: =K24*$B$29 -> 0 | M29: =M24*$B$29 -> 0 | N29: =N24*$B$29 -> 0 | P29: =P24*$B$29 -> 0 | Q29: =Q24*$B$29 -> 0 | S29: =S24*$B$29 -> 0 | T29: =T24*$B$29 -> 0 | V29: =V24*$B$29 -> 0 | W29: =W24*$B$29 -> 0 | Y29: =Y24*$B$29 -> 0 | Z29: =Z24*$B$29 -> 0 | AB29: =AB24*$B$29 -> 0 | AC29: =AC24*$B$29 -> 0
A31: ST Interest | B31: 0.0165 | D31: =D27*$B31 -> 0 | E31: =E27*$B31 -> 0 | G31: =G27*$B31 -> 0 | H31: =H27*$B31 -> 0 | J31: =J27*$B31 -> 0 | K31: =K27*$B31 -> 0 | M31: =M27*$B31 -> 0 | N31: =N27*$B31 -> 0 | P31: =P27*$B31 -> 0 | Q31: =Q27*$B31 -> 0 | S31: =S27*$B31 -> 0 | T31: =T27*$B31 -> 0 | V31: =V27*$B31 -> 0 | W31: =W27*$B31 -> 0 | Y31: =Y27*$B31 -> 0 | Z31: =Z27*$B31 -> 0 | AB31: =AB27*$B31 -> 0 | AC31: =AC27*$B31 -> 0
A32: LT Interest | B32: 0.0614 | D32: =D28*$B32 -> 0 | E32: 0 | G32: =G28*$B32 -> 0 | H32: 0 | J32: =J28*$B32 -> 0 | K32: 0 | M32: =M28*$B32 -> 0 | N32: 0 | P32: =P28*$B32 -> 0 | Q32: 0 | S32: =S28*$B32 -> 0 | T32: 0 | V32: =V28*$B32 -> 0 | W32: 0 | Y32: =Y28*$B32 -> 0 | Z32: 0 | AB32: =AB28*$B32 -> 0 | AC32: 0
A33: ROE | B33: 0.0919 | D33: 0 | E33: 0 | G33: 0 | H33: 0 | J33: 0 | K33: 0 | M33: 0 | N33: 0 | P33: 0 | Q33: 0 | S33: 0 | T33: 0 | V33: 0 | W33: 0 | Y33: 0 | Z33: 0 | AB33: 0 | AC33: 0
A34: Cost of Capital Total | D34: =SUM(D31:D33) -> 0 | E34: =SUM(E31:E33) -> 0 | G34: =SUM(G31:G33) -> 0 | H34: =SUM(H31:H33) -> 0 | J34: =SUM(J31:J33) -> 0 | K34: =SUM(K31:K33) -> 0 | M34: =SUM(M31:M33) -> 0 | N34: =SUM(N31:N33) -> 0 | P34: =SUM(P31:P33) -> 0 | Q34: =SUM(Q31:Q33) -> 0 | S34: =SUM(S31:S33) -> 0 | T34: =SUM(T31:T33) -> 0 | V34: =SUM(V31:V33) -> 0 | W34: =SUM(W31:W33) -> 0 | Y34: =SUM(Y31:Y33) -> 0 | Z34: =SUM(Z31:Z33) -> 0 | AB34: =SUM(AB31:AB33) -> 0 | AC34: =SUM(AC31:AC33) -> 0
A36: OM&A | D36: =D21+D22 -> 0 | E36: =E22 -> 0 | G36: =G21+G22 -> 0 | H36: =H22 -> 0 | J36: =J21+J22 -> 0 | K36: =K22 -> 0 | M36: =M21+M22 -> 0 | N36: =N22 -> 0 | P36: =P21+P22 -> 0 | Q36: =Q22 -> 0 | S36: =S21+S22 -> 0 | T36: =T22 -> 0 | V36: =V21+V22 -> 0 | W36: =W22 -> 0 | Y36: =Y21+Y22 -> 0 | Z36: =Z22 -> 0 | AB36: =AB21+AB22 -> 0 | AC36: =AC22 -> 0
A37: Amortization | C37: =D77 -> 0 | D37: =C37*D$19 -> 0 | E37: =C37*E$19 -> 0 | F37: =E77 -> 0 | G37: =F37*G$19 -> 0 | H37: =F37*H$19 -> 0 | I37: =F77 -> 0 | J37: =I37*J$19 -> 0 | K37: =I37*K$19 -> 0 | L37: =G77 -> 0 | M37: =L37*M$19 -> 0 | N37: =L37*N$19 -> 0 | O37: =H77 -> 0 | P37: =O37*P$19 -> 0 | Q37: =O37*Q$19 -> 0 | R37: =I76+I77 -> 0 | S37: =R37*S$19 -> 0 | T37: =R37*T$19 -> 0 | U37: =J76+J77 -> 0 | V37: =U37*V$19 -> 0 | W37: =U37*W$19 -> 0 | X37: =K76+K77 -> 0 | Y37: =X37*Y$19 -> 0 | Z37: =X37*Z$19 -> 0 | AA37: =L76+L77 -> 0 | AB37: =AA37*AB$19 -> 0 | AC37: =AA37*AC$19 -> 0
A38: Grossed-up PILs | D38: =D65 -> 0 | E38: =E65 -> 0 | G38: =G65 -> 0 | H38: =H65 -> 0 | J38: =J65 -> 0 | K38: =K65 -> 0 | M38: =M65 -> 0 | N38: =N65 -> 0 | P38: =P65 -> 0 | Q38: =Q65 -> 0 | S38: =S65 -> 0 | T38: =T65 -> 0 | V38: =V65 -> 0 | W38: =W65 -> 0 | Y38: =Y65 -> 0 | Z38: =Z65 -> 0 | AB38: =AB65 -> 0 | AC38: =AC65 -> 0
A40: Revenue Requirement | D40: =SUM(D34:D38) -> 0 | E40: =SUM(E34:E38) -> 0 | G40: =SUM(G34:G38) -> 0 | H40: =SUM(H34:H38) -> 0 | J40: =SUM(J34:J38) -> 0 | K40: =SUM(K34:K38) -> 0 | M40: =SUM(M34:M38) -> 0 | N40: =SUM(N34:N38) -> 0 | P40: =SUM(P34:P38) -> 0 | Q40: =SUM(Q34:Q38) -> 0 | S40: =SUM(S34:S38) -> 0 | T40: =SUM(T34:T38) -> 0 | V40: =SUM(V34:V38) -> 0 | W40: =SUM(W34:W38) -> 0 | Y40: =SUM(Y34:Y38) -> 0 | Z40: =SUM(Z34:Z38) -> 0 | AB40: =SUM(AB34:AB38) -> 0 | AC40: =SUM(AC34:AC38) -> 0
A43: Provincial Rate Protection | E43: =E40 -> 0 | H43: =H40 -> 0 | K43: =K40 -> 0 | N43: =N40 -> 0 | Q43: =Q40 -> 0 | T43: =T40 -> 0 | W43: =W40 -> 0 | Z43: =Z40 -> 0 | AC43: =AC40 -> 0
A45: Monthly Amount Paid by IESO | E45: =E43/12 -> 0 | H45: =H43/12 -> 0 | K45: =K43/12 -> 0 | N45: =N43/12 -> 0 | Q45: =Q43/12 -> 0 | T45: =T43/12 -> 0 | W45: =W43/12 -> 0 | Z45: =Z43/12 -> 0 | AC45: =AC43/12 -> 0
A47: Note 1: The difference between the actual costs of approved eligible investments and revenue received from the IESO should be recorded in a variance account. The Board may provide
A48: regulatory accounting guidance regarding a variance account either in an individual proceeding or on a generic basis.
A49: Note 2: For the 2016 Test Year, Costs and Revenues of the Direct Benefit are to be included in the test year applicant Rate Base and Revenues.
A51: PILs Calculation
D52: 2012 | G52: 2013 | J52: 2014 | M52: 2015 | P52: 2016 | S52: =P52+1 -> 2017 | V52: =S52+1 -> 2018 | Y52: =V52+1 -> 2019 | AB52: =Y52+1 -> 2020
A53: Income Tax | D53: Direct Benefit | E53: Provincial | G53: Direct Benefit | H53: Provincial | J53: Direct Benefit | K53: Provincial | M53: Direct Benefit | N53: Provincial | P53: Direct Benefit | Q53: Provincial | S53: Direct Benefit | T53: Provincial | V53: Direct Benefit | W53: Provincial | Y53: Direct Benefit | Z53: Provincial | AB53: Direct Benefit | AC53: Provincial
X54: Total | AA54: Total
A55: Net Income - ROE on Rate Base | D55: =D33 -> 0 | E55: =E33 -> 0 | G55: =G33 -> 0 | H55: =H33 -> 0 | J55: =J33 -> 0 | K55: =K33 -> 0 | M55: =M33 -> 0 | N55: =N33 -> 0 | P55: =P33 -> 0 | Q55: =Q33 -> 0 | S55: =S33 -> 0 | T55: =T33 -> 0 | V55: =V33 -> 0 | W55: =W33 -> 0 | Y55: =Y33 -> 0 | Z55: =Z33 -> 0 | AB55: =AB33 -> 0 | AC55: =AC33 -> 0
A56: Amortization (6% DB and 94% P) | D56: =D37 -> 0 | E56: =E37 -> 0 | G56: =G37 -> 0 | H56: =H37 -> 0 | J56: =J37 -> 0 | K56: =K37 -> 0 | M56: =M37 -> 0 | N56: =N37 -> 0 | P56: =P37 -> 0 | Q56: =Q37 -> 0 | S56: =S37 -> 0 | T56: =T37 -> 0 | V56: =V37 -> 0 | W56: =W37 -> 0 | Y56: =Y37 -> 0 | Z56: =Z37 -> 0 | AB56: =AB37 -> 0 | AC56: =AC37 -> 0
A57: CCA (6% DB and 94% P) | D57: =-D94*D$19 -> 0 | E57: =-D94*E$19 -> 0 | G57: =-E94*G19 -> 0 | H57: =-E94*H$19 -> 0 | J57: =-F94*J$19 -> 0 | K57: =-F94*K$19 -> 0 | M57: =-G94*M$19 -> 0 | N57: =-G94*N$19 -> 0 | P57: =-H94*P$19 -> 0 | Q57: =-H94*Q$19 -> 0 | S57: =-I94*S$19 -> 0 | T57: =-I94*T$19 -> 0 | V57: =-J94*V$19 -> 0 | W57: =-J94*W$19 -> 0 | Y57: =-K94*Y$19 -> 0 | Z57: =-K94*Z$19 -> 0 | AB57: =-L94*AB$19 -> 0 | AC57: =-L94*AC$19 -> 0
A58: Taxable income | D58: =SUM(D55:D57) -> 0 | E58: =SUM(E55:E57) -> 0 | G58: =SUM(G55:G57) -> 0 | H58: =SUM(H55:H57) -> 0 | J58: =SUM(J55:J57) -> 0 | K58: =SUM(K55:K57) -> 0 | M58: =SUM(M55:M57) -> 0 | N58: =SUM(N55:N57) -> 0 | P58: =SUM(P55:P57) -> 0 | Q58: =SUM(Q55:Q57) -> 0 | S58: =SUM(S55:S57) -> 0 | T58: =SUM(T55:T57) -> 0 | V58: =SUM(V55:V57) -> 0 | W58: =SUM(W55:W57) -> 0 | Y58: =SUM(Y55:Y57) -> 0 | Z58: =SUM(Z55:Z57) -> 0 | AB58: =SUM(AB55:AB57) -> 0 | AC58: =SUM(AC55:AC57) -> 0
A60: Tax Rate (to be entered)
A62: Income Taxes Payable | D62: =D58*D60 -> 0 | E62: =E58*E60 -> 0 | G62: =G58*G60 -> 0 | H62: =H58*H60 -> 0 | J62: =J58*J60 -> 0 | K62: =K58*K60 -> 0 | M62: =M58*M60 -> 0 | N62: =N58*N60 -> 0 | P62: =P58*P60 -> 0 | Q62: =Q58*Q60 -> 0 | S62: =S58*S60 -> 0 | T62: =T58*T60 -> 0 | V62: =V58*V60 -> 0 | W62: =W58*W60 -> 0 | Y62: =Y58*Y60 -> 0 | Z62: =Z58*Z60 -> 0 | AB62: =AB58*AB60 -> 0 | AC62: =AC58*AC60 -> 0
A63: Gross Up
A64: Income Taxes Payable | D64: =D62/(1-D60) -> 0 | E64: =E62/(1-E60) -> 0 | G64: =G62/(1-G60) -> 0 | H64: =H62/(1-H60) -> 0 | J64: =J62/(1-J60) -> 0 | K64: =K62/(1-K60) -> 0 | M64: =M62/(1-M60) -> 0 | N64: =N62/(1-N60) -> 0 | P64: =P62/(1-P60) -> 0 | Q64: =Q62/(1-Q60) -> 0 | S64: =S62/(1-S60) -> 0 | T64: =T62/(1-T60) -> 0 | V64: =V62/(1-V60) -> 0 | W64: =W62/(1-W60) -> 0 | Y64: =Y62/(1-Y60) -> 0 | Z64: =Z62/(1-Z60) -> 0 | AB64: =AB62/(1-AB60) -> 0 | AC64: =AC62/(1-AC60) -> 0
A65: Grossed Up PILs | D65: =SUM(D64:D64) -> 0 | E65: =SUM(E64:E64) -> 0 | G65: =SUM(G64:G64) -> 0 | H65: =SUM(H64:H64) -> 0 | J65: =SUM(J64:J64) -> 0 | K65: =SUM(K64:K64) -> 0 | M65: =SUM(M64:M64) -> 0 | N65: =SUM(N64:N64) -> 0 | P65: =SUM(P64:P64) -> 0 | Q65: =SUM(Q64:Q64) -> 0 | S65: =SUM(S64:S64) -> 0 | T65: =SUM(T64:T64) -> 0 | V65: =SUM(V64:V64) -> 0 | W65: =SUM(W64:W64) -> 0 | Y65: =SUM(Y64:Y64) -> 0 | Z65: =SUM(Z64:Z64) -> 0 | AB65: =SUM(AB64:AB64) -> 0 | AC65: =SUM(AC64:AC64) -> 0
D68: 2012 | E68: 2013 | F68: 2014 | G68: 2015 | H68: 2016 | I68: =H68+1 -> 2017 | J68: =I68+1 -> 2018 | K68: 2019 | L68: 2020
A69: Net Fixed Assets
B70: Enter applicable amortization in years: | C70: 25
A71: Opening Gross Fixed Assets | E71: =D73 -> 0 | F71: 0 | G71: 0 | H71: 0 | I71: =H73 -> 0 | J71: =I73 -> 0 | K71: =J73 -> 0 | L71: =K73 -> 0
A72: Gross Capital Additions | D72: ='App.2-FA Proposed REG Invest.'!C62 -> 0 | E72: ='App.2-FA Proposed REG Invest.'!D62 -> 0 | F72: ='App.2-FA Proposed REG Invest.'!E62 -> 0 | G72: ='App.2-FA Proposed REG Invest.'!F62 -> 0 | H72: ='App.2-FA Proposed REG Invest.'!G62 -> 0 | I72: ='App.2-FA Proposed REG Invest.'!H62 -> 0 | J72: ='App.2-FA Proposed REG Invest.'!I62 -> 0 | K72: ='App.2-FA Proposed REG Invest.'!J62 -> 0 | L72: ='App.2-FA Proposed REG Invest.'!K62 -> 0
A73: Closing Gross Fixed Assets | D73: =SUM(D71:D72) -> 0 | E73: 0 | F73: 0 | G73: 0 | H73: =SUM(H71:H72) -> 0 | I73: =SUM(I71:I72) -> 0 | J73: 0 | K73: 0 | L73: 0
A75: Opening Accumulated Amortization | E75: =+D78 -> 0 | F75: =E78 -> 0 | G75: 0 | H75: 0 | I75: 0 | J75: 0 | K75: 0 | L75: 0
A76: Current Year Amortization (before additions) | D76: =IF(ISERROR(D71/$C$70), 0, D71/$C$70) -> 0 | E76: 0 | F76: 0 | G76: 0 | H76: 0 | I76: =IF(ISERROR(I71/$C$70), 0, I71/$C$70) -> 0 | J76: =IF(ISERROR(J71/$C$70), 0, J71/$C$70) -> 0 | K76: =IF(ISERROR(K71/$C$70), 0, K71/$C$70) -> 0 | L76: =IF(ISERROR(L71/$C$70), 0, L71/$C$70) -> 0
A77: Additions (half year) | D77: =D72/$C$70/2 -> 0 | E77: =E72/$C$70/2 -> 0 | F77: =F72/$C$70/2 -> 0 | G77: 0 | H77: =H72/$C$70/2 -> 0 | I77: =I72/C70/2 -> 0 | J77: =J72/C70/2 -> 0 | K77: =K72/C70/2 -> 0 | L77: =L72/C70/2 -> 0
A78: Closing Accumulated Amortization | D78: =SUM(D75+D76+D77) -> 0 | E78: =SUM(E75+E76+E77) -> 0 | F78: =SUM(F75+F76+F77) -> 0 | G78: =SUM(G75+G76+G77) -> 0 | H78: =SUM(H75+H76+H77) -> 0 | I78: =SUM(I75:I77) -> 0 | J78: =SUM(J75:J77) -> 0 | K78: =SUM(K75:K77) -> 0 | L78: =SUM(L75:L77) -> 0
A80: Opening Net Fixed Assets | D80: =D71-D75 -> 0 | E80: 0 | F80: =F71-F75 -> 0 | G80: 0 | H80: =H71-H75 -> 0 | I80: =H81 -> 0 | J80: =I81 -> 0 | K80: =J81 -> 0 | L80: =K81 -> 0
A81: Closing Net Fixed Assets | D81: =D73-D78 -> 0 | E81: =E73-E78 -> 0 | F81: 0 | G81: 0 | H81: =H73-H78 -> 0 | I81: =I73-I78 -> 0 | J81: =J73-J78 -> 0 | K81: =K73-K78 -> 0 | L81: =L73-L78 -> 0
A82: Average Net Fixed Assets | D82: =SUM(D80:D81)/2 -> 0 | E82: 0 | F82: 0 | G82: 0 | H82: =SUM(H80:H81)/2 -> 0 | I82: =SUM(I80:I81)/2 -> 0 | J82: =SUM(J80:J81)/2 -> 0 | K82: =SUM(K80:K81)/2 -> 0 | L82: =SUM(L80:L81)/2 -> 0
A84: UCC for PILs Calculation
D85: 2012 | E85: 2013 | F85: 2014 | G85: 2015 | H85: 2016 | I85: =H85+1 -> 2017 | J85: =I85+1 -> 2018 | K85: 2019 | L85: 2020
A87: Opening UCC | E87: =D95 -> 0 | F87: 0 | G87: 0 | H87: 0 | I87: 0 | J87: 0 | K87: 0 | L87: 0
A88: Capital Additions (from Appendix 2-FA) | D88: =D72 -> 0 | E88: 0 | F88: 0 | G88: 0 | H88: =H72 -> 0 | I88: =I72 -> 0 | J88: 0 | K88: 0 | L88: 0
A89: UCC Before Half Year Rule | D89: =SUM(D87:D88) -> 0 | E89: 0 | F89: 0 | G89: 0 | H89: =SUM(H87:H88) -> 0 | I89: =SUM(I87:I88) -> 0 | J89: =SUM(J87:J88) -> 0 | K89: =SUM(K87:K88) -> 0 | L89: =SUM(L87:L88) -> 0
A90: Half Year Rule (1/2 Additions - Disposals) | D90: =D88/2 -> 0 | E90: 0 | F90: 0 | G90: 0 | H90: =H88/2 -> 0 | I90: =I88/2 -> 0 | J90: =J88/2 -> 0 | K90: =K88/2 -> 0 | L90: =L88/2 -> 0
A91: Reduced UCC | D91: =D89-D90 -> 0 | E91: 0 | F91: 0 | G91: 0 | H91: =H89-H90 -> 0 | I91: =I89-I90 -> 0 | J91: =J89-J90 -> 0 | K91: =K89-K90 -> 0 | L91: =L89-L90 -> 0
A92: CCA Rate Class (to be entered) | C92: 47 | D92: =C92 -> 47 | E92: =D92 -> 47 | F92: 47 | G92: 47 | H92: 47 | I92: 47 | J92: 47 | K92: 47 | L92: 47
A93: CCA Rate (to be entered) | C93: 0.08 | D93: =C93 -> 0.08 | E93: 0.08 | F93: 0.08 | G93: 0.08 | H93: 0.08 | I93: 0.08 | J93: 0.08 | K93: 0.08 | L93: 0.08
A94: CCA | D94: =D91*D93 -> 0 | E94: 0 | F94: 0 | G94: 0 | H94: =H91*H93 -> 0 | I94: =I91*I93 -> 0 | J94: 0 | K94: 0 | L94: =L91*L93 -> 0
A95: Closing UCC | D95: =D89-D94 -> 0 | E95: 0 | F95: 0 | G95: 0 | H95: =H89-H94 -> 0 | I95: =I89-I94 -> 0 | J95: =J89-J94 -> 0 | K95: =K89-K94 -> 0 | L95: =L89-L94 -> 0

Sheet App.2-FC Calc of REG Expansion
N1: File Number: | O1: =EBNUMBER -> EB-2016-0061
N2: Exhibit: | O2: 2
N3: Tab: | O3: 5
N4: Schedule: | O4: 1
N5: Page:
N7: Date: | O7: 2016-04-29
A9: Appendix 2-FC
A10: Calculation of Renewable Generation Connection Direct Benefits/Provincial Amount: Renewable Expansion Investments
A12: This table will calculate the distributor/provincial shares of the investments entered in Part B of Appendix 2-FA.
A13: Enter values in green shaded cells: WCA percentage, debt percentages, interest rates, kWh, tax rates, amortization period, CCA Class and percentage.
A14: For historical investments, enter these variables for your last cost of service test year. For 2016 and beyond, enter variables as in the application.
A15: Rate Riders are not calculated for Test Year as these assets and costs are already in the distributor's rate base.
D18: 2012 | G18: 2013 | J18: 2014 | M18: 2015 | P18: 2016 TEST YEAR | S18: 2017 | T18: 2016 | V18: 2018 | Y18: 2019 | AB18: 2020
E19: Direct Benefit | F19: Provincial | H19: Direct Benefit | I19: Provincial | K19: Direct Benefit | L19: Provincial | N19: Direct Benefit | O19: Provincial | Q19: Direct Benefit | R19: Provincial | T19: Direct Benefit | U19: Provincial | W19: Direct Benefit | X19: Provincial | Z19: Direct Benefit | AA19: Provincial | AC19: Direct Benefit | AD19: Provincial
D20: Total | E20: 0.17 | F20: 0.83 | G20: Total | H20: 0.17 | I20: 0.83 | J20: Total | K20: 0.17 | L20: 0.83 | M20: Total | N20: 0.17 | O20: 0.83 | P20: Total | Q20: 0.17 | R20: 0.83 | S20: Total | T20: 0.17 | U20: 0.83 | V20: Total | W20: 0.17 | X20: 0.83 | Y20: Total | Z20: 0.17 | AA20: 0.83 | AB20: Total | AC20: 0.17 | AD20: 0.83
A21: Net Fixed Assets (average) | D21: =D82 -> 0 | E21: =D21*E20 -> 0 | F21: =D21*F20 -> 0 | G21: =E82 -> 0 | H21: =G21*H20 -> 0 | I21: =G21*I20 -> 0 | J21: =F82 -> 0 | K21: =J21*K20 -> 0 | L21: =J21*L20 -> 0 | M21: =G82 -> 0 | N21: =M21*N20 -> 0 | O21: =M21*O20 -> 0 | P21: =H82 -> 0 | Q21: =P21*Q20 -> 0 | R21: =P21*R20 -> 0 | S21: =I82 -> 0 | T21: =S21*T20 -> 0 | U21: =S21*U20 -> 0 | V21: =J82 -> 0 | W21: =V21*W20 -> 0 | X21: =V21*X20 -> 0 | Y21: =K82 -> 0 | Z21: =Y21*Z20 -> 0 | AA21: =Y21*AA20 -> 0 | AB21: =L82 -> 0 | AC21: =AB21*AC20 -> 0 | AD21: =AB21*AD20 -> 0
A22: Incremental OM&A (on-going, N/A for Provincial Recovery) | D22: ='App.2-FA Proposed REG Invest.'!C101 -> 0 | E22: =D22 -> 0 | G22: ='App.2-FA Proposed REG Invest.'!D$101 -> 0 | H22: =G22 -> 0 | J22: ='App.2-FA Proposed REG Invest.'!E$101 -> 0 | K22: =J22 -> 0 | M22: ='App.2-FA Proposed REG Invest.'!F$101 -> 0 | N22: =M22 -> 0 | P22: ='App.2-FA Proposed REG Invest.'!G$101 -> 0 | Q22: =P22 -> 0 | S22: ='App.2-FA Proposed REG Invest.'!H$101 -> 0 | T22: =S22 -> 0 | V22: ='App.2-FA Proposed REG Invest.'!I$101 -> 0 | W22: =V22 -> 0 | Y22: ='App.2-FA Proposed REG Invest.'!J$101 -> 0 | Z22: =Y22 -> 0 | AB22: ='App.2-FA Proposed REG Invest.'!K$101 -> 0 | AC22: =AB22 -> 0
A23: Incremental OM&A (start-up, applicable for Provincial Recovery) | D23: ='App.2-FA Proposed REG Invest.'!C100 -> 0 | E23: =D23*E20 -> 0 | F23: =D23*F20 -> 0 | G23: ='App.2-FA Proposed REG Invest.'!D$100 -> 0 | H23: =G23*H20 -> 0 | I23: =G23*I20 -> 0 | J23: ='App.2-FA Proposed REG Invest.'!E$100 -> 0 | K23: =J23*K20 -> 0 | L23: =J23*L20 -> 0 | M23: ='App.2-FA Proposed REG Invest.'!F$100 -> 0 | N23: =M23*N20 -> 0 | O23: =M23*O20 -> 0 | P23: ='App.2-FA Proposed REG Invest.'!G$100 -> 0 | Q23: =P23*Q20 -> 0 | R23: =P23*R20 -> 0 | S23: ='App.2-FA Proposed REG Invest.'!H$100 -> 0 | T23: =S23*T20 -> 0 | U23: =S23*U20 -> 0 | V23: ='App.2-FA Proposed REG Invest.'!I$100 -> 0 | W23: =V23*W20 -> 0 | X23: =V23*X20 -> 0 | Y23: ='App.2-FA Proposed REG Invest.'!J$100 -> 0 | Z23: =Y23*Z20 -> 0 | AA23: =Y23*AA20 -> 0 | AB23: ='App.2-FA Proposed REG Invest.'!K$100 -> 0 | AC23: =AB23*AC20 -> 0 | AD23: =AB23*AD20 -> 0
A24: WCA | B24: 0.075 | E24: =(E22+E23)*$B$24 -> 0 | F24: =F23*$B$24 -> 0 | H24: =(H22+H23)*$B$24 -> 0 | I24: =I23*$B$24 -> 0 | K24: =(K22+K23)*$B$24 -> 0 | L24: =L23*$B$24 -> 0 | N24: =(N22+N23)*$B$24 -> 0 | O24: =O23*$B$24 -> 0 | Q24: =(Q22+Q23)*$B$24 -> 0 | R24: =R23*$B$24 -> 0 | T24: =(T22+T23)*$B$24 -> 0 | U24: =U23*$B$24 -> 0 | W24: =(W22+W23)*$B$24 -> 0 | X24: =X23*$B$24 -> 0 | Z24: =(Z22+Z23)*$B$24 -> 0 | AA24: =AA23*$B$24 -> 0 | AC24: =(AC22+AC23)*$B$24 -> 0 | AD24: =AD23*$B$24 -> 0
A25: Rate Base | E25: =SUM(E21+E24) -> 0 | F25: =SUM(F21+F24) -> 0 | H25: =SUM(H21+H24) -> 0 | I25: =SUM(I21+I24) -> 0 | K25: =SUM(K21+K24) -> 0 | L25: =SUM(L21+L24) -> 0 | N25: =SUM(N21+N24) -> 0 | O25: =SUM(O21+O24) -> 0 | Q25: =SUM(Q21+Q24) -> 0 | R25: =SUM(R21+R24) -> 0 | T25: =SUM(T21+T24) -> 0 | U25: =SUM(U21+U24) -> 0 | W25: =SUM(W21+W24) -> 0 | X25: =SUM(X21+X24) -> 0 | Z25: =SUM(Z21+Z24) -> 0 | AA25: =SUM(AA21+AA24) -> 0 | AC25: =SUM(AC21+AC24) -> 0 | AD25: =SUM(AD21+AD24) -> 0
A28: Deemed ST Debt | B28: 0.04 | E28: =E25*$B$28 -> 0 | F28: =F25*$B$28 -> 0 | H28: =H25*$B$28 -> 0 | I28: =I25*$B$28 -> 0 | K28: =K25*$B$28 -> 0 | L28: =L25*$B$28 -> 0 | N28: =N25*$B$28 -> 0 | O28: =O25*$B$28 -> 0 | Q28: =Q25*$B$28 -> 0 | R28: =R25*$B$28 -> 0 | T28: =T25*$B$28 -> 0 | U28: =U25*$B$28 -> 0 | W28: =W25*$B$28 -> 0 | X28: =X25*$B$28 -> 0 | Z28: =Z25*$B$28 -> 0 | AA28: =AA25*$B$28 -> 0 | AC28: =AC25*$B$28 -> 0 | AD28: =AD25*$B$28 -> 0
A29: Deemed LT Debt | B29: 0.56 | E29: =E25*$B$29 -> 0 | F29: =F25*$B$29 -> 0 | H29: =H25*$B$29 -> 0 | I29: =I25*$B$29 -> 0 | K29: =K25*$B$29 -> 0 | L29: =L25*$B$29 -> 0 | N29: =N25*$B$29 -> 0 | O29: =O25*$B$29 -> 0 | Q29: =Q25*$B$29 -> 0 | R29: =R25*$B$29 -> 0 | T29: =T25*$B$29 -> 0 | U29: =U25*$B$29 -> 0 | W29: =W25*$B$29 -> 0 | X29: =X25*$B$29 -> 0 | Z29: =Z25*$B$29 -> 0 | AA29: =AA25*$B$29 -> 0 | AC29: =AC25*$B$29 -> 0 | AD29: =AD25*$B$29 -> 0
A30: Deemed Equity | B30: 0.4 | E30: =E25*$B$30 -> 0 | F30: =F25*$B$30 -> 0 | H30: =H25*$B$30 -> 0 | I30: =I25*$B$30 -> 0 | K30: =K25*$B$30 -> 0 | L30: =L25*$B$30 -> 0 | N30: =N25*$B$30 -> 0 | O30: =O25*$B$30 -> 0 | Q30: =Q25*$B$30 -> 0 | R30: =R25*$B$30 -> 0 | T30: =T25*$B$30 -> 0 | U30: =U25*$B$30 -> 0 | W30: =W25*$B$30 -> 0 | X30: =X25*$B$30 -> 0 | Z30: =Z25*$B$30 -> 0 | AA30: =AA25*$B$30 -> 0 | AC30: =AC25*$B$30 -> 0 | AD30: =AD25*$B$30 -> 0
A32: ST Interest | B32: 0.0165 | E32: =E28*$B$32 -> 0 | F32: =F28*$B$32 -> 0 | H32: =H28*$B$32 -> 0 | I32: =I28*$B$32 -> 0 | K32: =K28*$B$32 -> 0 | L32: =L28*$B$32 -> 0 | N32: =N28*$B$32 -> 0 | O32: =O28*$B$32 -> 0 | Q32: =Q28*$B$32 -> 0 | R32: =R28*$B$32 -> 0 | T32: =T28*$B$32 -> 0 | U32: =U28*$B$32 -> 0 | W32: =W28*$B$32 -> 0 | X32: =X28*$B$32 -> 0 | Z32: =Z28*$B$32 -> 0 | AA32: =AA28*$B$32 -> 0 | AC32: =AC28*$B$32 -> 0 | AD32: =AD28*$B$32 -> 0
A33: LT Interest | B33: 0.0614 | E33: =E29*$B$33 -> 0 | F33: =F29*$B$33 -> 0 | H33: =H29*$B$33 -> 0 | I33: =I29*$B$33 -> 0 | K33: =K29*$B$33 -> 0 | L33: =L29*$B$33 -> 0 | N33: =N29*$B$33 -> 0 | O33: =O29*$B$33 -> 0 | Q33: =Q29*$B$33 -> 0 | R33: =R29*$B$33 -> 0 | T33: =T29*$B$33 -> 0 | U33: =U29*$B$33 -> 0 | W33: =W29*$B$33 -> 0 | X33: =X29*$B$33 -> 0 | Z33: =Z29*$B$33 -> 0 | AA33: =AA29*$B$33 -> 0 | AC33: =AC29*$B$33 -> 0 | AD33: =AD29*$B$33 -> 0
A34: ROE | B34: 0.0919 | E34: =E30*$B$34 -> 0 | F34: =F30*$B$34 -> 0 | H34: =H30*$B$34 -> 0 | I34: =I30*$B$34 -> 0 | K34: =K30*$B$34 -> 0 | L34: =L30*$B$34 -> 0 | N34: =N30*$B$34 -> 0 | O34: =O30*$B$34 -> 0 | Q34: =Q30*$B$34 -> 0 | R34: =R30*$B$34 -> 0 | T34: =T30*$B$34 -> 0 | U34: =U30*$B$34 -> 0 | W34: =W30*$B$34 -> 0 | X34: =X30*$B$34 -> 0 | Z34: =Z30*$B$34 -> 0 | AA34: =AA30*$B$34 -> 0 | AC34: =AC30*$B$34 -> 0 | AD34: =AD30*$B$34 -> 0
A35: Cost of Capital Total | E35: =SUM(E32:E34) -> 0 | F35: =SUM(F32:F34) -> 0 | H35: =SUM(H32:H34) -> 0 | I35: =SUM(I32:I34) -> 0 | K35: =SUM(K32:K34) -> 0 | L35: =SUM(L32:L34) -> 0 | N35: =SUM(N32:N34) -> 0 | O35: =SUM(O32:O34) -> 0 | Q35: =SUM(Q32:Q34) -> 0 | R35: =SUM(R32:R34) -> 0 | T35: =SUM(T32:T34) -> 0 | U35: =SUM(U32:U34) -> 0 | W35: =SUM(W32:W34) -> 0 | X35: =SUM(X32:X34) -> 0 | Z35: =SUM(Z32:Z34) -> 0 | AA35: =SUM(AA32:AA34) -> 0 | AC35: =SUM(AC32:AC34) -> 0 | AD35: =SUM(AD32:AD34) -> 0
A37: OM&A | E37: =E22+E23 -> 0 | F37: =F23 -> 0 | H37: =H22+H23 -> 0 | I37: =I23 -> 0 | K37: =K22+K23 -> 0 | L37: =L23 -> 0 | N37: =N22+N23 -> 0 | O37: =O23 -> 0 | Q37: =Q22+Q23 -> 0 | R37: =R23 -> 0 | T37: =T22+T23 -> 0 | U37: =U23 -> 0 | W37: =W22+W23 -> 0 | X37: =X23 -> 0 | Z37: =Z22+Z23 -> 0 | AA37: =AA23 -> 0 | AC37: =AC22+AC23 -> 0 | AD37: =AD23 -> 0
A38: Amortization | D38: =D78 -> 0 | E38: =D38*E$20 -> 0 | F38: =D38*F$20 -> 0 | G38: =E78 -> 0 | H38: =G38*H$20 -> 0 | I38: =G38*I$20 -> 0 | J38: =F78 -> 0 | K38: =J38*K$20 -> 0 | L38: =J38*L$20 -> 0 | M38: =G78 -> 0 | N38: =M38*N$20 -> 0 | O38: =M38*O$20 -> 0 | P38: =H76+H77 -> 0 | Q38: =P38*Q$20 -> 0 | R38: =P38*R$20 -> 0 | S38: =I76+I77 -> 0 | T38: =S38*T$20 -> 0 | U38: =S38*U$20 -> 0 | V38: =J76+J77 -> 0 | W38: =V38*W$20 -> 0 | X38: =V38*X$20 -> 0 | Y38: =K76+K77 -> 0 | Z38: =Y38*Z$20 -> 0 | AA38: =Y38*AA$20 -> 0 | AB38: =L76+L77 -> 0 | AC38: =AB38*AC$20 -> 0 | AD38: =AB38*AD$20 -> 0
A39: Grossed-up PILs | E39: =E66 -> 0 | F39: =F66 -> 0 | H39: =H66 -> 0 | I39: =I66 -> 0 | K39: =K66 -> 0 | L39: =L66 -> 0 | N39: =N66 -> 0 | O39: =O66 -> 0 | Q39: =Q66 -> 0 | R39: =R66 -> 0 | T39: =T66 -> 0 | U39: =U66 -> 0 | W39: =W66 -> 0 | X39: =X66 -> 0 | Z39: =Z66 -> 0 | AA39: =AA66 -> 0 | AC39: =AC66 -> 0 | AD39: =AD66 -> 0
A41: Revenue Requirement | E41: =SUM(E35:E39) -> 0 | F41: =SUM(F35:F39) -> 0 | H41: =SUM(H35:H39) -> 0 | I41: =SUM(I35:I39) -> 0 | K41: =SUM(K35:K39) -> 0 | L41: =SUM(L35:L39) -> 0 | N41: =SUM(N35:N39) -> 0 | O41: =SUM(O35:O39) -> 0 | Q41: =SUM(Q35:Q39) -> 0 | R41: =SUM(R35:R39) -> 0 | T41: =SUM(T35:T39) -> 0 | U41: =SUM(U35:U39) -> 0 | W41: =SUM(W35:W39) -> 0 | X41: =SUM(X35:X39) -> 0 | Z41: =SUM(Z35:Z39) -> 0 | AA41: =SUM(AA35:AA39) -> 0 | AC41: =SUM(AC35:AC39) -> 0 | AD41: =SUM(AD35:AD39) -> 0
A44: Provincial Rate Protection | F44: =F41 -> 0 | I44: =I41 -> 0 | L44: =L41 -> 0 | O44: =O41 -> 0 | R44: =R41 -> 0 | U44: =U41 -> 0 | X44: =X41 -> 0 | AA44: =AA41 -> 0 | AD44: =AD41 -> 0
A46: Monthly Amount Paid by IESO | F46: =F44/12 -> 0 | I46: =I44/12 -> 0 | L46: =L44/12 -> 0 | O46: =O44/12 -> 0 | R46: =R44/12 -> 0 | U46: =U44/12 -> 0 | X46: =X44/12 -> 0 | AA46: =AA44/12 -> 0 | AD46: =AD44/12 -> 0
A48: Note 1: The difference between the actual costs of approved eligible investments and revenue received from the IESO should be recorded in a variance account. The Board may provide
A49: regulatory accounting guidance regarding a variance account either in an individual proceeding or on a generic basis.
A50: Note 2: For the 2016 Test Year, Costs and Revenues of the Direct Benefit are to be included in the test year applicant Rate Base and Revenues.
A52: PILs Calculation
E53: 2012 | H53: 2013 | K53: 2014 | N53: 2015 | Q53: 2016 TEST YEAR | T53: 2017 | W53: 2018 | Z53: 2019 | AC53: 2020
A54: Income Tax | E54: Direct Benefit | F54: Provincial | H54: Direct Benefit | I54: Provincial | K54: Direct Benefit | L54: Provincial | N54: Direct Benefit | O54: Provincial | Q54: Direct Benefit | R54: Provincial | T54: Direct Benefit | U54: Provincial | W54: Direct Benefit | X54: Provincial | Z54: Direct Benefit | AA54: Provincial | AC54: Direct Benefit | AD54: Provincial
V55: Total | Y55: Total | AB55: Total
A56: Net Income - ROE on Rate Base | E56: =E34 -> 0 | F56: =F34 -> 0 | H56: =H34 -> 0 | I56: =I34 -> 0 | K56: =K34 -> 0 | L56: =L34 -> 0 | N56: =N34 -> 0 | O56: =O34 -> 0 | Q56: =Q34 -> 0 | R56: =R34 -> 0 | T56: =T34 -> 0 | U56: =U34 -> 0 | W56: =W34 -> 0 | X56: =X34 -> 0 | Z56: =Z34 -> 0 | AA56: =AA34 -> 0 | AC56: =AC34 -> 0 | AD56: =AD34 -> 0
A57: Amortization (17% DB and 83% P) | E57: =E38 -> 0 | F57: =F38 -> 0 | H57: =H38 -> 0 | I57: =I38 -> 0 | K57: =K38 -> 0 | L57: =L38 -> 0 | N57: =N38 -> 0 | O57: =O38 -> 0 | Q57: =Q38 -> 0 | R57: =R38 -> 0 | T57: =T38 -> 0 | U57: =U38 -> 0 | W57: =W38 -> 0 | X57: =X38 -> 0 | Z57: =Z38 -> 0 | AA57: =AA38 -> 0 | AC57: =AC38 -> 0 | AD57: =AD38 -> 0
A58: CCA (17% DB and 83% P) | E58: =-D94*E$20 -> 0 | F58: =-D94*F$20 -> 0 | H58: =-E94*H$20 -> 0 | I58: =-E94*I$20 -> 0 | K58: =-F94*K$20 -> 0 | L58: =-F94*L$20 -> 0 | N58: =-G94*N$20 -> 0 | O58: =-G94*O$20 -> 0 | Q58: =-H94*Q$20 -> 0 | R58: =-H94*R$20 -> 0 | T58: =-I94*T$20 -> 0 | U58: =-I94*U$20 -> 0 | W58: =-J94*W$20 -> 0 | X58: =-J94*X$20 -> 0 | Z58: =-K94*Z$20 -> 0 | AA58: =-K94*AA$20 -> 0 | AC58: =-L94*AC$20 -> 0 | AD58: =-L94*AD$20 -> 0
A59: Taxable income | E59: =SUM(E56:E58) -> 0 | F59: =SUM(F56:F58) -> 0 | H59: =SUM(H56:H58) -> 0 | I59: =SUM(I56:I58) -> 0 | K59: =SUM(K56:K58) -> 0 | L59: =SUM(L56:L58) -> 0 | N59: =SUM(N56:N58) -> 0 | O59: =SUM(O56:O58) -> 0 | Q59: =SUM(Q56:Q58) -> 0 | R59: =SUM(R56:R58) -> 0 | T59: =SUM(T56:T58) -> 0 | U59: =SUM(U56:U58) -> 0 | W59: =SUM(W56:W58) -> 0 | X59: =SUM(X56:X58) -> 0 | Z59: =SUM(Z56:Z58) -> 0 | AA59: =SUM(AA56:AA58) -> 0 | AC59: =SUM(AC56:AC58) -> 0 | AD59: =SUM(AD56:AD58) -> 0
A61: Tax Rate (to be entered)
A63: Income Taxes Payable | E63: =E59*E61 -> 0 | F63: =F59*F61 -> 0 | H63: =H59*H61 -> 0 | I63: =I59*I61 -> 0 | K63: =K59*K61 -> 0 | L63: =L59*L61 -> 0 | N63: =N59*N61 -> 0 | O63: =O59*O61 -> 0 | Q63: =Q59*Q61 -> 0 | R63: =R59*R61 -> 0 | T63: =T59*T61 -> 0 | U63: =U59*U61 -> 0 | W63: =W59*W61 -> 0 | X63: =X59*X61 -> 0 | Z63: =Z59*Z61 -> 0 | AA63: =AA59*AA61 -> 0 | AC63: =AC59*AC61 -> 0 | AD63: =AD59*AD61 -> 0
A64: Gross Up
A65: Income Taxes Payable | E65: =E63/(1-E61) -> 0 | F65: =F63/(1-F61) -> 0 | H65: =H63/(1-H61) -> 0 | I65: =I63/(1-I61) -> 0 | K65: =K63/(1-K61) -> 0 | L65: =L63/(1-L61) -> 0 | N65: =N63/(1-N61) -> 0 | O65: =O63/(1-O61) -> 0 | Q65: =Q63/(1-Q61) -> 0 | R65: =R63/(1-R61) -> 0 | T65: =T63/(1-T61) -> 0 | U65: =U63/(1-U61) -> 0 | W65: =W63/(1-W61) -> 0 | X65: =X63/(1-X61) -> 0 | Z65: =Z63/(1-Z61) -> 0 | AA65: =AA63/(1-AA61) -> 0 | AC65: =AC63/(1-AC61) -> 0 | AD65: =AD63/(1-AD61) -> 0
A66: Grossed Up PILs | E66: =SUM(E65:E65) -> 0 | F66: =SUM(F65:F65) -> 0 | H66: =SUM(H65:H65) -> 0 | I66: =SUM(I65:I65) -> 0 | K66: =SUM(K65:K65) -> 0 | L66: =SUM(L65:L65) -> 0 | N66: =SUM(N65:N65) -> 0 | O66: =SUM(O65:O65) -> 0 | Q66: =SUM(Q65:Q65) -> 0 | R66: =SUM(R65:R65) -> 0 | T66: =SUM(T65:T65) -> 0 | U66: =SUM(U65:U65) -> 0 | W66: =SUM(W65:W65) -> 0 | X66: =SUM(X65:X65) -> 0 | Z66: =SUM(Z65:Z65) -> 0 | AA66: =SUM(AA65:AA65) -> 0 | AC66: =SUM(AC65:AC65) -> 0 | AD66: =SUM(AD65:AD65) -> 0
A69: Net Fixed Assets | D69: 2011 | E69: 2012 | F69: 2013 | G69: 2014 | H69: 2015 | I69: 2016 | J69: 2017 | K69: 2018 | L69: 2019
B70: Enter applicable amortization in years: | C70: 25
A71: Opening Gross Fixed Assets | E71: =D73 -> 0 | F71: 0 | G71: 0 | H71: 0 | I71: 0 | J71: 0 | K71: 0 | L71: 0
A72: Gross Capital Additions | D72: ='App.2-FA Proposed REG Invest.'!C99 -> 0 | E72: ='App.2-FA Proposed REG Invest.'!D99 -> 0 | F72: ='App.2-FA Proposed REG Invest.'!E99 -> 0 | G72: ='App.2-FA Proposed REG Invest.'!F99 -> 0 | H72: ='App.2-FA Proposed REG Invest.'!G99 -> 0 | I72: ='App.2-FA Proposed REG Invest.'!H99 -> 0 | J72: ='App.2-FA Proposed REG Invest.'!I99 -> 0 | K72: ='App.2-FA Proposed REG Invest.'!J99 -> 0 | L72: ='App.2-FA Proposed REG Invest.'!K99 -> 0
A73: Closing Gross Fixed Assets | D73: =SUM(D71:D72) -> 0 | E73: 0 | F73: 0 | G73: 0 | H73: 0 | I73: 0 | J73: 0 | K73: 0 | L73: 0
A75: Opening Accumulated Amortization | E75: =+D78 -> 0 | F75: =E78 -> 0 | G75: 0 | H75: =G78 -> 0 | I75: =H78 -> 0 | J75: =I78 -> 0 | K75: =J78 -> 0 | L75: =K78 -> 0
A76: Current Year Amortization (before additions) | E76: =IF(ISERROR(E71/$C$70), 0, E71/$C$70) -> 0 | F76: 0 | G76: 0 | H76: =H71/$C$70 -> 0 | I76: =I71/$C$70 -> 0 | J76: =J71/$C$70 -> 0 | K76: =K71/$C$70 -> 0 | L76: =L71/$C$70 -> 0
A77: Additions (half year) | D77: =D72/C70/2 -> 0 | E77: =E72/C70/2 -> 0 | F77: =F72/C70/2 -> 0 | G77: =G72/C70/2 -> 0 | H77: =H72/C70/2 -> 0 | I77: =I72/C70/2 -> 0 | J77: =J72/C70/2 -> 0 | K77: =K72/C70/2 -> 0 | L77: =L72/C70/2 -> 0
A78: Closing Accumulated Amortization | D78: =SUM(D75+D77) -> 0 | E78: =SUM(E75:E77) -> 0 | F78: 0 | G78: 0 | H78: 0 | I78: 0 | J78: 0 | K78: 0 | L78: 0
A80: Opening Net Fixed Assets | D80: =D71-D75 -> 0 | E80: =E71-E75 -> 0 | F80: =F71-F75 -> 0 | G80: =G71-G75 -> 0 | H80: =G81 -> 0 | I80: =H81 -> 0 | J80: =I81 -> 0 | K80: =J81 -> 0 | L80: =K81 -> 0
A81: Closing Net Fixed Assets | D81: =D73-D78 -> 0 | E81: 0 | F81: 0 | G81: 0 | H81: 0 | I81: 0 | J81: 0 | K81: 0 | L81: 0
A82: Average Net Fixed Assets | D82: =SUM(D80:D81)/2 -> 0 | E82: 0 | F82: 0 | G82: 0 | H82: 0 | I82: 0 | J82: 0 | K82: 0 | L82: 0
A84: UCC for PILs Calculation
D85: 2014 | E85: 2014 | F85: 2014 | G85: 2014 | H85: 2015 | I85: 2016 | J85: 2017 | K85: 2018 | L85: 2019
A87: Opening UCC | E87: =D95 -> 0 | F87: 0 | G87: 0 | H87: 0 | I87: 0 | J87: 0 | K87: 0 | L87: 0
A88: Capital Additions (from Appendix 2-FA) | D88: =D72 -> 0 | E88: 0 | F88: 0 | G88: 0 | H88: 0 | I88: 0 | J88: 0 | K88: 0 | L88: 0
A89: UCC Before Half Year Rule | D89: =SUM(D87:D88) -> 0 | E89: 0 | F89: 0 | G89: 0 | H89: 0 | I89: 0 | J89: 0 | K89: 0 | L89: 0
A90: Half Year Rule (1/2 Additions - Disposals) | D90: =D88/2 -> 0 | E90: 0 | F90: 0 | G90: 0 | H90: 0 | I90: 0 | J90: 0 | K90: 0 | L90: 0
A91: Reduced UCC | D91: =D89-D90 -> 0 | E91: 0 | F91: 0 | G91: 0 | H91: 0 | I91: 0 | J91: 0 | K91: 0 | L91: 0
A92: CCA Rate Class (to be entered) | C92: 47 | D92: =$C$92 -> 47 | E92: =$C$92 -> 47 | F92: 47 | G92: 47 | H92: 47 | I92: 47 | J92: 47 | K92: 47 | L92: 47
A93: CCA Rate (to be entered) | C93: 0.08 | D93: =$C$93 -> 0.08 | E93: =$C$93 -> 0.08 | F93: 0.08 | G93: 0.08 | H93: 0.08 | I93: 0.08 | J93: 0.08 | K93: 0.08 | L93: 0.08
A94: CCA | D94: =D91*D$93 -> 0 | E94: =E91*E$93 -> 0 | F94: =F91*F$93 -> 0 | G94: =G91*G$93 -> 0 | H94: =H91*H$93 -> 0 | I94: 0 | J94: 0 | K94: 0 | L94: 0
A95: Closing UCC | D95: =D89-D94 -> 0 | E95: 0 | F95: 0 | G95: 0 | H95: 0 | I95: 0 | J95: 0 | K95: 0 | L95: 0

Sheet App.2-G SQI
I1: File Number: | K1: =EBNUMBER -> EB-2016-0061
I2: Exhibit: | K2: 2
I3: Tab: | K3: 8
I4: Schedule: | K4: 1A
I5: Page:
I7: Date: | K7: 2016-04-29
A9: Appendix 2-G
A10: Service Reliability Indicators
A11: 2011 - 2015
A13: Index | B13: Including outages caused by loss of supply | G13: Excluding outages caused by loss of supply
B14: 2011 | C14: 2012 | D14: 2013 | E14: 2014 | F14: 2015 | G14: 2011 | H14: 2012 | I14: 2013 | J14: 2014 | K14: 2015
A15: SAIDI | B15: 2.5233 | C15: 7.756 | D15: 3.4612 | E15: 1.9524 | F15: 5.8698 | G15: 2.4115 | H15: 1.891 | I15: 3.2249 | J15: 1.9509 | K15: 2.3608
A16: SAIFI | B16: 2.07 | C16: 3.8251 | D16: 2.9703 | E16: 2.0673 | F16: 3.5498 | G16: 1.7971 | H16: 2.209 | I16: 2.7188 | J16: 2.0669 | K16: 2.783
A18: 5 Year Historical Average
A19: SAIDI | F19: =IF(ISERROR(AVERAGE(B15:F15)), "", AVERAGE(B15:F15)) -> 4.31254 | K19: =IF(ISERROR(AVERAGE(G15:K15)), "", AVERAGE(G15:K15)) -> 2.36782
A20: SAIFI | F20: =IF(ISERROR(AVERAGE(B16:F16)), "", AVERAGE(B16:F16)) -> 2.8965 | K20: =IF(ISERROR(AVERAGE(G16:K16)), "", AVERAGE(G16:K16)) -> 2.31496
A22: SAIDI = System Average Interruption Duration Index
A23: SAIFI = System Average Interruption Frequency Index
A26: Indicator | C26: OEB Minimum Standard | D26: 2011 | E26: 2012 | F26: 2013 | G26: 2014 | H26: 2015
A27: Low Voltage Connections | C27: 0.9 | D27: 0.9593 | E27: 0.9571 | F27: 0.931 | G27: 0.96 | H27: 0.9355
A28: High Voltage Connections | C28: 0.9 | D28: --- | E28: 0 | F28: 0 | G28: 0 | H28: 0
A29: Telephone Accessibility | C29: 0.65 | D29: 0.8463 | E29: 0.8456 | F29: 0.8257 | G29: 0.78 | H29: 0.7607
A30: Appointments Met | C30: 0.9 | D30: 1 | E30: 1 | F30: 1 | G30: 1 | H30: 1
A31: Written Response to Enquires | C31: 0.8 | D31: 1 | E31: 1 | F31: 1 | G31: 1 | H31: 1
A32: Emergency Urban Response | C32: 0.8 | D32: 1 | E32: 1 | F32: 1 | G32: 1 | H32: 1
A33: Emergency Rural Response | C33: 0.8 | D33: 1 | E33: 1 | F33: 1 | G33: 1 | H33: 1
A34: Telephone Call Abandon Rate | C34: 0.1 | D34: 0.023 | E34: 0.0283 | F34: 0.0245 | G34: 0.04 | H34: 0.0458
A35: Appointment Scheduling | C35: 0.9 | D35: 0.9915 | E35: 0.9953 | F35: 0.9915 | G35: 0.98 | H35: 0.97
A36: Rescheduling a Missed Appointment | C36: 1 | D36: --- | E36: 0 | F36: 0 | G36: 0 | H36: 0
A37: Reconnection Performance Standard | C37: 0.85 | D37: --- | E37: 1 | F37: 1 | G37: 1 | H37: 1

Sheet App.2-H_Other_Oper_Rev
G1: File Number: | H1: =EBNUMBER -> EB-2016-0061
G2: Exhibit: | H2: 3
G3: Tab: | H3: 4
G4: Schedule: | H4: 3
G5: Page:
G7: Date: | H7: 2016-04-29
A9: Appendix 2-H
A10: Other Operating Revenue
A12: USoA # | B12: USoA Description | C12: =F13-3 & " Actual" -> 2012 Actual | D12: =F13-2 & " Actual" -> 2013 Actual | E12: =F13-1 & " Actual" & CHAR(178) -> 2014 Actual² | F12: ="Actual Year" & CHAR(178) -> Actual Year² | G12: ="Bridge Year" & CHAR(178) -> Bridge Year² | H12: Test Year
C13: =D13 -> 2013 | D13: 2013 | E13: 2014 | F13: =G13-1 -> 2015 | G13: 2016 | H13: 2017
B14: Reporting Basis
A15: 4235 | B15: Specific Service Charges | C15: 151354.92 | D15: 151021.52 | E15: 160714.45 | F15: 159803.02 | G15: 156538.92 | H15: 158263.92
A16: 4225 | B16: Late Payment Charges | C16: 361102.2 | D16: 397362.51 | E16: 391595.44 | F16: 373070.05 | G16: 340573.08 | H16: 354100.08
A17: 4082 | B17: Retail Services Revenues | C17: 33500.04 | D17: 23309.8 | E17: 25190.2 | F17: 21397.3 | G17: 24250.08 | H17: 24600
A18: 4084 | B18: Service Transaction Requests (STR) Revenues | C18: 1400.04 | D18: 791.25 | E18: 821.25 | F18: 579.25 | G18: 806.4 | H18: 799.92
A19: 4086 | B19: SSS Administration Revenue | C19: 79562.24 | D19: 80384.8 | E19: 80806.5 | F19: 81575.6 | G19: 80841.12 | H19: 81035.16
A20: 4210 | B20: Rent from Electric Property | C20: 317100.12 | D20: 320461.61 | E20: 328193.3 | F20: 322463.71 | G20: 324327.48 | H20: 327500.04
A21: 4220 | B21: Other Electric Revenues | C21: 9873 | D21: -946693.19 | E21: 26048.14 | F21: 78960.49 | G21: 15540.96 | H21: 15700.08
A22: 4325 | B22: Revenues from Merchandise, Jobbing, Etc. | C22: 556692 | D22: 383707.05 | E22: 575418.55 | F22: 773569.32 | G22: 437083.8 | H22: 432851.88
A23: 4330 | B23: Costs and Expenses of Merchandising, Jobbing, Etc. | C23: -137400 | D23: -143739.67 | E23: -235995.45 | F23: -166989.06 | G23: -108234.84 | H23: -109623.36
A24: 4360 | B24: Loss on Disposition of Utility and Other Property | C24: 0 | D24: -19691.51 | E24: 74501.87 | F24: 46779.14 | G24: 0 | H24: 0
A25: 4375 | B25: Revenues from Non-Utility Operations | C25: 0 | D25: 0 | E25: 0 | F25: 0 | G25: 0 | H25: 1132965.08
A26: 4390 | B26: Miscellaneous Non-Operating Income | H26: 100000
A27: 4398 | B27: Foreign Exchange Gains and Losses, Including Amortization | C27: 0 | D27: 3712.87 | E27: -11746.49 | F27: -28154.75 | G27: 0 | H27: 0
A28: 4405 | B28: Interest and Dividend Income | C28: 30000.04 | D28: -54939.79 | E28: 76420.55 | F28: 72102.81 | G28: 30000 | H28: 30000
A30: Specific Service Charges | C30: =C15 -> 151354.92 | D30: 151021.52 | E30: 160714.45 | F30: 159803.02 | G30: 156538.92 | H30: 158263.92
A31: Late Payment Charges | C31: 361102.2 | D31: 397362.51 | E31: 391595.44 | F31: 373070.05 | G31: 340573.08 | H31: 354100.08
A32: Other Operating Revenues | C32: 441435.44 | D32: -521745.73 | E32: 461059.39 | F32: 504976.35 | G32: 475766.04 | H32: 479635.2
A33: Other Income or Deductions | C33: 449292.04 | D33: 169048.95 | E33: 478599.03 | F33: 697307.46 | G33: 328848.96 | H33: =1462445.60394432-6252+H26 -> 1556193.604
A34: Total | C34: =SUM(C30:C33) -> 1403184.6 | D34: 195687.25 | E34: 1491968.31 | F34: 1735156.88 | G34: 1301727 | H34: 2548192.804
A36: Description | C36: Account(s)
A37: Specific Service Charges: | C37: 4235
A38: Late Payment Charges: | C38: 4225
A39: Other Distribution Revenues: | C39: 4082, 4084, 4086, 4210, 4220
A40: Other Income and Expenses: | C40: 4325, 4330, 4360, 4375, 4390, 4398, 4405
A43: Note: Add all applicable accounts listed above to the table and include all relevant information.
A45: Account Breakdown Details
A47: Account 4082 - Retail Services Revenue
C48: Board Approved | D48: 2013 Actual | E48: 2014 Actual | F48: Actual Year | G48: Bridge Year | H48: Test Year
C49: 2013 | D49: 2013 | E49: 2014 | F49: 2015 | G49: 2016 | H49: 2017
A50: Reporting Basis
A51: Monthly fixed retail charge | C51: 2740 | D51: 3560 | E51: 3880 | F51: 3620 | G51: 3720 | H51: 3700
A52: Monthly variable service charge | C52: 19800 | D52: 12490 | E52: 13361 | F52: 11163 | G52: 12925 | H52: 13100
A53: Bill-ready charge | C53: 10960 | D53: 7260 | E53: 7849 | F53: 6614 | G53: 7555 | H53: 7700
A54: Other | C54: 0 | D54: 0 | E54: 100 | F54: 0 | G54: 50 | H54: 100
A56: Total | C56: =SUM(C51:C55) -> 33500 | D56: 23310 | E56: 25190 | F56: 21397 | G56: 24250 | H56: 24600
A58: Account 4084 - Service Transaction Requests (STR) Revenues
C59: Board Approved | D59: 2013 Actual | E59: 2014 Actual | F59: Actual Year | G59: Bridge Year | H59: Test Year
C60: 2013 | D60: 2013 | E60: 2014 | F60: 2015 | G60: 2016 | H60: 2017
A61: Reporting Basis
A62: STR request fee | C62: 550 | D62: 340 | E62: 332 | F62: 225 | G62: 336 | H62: 300
A63: STR processing fee | C63: 850 | D63: 451 | E63: 489 | F63: 354 | G63: 470 | H63: 500
A67: Total | C67: =SUM(C62:C66) -> 1400 | D67: 791 | E67: 821 | F67: 579 | G67: 806 | H67: 800
A69: Account 4086 - SSS Administrative Revenue
C70: Board Approved | D70: 2013 Actual | E70: 2014 Actual | F70: Actual Year | G70: Bridge Year | H70: Test Year
C71: 2013 | D71: 2013 | E71: 2014 | F71: 2015 | G71: 2016 | H71: 2017
A72: Reporting Basis
A73: Administrative charge | C73: 79562 | D73: 80385 | E73: 80807 | F73: 81576 | G73: 80841 | H73: 81035
A77: Total | C77: =SUM(C73:C76) -> 79562 | D77: 80385 | E77: 80807 | F77: 81576 | G77: 80841 | H77: 81035
A79: Account 4210 - Rent from Electric Property
C80: Board Approved | D80: 2013 Actual | E80: 2014 Actual | F80: Actual Year | G80: Bridge Year | H80: Test Year
C81: 2013 | D81: 2013 | E81: 2014 | F81: 2015 | G81: 2016 | H81: 2017
A82: Reporting Basis
A83: Pole rentals | C83: 317100 | D83: 320462 | E83: 328193 | F83: 322464 | G83: 324327 | H83: 327500
A88: Total | C88: =SUM(C83:C87) -> 317100 | D88: 320462 | E88: 328193 | F88: 322464 | G88: 324327 | H88: 327500
A90: Account 4220 - Other Electric Revenues
C91: Board Approved | D91: 2013 Actual | E91: 2014 Actual | F91: Actual Year | G91: Bridge Year | H91: Test Year
C92: 2013 | D92: 2013 | E92: 2014 | F92: 2015 | G92: 2016 | H92: 2017
A93: Reporting Basis
A94: Returned cheque | C94: 4100 | D94: 3399 | E94: 4225 | F94: 2942 | G94: 3541 | H94: 3600
A95: Other revenue | C95: 5773 | D95: 54230 | E95: 21823 | F95: 76018 | G95: 12000 | H95: 12100
A96: Smart meter ROE/disposition balances per OEB FAQ | C96: 0 | D96: -1004322 | E96: 0 | F96: 0 | G96: 0 | H96: 0
A99: Total | C99: =SUM(C94:C98) -> 9873 | D99: -946693 | E99: 26048 | F99: 78960 | G99: 15541 | H99: 15700
A101: Account 4325 - Revenue from Merchandise, Jobbing, Etc.
C102: Board Approved | D102: 2013 Actual | E102: 2014 Actual | F102: Actual Year | G102: Bridge Year | H102: Test Year
C103: 2013 | D103: 2013 | E103: 2014 | F103: 2015 | G103: 2016 | H103: 2017
A104: Reporting Basis
A105: Job order revenue | C105: 0 | D105: 121564 | E105: 175307 | F105: 365695 | G105: 84429 | H105: 74505
A106: IT outside services with related parties | C106: 556692 | D106: 262143 | E106: 400112 | F106: 407873.5 | G106: 352655 | H106: 358347
A109: Total | C109: =SUM(C105:C108) -> 556692 | D109: =SUM(D105:D108) -> 383707 | E109: 575419 | F109: 773568.5 | G109: 437084 | H109: 432852
A111: Account 4330 - Costs and Expenses of Merchandise, Jobbing, Etc.
C112: Board Approved | D112: 2013 Actual | E112: 2014 Actual | F112: Actual Year | G112: Bridge Year | H112: Test Year
C113: 2013 | D113: 2013 | E113: 2014 | F113: 2015 | G113: 2016 | H113: 2017
A114: Reporting Basis
A115: Job order costs | D115: -110784 | E115: -148650 | F115: -105304 | G115: -75029 | H115: -75105
A116: IT outside services with related parties | C116: -137400 | D116: -32956 | E116: -87344.93 | F116: -61685 | G116: -33206 | H116: -34518
A120: Total | C120: =SUM(C115:C119) -> -137400 | D120: -143740 | E120: -235994.93 | F120: -166989 | G120: -108235 | H120: -109623
A122: Account 4360 - Loss on Disposition of Utility and Other Property
C123: Board Approved | D123: 2013 Actual | E123: 2014 Actual | F123: Actual Year | G123: Bridge Year | H123: Test Year
C124: 2013 | D124: 2013 | E124: 2014 | F124: 2015 | G124: 2016 | H124: 2017
A125: Reporting Basis
A126: Loss on disposals/retirement | C126: 0 | D126: -19692 | E126: 74502 | F126: 46779 | G126: 0 | H126: 0
A130: Total | C130: =SUM(C126:C129) -> 0 | D130: -19692 | E130: 74502 | F130: 46779 | G130: 0 | H130: 0
A132: Account 4375 - Revenues from Non-Utility Operations
C133: Board Approved | D133: 2013 Actual | E133: 2014 Actual | F133: Actual Year | G133: Bridge Year | H133: Test Year
C134: 2013 | D134: 2013 | E134: 2014 | F134: 2015 | G134: 2016 | H134: 2017
A135: Reporting Basis
A136: Shared IT and equipment charges | C136: 0 | D136: 0 | E136: 0 | F136: 0 | G136: 0 | H136: 1139217.084
A141: Total | C141: =SUM(C136:C140) -> 0 | D141: 0 | E141: 0 | F141: 0 | G141: 0 | H141: 1139217.084
A143: Account 4398 - Foreign Exchange Gains and Losses, Including Amortization
C144: Board Approved | D144: 2013 Actual | E144: 2014 Actual | F144: Actual Year | G144: Bridge Year | H144: Test Year
C145: 2013 | D145: 2013 | E145: 2014 | F145: 2015 | G145: 2016 | H145: 2017
A146: Reporting Basis
A147: Gain/loss on foreign exchange | C147: 0 | D147: 3713 | E147: -11746 | F147: -28155 | G147: 0 | H147: 0
A152: Total | C152: =SUM(C147:C151) -> 0 | D152: 3713 | E152: -11746 | F152: -28155 | G152: 0 | H152: 0
A154: Account 4405 - Interest and Dividend Income
C155: Board Approved | D155: 2013 Actual | E155: 2014 Actual | F155: Actual Year | G155: Bridge Year | H155: Test Year
C156: 2013 | D156: 2013 | E156: 2014 | F156: 2015 | G156: 2016 | H156: 2017
A157: Reporting Basis
A158: Interest on regulatory assets | C158: 0 | D158: -81811.95 | E158: 45678.72 | F158: 42361 | G158: 0 | H158: 0
A159: Other interest | C159: 30000 | D159: 26872.16 | E159: 30741.83 | F159: 29742 | G159: 30000 | H159: 30000
A160: Total | C160: =SUM(C158:C159) -> 30000 | D160: -54939.79 | E160: 76420.55 | F160: 72103 | G160: 30000 | H160: 30000

Sheet App_2-I LF_CDM
G1: File Number: | H1: =EBNUMBER -> EB-2016-0061
G2: Exhibit: | H2: 3
G3: Tab: | H3: 2
G4: Schedule: | H4: 1A
G5: Page:
G7: Date: | H7: 2016-04-29
A9: Appendix 2-I
A10: Load Forecast CDM Adjustment Work Form (2017)
A12: Appendix 2-I was initially developed to help determine what would be the amount of CDM savings needed in each year to cumulatively achieve the four year 2011-2014 CDM target. This then determined the amount of kWh (and with translation, kW of demand) savings that were converted in dollars balances for the LRAMVA, and also to determine the related adjustment to the load forecast to account for OPA-reported savings. Beginning for the 2015 year, it has been adjusted because of the persistence of 2011-2014 CDM programs will be an adjustment to the load forecast in addition to the estimated savings for the first year (2015) for the new 2015-2020 CDM plan.
A14: 2017 is the third year of the six-year (2015-2020) Conservation First program. Final results for the 2011-14 program were issued in the fall of 2015, and the program in completed, although in some instances disdposition of the amounts has been deferred. For the purposes of the 2015-2020 LRAMVA, and the impact of CDM on the load forecast, CDM programs in 2014 and earlier are implicit in the historical data on which the base load forecast is developed. Only impacts of 2015 to 2017 CDM programs need to be reflected in for the manual load forecast adjustment and for the LRAMVA threshold amount in 2017 and carrying forward, although the half-year impact of 2015 CDM programs on the 2015 historical data is also assumed to be reflected in the base load forecast.
A16: The new six year (2015-2020) CDM program works similarly to the previous 2011-2014 CDM program, meaning that distributors will offer programs each year that, over the six years (from January 1, 2015 to December 31, 2020) will strive to cumulatively achieve savings meeting the new six year CDM target. In other words, distributors will be able to offer and execute programs on a basis so that cumulatively over the period, the measuyred impacts, including persistence, of the CDM programs will accumulate towards achieving each distributor's 2015-2020 CDM target.
A18: 2015-2020 CDM Program - 2017, third year of the current CDM plan
A20: For the first year of the new 2015-2020 CDM plan, it is assumed that each year's program will achieve an equal amount of new CDM savings. The new targets for 2015-2020 do not take into account persistence beyond the first year, but the IESO will encourage distributors to promote and implement CDM plans that will have longer term persistence of savings. This results in each year's program being about 1/6 (18.67%) of the cumulative 2015-2020 CDM target for kWh savings. A distributor may propose an alternative approach but would be expected to document in its application why it believes that its proposal is more reasonable. In its proposal, the distributor should ensure that the sum of the results for each year's CDM program from 2015 to 2020 add up to its 2015-2020 CDM target as established by the IESO.
A22: 6 Year (2015-2020) kWh Target:
A23: 28534220
B24: 2015 | C24: 2016 | D24: 2017 | E24: 2018 | F24: 2019 | G24: 2020 | H24: Total | K24: =B24 -> 2015 | L24: =C24 -> 2016 | M24: =D24 -> 2017 | N24: =E24 -> 2018
A25: % | J25: =A25 -> % | K25: =50% -> 0.5 | L25: 1 | M25: 1 | N25: 1
A26: 2015 CDM Programs | B26: =B34/$H$40 -> 0.2265812768 | C26: =C34/$H$40 -> 0 | D26: 0 | E26: 0 | F26: 0 | G26: 0 | H26: =SUM(B26:G26) -> 0.2265812768 | J26: =A26 -> 2015 CDM Programs | L26: 0.5 | M26: 1 | N26: 1
A27: 2016 CDM Programs | C27: 0.2228201787 | D27: 0 | E27: 0 | F27: 0 | G27: 0 | H27: =SUM(B27:G27) -> 0.2228201787 | J27: =A27 -> 2016 CDM Programs | M27: 0.5 | N27: 1
A28: 2017 CDM Programs | D28: 0.1890361818 | E28: 0 | F28: 0 | G28: 0 | H28: =SUM(B28:G28) -> 0.1890361818 | J28: =A28 -> 2017 CDM Programs | N28: 0.5
A29: 2018 CDM Programs | E29: 0.1498201107 | F29: 0 | G29: 0 | H29: =SUM(E29:G29) -> 0.1498201107
A30: 2019 CDM Programs | F30: 0.111513474 | G30: 0 | H30: =SUM(F30:G30) -> 0.111513474
A31: 2020 CDM Programs | G31: =G39/$H$40 -> 0.1002287779 | H31: =SUM(B31:G31) -> 0.1002287779
A32: Total in Year | B32: =SUM(B26:B31) -> 0.2265812768 | C32: =SUM(C26:C31) -> 0.2228201787 | D32: =SUM(D26:D31) -> 0.1890361818 | E32: =SUM(E26:E29) -> 0.1498201107 | F32: =SUM(F26:F30) -> 0.111513474 | G32: =SUM(G26:G31) -> 0.1002287779 | H32: =SUM(B32:G32) -> 1
A33: kWh
A34: =A26 -> 2015 CDM Programs | B34: 6465320 | H34: =SUM(B34:G34) -> 6465320
A35: 2016 CDM Programs | C35: 6358000 | H35: =SUM(B35:G35) -> 6358000
A36: 2017 CDM Programs | D36: 5394000 | H36: =SUM(B36:G36) -> 5394000
A37: 2018 CDM Programs | E37: 4275000 | H37: =SUM(E37:G37) -> 4275000
A38: 2019 CDM Programs | F38: 3181950 | H38: =SUM(F38:G38) -> 3181950
A39: 2020 CDM Programs | G39: 2859950 | H39: =SUM(B39:G39) -> 2859950
A40: Total in Year | B40: =SUM(B34:B39) -> 6465320 | C40: =SUM(C34:C39) -> 6358000 | D40: 5394000 | E40: =SUM(E34:E37) -> 4275000 | F40: =SUM(F34:F38) -> 3181950 | G40: =SUM(G34:G39) -> 2859950 | H40: =SUM(H34:H39) -> 28534220
A42: Note: The default formulae in the above table assume that 1/21 of the 2015-2020 kWh CDM target is required each year so that, including persistence, 100% of the kWh target is achieved by the end of 2020. The distributor can input the 2015 CDM savings, including persistence from 2016 to 2020, once the reports become available. The distributor can also input their estimates or forecasts of the 2016 nd 2017 CDM programs if it believes that these are more realistic; such information would typically be derived from the CDM plans that the distributor has filed with the IESO. Similarly, CDM savings and persistence into future years can be estimated for 2018, 2019 and 2020 CDM programs. However, the distributor will have to support its proposals for estimated or forecasted savings, particularly beyond the 2017 test year. The sum of cumulative savings, including persistence, should equal the target entered into cell A25.
A44: Determination of 2017 Load Forecast Adjustment
A46: The Board determined that the "net" number should be used in its Decision and Order with respect to Centre Wellington Hydro Ltd.'s 2013 Cost of Service rates (EB-2012-0113). This approach has also been used in Settlement Agreements accepted by the Board in other 2013 and 2-14 applications. The distributor should select whether the adjustment is done on a "net" or "gross" basis, but must support a proposal for the adjustment being done on a "gross" basis. Sheet 2-I defaults to the adjustment being done on a "net" basis consistent with Board policy and practice.
A48: From each of the 2006-2010 CDM Final Report, and the 2011, 2012, 2013, 2014 and 2015 CDM Final Reports, issued by the OPA/IESO for the distributor, the distributor should input the "gross" and "net" results of the cumulative CDM savings for 2014 into cells D84 to E88. The model will calculate the cumulative savings for all programs from 2006 to 2012 and determine the "net" to "gross" factor "g".
A50: Net-to-Gross Conversion
A52: Is CDM adjustment being done on a "net" or "gross" basis? | F52: net
C54: "Gross" | D54: "Net" | E54: Difference | F54: "Net-to-Gross" Conversion Factor
A55: Persistence of Historical CDM programs to 2015 | C55: kWh | D55: kWh | E55: kWh | F55: ('g')
A56: 2006-2010 CDM programs | E56: =IF(ISBLANK(D56),"",C56-D56) -> 
A57: 2011 CDM program | E57: =IF(ISBLANK(D57),"",C57-D57) -> 
A58: 2012 CDM program
A59: 2013 CDM program
A60: 2014 CDM program
A61: 2015 CDM program
A62: 2006 to 2015 OPA CDM programs: Persistence to 2017 | C62: =SUM(C56:C61) -> 0 | D62: =SUM(D56:D61) -> 0 | E62: =C62-D62 -> 0 | F62: =IF(D62=0,0,IF(F52="net",0,E62/D62)) -> 0
A64: The default values represent the factor that each year's CDM program is factored into the manual CDM adjustment. Distributors can choose alternative weights of "0", "0.5" or "1" from the drop-down menu for each cell, but must support its alternatives.
A66: These factors do not mean that CDM programs are excluded, but the assumption that impacts of previous year CDM programs are already implicitly reflected in the actual data for the historical years that are the basis for the load forecast prior to any manual CDM adjustment for the 2017 test year.
A68: Weight Factor for Inclusion in CDM Adjustment to 2017 Load Forecast
B69: 2015 | C69: 2016 | D69: 2017 | E69: 2018 | F69: 2019 | G69: 2020
A70: Weight Factor for each year's CDM program impact on 2014 load forecast | B70: 0 | C70: 1 | D70: 0.5 | E70: 0 | F70: 0 | G70: 0 | H70: Distributor can select "0", "0.5", or "1" from drop-down list
A71: Default Value selection rationale. | B71: Default is 0, but one option is for full year impact of persistence of 2015 CDM programs on 2017 load forecast, but 50% impact in base forecast (first year impact of 2014 CDM programs on 2014 actuals, which is part of the data for the load forecast. | C71: Full year impact of persistence of 2015 programs on 2015 load forecast. 2015 CDM program impacts are not in the base forecast. | D71: Only 50% of 2016 CDM programs are assumed to impact the 2016 load forecast based on the "half-year" rule. | E71: 2018, 2019 and 2020 are future years beyond the 2017 test year. No impacts of CDM programs beyond the 2017 test year are factored into the test year load forecast.
A73: 2015-2020 LRAMVA and 2017 CDM adjustment to Load Forecast
A75: One manual adjustment for CDM impacts to the 2017 load forecast is made. There is a different but related threshold amount that is used for the 2017 LRAMVA amount for Account 1568.
A77: The Amount used for the CDM threshold of the LRAMVA is the kWh that will be used to determine the base amount for the LRAMVA balance for 2014, for assessing performance against the four-year target. The base amount for 2011-2013 is 0 (zero) for 2014 Cost of Service applications, as the utility rebased prior to the 2011-2014 CDM programs, and there was no adjustment to reflect the impacts of the 2011-2014 programs on the load forecast used to determine their last cost of service-based rates.
A79: If used to determine the manual CDM adjustment for the system purchased kWh, the proposed loss factor should correspond with the proposed total loss factor calculated in Appendix 2-R
A81: The Manual Adjustment for the 2017 Load Forecast is the amount manually subtracted from the system-wide load forecast (either based on a purchased or billed basis) derived from the base forecast from historical data.
A83: If the distributor has developed their load forecast on a system purchased basis, then the manual adjustment should be on system purchased basis, including the adjustment for losses. If the load forecast has been developed on a billed basis, either on a system basis or on a class-specific basis, the manual adjustment should be on a billed basis, excluding losses.
A85: The distributor should determine the allocation of the savings to all customer classes in a reasonable manner (e.g. taking into account what programs and what OPA-measured impacts were directed at specific customer classes), for both the LRAMVA and for the load forecast adjustment.
B87: 2015 | C87: 2016 | D87: 2017 | E87: 2018 | F87: 2019 | G87: 2020 | H87: Total for 2017
A89: Amount used for CDM threshold for LRAMVA (2017) | B89: 0 | C89: 6358000 | D89: 5394000 | H89: 11752000
A91: Manual Adjustment for 2017 Load Forecast (billed basis) | B91: 0 | C91: 6358000 | D91: 2697000 | E91: 0 | F91: 0 | G91: 0 | H91: 9055000
A93: Proposed Loss Factor (TLF) | B93: N/A | C93: - Load Forecast on Billed Basis
A94: Manual Adjustment for 2017 Load Forecast (system purchased basis) | B94: 0 | C94: 0 | D94: 0 | E94: 0 | F94: 0 | G94: 0 | H94: 0
A96: Manual adjustment uses "gross" versus "net" (i.e. numbers multiplied by (1 + g). The Weight factor is also used calculate the impact of each year's program on the CDM adjustment to the 2017 load forecast.

Sheet App.2-IA_Act_Frcst_Data
F1: File Number: | G1: =EBNUMBER -> EB-2016-0061
F2: Exhibit: | G2: 3
F3: Tab: | G3: 1
F4: Schedule: | G4: 1
F5: Page:
F7: Date: | G7: 2016-04-29
A9: Appendix 2-IA
A10: Summary and Variances of Actual and Forecast Data
A12: Replace "Rate Class #" with the appropriate rate classification.
B14: =RebaseYear & " Board Approved" -> 2013 Board Approved | C14: =TestYear - 4 -> 2013 | D14: =TestYear - 3 -> 2014 | E14: =TestYear - 2 -> 2015 | F14: =TestYear -1 &" Bridge" -> 2016 Bridge | G14: =TestYear&" Test" -> 2017 Test
A15: Residential
A16: # of Customers | B16: 25689 | C16: 25798 | D16: 25861 | E16: 25917 | F16: 25995 | G16: 26074
A17: kWh | B17: 208287976 | C17: 206257081 | D17: 203019188 | E17: 199982619 | F17: 200579926 | G17: 201294289
A18: kW
A19: Variance Analysis
A20: =A16 -> # of Customers | C20: =IF(ISERROR((C16-$B16)/$B16), 0, (C16-$B16)/$B16) -> 0.004243061232 | D20: =IF(ISERROR((D16-$B16)/$B16), 0, (D16-$B16)/$B16) -> 0.00669547277 | E20: 0.008875394138 | F20: 0.01191171318 | G20: 0.0149869594
A21: kWh | C21: =IF(ISERROR((C17-$B17)/$B17), 0, (C17-$B17)/$B17) -> -0.009750418814 | D21: -0.02529568966 | E21: -0.03987439486 | F21: -0.03700669692 | G21: -0.03357700782
A22: kW | C22: =IF(ISERROR((C18-$B18)/$B18), 0, (C18-$B18)/$B18) -> 0 | D22: 0 | E22: 0 | F22: 0 | G22: 0
A24: GS Less Than 50 kW
A25: # of Customers | B25: 2521 | C25: 2525 | D25: 2513 | E25: 2492 | F25: 2491 | G25: 2489
A26: kWh | B26: 72454602 | C26: 69535541 | D26: 69999358 | E26: 69530292 | F26: 69511463 | G26: 69390323
A27: kW
A28: Variance Analysis
A29: =A25 -> # of Customers | C29: =IF(ISERROR((C25-$B25)/$B25), 0, (C25-$B25)/$B25) -> 0.001586671956 | D29: =IF(ISERROR((D25-$B25)/$B25), 0, (D25-$B25)/$B25) -> -0.003173343911 | E29: -0.01150337168 | F29: -0.01190003967 | G29: -0.01269337564
A30: kWh | C30: =IF(ISERROR((C26-$B26)/$B26), 0, (C26-$B26)/$B26) -> -0.04028813794 | D30: -0.0338866536 | E30: -0.04036058331 | F30: -0.04062045638 | G30: -0.04229239987
A31: kW | C31: =IF(ISERROR((C27-$B27)/$B27), 0, (C27-$B27)/$B27) -> 0 | D31: 0 | E31: 0 | F31: 0 | G31: 0
A33: GS 50 to 4,999 kW
A34: # of Customers | B34: 228 | C34: 225 | D34: 225 | E34: 220 | F34: 218 | G34: 217
A35: kWh | B35: 224300691 | C35: 219499506 | D35: 231604485 | E35: 198759828 | F35: 197811642 | G35: 190144345
A36: kW | B36: 691366 | C36: 702804 | D36: 673584 | E36: 634964 | F36: 631907 | G36: 610067
A37: Variance Analysis
A38: =A34 -> # of Customers | C38: =IF(ISERROR((C34-$B34)/$B34), 0, (C34-$B34)/$B34) -> -0.01315789474 | D38: =IF(ISERROR((D34-$B34)/$B34), 0, (D34-$B34)/$B34) -> -0.01315789474 | E38: -0.0350877193 | F38: -0.04385964912 | G38: -0.04824561404
A39: kWh | C39: =IF(ISERROR((C35-$B35)/$B35), 0, (C35-$B35)/$B35) -> -0.02140512799 | D39: 0.03256251226 | E39: -0.1138688556 | F39: -0.1180961542 | G39: -0.1522792723
A40: kW | C40: =IF(ISERROR((C36-$B36)/$B36), 0, (C36-$B36)/$B36) -> 0.01654405915 | D40: -0.02572009616 | E40: -0.0815805232 | F40: -0.08600220433 | G40: -0.1175918399
A42: Unmetred Scattered Load
A43: # of Customers | B43: 39 | C43: 40 | D43: 40 | E43: 36 | F43: 36 | G43: 35
A44: kWh | B44: 1527929 | C44: 1532742 | D44: 1506300 | E44: 1506177 | F44: 1484310 | G44: 1462761
A45: kW
A46: Variance Analysis
A47: =A43 -> # of Customers | C47: =IF(ISERROR((C43-$B43)/$B43), 0, (C43-$B43)/$B43) -> 0.02564102564 | D47: =IF(ISERROR((D43-$B43)/$B43), 0, (D43-$B43)/$B43) -> 0.02564102564 | E47: -0.07692307692 | F47: -0.07692307692 | G47: -0.1025641026
A48: kWh | C48: =IF(ISERROR((C44-$B44)/$B44), 0, (C44-$B44)/$B44) -> 0.003150015478 | D48: -0.01415576247 | E48: -0.0142362636 | F48: -0.02854779247 | G48: -0.04265119649
A49: kW | C49: =IF(ISERROR((C45-$B45)/$B45), 0, (C45-$B45)/$B45) -> 0 | D49: 0 | E49: 0 | F49: 0 | G49: 0
A51: Sentinel Lighting
A52: # of Customers | B52: 961 | C52: 768 | D52: 775 | E52: 763 | F52: 728 | G52: 695
A53: kWh | B53: 761037 | C53: 679025 | D53: 700647 | E53: 691109 | F53: 659331 | G53: 629014
A54: kW | B54: 2334 | C54: 2090.544 | D54: 2137.597 | E54: 2105.135 | F54: 2008.338224 | G54: 1915.992286
A55: Variance Analysis
A56: =A52 -> # of Customers | C56: =IF(ISERROR((C52-$B52)/$B52), 0, (C52-$B52)/$B52) -> -0.2008324662 | D56: =IF(ISERROR((D52-$B52)/$B52), 0, (D52-$B52)/$B52) -> -0.1935483871 | E56: -0.2060353798 | F56: -0.2424557752 | G56: -0.2767950052
A57: kWh | C57: =IF(ISERROR((C53-$B53)/$B53), 0, (C53-$B53)/$B53) -> -0.1077634859 | D57: -0.07935225226 | E57: -0.09188515144 | F57: -0.1336413341 | G57: -0.1734777678
A58: kW | C58: =IF(ISERROR((C54-$B54)/$B54), 0, (C54-$B54)/$B54) -> -0.1043084833 | D58: -0.08414867181 | E58: -0.09805698372 | F58: -0.1395294672 | G58: -0.1790949933
A60: Street Lighting
A61: # of Customers | B61: 5696 | C61: 5723 | D61: 5717 | E61: 5713 | F61: 5713 | G61: 5713
A62: kWh | B62: 4475403 | C62: 4446822 | D62: 4324650 | E62: 3719644 | F62: 3396850 | G62: 2991556
A63: kW | B63: 11789 | C63: 13310.658 | D63: 13289.154 | E63: 11488.54 | F63: 10492 | G63: 9240
A64: Variance Analysis
A65: =A61 -> # of Customers | C65: =IF(ISERROR((C61-$B61)/$B61), 0, (C61-$B61)/$B61) -> 0.004740168539 | D65: =IF(ISERROR((D61-$B61)/$B61), 0, (D61-$B61)/$B61) -> 0.003686797753 | E65: 0.002984550562 | F65: 0.002984550562 | G65: 0.002984550562
A66: kWh | C66: =IF(ISERROR((C62-$B62)/$B62), 0, (C62-$B62)/$B62) -> -0.006386240524 | D66: -0.03368478772 | E66: -0.168869485 | F66: -0.2409957271 | G66: -0.3315560632
A67: kW | C67: =IF(ISERROR((C63-$B63)/$B63), 0, (C63-$B63)/$B63) -> 0.1290743914 | D67: 0.1272503181 | E67: -0.02548647044 | F67: -0.1100178132 | G67: -0.2162185088
A69: Embedded Distributor
A70: # of Customers | B70: 0 | C70: 0 | D70: 0 | E70: 0 | F70: 0 | G70: 1
A71: kWh | B71: 0 | C71: 0 | D71: 0 | E71: 0 | F71: 0 | G71: 5205754
A72: kW | B72: 0 | C72: 0 | D72: 0 | E72: 0 | F72: 0 | G72: 13921
A73: Variance Analysis
A74: =A70 -> # of Customers | C74: =IF(ISERROR((C70-$B70)/$B70), 0, (C70-$B70)/$B70) -> 0 | D74: =IF(ISERROR((D70-$B70)/$B70), 0, (D70-$B70)/$B70) -> 0 | E74: 0 | F74: 0 | G74: =IF(ISERROR((G70-$B70)/$B70), 0, (G70-$B70)/$B70) -> 0
A75: kWh | C75: =IF(ISERROR((C71-$B71)/$B71), 0, (C71-$B71)/$B71) -> 0 | D75: 0 | E75: 0 | F75: 0 | G75: 0
A76: kW | C76: =IF(ISERROR((C72-$B72)/$B72), 0, (C72-$B72)/$B72) -> 0 | D76: 0 | E76: 0 | F76: 0 | G76: 0
A78: Rate Class 8
A79: # of Customers
A80: kWh
A81: kW
A82: Variance Analysis
A83: =A79 -> # of Customers | C83: =IF(ISERROR((C79-$B79)/$B79), 0, (C79-$B79)/$B79) -> 0 | D83: =IF(ISERROR((D79-$B79)/$B79), 0, (D79-$B79)/$B79) -> 0 | E83: 0 | F83: 0 | G83: 0
A84: kWh | C84: =IF(ISERROR((C80-$B80)/$B80), 0, (C80-$B80)/$B80) -> 0 | D84: 0 | E84: 0 | F84: 0 | G84: 0
A85: kW | C85: =IF(ISERROR((C81-$B81)/$B81), 0, (C81-$B81)/$B81) -> 0 | D85: 0 | E85: 0 | F85: 0 | G85: 0
A87: Rate Class 9
A88: # of Customers
A89: kWh
A90: kW
A91: Variance Analysis
A92: =A88 -> # of Customers | C92: =IF(ISERROR((C88-$B88)/$B88), 0, (C88-$B88)/$B88) -> 0 | D92: =IF(ISERROR((D88-$B88)/$B88), 0, (D88-$B88)/$B88) -> 0 | E92: 0 | F92: 0 | G92: 0
A93: kWh | C93: =IF(ISERROR((C89-$B89)/$B89), 0, (C89-$B89)/$B89) -> 0 | D93: 0 | E93: 0 | F93: 0 | G93: 0
A94: kW | C94: =IF(ISERROR((C90-$B90)/$B90), 0, (C90-$B90)/$B90) -> 0 | D94: 0 | E94: 0 | F94: 0 | G94: 0
A96: Rate Class 10
A97: # of Customers
A98: kWh
A99: kW
A100: Variance Analysis
A101: =A97 -> # of Customers | C101: =IF(ISERROR((C97-$B97)/$B97), 0, (C97-$B97)/$B97) -> 0 | D101: =IF(ISERROR((D97-$B97)/$B97), 0, (D97-$B97)/$B97) -> 0 | E101: 0 | F101: 0 | G101: 0
A102: kWh | C102: =IF(ISERROR((C98-$B98)/$B98), 0, (C98-$B98)/$B98) -> 0 | D102: 0 | E102: 0 | F102: 0 | G102: 0
A103: kW | C103: =IF(ISERROR((C99-$B99)/$B99), 0, (C99-$B99)/$B99) -> 0 | D103: 0 | E103: 0 | F103: 0 | G103: 0
A106: Totals
A107: Customers / Connections | B107: =SUM(B16,B25,B34,B43,B52,B61,B70,B79,B88,B97) -> 35134 | C107: =SUM(C16,C25,C34,C43,C52,C61,C70,C79,C88,C97) -> 35079 | D107: 35131 | E107: 35141 | F107: 35181 | G107: 35224
A108: kWh | B108: =SUM(B17,B26,B35,B44,B53,B62,B71,B80,B89,B98) -> 511807638 | C108: 501950717 | D108: 511154628 | E108: 474189669 | F108: 473443522 | G108: 471118042
A109: kW from applicable classes | B109: 705489 | C109: 718205.202 | D109: 689010.751 | E109: 648557.675 | F109: 644407.3382 | G109: 635143.9923
A111: Totals - Variance
A112: Customers / Connections | C112: =IF(ISERROR((C107-$B107)/$B107), 0, (C107-$B107)/$B107) -> -0.001565435191 | D112: -8.538737405e-05 | E112: 0.0001992372061 | F112: 0.001337735527 | G112: 0.002561621222
A113: kWh | C113: -0.01925903458 | D113: -0.001275889517 | E113: -0.07350021025 | F113: -0.07495807634 | G113: -0.07950173655
A114: kW from applicable classes | C114: 0.01802466374 | D114: -0.02335720188 | E114: -0.0806976792 | F114: -0.08658060122 | G114: -0.09971099155

Sheet App.2-JA_OM&A_Summary_Analys
K1: File Number: | L1: =EBNUMBER -> EB-2016-0061
K2: Exhibit: | L2: 4
K3: Tab: | L3: 2
K4: Schedule: | L4: 1
K5: Page:
K7: Date: | L7: 2016-04-29
A9: Appendix 2-JA
A10: Summary of Recoverable OM&A Expenses
B13: ="Last Rebasing Year (" & RebaseYear & " Board-Approved)" -> Last Rebasing Year (2013 Board-Approved) | C13: ="Last Rebasing Year (" & RebaseYear & " Actuals)" -> Last Rebasing Year (2013 Actuals) | D13: =BridgeYear -2 & " Actuals" -> 2014 Actuals | E13: =BridgeYear -1 & " Actuals" -> 2015 Actuals | F13: =BridgeYear & " Bridge Year" -> 2016 Bridge Year | G13: =TestYear & " Test Year" -> 2017 Test Year
A14: Reporting Basis
A15: Operations | B15: 1464547.55 | C15: 1533640.95 | D15: 1726743.85 | E15: 1702685.14 | F15: 1658103.12 | G15: 1847897.12
A16: Maintenance | B16: 1912477.57 | C16: 1939324.64 | D16: 1893749.45 | E16: 1912870.67 | F16: 2203669.8 | G16: 2259048.84
A17: SubTotal | B17: =SUM(B15:B16) -> 3377025.12 | C17: =SUM(C15:C16) -> 3472965.59 | D17: 3620493.3 | E17: =SUM(E15:E16) -> 3615555.81 | F17: 3861772.92 | G17: 4106945.96
A18: %Change (year over year) | D18: =IF(ISERROR((D17-C17)/C17), "", (D17-C17)/C17) -> 0.04247888618 | E18: =IF(ISERROR((E17-D17)/D17), "", (E17-D17)/D17) -> -0.001363761673 | F18: 0.06809938027 | G18: 0.06348717159
A19: %Change (Test Year vs Last Rebasing Year - Actual) | G19: =IF(ISERROR((G17-C17)/C17), "", (G17-C17)/C17) -> 0.182547265
A20: Billing and Collecting | B20: 2061052.84 | C20: 1874778.74 | D20: 1768363.18 | E20: 1754605.53 | F20: 1874259.32 | G20: 1960026.2
A21: Community Relations | B21: 35700 | C21: 22684.63 | D21: 14502.81 | E21: 22126.22 | F21: 25300 | G21: 40149.88
A22: Administrative and General | B22: 4362182.68 | C22: 3493633.97 | D22: 4031454.1 | E22: 4126645.85 | F22: 4399484.1 | G22: =4467600.7-557723 -> 3909877.7
A23: SubTotal | B23: =SUM(B20:B22) -> 6458935.52 | C23: =SUM(C20:C22) -> 5391097.34 | D23: 5814320.09 | E23: =SUM(E20:E22) -> 5903377.6 | F23: 6299043.42 | G23: 5910053.78
A24: %Change (year over year) | D24: =IF(ISERROR((D23-C23)/C23), "", (D23-C23)/C23) -> 0.07850400824 | E24: =IF(ISERROR((E23-D23)/D23), "", (E23-D23)/D23) -> 0.0153169259 | F24: =IF(ISERROR((F23-E23)/E23), "", (F23-E23)/E23) -> 0.06702363406 | G24: =IF(ISERROR((G23-F23)/F23), "", (G23-F23)/F23) -> -0.06175376388
A25: %Change (Test Year vs Last Rebasing Year - Actual) | G25: =IF(ISERROR((G23-C23)/C23), "", (G23-C23)/C23) -> 0.09626174548
A26: Total | B26: =SUM(B23,B17) -> 9835960.64 | C26: =SUM(C23,C17) -> 8864062.93 | D26: 9434813.39 | E26: =SUM(E23,E17) -> 9518933.41 | F26: 10160816.34 | G26: 10016999.74
A27: %Change (year over year) | D27: =IF(ISERROR((D26-C26)/C26), "", (D26-C26)/C26) -> 0.06438926083 | E27: =IF(ISERROR((E26-D26)/D26), "", (E26-D26)/D26) -> 0.008915917732 | F27: =IF(ISERROR((F26-E26)/E26), "", (F26-E26)/E26) -> 0.06743223241 | G27: =IF(ISERROR((G26-F26)/F26), "", (G26-F26)/F26) -> -0.01415403991
B30: =B13 -> Last Rebasing Year (2013 Board-Approved) | C30: =C13 -> Last Rebasing Year (2013 Actuals) | D30: 2014 Actuals | E30: 2015 Actuals | F30: 2016 Bridge Year | G30: 2017 Test Year
A31: Operations | B31: =B15 -> 1464547.55 | C31: =C15 -> 1533640.95 | D31: 1726743.85 | E31: 1702685.14 | F31: 1658103.12 | G31: 1847897.12
A32: Maintenance | B32: =B16 -> 1912477.57 | C32: =C16 -> 1939324.64 | D32: 1893749.45 | E32: =E16 -> 1912870.67 | F32: 2203669.8 | G32: 2259048.84
A33: Billing and Collecting | B33: =B20 -> 2061052.84 | C33: =C20 -> 1874778.74 | D33: 1768363.18 | E33: 1754605.53 | F33: 1874259.32 | G33: 1960026.2
A34: Community Relations | B34: =B21 -> 35700 | C34: =C21 -> 22684.63 | D34: 14502.81 | E34: 22126.22 | F34: 25300 | G34: 40149.88
A35: Administrative and General | B35: =B22 -> 4362182.68 | C35: =C22 -> 3493633.97 | D35: 4031454.1 | E35: 4126645.85 | F35: 4399484.1 | G35: 3909877.7
A36: Total | B36: =SUM(B31:B35) -> 9835960.64 | C36: =SUM(C31:C35) -> 8864062.93 | D36: 9434813.39 | E36: 9518933.41 | F36: 10160816.34 | G36: 10016999.74
A37: %Change (year over year) | D37: =IF(ISERROR((D36-C36)/C36), "", (D36-C36)/C36) -> 0.06438926083 | E37: =IF(ISERROR((E36-D36)/D36), "", (E36-D36)/D36) -> 0.008915917732 | F37: =IF(ISERROR((F36-E36)/E36), "", (F36-E36)/E36) -> 0.06743223241 | G37: =IF(ISERROR((G36-F36)/F36), "", (G36-F36)/F36) -> -0.01415403991
B40: =B13 -> Last Rebasing Year (2013 Board-Approved) | C40: =C13 -> Last Rebasing Year (2013 Actuals) | D40: ="Variance " & 'LDC Info'!E28 & " BA – " & 'LDC Info'!E28 & " Actuals" -> Variance 2013 BA – 2013 Actuals | E40: =D13 -> 2014 Actuals | F40: ="Variance " & 'LDC Info'!E26 -2 & " Actuals vs. " & 'LDC Info'!E28 & " Actuals" -> Variance 2014 Actuals vs. 2013 Actuals | G40: =E13 -> 2015 Actuals | H40: ="Variance " & 'LDC Info'!E26 -1 & " Actuals vs. " & 'LDC Info'!E26-2 & " Actuals" -> Variance 2015 Actuals vs. 2014 Actuals | I40: =F13 -> 2016 Bridge Year | J40: ="Variance " & 'LDC Info'!E26 & " Bridge vs. " & 'LDC Info'!E26 -1 & " Actuals" -> Variance 2016 Bridge vs. 2015 Actuals | K40: =G13 -> 2017 Test Year | L40: ="Variance " & TestYear & " Test vs. " & BridgeYear & " Bridge" -> Variance 2017 Test vs. 2016 Bridge
A41: Operations | B41: =B15 -> 1464547.55 | C41: 1533640.95 | D41: =B41-C41 -> -69093.4 | E41: =D15 -> 1726743.85 | F41: =E41-C41 -> 193102.9 | G41: =E15 -> 1702685.14 | H41: =G41-E41 -> -24058.71 | I41: =F15 -> 1658103.12 | J41: =I41-G41 -> -44582.02 | K41: =G15 -> 1847897.12 | L41: =K41-I41 -> 189794
A42: Maintenance | B42: 1912477.57 | C42: 1939324.64 | D42: =B42-C42 -> -26847.07 | E42: =D16 -> 1893749.45 | F42: =E42-C42 -> -45575.19 | G42: =E16 -> 1912870.67 | H42: =G42-E42 -> 19121.22 | I42: =F16 -> 2203669.8 | J42: 290799.13 | K42: =G16 -> 2259048.84 | L42: 55379.04
A43: Billing and Collecting | B43: =B20 -> 2061052.84 | C43: 1874778.74 | D43: 186274.1 | E43: =D20 -> 1768363.18 | F43: -106415.56 | G43: =E20 -> 1754605.53 | H43: -13757.65 | I43: =F20 -> 1874259.32 | J43: 119653.79 | K43: =G20 -> 1960026.2 | L43: 85766.88
A44: Community Relations | B44: 35700 | C44: 22684.63 | D44: 13015.37 | E44: =D21 -> 14502.81 | F44: =E44-C44 -> -8181.82 | G44: =E21 -> 22126.22 | H44: 7623.41 | I44: =F21 -> 25300 | J44: 3173.78 | K44: =G21 -> 40149.88 | L44: 14849.88
A45: Administrative and General | B45: 4362182.68 | C45: 3493633.97 | D45: 868548.71 | E45: 4031454.1 | F45: 537820.13 | G45: 4126645.85 | H45: 95191.75 | I45: 4399484.1 | J45: 272838.25 | K45: 3909877.7 | L45: -489606.4
A46: Total OM&A Expenses | B46: =SUM(B41:B45) -> 9835960.64 | C46: =SUM(C41:C45) -> 8864062.93 | D46: =SUM(D41:D45) -> 971897.71 | E46: 9434813.39 | F46: 570750.46 | G46: 9518933.41 | H46: 84120.02 | I46: 10160816.34 | J46: 641882.93 | K46: 10016999.74 | L46: -143816.6
A47: Adjustments for Total non-recoverable items (from Appendices 2-JA and 2-JB)
A48: Total Recoverable OM&A Expenses | B48: =B46-B47 -> 9835960.64 | C48: =C46-C47 -> 8864062.93 | D48: 971897.71 | E48: 9434813.39 | F48: =F46-F47 -> 570750.46 | G48: 9518933.41 | H48: 84120.02 | I48: 10160816.34 | J48: 641882.93 | K48: 10016999.74 | L48: -143816.6
A49: Variance from previous year | E49: =E48-C48 -> 570750.46 | G49: =G48-E48 -> 84120.02 | I49: =I48-G48 -> 641882.93 | K49: =K48-I48 -> -143816.6
A50: Percent change (year over year) | E50: =IF(ISERROR(E49/C48), "", E49/C48) -> 0.06438926083 | G50: =IF(ISERROR(G49/E48), "", G49/E48) -> 0.008915917732 | I50: =IF(ISERROR(I49/G48), "", I49/G48) -> 0.06743223241 | K50: =IF(ISERROR(K49/I48), "", K49/I48) -> -0.01415403991
A51: Percent Change: Test year vs. Most Current Actual | G51: =IF(ISERROR((K48-G48)/G48), "", (K48-G48)/G48) -> 0.05232375399
A52: Simple average of % variance for all years | G52: =IF(ISERROR((K46-C46)/C46), "", (K46-C46)/C46) -> 0.1300686625 | L52: =IF(ISERROR(AVERAGE(E50,G50,I50,K50)), "", AVERAGE(E50,G50,I50,K50)) -> 0.03164584276
A53: Compound Annual Growth Rate for all years | G53: =IF(ISERROR((K49-C49)/C49), "", (K49-C49)/C49) ->  | L53: =IF((K48-C48)=0, "", (K48/C48)^(1/5)-1) -> 0.02475717167
A54: ="Compound Growth Rate (" & E13 & " vs. " & 'LDC Info'!E28 & " Actuals)" -> Compound Growth Rate (2015 Actuals vs. 2013 Actuals) | G54: =IF(ISERROR((G48/C48)^(1/(3)) - 1), "", (G48/C48)^(1/(3)) - 1) -> 0.02404369038
A56: Note:
A58: 1 "BA" = Board-Approved
A59: 2 If it has been more than three years since the applicant last filed a cost of service application, additional years of historical actuals should be incorporated into the table, as necessary, to go back to the last cost of service application. If the applicant last filed a cost of service application less than three years ago, a minimum of three years of actual information is required.
A61: 3 Recoverable OM&A that is included on these tables should be identical to the recoverable OM&A that is shown for the corresponding periods on Appendix 2-JB.

Sheet App.2-JB_OM&A_Cost _Drivers
F1: File Number: | G1: =EBNUMBER -> EB-2016-0061
F2: Exhibit: | G2: 4
F3: Tab: | G3: 2
F4: Schedule: | G4: 2
F5: Page:
F7: Date: | G7: 2016-04-29
A10: Appendix 2-JB
A11: Recoverable OM&A Cost Driver Table
A13: OM&A | B13: ="Last Rebasing Year (" & RebaseYear & " Actuals)" -> Last Rebasing Year (2013 Actuals) | D13: =BridgeYear -2 & " Actuals" -> 2014 Actuals | E13: =BridgeYear -1 & " Actuals" -> 2015 Actuals | F13: =BridgeYear & " Bridge Year" -> 2016 Bridge Year | G13: =TestYear & " Test Year" -> 2017 Test Year
A14: Reporting Basis
A15: Opening Balance | B15: 9835960.64 | D15: 8864062.93 | E15: 9434813.39 | F15: 9518933.41 | G15: 10160816.34
A17: CDM Staffing | B17: -85000 | D17: 56000 | F17: 26000
A18: Vehicle Depreciation Credit | B18: -351000 | D18: 351000
A19: Approved IFRS Costs | B19: -85000 | D19: 85000
A20: Port Colborne Service Center Closure | B20: -35000 | D20: -20000
A21: Regulatory Staffing | B21: -100000
A22: Customer Service Staffing and Charge-outs | B22: -92000 | D22: -70000 | E22: -30000 | F22: 30000
A23: Collections and Bad Debts | B23: -8000 | D23: -99000 | E23: 29000 | F23: 49000 | G23: 38000
A24: Shared Service Allocation | D24: 63000 | F24: 45000 | G24: -11000
A25: ON1Call Initiative | D25: 40000
